Workbook

Sheet Instructions
A1: Statewide Building Electrication Program Domestic Hot Water (DHW) Applications
B2: Below Cells are Optional | G2: Welcome to the Statewide Building Electrification Custom Program - DHW Calculator
G3: Instructions
A4: Project Details
A5: Program Name* | B5: Building Electrification Program | G5: The Building Electrification DHW Calculator is an excel based tool that has been developed to assist participating contractors applying to the New York State Building Electrification Program with calculating custom energy savings and incentives for the following heat pump water heater technologies:
A7: Account Holder Information
A8: Account Name | G8: • Domestic Hot Water Heat Pump Water Heater (HPWH)
A9: Account Number (14 Digits) | G9: • Air-to-Water Heat Pump (AWHP) located Outdoors
A10: Title | G10: • Water-to-Water Heat Pump (WWHP), Single Phase that meets Energy Star
A11: Mailing Address | G11: • Water-to-Water Heat Pump (WWHP), Three Phase that meets NYS Code
A12: Unit Number
A13: City | G13: Users shall review the ‘Eqpt Schedule', 'COP Assignment', ’DHW Bldg & Operation Data’ and ‘Results Summary’ tabs and input project specific details where needed. Cells requiring user input are highlighted in yellow including dropdown selection. Cells in green will auto-populate based on the inputs the user enters. Red cells or error meassage indicate there may be an issue with project entry or equipment eligibility. Follow the error message.
A14: Zip
A16: Site Information
A17: Contact First Name | G17: Input/Drop Down Selection Required
A18: Contact Last Name | G18: Optional Input/Drop Down Selection
A19: Street Address | G19: Output (Calculated/Based on Selection)
A20: Unit Number | G20: Not Applicable based on selection criteria
A21: City
A22: Zip | G22: Refer to the Statewide Building Electrification Program - DHW Calculator User Guide for step-by-step instructions to complete this tool.
A23: Phone
A24: Email
G25: Tabs should be completed in the following order:
A26: Participating Contractor Information | G26: 1. Eqpt Schedule 2.COP Assignment 3. DHW Bldg & Operation Data
A27: Installation Completed By
A28: Company Name
A29: Contact Name
A30: Title
A31: Mailing Address
A32: Phone
A33: Email
A35: Project Notes
A52: For Internal Use Only
A53: Project Name
A54: Project Number
A55: Application Received Date
A56: Tool version | B56: 3.5
A57: Tool version date | B57: 2026-03-15
B58: 21
A59: Mar-15-2026 V3.5
A60: - updated incentive rates for 2026 and eliminated Clean Heat branding
A61: - added an HPWH as a baseline choice for 55+ gallons (for New Construction)
A62: - updated weather data from TMY3 to TMYx2009-2023
A63: - added questions for "Phased" and LMI/DAC to 'DHW Bldg & Operational Data' tab
A64: 9/15/2025 V3.4
A65: -LTO fixed error that used LTO adder if LTO date was blank
A66: -Fixed error in Results!N4 that left incentive blank (due to 'Utility' ref error)
A67: 4/15/2025 V3.3
A68: - Add LTO adders based on Con Ed Utility program
A69: - Added option to calc HW use via EIA method (added ability for OCC & Apts inputs)
A70: - updated EULs for HPWH/AWHP/WWHP to be 13/15/25. Now do a wt-avg of EUL for mixed cases
A71: 2/25/2025 V3.2e
A72: - unhid COP Assignment tab; fixed conditional red cells for in eligible
A73: - fixed error in COP Assignment W16 (and calcs R27) that caused error in one bin
A74: 2/20/2025 V3.2e
A75: '- fixed lit of utilities in cell C4 of "DHW Bldg …" sheet
A76: 1/27/2025 V3.2d
A77: -fixed LTO incentive error and incentive cap (70% --> 50%)
A79: - Changed MultiFamily choices to explicitly show occ per apt values | B79: V3.2c
A80: - Added option to specify if Electric Resist. Is used to meet Recirc Loads (lowers COP)
A81: - updated sample COP curves | B81: V3.2b
A82: 2024-12-06
A83: - added LTO incentive for Con Ed
A84: 2024-11-06
A85: - added option for user to specify GPD for OTHER bldg type / OR specify Occ for MF
A86: - added option to specify bldg HW temp for pre-heat systems
A87: - udpated (blue) descriptive text in 'DHW Bldg' tab
A88: - updated the kW calc to use HP size
A89: 2024-09-02
A90: - Added MF rates per Dwelling Unit; Fixed Con Ed Rates
A91: - Added Option in Equip to Select NEEA QPL for Eligibility
A92: - Clarified HP Location Options
A93: 2024-06-17
A94: - results now depend on base fuel type ("Electric" vs others)
A95: 2024-06-03
A96: - added new technology types (HPWH, AWHP, WWHP1, WWHP3, etc) to replace one type
A97: - added capability for ground source HP option
A98: - explicitly spelled out difference between AWHP and HPWH w/ COP_h
A99: - now must enter Rated COP for each technology type
A100: REV 3/26/2024
A101: - fixed problem with Upstate weather data
A102: - made cold water / main temperature use bin-calculated values, instead of fixed values

Sheet DHW Bldg & Operation Data
B1: DHW Building & Operational Data Inputs | D1: ="Weather Data Source: "&'Weather Data'!C9 -> Weather Data Source: TMYx | E1: Intermediate Values (TO BE HIDDEN) | F1: Alternate HW Use Calcs from EIA/HUD | R1: Basis for the Alternate HW Use Calcs
A2: Project Information | B2: Project Location | F2: ( data from EIA HC 9.9.pdf, page 1) | R2: Based on an analysis of EIA data by ADM. Persons/bedroom is based on the 1988 Keatings Memo, which was adopted by the Department of Housing and Urban Development. This considers that 2 persons/bedroom, plus 1 in other habitable spaces (such as a living room) is a reasonable number of occupants in a home. Note that more occupants may exist in a particular unit, but these are not accounted for. Data is weighted based on EIA survey data, with each unit assigned a maximum value to be weighted from. For example, a 1 bedroom, assumes up to 2 people in the bedroom + 1 in the living room, so max of 3 people. The number of 1, 2, and 3 person househoulds is summed, and that percentage is then used as a weighted sum to determine, 1.6 persons on average for a 1 bedroom apartment. A studio, which only has 1 habitable space, then assumes only a maximum of 2 persons, and is weighted in a similarly manner.
B3: NOAA/TMY3 ACCA Location | E3: =IFERROR(VLOOKUP(C2,'Worksheet Data'!$N$24:$Q$46,4,FALSE),"") -> 
B4: Utility | F4: Unit Type | G4: No of Apts | H4: No Occupants
B5: Utility Program | F5: Studio (1.4) | H5: =G5*1.4 -> 0
B6: Is the Project "Phased" or "Full-load"? | F6: 1 Bedroom (1.6) | H6: =G6*1.6 -> 0
B7: =IF(Utility="Con Edison","Does the Project have LMI status?","Does the Project have DAC status?") -> Does the Project have DAC status? | F7: 2 Bedroom (1.9) | H7: =G7*1.9 -> 0
B8: Building Type (If OTHER, fill in Custom Information) | D8: Enter Your Description of Bldg | E8: =INDEX(TableGPDLookup[LegacyBldgType],MATCH(NewBldgType,ListBldgType,0)) ->  | F8: 3+ Bedroom (2.1) | H8: =G8*2.1 -> 0
B9: Existing Building or New Construction | F9: Totals | G9: =SUM(G5:G8) -> 0 | H9: =SUM(H5:H8) -> 0
B10: =IFERROR(INDEX(ListGPDHelpText,MATCH(NewBldgType,ListBldgType,0)),"Please enter a building type above.") -> Please enter a building type above. | D10: =IFERROR(INDEX(ListGPDUnit,MATCH(NewBldgType,ListBldgType,0)),"Units") -> Units | G10: Overall occ/apt: | H10: =H9/(G9+0.0000000001) -> 0
B11: Please enter the number of Apartments in the building | C11: 3 | D11: Apts | F11: 1) Choose "Multifamily, Specify # of Occupants"
B12: HW Temp Delivered to Bldg (125°F or lower for pre-heat system) | C12: 125 | F12: in cell C8
B13: Does the building have a recirculating pump? | F13: 2) Enter total number of Occupants (from cell H9)
B14: Is the Recirc Heating Load met with Electric Resistance?
A16: HPWH Information | B16: Demand type | E16: Medium
B17: Time duration during peak (hr/day) | E17: 3 hr | F17: into cell C8
B18: ="DHW Usage per "&D10&" (GPD)" -> DHW Usage per Units (GPD) | C18: =INDEX(ListGPDRate,MATCH(NewBldgType,ListBldgType,0)) -> 
B19: Est. DHW Peak Usage (GPH) | C19: =INDEX(TableMaxHourlyFractionGPD[],MATCH(Bldg_Type,TableMaxHourlyFractionGPD[Building Type],0),MATCH("Max",TableMaxHourlyFractionGPD[#Headers],0))*DHW_GPD -> 
B20: Est. DHW Peak Load (Btu/h) | C20: =DHW_peak_demand_GPH*8.33*(DHW_Setpoint_Temp_degF-Incoming_Water_Temperature) -> 
B21: Daily DHW Use for Building (GPD) | C21: =IF(AND(NewBldgType="Other",$F$21>0),$F$21,DHWDemandPerUnit*GPDCalcUnits) ->  | D21: Specify HW Use for Building (GPD): | F21: 1200
B22: Number of HP Units installed (#) | C22: =SUM('Eqpt Schedule'!G5:G14) -> 0
B23: Total Rated Heating Capacity (Btu/h) | C23: =SUMPRODUCT('Eqpt Schedule'!G5:G14,'Eqpt Schedule'!J5:J14) -> 0
B24: HPWH Sizing Ratio (Capacity / Peak Load) | C24: =C23/C20 ->  | D24: System sizing is for information purposes only. | I24: Conditioned Space | L24: Conditioned: located in space heated or cooled to a temperature set point
I25: Un-Conditioned Enclosed | L25: Un-conditioned: located in spaces that float with outdoor temperatures (assumed to be half way between conditioned spaces and outdoors)
B26: HP Location / Source Type | D26: ="<< "&VLOOKUP(HPWH_Location,$I$24:$L$27,4,FALSE) ->  | I26: Outdoor Evaporator | L26: Outdoor: HP evaporator is either located outdoors or ducted to outdoors
B27: HP Space Conditioning Type | C27: Heating and Cooling | I27: Ground Source | L27: Geothermal: WWHP uses ground heat exchanger as a heat source
B28: Average Setpoint for Conditioned Space (°F) | C28: 72 | E28: Bin Model Temperature
A29: Grnd Loop | B29: Average Ground Temperature (F) | C29: 50 | E29: =IF(HPWH_Location="Un-Conditioned Enclosed",75,IFERROR(RoomTempSetpt,72)) -> 72
B30: Maximum Ground Loop Temperature (F) - from loop design | C30: 90
B31: Minimum Ground Loop Temperature (F) - from loop design | C31: 30
B34: Input/Drop Down Selection Required
B35: Output (Calculated/Based on Selection)
B36: Not Applicable based on selection criteria

Sheet Eqpt Schedule
D1: Please fill out the equipment information in this tab, followed by the corresponding COP information in the 'COP Assignment' tab. | T1: Eligibility Check
D2: Proposed Equipment Schedule | N2: Baseline System Characteristics | R2: Eligibility | T2: Min Efficiency Compliance
B3: Location | D3: Heat Pump Technology | E3: Technology Code | F3: Category | G3: Unit Quantity | H3: Make | I3: Model | J3: Rated Heating Capacity (Btu/h) | K3: Rated COP | L3: Rated Conditions for COP | M3: System on NEEA QPL? | N3: Baseline System Size/Category | O3: Baseline Efficiency | P3: Unique ID | Q3: Energy Star Unique Identified | R3: Heat Pump Eligible? | S3: Technology Check? | T3: Minimum COP | U3: Meet or Exceed? | V3: EUL | AB3: Capacity-weighted EUL
B4: =IF(D4<>0,IF(OR(ACCA_Location='Worksheet Data'!$M$2,ACCA_Location='Worksheet Data'!$M$3,ACCA_Location='Worksheet Data'!$M$4),"NYC","NYS"),"") -> NYS | C4: Example | D4: Large COM HPWH > 80 gal | E4: =IFERROR(VLOOKUP(D4,'Worksheet Data'!$AD$2:$AF$12,2,FALSE),"") -> Large HPWH | F4: =IFERROR(VLOOKUP(D4,'Worksheet Data'!$AD$2:$AF$12,3,FALSE),"") -> 6 | G4: 1 | H4: Colmac | I4: CxV-5 | J4: 76582 | K4: 3 | L4: =IF(D4<>"",VLOOKUP(E4,$W$7:$Y$10,3,),"") -> COP_H@80F | M4: No | N4: Electric Water Heaters/ <12 kW/Resistance, >=20 gals and <=55 gals | O4: =IFERROR(VLOOKUP(N4,'Worksheet Data'!$D$4:$I$25,5,FALSE),"") -> 0.948 | P4: =IF(D4="","",B4&"|"&E4&"|"&H4&"|"&I4) -> NYS|Large HPWH|Colmac|CxV-5 | Q4: =IF(D4="","",E4&"|"&I4) -> Large HPWH|CxV-5 | R4: =IF(D4<>"",IF(AND(U4=1,S4="OK"),"Eligible","Not Eligible"),"") -> Eligible | S4: =IF(D4<>"",IF(AND(HPWH_Location="Ground Source",MID(E4,7,4)<>"WWHP"),"Equip Must be WWHP",IF(AND(HPWH_Location<>"Ground Source",MID(E4,7,4)="WWHP"),"Equip Must be Air-Source","OK")),"") -> OK | T4: =IF(D4<>"",VLOOKUP(E4,$W$7:$X$10,2,),"") -> 3 | U4: =IF(D4<>"",IF(OR(K4>=T4,M4="YES"),1,0),"") -> 1 | AB4: =SUMPRODUCT(V5:V14,J5:J14)/SUM(J5:J14) -> 
B5: =IF(D5<>0,IF(OR(ACCA_Location='Worksheet Data'!$M$2,ACCA_Location='Worksheet Data'!$M$3,ACCA_Location='Worksheet Data'!$M$4),"NYC","NYS"),"") ->  | E5: =IFERROR(VLOOKUP(D5,'Worksheet Data'!$AD$2:$AF$12,2,FALSE),"") ->  | F5: =IFERROR(VLOOKUP(D5,'Worksheet Data'!$AD$2:$AF$12,3,FALSE),"") ->  | L5: =IF(D5<>"",VLOOKUP(E5,$W$7:$Y$10,3,),"") ->  | O5: =IFERROR(VLOOKUP(N5,'Worksheet Data'!$D$4:$I$25,5,FALSE),"") ->  | P5: =IF(D5="","",B5&"|"&E5&"|"&H5&"|"&I5) ->  | Q5: =IF(D5="","",E5&"|"&I5) ->  | R5: =IF(D5<>"",IF(AND(U5=1,S5="OK"),"Eligible","Not Eligible"),"") ->  | T5: =IF(D5<>"",VLOOKUP(E5,$W$7:$X$10,2,),"") ->  | U5: =IF(D5<>"",IF(OR(K5>=T5,M5="YES"),1,0),"") ->  | V5: =IFERROR(VLOOKUP(D5,'Worksheet Data'!AD4:AH7,5,FALSE),0) -> 0 | W5: Efficiency By
B6: =IF(D6<>0,IF(OR(ACCA_Location='Worksheet Data'!$M$2,ACCA_Location='Worksheet Data'!$M$3,ACCA_Location='Worksheet Data'!$M$4),"NYC","NYS"),"") ->  | E6: =IFERROR(VLOOKUP(D6,'Worksheet Data'!$AD$2:$AF$12,2,FALSE),"") ->  | F6: =IFERROR(VLOOKUP(D6,'Worksheet Data'!$AD$2:$AF$12,3,FALSE),"") ->  | O6: =IFERROR(VLOOKUP(N6,'Worksheet Data'!$D$4:$I$25,5,FALSE),"") ->  | P6: =IF(D6="","",B6&"|"&E6&"|"&H6&"|"&I6) ->  | Q6: =IF(D6="","",E6&"|"&I6) ->  | V6: =IFERROR(VLOOKUP(D6,'Worksheet Data'!AD5:AH8,5,FALSE),0) -> 0 | W6: Technology Code | X6: Min COP | Y6: Rated Conditions for COP | Z6: Notes
B7: =IF(D7<>0,IF(OR(ACCA_Location='Worksheet Data'!$M$2,ACCA_Location='Worksheet Data'!$M$3,ACCA_Location='Worksheet Data'!$M$4),"NYC","NYS"),"") ->  | E7: =IFERROR(VLOOKUP(D7,'Worksheet Data'!$AD$2:$AF$12,2,FALSE),"") ->  | F7: =IFERROR(VLOOKUP(D7,'Worksheet Data'!$AD$2:$AF$12,3,FALSE),"") ->  | O7: =IFERROR(VLOOKUP(N7,'Worksheet Data'!$D$4:$I$25,5,FALSE),"") ->  | P7: =IF(D7="","",B7&"|"&E7&"|"&H7&"|"&I7) ->  | Q7: =IF(D7="","",E7&"|"&I7) ->  | V7: =IFERROR(VLOOKUP(D7,'Worksheet Data'!AD6:AH9,5,FALSE),0) -> 0 | W7: Large HPWH | X7: 3 | Y7: COP_H@80F | Z7: Energy Star. COP-h at 80F space, 70F inlet, 120F outlet (DOE test protocol 10 CFR 431, Subpart G, Appendix E)
B8: =IF(D8<>0,IF(OR(ACCA_Location='Worksheet Data'!$M$2,ACCA_Location='Worksheet Data'!$M$3,ACCA_Location='Worksheet Data'!$M$4),"NYC","NYS"),"") ->  | E8: =IFERROR(VLOOKUP(D8,'Worksheet Data'!$AD$2:$AF$12,2,FALSE),"") ->  | F8: =IFERROR(VLOOKUP(D8,'Worksheet Data'!$AD$2:$AF$12,3,FALSE),"") ->  | O8: =IFERROR(VLOOKUP(N8,'Worksheet Data'!$D$4:$I$25,5,FALSE),"") ->  | P8: =IF(D8="","",B8&"|"&E8&"|"&H8&"|"&I8) ->  | Q8: =IF(D8="","",E8&"|"&I8) ->  | V8: =IFERROR(VLOOKUP(D8,'Worksheet Data'!AD7:AH10,5,FALSE),0) -> 0 | W8: Large WWHP1 | X8: 3.1 | Y8: COP@32F & EWT=104F | Z8: Energy Star. at 32F source in and 104F load in using 13256-2
B9: =IF(D9<>0,IF(OR(ACCA_Location='Worksheet Data'!$M$2,ACCA_Location='Worksheet Data'!$M$3,ACCA_Location='Worksheet Data'!$M$4),"NYC","NYS"),"") ->  | E9: =IFERROR(VLOOKUP(D9,'Worksheet Data'!$AD$2:$AF$12,2,FALSE),"") ->  | F9: =IFERROR(VLOOKUP(D9,'Worksheet Data'!$AD$2:$AF$12,3,FALSE),"") ->  | O9: =IFERROR(VLOOKUP(N9,'Worksheet Data'!$D$4:$I$25,5,FALSE),"") ->  | P9: =IF(D9="","",B9&"|"&E9&"|"&H9&"|"&I9) ->  | Q9: =IF(D9="","",E9&"|"&I9) ->  | V9: =IFERROR(VLOOKUP(D9,'Worksheet Data'!AD8:AH11,5,FALSE),0) -> 0 | W9: Large WWHP3 | X9: 2.5 | Y9: COP@32F & EWT=104F | Z9: NYS Code. ASHRAE 90.1-2022 Table 6.8.1-15 using 13256-2
E10: =IFERROR(VLOOKUP(D10,'Worksheet Data'!$AD$2:$AF$12,2,FALSE),"") ->  | F10: =IFERROR(VLOOKUP(D10,'Worksheet Data'!$AD$2:$AF$12,3,FALSE),"") ->  | O10: =IFERROR(VLOOKUP(N10,'Worksheet Data'!$D$4:$I$25,5,FALSE),"") ->  | V10: =IFERROR(VLOOKUP(D10,'Worksheet Data'!AD9:AH12,5,FALSE),0) -> 0 | W10: Large AWHP | X10: 2.31 | Y10: COP@47F & LWT=140F | Z10: NYS Code. ASHRAE 90.1-2022 Table 6.8.1-16 using AHRI 550/590
B11: =IF(D11<>0,IF(OR(ACCA_Location='Worksheet Data'!$M$2,ACCA_Location='Worksheet Data'!$M$3,ACCA_Location='Worksheet Data'!$M$4),"NYC","NYS"),"") ->  | E11: =IFERROR(VLOOKUP(D11,'Worksheet Data'!$AD$2:$AF$12,2,FALSE),"") ->  | F11: =IFERROR(VLOOKUP(D11,'Worksheet Data'!$AD$2:$AF$12,3,FALSE),"") ->  | O11: =IFERROR(VLOOKUP(N11,'Worksheet Data'!$D$4:$I$25,5,FALSE),"") ->  | V11: =IFERROR(VLOOKUP(D11,'Worksheet Data'!AD10:AH13,5,FALSE),0) -> 0
B12: =IF(D12<>0,IF(OR(ACCA_Location='Worksheet Data'!$M$2,ACCA_Location='Worksheet Data'!$M$3,ACCA_Location='Worksheet Data'!$M$4),"NYC","NYS"),"") ->  | E12: =IFERROR(VLOOKUP(D12,'Worksheet Data'!$AD$2:$AF$12,2,FALSE),"") ->  | F12: =IFERROR(VLOOKUP(D12,'Worksheet Data'!$AD$2:$AF$12,3,FALSE),"") ->  | O12: =IFERROR(VLOOKUP(N12,'Worksheet Data'!$D$4:$I$25,5,FALSE),"") ->  | V12: =IFERROR(VLOOKUP(D12,'Worksheet Data'!AD11:AH14,5,FALSE),0) -> 0
B13: =IF(D13<>0,IF(OR(ACCA_Location='Worksheet Data'!$M$2,ACCA_Location='Worksheet Data'!$M$3,ACCA_Location='Worksheet Data'!$M$4),"NYC","NYS"),"") ->  | E13: =IFERROR(VLOOKUP(D13,'Worksheet Data'!$AD$2:$AF$12,2,FALSE),"") ->  | F13: =IFERROR(VLOOKUP(D13,'Worksheet Data'!$AD$2:$AF$12,3,FALSE),"") ->  | O13: =IFERROR(VLOOKUP(N13,'Worksheet Data'!$D$4:$I$25,5,FALSE),"") ->  | V13: =IFERROR(VLOOKUP(D13,'Worksheet Data'!AD12:AH15,5,FALSE),0) -> 0
B14: =IF(D14<>0,IF(OR(ACCA_Location='Worksheet Data'!$M$2,ACCA_Location='Worksheet Data'!$M$3,ACCA_Location='Worksheet Data'!$M$4),"NYC","NYS"),"") ->  | E14: =IFERROR(VLOOKUP(D14,'Worksheet Data'!$AD$2:$AF$12,2,FALSE),"") ->  | F14: =IFERROR(VLOOKUP(D14,'Worksheet Data'!$AD$2:$AF$12,3,FALSE),"") ->  | O14: =IFERROR(VLOOKUP(N14,'Worksheet Data'!$D$4:$I$25,5,FALSE),"") ->  | V14: =IFERROR(VLOOKUP(D14,'Worksheet Data'!AD13:AH16,5,FALSE),0) -> 0

Sheet COP Assignment
A1: COP Assignment | F1: COP Assignment Table: Enter the COP values in 10F increments of ENT TEMP for each piece of equipment. For NEEA QPL-Listed Equipment, enter the known seasonal COP value into each bin. Similarly, enter COP_h value into each bin for Large HPWH in indoor applications. TIP: COPs often decrease at a rate of 1% per 1F for many products (both air and water source). | U1: ENT TEMP = | V1: ='DHW Calculator'!H13 -> Air Source Entering Temperature (F)
A2: ='DHW Calculator'!H13 -> Air Source Entering Temperature (F) | F2: Enter COP Below for HW Entering=90F (see "Sample DHW HP Curves" tab for possible values) | R2: total capacity = | S2: =SUMPRODUCT(F17:O17,F18:O18) -> 0 | U2: OAT Mid pt | V2: ENT TEMP | W2: COP
A3: Temperature Bin (F) | B3: Greater Than or Equal To degF | C3: Less Than degF | D3: COP Weighing Factor | E3: Normalized COP Weighing Factor | F3: Equipment 1 | G3: Equipment 2 | H3: Equipment 3 | I3: Equipment 4 | J3: Equipment 5 | K3: Equipment 6 | L3: Equipment 7 | M3: Equipment 8 | N3: Equipment 9 | O3: Equipment 10 | Q3: min | R3: max | S3: Wt AVG | U3: ='DHW Calculator'!E14 -> 101 | V3: ='DHW Calculator'!H14 -> 33.88888889 | W3: =VLOOKUP(V4+2,$Q$4:$S$13,3,TRUE) -> 
A4: 0-10 | B4: -100 | C4: 10 | D4: =SUMIFS(#REF!,#REF!,"="&TableCOPCustomAssignment[[#This Row],[Temperature Bin (F)]]) ->  | E4: =TableCOPCustomAssignment[[#This Row],[COP Weighing Factor]]/SUM(TableCOPCustomAssignment[COP Weighing Factor]) ->  | Q4: 0 | R4: 10 | S4: =SUMPRODUCT(F4:O4,$F$17:$O$17,$F$18:$O$18)/$S$2 ->  | U4: ='DHW Calculator'!E15 -> 99 | V4: ='DHW Calculator'!H15 -> 35 | W4: =VLOOKUP(V5+2,$Q$4:$S$13,3,TRUE) -> 
A5: 10-20 | B5: 10 | C5: 20 | D5: =SUMIFS(#REF!,#REF!,"="&TableCOPCustomAssignment[[#This Row],[Temperature Bin (F)]]) ->  | E5: =TableCOPCustomAssignment[[#This Row],[COP Weighing Factor]]/SUM(TableCOPCustomAssignment[COP Weighing Factor]) ->  | Q5: =Q4+10 -> 10 | R5: =R4+10 -> 20 | U5: ='DHW Calculator'!E16 -> 97 | V5: ='DHW Calculator'!H16 -> 36.11111111
A6: 20-30 | B6: 20 | C6: 30 | D6: =SUMIFS(#REF!,#REF!,"="&TableCOPCustomAssignment[[#This Row],[Temperature Bin (F)]]) ->  | E6: =TableCOPCustomAssignment[[#This Row],[COP Weighing Factor]]/SUM(TableCOPCustomAssignment[COP Weighing Factor]) ->  | Q6: =Q5+10 -> 20 | R6: =R5+10 -> 30 | U6: ='DHW Calculator'!E17 -> 95 | V6: ='DHW Calculator'!H17 -> 37.22222222
A7: 30-40 | B7: 30 | C7: 40 | D7: =SUMIFS(#REF!,#REF!,"="&TableCOPCustomAssignment[[#This Row],[Temperature Bin (F)]]) ->  | E7: =TableCOPCustomAssignment[[#This Row],[COP Weighing Factor]]/SUM(TableCOPCustomAssignment[COP Weighing Factor]) ->  | Q7: 30 | R7: 40 | U7: ='DHW Calculator'!E18 -> 93 | V7: ='DHW Calculator'!H18 -> 38.33333333
A8: 40-50 | B8: 40 | C8: 50 | D8: =SUMIFS(#REF!,#REF!,"="&TableCOPCustomAssignment[[#This Row],[Temperature Bin (F)]]) ->  | E8: =TableCOPCustomAssignment[[#This Row],[COP Weighing Factor]]/SUM(TableCOPCustomAssignment[COP Weighing Factor]) ->  | Q8: 40 | R8: 50 | U8: ='DHW Calculator'!E19 -> 91 | V8: ='DHW Calculator'!H19 -> 39.44444444
A9: 50-60 | B9: 50 | C9: 60 | D9: =SUMIFS(#REF!,#REF!,"="&TableCOPCustomAssignment[[#This Row],[Temperature Bin (F)]]) ->  | E9: =TableCOPCustomAssignment[[#This Row],[COP Weighing Factor]]/SUM(TableCOPCustomAssignment[COP Weighing Factor]) ->  | Q9: 50 | R9: 60 | U9: ='DHW Calculator'!E20 -> 89 | V9: ='DHW Calculator'!H20 -> 40.55555556
A10: 60-70 | B10: 60 | C10: 70 | D10: =SUMIFS(#REF!,#REF!,"="&TableCOPCustomAssignment[[#This Row],[Temperature Bin (F)]]) ->  | E10: =TableCOPCustomAssignment[[#This Row],[COP Weighing Factor]]/SUM(TableCOPCustomAssignment[COP Weighing Factor]) ->  | Q10: 60 | R10: 70 | U10: ='DHW Calculator'!E21 -> 87 | V10: ='DHW Calculator'!H21 -> 41.66666667
A11: 70-80 | B11: 70 | C11: 80 | D11: =SUMIFS(#REF!,#REF!,"="&TableCOPCustomAssignment[[#This Row],[Temperature Bin (F)]]) ->  | E11: =TableCOPCustomAssignment[[#This Row],[COP Weighing Factor]]/SUM(TableCOPCustomAssignment[COP Weighing Factor]) ->  | Q11: 70 | R11: 80 | U11: ='DHW Calculator'!E22 -> 85 | V11: ='DHW Calculator'!H22 -> 42.77777778
A12: 80-90 | B12: 80 | C12: 90 | D12: =SUMIFS(#REF!,#REF!,"="&TableCOPCustomAssignment[[#This Row],[Temperature Bin (F)]]) ->  | E12: =TableCOPCustomAssignment[[#This Row],[COP Weighing Factor]]/SUM(TableCOPCustomAssignment[COP Weighing Factor]) ->  | Q12: 80 | R12: 90 | U12: ='DHW Calculator'!E23 -> 83 | V12: ='DHW Calculator'!H23 -> 43.88888889
A13: 90-100 | B13: 90 | C13: 200 | D13: =SUMIFS(#REF!,#REF!,"="&TableCOPCustomAssignment[[#This Row],[Temperature Bin (F)]]) ->  | E13: =TableCOPCustomAssignment[[#This Row],[COP Weighing Factor]]/SUM(TableCOPCustomAssignment[COP Weighing Factor]) ->  | Q13: 90 | R13: 100 | U13: ='DHW Calculator'!E24 -> 81 | V13: ='DHW Calculator'!H24 -> 45
A14: Rated COP for Eligibility | F14: ='Eqpt Schedule'!$K5 -> 0 | G14: ='Eqpt Schedule'!$K6 -> 0 | H14: ='Eqpt Schedule'!$K7 -> 0 | I14: ='Eqpt Schedule'!$K8 -> 0 | J14: ='Eqpt Schedule'!$K9 -> 0 | K14: ='Eqpt Schedule'!$K10 -> 0 | L14: ='Eqpt Schedule'!$K11 -> 0 | M14: ='Eqpt Schedule'!$K12 -> 0 | N14: ='Eqpt Schedule'!$K13 -> 0 | O14: ='Eqpt Schedule'!$K14 -> 0 | U14: ='DHW Calculator'!E25 -> 79 | V14: ='DHW Calculator'!H25 -> 46.11111111
A15: HPWH Unique ID | F15: =INDEX('Eqpt Schedule'!$P$4:$P$14,COLUMN()-4) ->  | G15: =INDEX('Eqpt Schedule'!$P$4:$P$14,COLUMN()-4) ->  | H15: =INDEX('Eqpt Schedule'!$P$4:$P$14,COLUMN()-4) ->  | I15: =INDEX('Eqpt Schedule'!$P$4:$P$14,COLUMN()-4) ->  | J15: =INDEX('Eqpt Schedule'!$P$4:$P$14,COLUMN()-4) ->  | K15: =INDEX('Eqpt Schedule'!$P$4:$P$14,COLUMN()-4) ->  | L15: =INDEX('Eqpt Schedule'!$P$4:$P$14,COLUMN()-4) ->  | M15: =INDEX('Eqpt Schedule'!$P$4:$P$14,COLUMN()-4) ->  | N15: =INDEX('Eqpt Schedule'!$P$4:$P$14,COLUMN()-4) ->  | O15: =INDEX('Eqpt Schedule'!$P$4:$P$14,COLUMN()-4) ->  | U15: ='DHW Calculator'!E26 -> 77 | V15: ='DHW Calculator'!H26 -> 47.22222222 | W15: =VLOOKUP(V16+2,$Q$4:$S$13,3,TRUE) -> 
A16: Tech Code | F16: =INDEX('Eqpt Schedule'!$E$4:$E$14,COLUMN()-4) ->  | G16: =INDEX('Eqpt Schedule'!$E$4:$E$14,COLUMN()-4) ->  | H16: =INDEX('Eqpt Schedule'!$E$4:$E$14,COLUMN()-4) ->  | I16: =INDEX('Eqpt Schedule'!$E$4:$E$14,COLUMN()-4) ->  | J16: =INDEX('Eqpt Schedule'!$E$4:$E$14,COLUMN()-4) ->  | K16: =INDEX('Eqpt Schedule'!$E$4:$E$14,COLUMN()-4) ->  | L16: =INDEX('Eqpt Schedule'!$E$4:$E$14,COLUMN()-4) ->  | M16: =INDEX('Eqpt Schedule'!$E$4:$E$14,COLUMN()-4) ->  | N16: =INDEX('Eqpt Schedule'!$E$4:$E$14,COLUMN()-4) ->  | O16: =INDEX('Eqpt Schedule'!$E$4:$E$14,COLUMN()-4) ->  | U16: ='DHW Calculator'!E27 -> 75 | V16: ='DHW Calculator'!H27 -> 48.33333333
A17: HP Unit Capacity (Btu/h) | F17: =INDEX('Eqpt Schedule'!$J$5:$J$14,COLUMN()-5) -> 0 | G17: =INDEX('Eqpt Schedule'!$J$5:$J$14,COLUMN()-5) -> 0 | H17: =INDEX('Eqpt Schedule'!$J$5:$J$14,COLUMN()-5) -> 0 | I17: =INDEX('Eqpt Schedule'!$J$5:$J$14,COLUMN()-5) -> 0 | J17: =INDEX('Eqpt Schedule'!$J$5:$J$14,COLUMN()-5) -> 0 | K17: =INDEX('Eqpt Schedule'!$J$5:$J$14,COLUMN()-5) -> 0 | L17: =INDEX('Eqpt Schedule'!$J$5:$J$14,COLUMN()-5) -> 0 | M17: =INDEX('Eqpt Schedule'!$J$5:$J$14,COLUMN()-5) -> 0 | N17: =INDEX('Eqpt Schedule'!$J$5:$J$14,COLUMN()-5) -> 0 | O17: =INDEX('Eqpt Schedule'!$J$5:$J$14,COLUMN()-5) -> 0 | U17: ='DHW Calculator'!E28 -> 73 | V17: ='DHW Calculator'!H28 -> 49.44444444
A18: Number of Units | F18: =INDEX('Eqpt Schedule'!$G$5:$G$14,COLUMN()-5) -> 0 | G18: =INDEX('Eqpt Schedule'!$G$5:$G$14,COLUMN()-5) -> 0 | H18: =INDEX('Eqpt Schedule'!$G$5:$G$14,COLUMN()-5) -> 0 | I18: =INDEX('Eqpt Schedule'!$G$5:$G$14,COLUMN()-5) -> 0 | J18: =INDEX('Eqpt Schedule'!$G$5:$G$14,COLUMN()-5) -> 0 | K18: =INDEX('Eqpt Schedule'!$G$5:$G$14,COLUMN()-5) -> 0 | L18: =INDEX('Eqpt Schedule'!$G$5:$G$14,COLUMN()-5) -> 0 | M18: =INDEX('Eqpt Schedule'!$G$5:$G$14,COLUMN()-5) -> 0 | N18: =INDEX('Eqpt Schedule'!$G$5:$G$14,COLUMN()-5) -> 0 | O18: =INDEX('Eqpt Schedule'!$G$5:$G$14,COLUMN()-5) -> 0 | U18: ='DHW Calculator'!E29 -> 71 | V18: ='DHW Calculator'!H29 -> 49.72222222
A19: Total Associated HPWH Percentage | F19: =F17*F18/$S$2 ->  | G19: =G17*G18/$S$2 ->  | U19: ='DHW Calculator'!E30 -> 69 | V19: ='DHW Calculator'!H30 -> 49.16666667
U20: ='DHW Calculator'!E31 -> 67 | V20: ='DHW Calculator'!H31 -> 48.61111111
U21: ='DHW Calculator'!E32 -> 65 | V21: ='DHW Calculator'!H32 -> 48.05555556
U22: ='DHW Calculator'!E33 -> 63 | V22: ='DHW Calculator'!H33 -> 47.5
U23: ='DHW Calculator'!E34 -> 61 | V23: ='DHW Calculator'!H34 -> 46.94444444
U24: ='DHW Calculator'!E35 -> 59 | V24: ='DHW Calculator'!H35 -> 46.38888889
U25: ='DHW Calculator'!E36 -> 57 | V25: ='DHW Calculator'!H36 -> 45.83333333
U26: ='DHW Calculator'!E37 -> 55 | V26: ='DHW Calculator'!H37 -> 45.27777778
U27: ='DHW Calculator'!E38 -> 53 | V27: ='DHW Calculator'!H38 -> 44.72222222
U28: ='DHW Calculator'!E39 -> 51 | V28: ='DHW Calculator'!H39 -> 44.16666667
U29: ='DHW Calculator'!E40 -> 49 | V29: ='DHW Calculator'!H40 -> 43.61111111
U30: ='DHW Calculator'!E41 -> 47 | V30: ='DHW Calculator'!H41 -> 43.05555556
U31: ='DHW Calculator'!E42 -> 45 | V31: ='DHW Calculator'!H42 -> 42.5
U32: ='DHW Calculator'!E43 -> 43 | V32: ='DHW Calculator'!H43 -> 41.94444444
U33: ='DHW Calculator'!E44 -> 41 | V33: ='DHW Calculator'!H44 -> 41.38888889
U34: ='DHW Calculator'!E45 -> 39 | V34: ='DHW Calculator'!H45 -> 40.83333333
U35: ='DHW Calculator'!E46 -> 37 | V35: ='DHW Calculator'!H46 -> 40.27777778
U36: ='DHW Calculator'!E47 -> 35 | V36: ='DHW Calculator'!H47 -> 39.72222222
U37: ='DHW Calculator'!E48 -> 33 | V37: ='DHW Calculator'!H48 -> 39.16666667
U38: ='DHW Calculator'!E49 -> 31 | V38: ='DHW Calculator'!H49 -> 38.61111111
U39: ='DHW Calculator'!E50 -> 29 | V39: ='DHW Calculator'!H50 -> 38.05555556
U40: ='DHW Calculator'!E51 -> 27 | V40: ='DHW Calculator'!H51 -> 37.5
U41: ='DHW Calculator'!E52 -> 25 | V41: ='DHW Calculator'!H52 -> 36.94444444
U42: ='DHW Calculator'!E53 -> 23 | V42: ='DHW Calculator'!H53 -> 36.38888889
U43: ='DHW Calculator'!E54 -> 21 | V43: ='DHW Calculator'!H54 -> 35.83333333
U44: ='DHW Calculator'!E55 -> 19 | V44: ='DHW Calculator'!H55 -> 35.27777778
U45: ='DHW Calculator'!E56 -> 17 | V45: ='DHW Calculator'!H56 -> 34.72222222
U46: ='DHW Calculator'!E57 -> 15 | V46: ='DHW Calculator'!H57 -> 34.16666667
U47: ='DHW Calculator'!E58 -> 13 | V47: ='DHW Calculator'!H58 -> 33.61111111
U48: ='DHW Calculator'!E59 -> 11 | V48: ='DHW Calculator'!H59 -> 33.05555556
U49: ='DHW Calculator'!E60 -> 9 | V49: ='DHW Calculator'!H60 -> 32.5
U50: ='DHW Calculator'!E61 -> 7 | V50: ='DHW Calculator'!H61 -> 31.94444444
U51: ='DHW Calculator'!E62 -> 5 | V51: ='DHW Calculator'!H62 -> 31.38888889
U52: ='DHW Calculator'!E63 -> 3 | V52: ='DHW Calculator'!H63 -> 30.83333333
U53: ='DHW Calculator'!E64 -> 1 | V53: ='DHW Calculator'!H64 -> 30.27777778
U54: ='DHW Calculator'!E65 -> -1 | V54: ='DHW Calculator'!H65 -> 29.72222222 | W54: =W53 -> 
U55: ='DHW Calculator'!E66 -> -3 | V55: ='DHW Calculator'!H66 -> 29.16666667 | W55: =W54 -> 
U56: ='DHW Calculator'!E67 -> -5 | V56: ='DHW Calculator'!H67 -> 28.61111111
U57: ='DHW Calculator'!E68 -> -7 | V57: ='DHW Calculator'!H68 -> 28.05555556
U58: ='DHW Calculator'!E69 -> -9 | V58: ='DHW Calculator'!H69 -> 27.5
U59: ='DHW Calculator'!E70 -> -11 | V59: ='DHW Calculator'!H70 -> 26.94444444
U60: ='DHW Calculator'!E71 -> -13 | V60: ='DHW Calculator'!H71 -> 26.38888889
U61: ='DHW Calculator'!E72 -> -15 | V61: ='DHW Calculator'!H72 -> 25.83333333
U62: ='DHW Calculator'!E73 -> -17 | V62: ='DHW Calculator'!H73 -> 25.27777778
U63: ='DHW Calculator'!E74 -> -19 | V63: ='DHW Calculator'!H74 -> 24.72222222
U64: ='DHW Calculator'!E75 -> -21 | V64: ='DHW Calculator'!H75 -> 24.16666667
U65: ='DHW Calculator'!E76 -> -23 | V65: ='DHW Calculator'!H76 -> 23.61111111

Sheet Sample DHW HP Curves
A1: Sample DHW Heat Pump Curves | C1: AWHP | D1: AWHP | E1: AWHP | F1: AWHP | G1: WWHP | H1: WWHP | I1: WWHP | J1: WWHP | K1: WWHP | L1: WWHP | M1: WWHP | N1: WWHP | O1: WWHP | P1: WWHP | Q1: WWHP | R1: HPWH | S1: WWHP | T1: WWHP | U1: WWHP | V1: WWHP
A2: Temperature Bin degF | B2: ENT-T | C2: LG hydrokit: (1) ARUM048GSS5 + (1) ARNH423K3A4 | D2: LG hydrokit: (1) ARUM096BTE5 + (1) ARNH763K3A4 | E2: LG hydrokit: (1) ARUM168BTE5 + (2) ARNH763K3A4 | F2: LG hydrokit: (1) ARUM241BTE5 + (3) ARNH763K3A4 | G2: COLMAC CXW15 Singlepass | H2: Enertech WV060 Multipass ELT=95F | I2: WF NXW096 Multipass ELT=110F | J2: WF NXW108 Multipass ELT=110F | K2: WF NXW120 Multipass ELT=110F | L2: WF NXW140 Multipass ELT=110F | M2: WF NXW180 Multipass ELT=110F | N2: WF NXW210 Multipass ELT=110F | O2: WF NXW240 Multipass ELT=110F | P2: WF NXW360 Multipass ELT=110F | Q2: WF NXW540 Multipass ELT=110F | R2: Generic Estar Com HPWH Unit | S2: NYLE C125W SinglePass ELT=50F | T2: WF NEW040 MultiPassELT=90F | U2: WF NEW050 MultiPass ELT=90F | V2: WF NEW066 MultiPass ELT=90F
A3: 0-10 | B3: 5 | C3: 2.06 | D3: 2.3 | E3: 1.96 | F3: 1.88 | G3: 0.9 | H3: 2.83 | I3: 2.2 | J3: 2.2 | K3: 1.5 | L3: 1.7 | M3: 1.9 | N3: 1.9 | O3: 1.7 | P3: 1.8 | Q3: 2 | R3: 1 | S3: 1.04 | T3: 2.7625 | U3: 3.010875 | V3: 3.559
A4: 10-20 | B4: 15 | C4: 2.31 | D4: 2.46 | E4: 2.1 | F4: 2 | G4: 1.2 | H4: 3.03 | I4: 2.5 | J4: 2.5 | K4: 1.8 | L4: 2 | M4: 2.1 | N4: 2.2 | O4: 2 | P4: 2.1 | Q4: 2.2 | R4: 1 | S4: 1.39 | T4: 3.1475 | U4: 3.229125 | V4: 3.871
A5: 20-30 | B5: 25 | C5: 2.29 | D5: 2.36 | E5: 2.02 | F5: 1.91 | G5: 1.5 | H5: 3.22 | I5: 2.9 | J5: 2.8 | K5: 2.1 | L5: 2.3 | M5: 2.3 | N5: 2.5 | O5: 2.3 | P5: 2.4 | Q5: 2.5 | R5: 1 | S5: 1.73 | T5: 3.5325 | U5: 3.447375 | V5: 4.183
A6: 30-40 | B6: 35 | C6: 2.09 | D6: 2.16 | E6: 1.85 | F6: 1.75 | G6: 1.8 | H6: 3.14 | I6: 3.2 | J6: 3 | K6: 2.5 | L6: 2.5 | M6: 2.6 | N6: 2.8 | O6: 2.6 | P6: 2.7 | Q6: 2.7 | R6: 1 | S6: 2.08 | T6: 3.9175 | U6: 3.665625 | V6: 4.495
A7: 40-50 | B7: 45 | C7: 2.54 | D7: 2.63 | E7: 2.25 | F7: 2.13 | G7: 2.1 | H7: 3.61 | I7: 3.5 | J7: 3.3 | K7: 2.8 | L7: 2.8 | M7: 2.8 | N7: 3.1 | O7: 2.8 | P7: 2.9 | Q7: 3 | R7: =R8*0.9 -> 2.187 | S7: 2.43 | T7: 4.3025 | U7: 3.883875 | V7: 4.807
A8: 50-60 | B8: 55 | C8: 2.75 | D8: 2.84 | E8: 2.43 | F8: 2.28 | G8: 2.4 | H8: 3.8 | I8: 3.8 | J8: 3.6 | K8: 3.1 | L8: 3.1 | M8: 3.1 | N8: 3.3 | O8: 3.1 | P8: 3.2 | Q8: 3.3 | R8: =R9*0.9 -> 2.43 | S8: 2.77 | T8: 4.6875 | U8: 4.102125 | V8: 5.119
A9: 60-70 | B9: 65 | C9: 2.99 | D9: 3.06 | E9: 2.62 | F9: 2.45 | G9: 2.7 | H9: 3.99 | I9: 4.1 | J9: 3.9 | K9: 3.4 | L9: 3.4 | M9: 3.3 | N9: 3.6 | O9: 3.4 | P9: 3.5 | Q9: 3.5 | R9: =R10*0.9 -> 2.7 | S9: 3.11 | T9: 5.0725 | U9: 4.320375 | V9: 5.431
A10: 70-80 | B10: 75 | C10: 3.15 | D10: 3.21 | E10: 2.76 | F10: 2.57 | G10: 3.1 | H10: 4.19 | I10: 4.4 | J10: 4.1 | K10: 3.8 | L10: 3.6 | M10: 3.5 | N10: 3.9 | O10: 3.7 | P10: 3.8 | Q10: 3.8 | R10: 3 | S10: 3.46 | T10: 5.4575 | U10: 4.538625 | V10: 5.743
A11: 80-90 | B11: 85 | C11: 3.33 | D11: 3.38 | E11: 2.9 | F11: 2.69 | G11: 3.4 | H11: 4.38 | I11: 4.7 | J11: 4.4 | K11: 4.1 | L11: 3.9 | M11: 3.8 | N11: 4.2 | O11: 3.9 | P11: 4 | Q11: 4.1 | R11: 3.2 | S11: 3.81 | T11: 5.8425 | U11: 4.756875 | V11: 6.055
A12: 90-100 | B12: 95 | C12: 3.53 | D12: 3.56 | E12: 3.07 | F12: 2.83 | G12: 3.7 | H12: 4.58 | I12: 5 | J12: 4.7 | K12: 4.4 | L12: 4.2 | M12: 4 | N12: 4.5 | O12: 4.2 | P12: 4.3 | Q12: 4.3 | R12: 3.4 | S12: 4.15 | T12: 6.2275 | U12: 4.975125 | V12: 6.367

Sheet Baseline Adjustment Factors (hidden)
G1: Reference: Page 291; https://doe2.com/Download/DOE-21E/DOE-2SupplementVersion21E.pdf
A2: Definitions
A3: E | B3: Entering | G3: DHW Type- Gas
A4: OAT | B4: Outside Air Temp.
A5: DB | B5: Dry Bulb | F5: A | G5: Energy Input Ratio (EIR) = f (PLR)
A6: WB | B6: Wet Bulb | G6: Coefficient
A7: EWT | B7: Entering Water Temperature
A8: PLR. | B8: Part Load Ratio | G8: Default Coefficient
G9: EIR Adj. = a + b(PLR) + c(PLR)^2
G11: a | H11: 0.021826
G12: b | H12: 0.97763
G13: c | H13: 0.000543
G14: d | H14: 0
G15: e | H15: 0
G16: f | H16: 0

Sheet Proposed Adjustment Factors (hidden)
G1: Reference: Page 291; https://doe2.com/Download/DOE-21E/DOE-2SupplementVersion21E.pdf
A2: Definitions
A3: E | B3: Entering
A4: OAT | B4: Outside Air Temp.
A5: DB | B5: Dry Bulb
A6: WB | B6: Wet Bulb | G6: Assumptions
A7: EWT | B7: Entering Water Temperature
A8: PLR | B8: Part Load Ratio | G8: DHW type-Heat Pump
G9: OAT = Equipment Room Temperature
G12: DHW Heat Pump Adjustment Factors
F14: A | G14: Energy Input Ratio (EIR) = f (PLR)
G15: Coefficient
G17: Default Coefficient
G18: EIR Adj. = a + b(PLR) + c(PLR)^2 + d(PLR)^3
G20: a | H20: 0.08565215
G21: b | H21: 0.93881371
G22: c | H22: -0.1834361
G23: d | H23: 0.15897022
G24: e | H24: 0
G25: f | H25: 0
F27: B | G27: Energy Input Ratio (EIR) = f (OAT DB)
G28: Coefficient
G30: Default Coefficient
G31: EIR Adj. = a + b(OAT DB) + c(OAT DB)^2 + d(OAT DB)^3
G33: a | H33: 2.1855478
G34: b | H34: -0.0494718
G35: c | H35: 0.00070417
G36: d | H36: -4.01e-06
G37: e | H37: 0
G38: f | H38: 0
F42: C | G42: Heating Rate Adjustment Ratio = f (OAT DB)
G43: Coefficient
G45: Default Coefficient
G46: Heating Rate Adj. = a + b(OAT DB) + c(OAT DB)^2 + d(OAT DB)^3
G48: a | H48: 0.29495686
G49: b | H49: 0.01425344
G50: c | H50: -1.17e-05
G51: d | H51: 5.9e-07
G52: e | H52: 0
G53: f | H53: 0

Sheet Results Summary
B2: SUMMARY
B3: Technology | C3: Material Cost | D3: Labor Cost | E3: Total Cost | F3: Net MMBtu Savings | G3: Heating Electrification Savings (kWh) | H3: Peak Demand Savings (kW) | I3: Gas Fuel savings (Therms) | J3: Effective Useful Life (years) | K3: Lifetime Net mmBTU Savings | L3: Category Incentive Rate | M3: Uncapped Incentive | N3: Incentive Capping based on Installation Costs
B4: =IF('Eqpt Schedule'!E5<>"",'Eqpt Schedule'!E5,"")&IF('Eqpt Schedule'!E6<>"",", "&'Eqpt Schedule'!E6,"")&IF('Eqpt Schedule'!E7<>"",", "&'Eqpt Schedule'!E7,"")&IF('Eqpt Schedule'!E8<>"",", "&'Eqpt Schedule'!E8,"")&IF('Eqpt Schedule'!E9<>"",", "&'Eqpt Schedule'!E9,"")&IF('Eqpt Schedule'!E10<>"",", "&'Eqpt Schedule'!E10,"")&IF('Eqpt Schedule'!E11<>"",", "&'Eqpt Schedule'!E11,"")&IF('Eqpt Schedule'!E12<>"",", "&'Eqpt Schedule'!E12,"")&IF('Eqpt Schedule'!E13<>"",", "&'Eqpt Schedule'!E13,"")&IF('Eqpt Schedule'!E14<>"",", "&'Eqpt Schedule'!E14,"") ->  | E4: =IF(SUM(C4:D4)=0,"",SUM(C4:D4)) ->  | F4: =IF('DHW Bldg & Operation Data'!C24>0,'DHW Calculator'!Z77*C8,"N/A") ->  | G4: =IF(F4="N/A","N/A",'DHW Calculator'!W77*C8) ->  | H4: =IF(F4="N/A","N/A",'DHW Calculator'!X6) ->  | I4: =IF(F4="N/A","N/A",'DHW Calculator'!Y77*C8) ->  | J4: ='Eqpt Schedule'!AB4 ->  | K4: =IFERROR(F4*J4,"") ->  | L4: =G18 ->  | M4: =IFERROR(IF(RIGHT(L4,2)="DU",H18*G15,H18*F4),"") ->  | N4: =IF(F4="N/A","N/A",IF(E4=0,"",IFERROR(MIN(E4*C10,M4,E11),""))) -> 
B8: Safety Factor | C8: 0.9
D9: Con Ed | E9: Others
B10: Incentive Percentage Cap | C10: =IF(Utility="Con Edison",D10,E10) -> 0.5 | D10: =IF(AND(Utility="Con Edison",'DHW Bldg & Operation Data'!C7="LMI"),0.85,0.5) -> 0.5 | E10: =IF(Utility="National Grid",IF('DHW Bldg & Operation Data'!C7="DAC",0.85,0.7),0.5) -> 0.5
B11: Incentive Cap | C11: =IF(Utility="Con Edison",D11,E11) -> 1000000 | D11: =IF(AND(Utility="Con Edison",'DHW Bldg & Operation Data'!C5="SMB"),200000,1000000) -> 1000000 | E11: =IF(Utility="National Grid",50000,1000000) -> 1000000
B13: Code (old, see cell B41) | C13: Description (old) | D13: Incentive (old)
B14: NYS | C14: Cat 6 Incentive for Upstate Utilities | D14: 70
B15: NYS_DU | C15: Cat 6 Incentive per Dwelling Unit | D15: 400 | E15: per DU | F15: No of MF Apartments | G15: =IF(LEFT('DHW Bldg & Operation Data'!$C$8,5)="Multi",IF('DHW Bldg & Operation Data'!$C$8="Multifamily, Specify # of Occupants",'DHW Bldg & Operation Data'!$C$11,'DHW Bldg & Operation Data'!$C$10),"") -> 
B16: CE_EXIST_ASHP | C16: =$G$19 ->  | D16: =J21+IF(AND('DHW Bldg & Operation Data'!$D$5<=L21,L21<>"1/1/1900",'DHW Bldg & Operation Data'!$D$5<>""),K21,0) ->  | F16: Construction? | G16: =IF('DHW Bldg & Operation Data'!$C$9="New Construction","NEW","EXIST") -> EXIST
B17: CE_NEW_ASHP | C17: =$G$19 ->  | D17: =J22+IF(AND('DHW Bldg & Operation Data'!$D$5<=L22,L22<>"1/1/1900",'DHW Bldg & Operation Data'!$D$5<>""),K22,0) ->  | F17: HP Type | G17: =IF('DHW Bldg & Operation Data'!$C$26="Ground Source","GSHP","ASHP") -> ASHP
B18: CE_EXIST_GSHP | C18: =$G$19 ->  | D18: =J23+IF(AND('DHW Bldg & Operation Data'!$D$5<=L23,L23<>"1/1/1900",'DHW Bldg & Operation Data'!$D$5<>""),K23,0) ->  | F18: Incentive Code= | G18: =IF(G20="CE","CE_"&G16&"_"&G17,IF(G20="NG",IF(AND(G19="MF",G21=""),"NG_MF",G20&G21),G20&G21)) ->  | H18: =VLOOKUP(L4,$B$41:$D$53,3,FALSE) -> 
B19: CE_NEW_GSHP | C19: =$G$19 ->  | D19: =J24+IF(AND('DHW Bldg & Operation Data'!$D$5<=L24,L24<>"1/1/1900",'DHW Bldg & Operation Data'!$D$5<>""),K24,0) ->  | F19: Util Prog Code= | G19: =IF(OR('DHW Bldg & Operation Data'!$C$4="Con Edison",'DHW Bldg & Operation Data'!$C$4="National Grid"),'DHW Bldg & Operation Data'!$C$5,"") -> 
F20: Utility Label | G20: =VLOOKUP('DHW Bldg & Operation Data'!C4,'Results Summary'!F41:G45,2) ->  | H20: OFFSET = | I20: =VLOOKUP(G19,G27:H29,2,FALSE) ->  | J20: Base | K20: LTO | L20: LTO Date
C21: Con Ed LTO Adder | D21: Now from table below | F21: Test for DU adder for MF | G21: =IF(AND(G15>=5,G15<=100,G19="MF"),"_DU","") ->  | I21: =B16 -> CE_EXIST_ASHP | J21: =OFFSET(C27,$I$20,0) ->  | L21: =OFFSET(F27,$I$20,0) -> 
C22: Added on Dec-6-2024, fixed New GSHP on Jan-17-2025 | I22: =B17 -> CE_NEW_ASHP | L22: =OFFSET(F28,$I$20,0) -> 
C23: FIXED OVERALL LTO error on Jan-27-2025 | I23: =B18 -> CE_EXIST_GSHP | L23: =OFFSET(F29,$I$20,0) -> 
C24: Added Con Ed Program types Apr-3-2025 | I24: =B19 -> CE_NEW_GSHP | L24: =OFFSET(F30,$I$20,0) -> 
C25: Blank date not long applies LTO (Aug-27-2025)
B26: Category 6 Incentives | C26: Base | D26: LTO | E26: Total Incentive Rate | F26: LTO Submission End Date | H26: Offset
A27: =$G$27 -> C&I | B27: C&I ASHP Existing | C27: =IF('DHW Bldg & Operation Data'!C6="Phased",70,200) -> 200 | D27: 0 | E27: =D27+C27 -> 200 | F27: 2025-05-31 | G27: C&I | H27: 0
A28: =$G$27 -> C&I | B28: C&I ASHP New | D28: 0 | E28: =D28+C28 -> 0 | F28: 2025-05-31 | G28: SMB | H28: 4
A29: =$G$27 -> C&I | B29: C&I GSHP Existing | C29: 400 | D29: 0 | E29: 400 | G29: MF | H29: 8
A30: =$G$27 -> C&I | B30: C&I GSHP New | C30: 175 | D30: 0 | E30: 175
A31: =$G$28 -> SMB | B31: SMB ASHP Existing | C31: =IF('DHW Bldg & Operation Data'!C6="Phased",0,200) -> 200 | D31: 0 | E31: 200 | F31: 2025-05-31
A32: =$G$28 -> SMB | B32: SMB ASHP New | D32: 0 | E32: 0 | F32: 2025-05-31
A33: =$G$28 -> SMB | B33: SMB GSHP Existing | C33: 400 | D33: 0 | E33: 400
A34: =$G$28 -> SMB | B34: SMB GSHP New | C34: 175 | D34: 0 | E34: 175
A35: =$G$29 -> MF | B35: MF ASHP Existing | C35: =IF('DHW Bldg & Operation Data'!C6="Phased",70,200) -> 200 | D35: 0 | E35: 200
A36: =$G$29 -> MF | B36: MF ASHP New | D36: 0 | E36: 0
A37: =$G$29 -> MF | B37: MF GSHP Existing | C37: 400 | D37: 0 | E37: 400
A38: =$G$29 -> MF | B38: MF GSHP New | C38: 175 | D38: 0 | E38: 175
B40: New Lookup Table as of Feb 2026
B41: CH | C41: 100+ DHW | D41: 100 | F41: ='Worksheet Data'!Z20 -> Central Hudson | G41: CH
B42: AV | C42: 100+ DHW | D42: 70 | F42: ='Worksheet Data'!AA20 -> Con Edison | G42: CE
B43: OR | C43: 100+ DHW | D43: 70 | F43: ='Worksheet Data'!AB20 -> National Grid | G43: NG
B44: NG | C44: 100+ DHW for C&I and SMB | D44: =IF(AND('DHW Bldg & Operation Data'!$C$7="DAC",'DHW Bldg & Operation Data'!C5="SMB"),120,110) -> 110 | F44: ='Worksheet Data'!AC20 -> NYSEG/RGE | G44: AV
B45: NG_MF | C45: 100+ DHW for MF | D45: 70 | F45: ='Worksheet Data'!AD20 -> Orange & Rockland | G45: OR
B46: NG_DU | C46: Ngrid per DU | D46: 600
B47: CH_DU | C47: CH per DU | D47: 1250
B48: AV_DU | C48: Avangrid per DU | D48: 400
B49: OR_DU | C49: ORU per DU | D49: 400
B50: =B16 -> CE_EXIST_ASHP
B51: CE_NEW_ASHP
B52: CE_EXIST_GSHP
B53: CE_NEW_GSHP
B61: 1M and 50%
B62: Con Ed exceptions:
B63: 200k for SMB
B64: 85% for LMI MF
B65: National Grid exceptions
B66: DAC adds 10 for SMB

Sheet Change Log (hidden)
A1: New York State Clean Heat Program Category 6 - Custom Hot Water Heating Applications Change Log
A3: V2, 11/29/2023: Changes since v1:
A4: Incorporated a recirculation loss factor, F_recirc, based on user input.
A5: Updated the Building Type - dependent GPD Lookup table per ASHRAE and H. Henderson white paper (2023).
A6: Ease-of-use for COP assignment: three sample DHW HP curves have been addded to a sample curves tab.
A7: Incentives updated to reflect NYS Clean Heat 2024 LTOs.

Sheet Weather Data (hidden)
C1: Bin difference check | J1: 55 | K1: 65
C2: Weedkay vs. Weekend | D2: total # hours | E2: # occupied hours | F2: # hours unoccupied hrs | G2: 1st Q | H2: Median | I2: 3rd Quartile | J2: # hrs below 55 °F | K2: # hrs above 65 °F
C3: NYC Lag | D3: =COUNT(C19:C8778) -> 8760 | E3: =CC81 -> 0 | F3: =CD81 -> 8760 | G3: =_xlfn.QUARTILE.EXC($E19:$E8778,1) -> 41.36 | H3: =_xlfn.QUARTILE.EXC($E19:$E8778,2) -> 55.94 | I3: =_xlfn.QUARTILE.EXC($E19:$E8778,3) -> 71.96 | J3: =COUNTIFS($E$19:$E$8778, "<="&$J$1) -> 4113 | K3: =COUNTIFS($E$19:$E$8778, ">="&$K$1) -> 3092
C4: NYC Central Park | D4: =COUNT(I19:I8778) -> 8760 | E4: =CE81 ->  | F4: =CF81 -> 0 | G4: =_xlfn.QUARTILE.EXC($K19:$K8778,1) -> 41 | H4: =_xlfn.QUARTILE.EXC($K19:$K8778,2) -> 55.94 | I4: =_xlfn.QUARTILE.EXC($K19:$K8778,3) -> 71.06 | J4: =COUNTIFS($K$19:$K$8778, "<="&$J$1) -> 4196 | K4: =COUNTIFS($K$19:$K$8778, ">="&$K$1) -> 2997
C5: White Plains | D5: =COUNT(O19:O8778) -> 8760 | E5: =CG81 -> 0 | F5: =CH81 -> 0 | G5: =_xlfn.QUARTILE.EXC($Q19:$Q8778,1) -> 39.02 | H5: =_xlfn.QUARTILE.EXC($Q19:$Q8778,2) -> 53.06 | I5: =_xlfn.QUARTILE.EXC($Q19:$Q8778,3) -> 66.92 | J5: =COUNTIFS($Q$19:$Q$8778, "<="&$J$1) -> 4559 | K5: =COUNTIFS($Q$19:$Q$8778, ">="&$K$1) -> 2490
C6: NYC JFK | D6: =COUNT(U19:U8778) -> 8760 | E6: =CI81 -> 0 | F6: =CJ81 -> 8760 | G6: =_xlfn.QUARTILE.EXC($W19:$W8778,1) -> 41.36 | H6: =_xlfn.QUARTILE.EXC($W19:$W8778,2) -> 55.94 | I6: =_xlfn.QUARTILE.EXC($W19:$W8778,3) -> 69.98 | J6: =COUNTIFS($W$19:$W$8778, "<="&$J$1) -> 4229 | K6: =COUNTIFS($W$19:$W$8778, ">="&$K$1) -> 2876
CD7: Occupied | CP7: Unoccupied
CC8: Bin Temp | CD8: =$CD$16 -> NYC Laguardia | CE8: =$CF$16 -> NYC JFK | CF8: =$CH$16 -> White Plains WCA | CG8: =$CJ$16 -> NYC Central Park | CH8: =$CL$16 -> Islip | CI8: =CN16 -> Poughkeepsie | CJ8: =CP16 -> Binghamton | CK8: =CR16 -> Albany | CL8: =CT16 -> Syracuse | CM8: =CV16 -> Buffalo | CN8: =CX16 -> Rochester | CO8: =CZ16 -> Massena | CP8: =$CD$16 -> NYC Laguardia | CQ8: =$CF$16 -> NYC JFK | CR8: =$CH$16 -> White Plains WCA | CS8: =$CJ$16 -> NYC Central Park | CT8: =CH8 -> Islip | CU8: =CI8 -> Poughkeepsie | CV8: Binghamton | CW8: Albany | CX8: Syracuse | CY8: Buffalo | CZ8: Rochester | DA8: Massena
B9: TMY Data Source | C9: TMYx | D9: =IF(C9="TMY3",1,2) -> 2 | G9: 0.25 | H9: 0.5 | I9: 0.75 | BV9: ACTIVE | CC9: Max | CD9: =CB19 -> 99 | CE9: =CB21 -> 95 | CF9: =CB20 -> 97 | CG9: =CB19 -> 99 | CH9: =CB20 -> 97 | CI9: =CB22 -> 93 | CJ9: =CB22 -> 93 | CK9: =CB20 -> 97 | CL9: =CB20 -> 97 | CM9: =CB24 -> 89 | CN9: =CB21 -> 95 | CO9: =CB22 -> 93 | CP9: =CB25 -> 87 | CQ9: =CB24 -> 89 | CR9: =CB20 -> 97 | CS9: =CB23 -> 91 | CT9: =CB23 -> 91 | CU9: =CB24 -> 89 | CV9: =CB26 -> 85 | CW9: =CB25 -> 87 | CX9: =CB25 -> 87 | CY9: =CB25 -> 87 | CZ9: =CB22 -> 93 | DA9: =CB23 -> 91
B10: TMYx data starts in cell DU18 | BV10: TMAIN | CC10: Min | CD10: =CB66 -> 5 | CE10: =CB67 -> 3 | CF10: =CB68 -> 1 | CG10: =CB65 -> 7 | CH10: =CB65 -> 7 | CI10: =CB74 -> -11 | CJ10: =CB72 -> -7 | CK10: =CB70 -> -3 | CL10: =CB72 -> -7 | CM10: =CB70 -> -3 | CN10: =CB71 -> -5 | CO10: =CB80 -> -23 | CP10: =CB66 -> 5 | CQ10: =CB67 -> 3 | CR10: =CB68 -> 1 | CS10: =CB64 -> 9 | CT10: =CB65 -> 7 | CU10: =CB74 -> -11 | CV10: =CB72 -> -7 | CW10: =CB70 -> -3 | CX10: =CB70 -> -3 | CY10: =CB68 -> 1 | CZ10: =CB70 -> -3 | DA10: =CB80 -> -23
BV11: ='DHW Calculator'!A14 -> 
E12: WEEKDAY | F12: =COUNTIF(F$19:F$8780,E12) -> 6240 | G12: =F12/24 -> 260 | K12: WEEKDAY | L12: =COUNTIF(L$19:L$8780,K12) -> 0 | M12: =L12/24 -> 0 | Q12: WEEKDAY | R12: =COUNTIF(R$19:R$8780,Q12) -> 0 | S12: =R12/24 -> 0 | W12: WEEKDAY | X12: =COUNTIF(X$19:X$8780,W12) -> 0 | Y12: =X12/24 -> 0 | BU12: AVG | BV12: =INDEX(TableT_MainLookup[T_Main],MATCH(ASHRAE_Location,TableT_MainLookup[Weather Station],0)) ->  | CC12: Hours Over 90F | CD12: =SUM(CD18:CD23) -> 40 | CF12: 21 | CH12: 7 | CJ12: 29 | CL12: 17 | CN12: 22 | CP12: 0 | CR12: 13 | CT12: 16 | CV12: 0 | CX12: 3 | CZ12: 9
E13: SATURDAY | F13: =COUNTIF(F$19:F$8780,E13) -> 1272 | G13: =F13/24 -> 53 | K13: SATURDAY | L13: =COUNTIF(L$19:L$8780,K13) -> 0 | M13: =L13/24 -> 0 | Q13: SATURDAY | R13: =COUNTIF(R$19:R$8780,Q13) -> 0 | S13: =R13/24 -> 0 | W13: SATURDAY | X13: =COUNTIF(X$19:X$8780,W13) -> 0 | Y13: =X13/24 -> 0 | BU13: Swing | BV13: =INDEX(TableT_MainLookup[Amplitude],MATCH(ASHRAE_Location,TableT_MainLookup[Weather Station],0)) ->  | CC13: Hours Under 60F | CD13: =SUM(CD39:CD80) -> 4808 | CF13: =SUM(CF39:CF80) -> 4941 | CH13: 5326 | CJ13: 4902 | CL13: 5199 | CN13: 5403 | CP13: 6025 | CR13: 5455 | CT13: 5616 | CV13: 5651 | CX13: 5649 | CZ13: 5995
E14: SUNDAY | F14: =COUNTIF(F$19:F$8780,E14) -> 1248 | G14: =F14/24 -> 52 | K14: SUNDAY | L14: =COUNTIF(L$19:L$8780,K14) -> 0 | M14: =L14/24 -> 0 | Q14: SUNDAY | R14: =COUNTIF(R$19:R$8780,Q14) -> 0 | S14: =R14/24 -> 0 | W14: SUNDAY | X14: =COUNTIF(X$19:X$8780,W14) -> 0 | Y14: =X14/24 -> 0 | BU14: Days | BV14: =INDEX(TableT_MainLookup[Days],MATCH(ASHRAE_Location,TableT_MainLookup[Weather Station],0)) ->  | CC14: Hours Under 10F | CD14: =SUM(CD63:CD80) -> 24 | CF14: =SUM(CF63:CF80) -> 3 | CH14: 9 | CJ14: 0 | CL14: 16 | CN14: 98 | CP14: 174 | CR14: 180 | CT14: 202 | CV14: 61 | CX14: 51 | CZ14: 488
E15: ALL | F15: =SUM(F12:F14) -> 8760 | G15: =SUM(G12:G14) -> 365 | K15: ALL | L15: =SUM(L12:L14) -> 0 | M15: =SUM(M12:M14) -> 0 | Q15: ALL | R15: =SUM(R12:R14) -> 0 | S15: =SUM(S12:S14) -> 0 | W15: ALL | X15: =SUM(X12:X14) -> 0 | Y15: =SUM(Y12:Y14) -> 0 | CC15: Hours under 0F | CD15: =SUM(CD69:CD80) -> 0 | CF15: =SUM(CF69:CF80) -> 0 | CH15: 0 | CJ15: 0 | CL15: 0 | CN15: 10 | CP15: 38 | CR15: 20 | CT15: 73 | CV15: 0 | CX15: 0 | CZ15: 140
E16: ='Worksheet Data'!M2 -> NYC Laguardia | K16: NYC Central Park | Q16: ='Worksheet Data'!M5 -> White Plains WCA | W16: ='Worksheet Data'!M4 -> NYC Central Park | CA16: 8760 BIN Data | CD16: NYC Laguardia | CF16: NYC JFK | CH16: White Plains WCA | CJ16: NYC Central Park | CL16: Islip | CN16: Poughkeepsie | CP16: Binghamton | CR16: Albany | CT16: Syracuse | CV16: Buffalo | CX16: Rochester | CZ16: Massena | DE16: Building Type: | DF16: Multifamily
B17: 725030 | C17: NEW YORK LAGUARDIA ARPT | H17: 725033 | I17: NEW YORK CENTRAL PRK OBS BELV | N17: 725037 | O17: WHITE PLAINS WESTCHESTER CO A | T17: 744860 | U17: NEW YORK J F KENNEDY INT'L AR | Z17: 725035 | AA17: ISLIP LONG ISL MACARTHUR AP | AF17: 725036 | AG17: POUGHKEEPSIE DUTCHESS CO AP | AL17: 725150 | AM17: BINGHAMTON EDWIN A LINK FIELD | AR17: 725180 | AS17: ALBANY COUNTY AP | AX17: 725190 | AY17: SYRACUSE HANCOCK INT'L ARPT | BD17: 725280 | BE17: BUFFALO NIAGARA INTL AP | BJ17: 725290 | BK17: ROCHESTER GREATER ROCHESTER I | BP17: 726223 | BQ17: MASSENA AP | CA17: Low Temp | CB17: Mid Point | CC17: High Temp | CD17: =CD16&" On" -> NYC Laguardia On | CE17: =CD17&" TMAIN" -> NYC Laguardia On TMAIN | CF17: =CF16&" On" -> NYC JFK On | CG17: =CF17&" TMAIN" -> NYC JFK On TMAIN | CH17: =CH16&" On" -> White Plains WCA On | CI17: =CH17&" TMAIN" -> White Plains WCA On TMAIN | CJ17: =CJ16&" On" -> NYC Central Park On | CK17: =CJ17&" TMAIN" -> NYC Central Park On TMAIN | CL17: =CL16&" On" -> Islip On | CM17: =CL17&" TMAIN" -> Islip On TMAIN | CN17: =CN16&" On" -> Poughkeepsie On | CO17: =CN17&" TMAIN" -> Poughkeepsie On TMAIN | CP17: =CP16&" On" -> Binghamton On | CQ17: =CP17&" TMAIN" -> Binghamton On TMAIN | CR17: =CR16&" On" -> Albany On | CS17: =CR17&" TMAIN" -> Albany On TMAIN | CT17: =CT16&" On" -> Syracuse On | CU17: =CT17&" TMAIN" -> Syracuse On TMAIN | CV17: =CV16&" On" -> Buffalo On | CW17: =CV17&" TMAIN" -> Buffalo On TMAIN | CX17: =CX16&" On" -> Rochester On | CY17: =CX17&" TMAIN" -> Rochester On TMAIN | CZ17: =CZ16&" On" -> Massena On | DA17: =CZ17&" TMAIN" -> Massena On TMAIN | DE17: Hour (Time of Day) | DF17: DHW Schedule | DJ17: Weekday | DU17: TMYx Data (extracted from TMYx2009-2023_epw.xlsx)
B18: Date (MM/DD/YYYY) | C18: Time (HH:MM) | D18: Dry-bulb (C) | E18: DB (F) | F18: Week Day | G18: Occupied? | H18: Date (MM/DD/YYYY) | I18: Time (HH:MM) | J18: Dry-bulb (C) | K18: DB (F) | M18: Occupied? | N18: Date (MM/DD/YYYY) | O18: Time (HH:MM) | P18: Dry-bulb (C) | Q18: DB (F) | S18: Occupied? | T18: Date (MM/DD/YYYY) | U18: Time (HH:MM) | V18: Dry-bulb (C) | W18: DB (F) | Y18: Occupied? | Z18: Date (MM/DD/YYYY) | AA18: Time (HH:MM) | AB18: Dry-bulb (C) | AC18: DB (F) | AD18: DB (F) | AE18: Occupied? | AF18: Date (MM/DD/YYYY) | AG18: Time (HH:MM) | AH18: Dry-bulb (C) | AI18: DB (F) | AK18: Occupied? | AL18: Date (MM/DD/YYYY) | AM18: Time (HH:MM) | AN18: Dry-bulb (C) | AO18: DB (F) | AQ18: Occupied? | AR18: Date (MM/DD/YYYY) | AS18: Time (HH:MM) | AT18: Dry-bulb (C) | AU18: DB (F) | AW18: Occupied? | AX18: Date (MM/DD/YYYY) | AY18: Time (HH:MM) | AZ18: Dry-bulb (C) | BA18: DB (F) | BB18: DB (F) | BC18: Occupied? | BD18: Date (MM/DD/YYYY) | BE18: Time (HH:MM) | BF18: Dry-bulb (C) | BG18: DB (F) | BI18: Occupied? | BJ18: Date (MM/DD/YYYY) | BK18: Time (HH:MM) | BL18: Dry-bulb (C) | BM18: DB (F) | BO18: Occupied? | BP18: Date (MM/DD/YYYY) | BQ18: Time (HH:MM) | BR18: Dry-bulb (C) | BS18: DB (F) | BU18: Occupied? | CA18: 100 | CB18: 101 | CC18: 102 | CD18: =COUNTIFS($E$19:$E$8778, ">="&$CA18, $E$19:$E$8778, "<"&$CC18, $G$19:$G$8778, "On") -> 0 | CE18: =SUMIFS($BV$19:$BV$8778,$E$19:$E$8778, ">="&$CA18, $E$19:$E$8778, "<"&$CC18, $G$19:$G$8778, "ON")/(CD18+1E-30) -> 0 | CF18: =COUNTIFS($W$19:$W$8778, ">="&$CA18, $W$19:$W$8778, "<"&$CC18, $G$19:$G$8778, "On") -> 0 | CG18: =SUMIFS($BV$19:$BV$8778,$W$19:$W$8778, ">="&$CA18, $W$19:$W$8778, "<"&$CC18, $G$19:$G$8778, "On")/(CF18+1E-30) -> 0 | CH18: =COUNTIFS($Q$19:$Q$8778, ">="&$CA18, $Q$19:$Q$8778, "<"&$CC18, $G$19:$G$8778, "On") -> 0 | CI18: =SUMIFS($BV$19:$BV$8778,$Q$19:$Q$8778, ">="&$CA18, $Q$19:$Q$8778, "<"&$CC18, $G$19:$G$8778, "On")/(CH18+1E-30) -> 0 | CJ18: =COUNTIFS($K$19:$K$8778, ">="&$CA18, $K$19:$K$8778, "<"&$CC18, $G$19:$G$8778, "On") -> 0 | CK18: =SUMIFS($BV$19:$BV$8778,$K$19:$K$8778, ">="&$CA18, $K$19:$K$8778, "<"&$CC18, $G$19:$G$8778, "On")/(CJ18+1E-30) -> 0 | CL18: =COUNTIFS($AC$19:$AC$8778, ">="&$CA18, $AC$19:$AC$8778, "<"&$CC18, $G$19:$G$8778, "On") -> 0 | CM18: =SUMIFS($BV$19:$BV$8778,$AC$19:$AC$8778, ">="&$CA18, $AC$19:$AC$8778, "<"&$CC18, $G$19:$G$8778, "On")/(CL18+1E-30) -> 0 | CN18: =COUNTIFS($AI$19:$AI$8778, ">="&$CA18, $AI$19:$AI$8778, "<"&$CC18, $G$19:$G$8778, "On") -> 0 | CO18: =SUMIFS($BV$19:$BV$8778,$AI$19:$AI$8778, ">="&$CA18, $AI$19:$AI$8778, "<"&$CC18, $G$19:$G$8778, "On")/(CN18+1E-30) -> 0 | CP18: =COUNTIFS($AO$19:$AO$8778, ">="&$CA18, $AO$19:$AO$8778, "<"&$CC18, $G$19:$G$8778, "On") -> 0 | CQ18: =SUMIFS($BV$19:$BV$8778,$AO$19:$AO$8778, ">="&$CA18, $AO$19:$AO$8778, "<"&$CC18, $G$19:$G$8778, "On")/(CP18+1E-30) -> 0 | CR18: =COUNTIFS($AU$19:$AU$8778, ">="&$CA18, $AU$19:$AU$8778, "<"&$CC18, $G$19:$G$8778, "On") -> 0 | CS18: =SUMIFS($BV$19:$BV$8778,$AU$19:$AU$8778, ">="&$CA18, $AU$19:$AU$8778, "<"&$CC18, $G$19:$G$8778, "On")/(CR18+1E-30) -> 0 | CT18: =COUNTIFS($BA$19:$BA$8778, ">="&$CA18, $BA$19:$BA$8778, "<"&$CC18, $G$19:$G$8778, "On") -> 0 | CU18: =SUMIFS($BV$19:$BV$8778,$BA$19:$BA$8778, ">="&$CA18, $BA$19:$BA$8778, "<"&$CC18, $G$19:$G$8778, "On")/(CT18+1E-30) -> 0 | CV18: =COUNTIFS($BG$19:$BG$8778, ">="&$CA18, $BG$19:$BG$8778, "<"&$CC18, $G$19:$G$8778, "On") -> 0 | CW18: =SUMIFS($BV$19:$BV$8778,$BG$19:$BG$8778, ">="&$CA18, $BG$19:$BG$8778, "<"&$CC18, $G$19:$G$8778, "On")/(CV18+1E-30) -> 0 | CX18: =COUNTIFS($BM$19:$BM$8778, ">="&$CA18, $BM$19:$BM$8778, "<"&$CC18, $G$19:$G$8778, "On") -> 0 | CY18: =SUMIFS($BV$19:$BV$8778,$BM$19:$BM$8778, ">="&$CA18, $BM$19:$BM$8778, "<"&$CC18, $G$19:$G$8778, "On")/(CX18+1E-30) -> 0 | CZ18: =COUNTIFS($BS$19:$BS$8778, ">="&$CA18, $BS$19:$BS$8778, "<"&$CC18, $G$19:$G$8778, "On") -> 0 | DA18: =SUMIFS($BV$19:$BV$8778,$BS$19:$BS$8778, ">="&$CA18, $BS$19:$BS$8778, "<"&$CC18, $G$19:$G$8778, "On")/(CZ18+1E-30) -> 0 | DF18: Weekday | DG18: Sat | DH18: Sunday | DJ18: 2 | DU18: NYC Laguardia | DV18: NYC Central Park | DW18: White Plains WCA | DX18: NYC JFK | DY18: Islip | DZ18: Poughkeepsie | EA18: Binghamton | EB18: Albany | EC18: Syracuse | ED18: Buffalo | EE18: Rochester | EF18: Massena
A19: =1/24 -> 0.04166666667 | B19: 2011-01-01 | C19: 01:00:00 | D19: -2.2 | E19: =CONVERT(CHOOSE($D$9,D19,DU19), "C", "F") -> 46.94 | F19: =IF(WEEKDAY(B19)=1,"SUNDAY",IF(WEEKDAY(B19)=7,"SATURDAY","WEEKDAY")) -> SATURDAY | G19: =IFERROR(IF(F19="WEEKDAY",VLOOKUP(C19,$DE$19:$DH$42,2),IF(F19="SATURDAY",VLOOKUP(C19,$DE$19:$DH$42,3),VLOOKUP(C19,$DE$19:$DH$42,4))),"On") -> On | H19: 1976-01-01 | I19: 01:00:00 | J19: 2.2 | K19: =CONVERT(CHOOSE($D$9,J19,DV19), "C", "F") -> 32.54 | N19: 2003-01-01 | O19: 01:00:00 | P19: 7 | Q19: =CONVERT(CHOOSE($D$9,P19,DW19), "C", "F") -> 26.96 | T19: 1999-01-01 | U19: 01:00:00 | V19: -4.4 | W19: =CONVERT(CHOOSE($D$9,V19,DX19), "C", "F") -> 34.7 | AB19: -4.4 | AC19: =CONVERT(CHOOSE($D$9,AB19,DY19), "C", "F") -> 39.92 | AH19: 2 | AI19: =CONVERT(CHOOSE($D$9,AH19,DZ19), "C", "F") -> 33.98 | AN19: -0.6 | AO19: =CONVERT(CHOOSE($D$9,AN19,EA19), "C", "F") -> 33.44 | AT19: 0.6 | AU19: =CONVERT(CHOOSE($D$9,AT19,EB19), "C", "F") -> 28.4 | AZ19: -1.1 | BA19: =CONVERT(CHOOSE($D$9,AZ19,EC19), "C", "F") -> 30.2 | BF19: -0.6 | BG19: =CONVERT(CHOOSE($D$9,BF19,ED19), "C", "F") -> 32.72 | BL19: -2.2 | BM19: =CONVERT(CHOOSE($D$9,BL19,EE19), "C", "F") -> 33.62 | BR19: 0 | BS19: =CONVERT(CHOOSE($D$9,BR19,EF19), "C", "F") -> 32.18 | BV19: =$BV$12-($BV$13/2)*COS((A19-$BV$14)*(2*PI()/365)) ->  | CA19: 98 | CB19: 99 | CC19: 100 | CD19: 0 | CE19: 0 | CF19: 0 | CG19: 0 | CH19: 0 | CI19: 0 | CJ19: 0 | CK19: 0 | CL19: 0 | CM19: 0 | CN19: 0 | CO19: 0 | CP19: 0 | CQ19: 0 | CR19: 0 | CS19: 0 | CT19: 0 | CU19: 0 | CV19: 0 | CW19: 0 | CX19: 0 | CY19: 0 | CZ19: 0 | DA19: 0 | DE19: 01:00:00 | DF19: On | DG19: On | DH19: On | DJ19: 3 | DT19: 1 | DU19: 8.3 | DV19: 0.3 | DW19: -2.8 | DX19: 1.5 | DY19: 4.4 | DZ19: 1.1 | EA19: 0.8 | EB19: -2 | EC19: -1 | ED19: 0.4 | EE19: 0.9 | EF19: 0.1
A20: =A19+1/24 -> 0.08333333333 | B20: 2011-01-01 | C20: 02:00:00 | D20: -2.2 | E20: =CONVERT(CHOOSE($D$9,D20,DU20), "C", "F") -> 46.94 | F20: SATURDAY | G20: On | H20: 1976-01-01 | I20: 02:00:00 | J20: 2.2 | K20: =CONVERT(CHOOSE($D$9,J20,DV20), "C", "F") -> 35.06 | N20: 2003-01-01 | O20: 02:00:00 | P20: 7 | Q20: =CONVERT(CHOOSE($D$9,P20,DW20), "C", "F") -> 28.04 | T20: 1999-01-01 | U20: 02:00:00 | V20: -4.4 | W20: =CONVERT(CHOOSE($D$9,V20,DX20), "C", "F") -> 33.62 | AB20: -3.9 | AC20: =CONVERT(CHOOSE($D$9,AB20,DY20), "C", "F") -> 39.92 | AH20: 1 | AI20: =CONVERT(CHOOSE($D$9,AH20,DZ20), "C", "F") -> 34.52 | AN20: -0.6 | AO20: =CONVERT(CHOOSE($D$9,AN20,EA20), "C", "F") -> 33.44 | AT20: 0 | AU20: =CONVERT(CHOOSE($D$9,AT20,EB20), "C", "F") -> 28.4 | AZ20: -0.9 | BA20: =CONVERT(CHOOSE($D$9,AZ20,EC20), "C", "F") -> 32 | BF20: -0.6 | BG20: =CONVERT(CHOOSE($D$9,BF20,ED20), "C", "F") -> 32.54 | BL20: -2 | BM20: =CONVERT(CHOOSE($D$9,BL20,EE20), "C", "F") -> 33.44 | BR20: -1.1 | BS20: =CONVERT(CHOOSE($D$9,BR20,EF20), "C", "F") -> 32.54 | CA20: 96 | CB20: 97 | CC20: 98 | CD20: 2 | CF20: 0 | CG20: 0 | CH20: 0 | CI20: 0 | CJ20: 1 | CL20: 2 | CN20: 0 | CO20: 0 | CP20: 0 | CQ20: 0 | CR20: 0 | CS20: 0 | CT20: 0 | CU20: 0 | CV20: 0 | CW20: 0 | CX20: 0 | CY20: 0 | CZ20: 0 | DA20: 0 | DE20: 02:00:00 | DF20: On | DG20: On | DH20: On | DJ20: 4 | DT20: 2 | DU20: 8.3 | DV20: 1.7 | DW20: -2.2 | DX20: 0.9 | DY20: 4.4 | DZ20: 1.4 | EA20: 0.8 | EB20: -2 | EC20: 0 | ED20: 0.3 | EE20: 0.8 | EF20: 0.3
A21: =A20+1/24 -> 0.125 | B21: 2011-01-01 | C21: 03:00:00 | D21: -2.2 | E21: 51.08 | F21: SATURDAY | G21: On | H21: 1976-01-01 | I21: 03:00:00 | J21: 1.7 | K21: 35.06 | N21: 2003-01-01 | O21: 03:00:00 | P21: 7 | Q21: 28.04 | T21: 1999-01-01 | U21: 03:00:00 | V21: -3.9 | W21: 33.08 | AB21: -3.9 | AC21: 39.02 | AH21: 3 | AI21: 34.7 | AN21: -1.7 | AO21: 33.44 | AT21: -0.6 | AU21: 28.4 | AZ21: -0.8 | BA21: 28.94 | BF21: -1.1 | BG21: 32.36 | BL21: -1.9 | BM21: 33.26 | BR21: -1.1 | BS21: 32.9 | CA21: =CB21-1 -> 94 | CB21: 95 | CC21: 96 | CD21: 2 | CF21: 2 | CH21: 0 | CI21: 0 | CJ21: 1 | CL21: 3 | CN21: 0 | CO21: 0 | CP21: 0 | CQ21: 0 | CR21: 0 | CS21: 0 | CT21: 0 | CU21: 0 | CV21: 0 | CW21: 0 | CX21: 0 | CY21: 0 | CZ21: 0 | DA21: 0 | DE21: 03:00:00 | DF21: On | DG21: On | DH21: On | DJ21: 5 | DT21: 3 | DU21: 10.6 | DV21: 1.7 | DW21: -2.2 | DX21: 0.6 | DY21: 3.9 | DZ21: 1.5 | EA21: 0.8 | EB21: -2 | EC21: -1.7 | ED21: 0.2 | EE21: 0.7 | EF21: 0.5
A22: 0.1666666667 | B22: 2011-01-01 | C22: 04:00:00 | D22: -2.8 | E22: 51.98 | F22: SATURDAY | G22: On | H22: 1976-01-01 | I22: 04:00:00 | J22: 1.1 | K22: 35.06 | N22: 2003-01-01 | O22: 04:00:00 | P22: 6.5 | Q22: 30.02 | T22: 1999-01-01 | U22: 04:00:00 | V22: -3.3 | W22: 32.54 | AB22: -4.4 | AC22: 39.92 | AH22: 4 | AI22: 35.96 | AN22: -2.2 | AO22: 33.26 | AT22: -1.1 | AU22: 28.4 | AZ22: -0.6 | BA22: 32.18 | BF22: -1.1 | BG22: 32.54 | BL22: -1.7 | BM22: 33.26 | BR22: -2.8 | BS22: 32.72 | CA22: =CB22-1 -> 92 | CB22: 93 | CC22: =CB22+1 -> 94 | CD22: 13 | CF22: 6 | CH22: 2 | CJ22: 11 | CL22: 2 | CN22: 9 | CP22: 0 | CQ22: 0 | CR22: 0 | CS22: 0 | CT22: 5 | CV22: 0 | CW22: 0 | CX22: 0 | CY22: 0 | CZ22: 1 | DE22: 04:00:00 | DF22: On | DG22: On | DH22: On | DJ22: 6 | DT22: 4 | DU22: 11.1 | DV22: 1.7 | DW22: -1.1 | DX22: 0.3 | DY22: 4.4 | DZ22: 2.2 | EA22: 0.7 | EB22: -2 | EC22: 0.1 | ED22: 0.3 | EE22: 0.7 | EF22: 0.4
A23: 0.2083333333 | B23: 2011-01-01 | C23: 05:00:00 | D23: -2.8 | E23: 53.96 | F23: SATURDAY | G23: On | H23: 1976-01-01 | I23: 05:00:00 | J23: 1.1 | K23: 33.98 | N23: 2003-01-01 | O23: 05:00:00 | P23: 6 | Q23: 28.04 | T23: 1999-01-01 | U23: 05:00:00 | V23: -3.3 | W23: 32.54 | AB23: -4.4 | AC23: 39.92 | AH23: 1 | AI23: 35.96 | AN23: -2.8 | AO23: 33.08 | AT23: -2.2 | AU23: 30.02 | AZ23: -0.4 | BA23: 33.08 | BF23: -1.1 | BG23: 32.18 | BL23: -1.7 | BM23: 33.08 | BR23: -3.9 | BS23: 28.4 | CA23: 90 | CB23: 91 | CC23: 92 | CD23: 23 | CF23: 13 | CH23: 5 | CJ23: 16 | CL23: 10 | CN23: 13 | CP23: 0 | CQ23: 0 | CR23: 13 | CT23: 11 | CV23: 0 | CW23: 0 | CX23: 3 | CZ23: 8 | DE23: 05:00:00 | DF23: On | DG23: On | DH23: On | DT23: 5 | DU23: 12.2 | DV23: 1.1 | DW23: -2.2 | DX23: 0.3 | DY23: 4.4 | DZ23: 2.2 | EA23: 0.6 | EB23: -1.1 | EC23: 0.6 | ED23: 0.1 | EE23: 0.6 | EF23: -2
A24: 0.25 | B24: 2011-01-01 | C24: 06:00:00 | D24: -3.3 | E24: 55.94 | F24: SATURDAY | G24: On | H24: 1976-01-01 | I24: 06:00:00 | J24: 0.6 | K24: 33.98 | N24: 2003-01-01 | O24: 06:00:00 | P24: 6 | Q24: 28.94 | T24: 1999-01-01 | U24: 06:00:00 | V24: -3.9 | W24: 30.92 | AB24: 0 | AC24: 39.02 | AH24: 8 | AI24: 34.88 | AN24: -3.3 | AO24: 32 | AT24: -2.2 | AU24: 28.4 | AZ24: -0.2 | BA24: 32.18 | BF24: -0.6 | BG24: 30.92 | BL24: -1.7 | BM24: 32.36 | BR24: -4.4 | BS24: 28.4 | CA24: 88 | CB24: 89 | CC24: 90 | CD24: 45 | CF24: 10 | CH24: 24 | CJ24: 46 | CL24: 23 | CN24: 31 | CP24: 2 | CR24: 30 | CT24: 36 | CV24: 4 | CX24: 13 | CZ24: 24 | DE24: 06:00:00 | DF24: On | DG24: On | DH24: On | DT24: 6 | DU24: 13.3 | DV24: 1.1 | DW24: -1.7 | DX24: -0.6 | DY24: 3.9 | DZ24: 1.6 | EA24: 0 | EB24: -2 | EC24: 0.1 | ED24: -0.6 | EE24: 0.2 | EF24: -2
A25: 0.2916666667 | B25: 2011-01-01 | C25: 07:00:00 | D25: -2.8 | E25: 57.02 | F25: SATURDAY | G25: On | H25: 1976-01-01 | I25: 07:00:00 | J25: 1.1 | K25: 33.98 | N25: 2003-01-01 | O25: 07:00:00 | P25: 4 | Q25: 26.96 | T25: 1999-01-01 | U25: 07:00:00 | V25: -4.4 | W25: 30.02 | AB25: 0.6 | AC25: 39.02 | AH25: 2 | AI25: 35.6 | AN25: -4.4 | AO25: 28.94 | AT25: -2.8 | AU25: 28.94 | AZ25: 0 | BA25: 32.18 | BF25: -0.6 | BG25: 30.92 | BL25: -1.7 | BM25: 32.72 | BR25: -4.4 | BS25: 32.18 | CA25: 86 | CB25: 87 | CC25: 88 | CD25: 115 | CF25: 81 | CH25: 71 | CJ25: 139 | CL25: 74 | CN25: 104 | CP25: 14 | CR25: 68 | CT25: 106 | CV25: 26 | CX25: 80 | CZ25: 53 | DE25: 07:00:00 | DF25: On | DG25: On | DH25: On | DT25: 7 | DU25: 13.9 | DV25: 1.1 | DW25: -2.8 | DX25: -1.1 | DY25: 3.9 | DZ25: 2 | EA25: -1.7 | EB25: -1.7 | EC25: 0.1 | ED25: -0.6 | EE25: 0.4 | EF25: 0.1
A26: 0.3333333333 | B26: 2011-01-01 | C26: 08:00:00 | D26: -2.8 | E26: 57.92 | F26: SATURDAY | G26: On | H26: 1976-01-01 | I26: 08:00:00 | J26: 1.1 | K26: 33.98 | N26: 2003-01-01 | O26: 08:00:00 | P26: 5 | Q26: 30.92 | T26: 1999-01-01 | U26: 08:00:00 | V26: -3.3 | W26: 30.02 | AB26: 1.1 | AC26: 39.02 | AH26: 7 | AI26: 34.7 | AN26: -4.4 | AO26: 32.18 | AT26: -3.3 | AU26: 28.94 | AZ26: 0.4 | BA26: 28.04 | BF26: -0.6 | BG26: 30.92 | BL26: -1.5 | BM26: 32.54 | BR26: -6.1 | BS26: 32.18 | CA26: 84 | CB26: 85 | CC26: 86 | CD26: 146 | CF26: 95 | CH26: 92 | CJ26: 122 | CL26: 71 | CN26: 104 | CP26: 22 | CR26: 97 | CT26: 101 | CV26: 51 | CX26: 83 | CZ26: 69 | DE26: 08:00:00 | DF26: On | DG26: On | DH26: On | DT26: 8 | DU26: 14.4 | DV26: 1.1 | DW26: -0.6 | DX26: -1.1 | DY26: 3.9 | DZ26: 1.5 | EA26: 0.1 | EB26: -1.7 | EC26: -2.2 | ED26: -0.6 | EE26: 0.3 | EF26: 0.1
A27: 0.375 | B27: 2011-01-01 | C27: 09:00:00 | D27: -1.7 | E27: 59 | F27: SATURDAY | G27: On | H27: 1976-01-01 | I27: 09:00:00 | J27: 1.1 | K27: 35.06 | N27: 2003-01-01 | O27: 09:00:00 | P27: 6 | Q27: 32 | T27: 1999-01-01 | U27: 09:00:00 | V27: -2.8 | W27: 35.06 | AB27: 2.2 | AC27: 39.02 | AH27: 7 | AI27: 34.88 | AN27: -4.4 | AO27: 28.94 | AT27: -3.3 | AU27: 28.4 | AZ27: 0.7 | BA27: 32 | BF27: -1.1 | BG27: 28.94 | BL27: -1.3 | BM27: 32.54 | BR27: -7.2 | BS27: 32.36 | CA27: 82 | CB27: 83 | CC27: 84 | CD27: 194 | CF27: 175 | CH27: 125 | CJ27: 168 | CL27: 109 | CN27: 131 | CP27: 55 | CR27: 133 | CT27: 150 | CV27: 76 | CX27: 119 | CZ27: 81 | DE27: 09:00:00 | DF27: On | DG27: On | DH27: On | DT27: 9 | DU27: 15 | DV27: 1.7 | DW27: 0 | DX27: 1.7 | DY27: 3.9 | DZ27: 1.6 | EA27: -1.7 | EB27: -2 | EC27: 0 | ED27: -1.7 | EE27: 0.3 | EF27: 0.2
A28: 0.4166666667 | B28: 2011-01-01 | C28: 10:00:00 | D28: -0.6 | E28: 60.08 | F28: SATURDAY | G28: On | H28: 1976-01-01 | I28: 10:00:00 | J28: 1.1 | K28: 35.96 | N28: 2003-01-01 | O28: 10:00:00 | P28: 4 | Q28: 35.06 | T28: 1999-01-01 | U28: 10:00:00 | V28: -2.2 | W28: 33.8 | AB28: 3.9 | AC28: 39.92 | AH28: 11 | AI28: 35.24 | AN28: -4.4 | AO28: 28.94 | AT28: -2.8 | AU28: 28.94 | AZ28: 1.1 | BA28: 32.18 | BF28: -0.6 | BG28: 28.94 | BL28: -1.1 | BM28: 32.18 | BR28: -8.3 | BS28: 33.26 | CA28: 80 | CB28: 81 | CC28: 82 | CD28: 271 | CF28: 187 | CH28: 139 | CJ28: 226 | CL28: 157 | CN28: 182 | CP28: 65 | CR28: 149 | CT28: 161 | CV28: 144 | CX28: 150 | CZ28: 103 | DE28: 10:00:00 | DF28: On | DG28: On | DH28: On | DT28: 10 | DU28: 15.6 | DV28: 2.2 | DW28: 1.7 | DX28: 1 | DY28: 4.4 | DZ28: 1.8 | EA28: -1.7 | EB28: -1.7 | EC28: 0.1 | ED28: -1.7 | EE28: 0.1 | EF28: 0.7
A29: 0.4583333333 | B29: 2011-01-01 | C29: 11:00:00 | D29: 0 | E29: 60.08 | F29: SATURDAY | G29: On | H29: 1976-01-01 | I29: 11:00:00 | J29: 1.7 | K29: 34.34 | N29: 2003-01-01 | O29: 11:00:00 | P29: 4 | Q29: 34.16 | T29: 1999-01-01 | U29: 11:00:00 | V29: -1.1 | W29: 37.04 | AB29: 4.4 | AC29: 39.92 | AH29: 12 | AI29: 35.78 | AN29: -4.4 | AO29: 32 | AT29: -2.2 | AU29: 28.94 | AZ29: 1.7 | BA29: 32.72 | BF29: 0 | BG29: 28.04 | BL29: -1.1 | BM29: 32.18 | BR29: -6.7 | BS29: 36.14 | CA29: 78 | CB29: 79 | CC29: 80 | CD29: 283 | CF29: 230 | CH29: 189 | CJ29: 314 | CL29: 205 | CN29: 224 | CP29: 97 | CR29: 179 | CT29: 206 | CV29: 187 | CX29: 184 | CZ29: 138 | DE29: 11:00:00 | DF29: On | DG29: On | DH29: On | DT29: 11 | DU29: 15.6 | DV29: 1.3 | DW29: 1.2 | DX29: 2.8 | DY29: 4.4 | DZ29: 2.1 | EA29: 0 | EB29: -1.7 | EC29: 0.4 | ED29: -2.2 | EE29: 0.1 | EF29: 2.3
A30: 0.5 | B30: 2011-01-01 | C30: 12:00:00 | D30: 2.2 | E30: 55.04 | F30: SATURDAY | G30: On | H30: 1976-01-01 | I30: 12:00:00 | J30: 2.2 | K30: 35.24 | N30: 2003-01-01 | O30: 12:00:00 | P30: 3 | Q30: 35.06 | T30: 1999-01-01 | U30: 12:00:00 | V30: -1.7 | W30: 37.94 | AB30: 4.4 | AC30: 39.02 | AH30: 13 | AI30: 35.24 | AN30: -4.4 | AO30: 32.18 | AT30: -1.1 | AU30: 33.26 | AZ30: 2.2 | BA30: 32.72 | BF30: 0 | BG30: 30.02 | BL30: -1.1 | BM30: 30.02 | BR30: -6.1 | BS30: 38.3 | CA30: 76 | CB30: 77 | CC30: 78 | CD30: 147 | CF30: 166 | CH30: 114 | CJ30: 158 | CL30: 131 | CN30: 105 | CP30: 64 | CR30: 96 | CT30: 100 | CV30: 97 | CX30: 107 | CZ30: 89 | DE30: 12:00:00 | DF30: On | DG30: On | DH30: On | DT30: 12 | DU30: 12.8 | DV30: 1.8 | DW30: 1.7 | DX30: 3.3 | DY30: 3.9 | DZ30: 1.8 | EA30: 0.1 | EB30: 0.7 | EC30: 0.4 | ED30: -1.1 | EE30: -1.1 | EF30: 3.5
A31: 0.5416666667 | B31: 2011-01-01 | C31: 13:00:00 | D31: 2.8 | E31: 53.96 | F31: SATURDAY | G31: On | H31: 1976-01-01 | I31: 13:00:00 | J31: 3.9 | K31: 36.14 | N31: 2003-01-01 | O31: 13:00:00 | P31: 3 | Q31: 35.06 | T31: 1999-01-01 | U31: 13:00:00 | V31: -2.2 | W31: 39.02 | AB31: 5.6 | AC31: 37.94 | AH31: 12 | AI31: 34.7 | AN31: -4.4 | AO31: 32 | AT31: 1.1 | AU31: 34.16 | AZ31: 2.8 | BA31: 32.54 | BF31: 0 | BG31: 30.02 | BL31: -1.1 | BM31: 32 | BR31: -5.6 | BS31: 39.38 | CA31: 74 | CB31: 75 | CC31: 76 | CD31: 400 | CF31: 395 | CH31: 274 | CJ31: 346 | CL31: 369 | CN31: 253 | CP31: 167 | CR31: 224 | CT31: 252 | CV31: 267 | CX31: 212 | CZ31: 192 | DE31: 13:00:00 | DF31: On | DG31: On | DH31: On | DT31: 13 | DU31: 12.2 | DV31: 2.3 | DW31: 1.7 | DX31: 3.9 | DY31: 3.3 | DZ31: 1.5 | EA31: 0 | EB31: 1.2 | EC31: 0.3 | ED31: -1.1 | EE31: 0 | EF31: 4.1
A32: 0.5833333333 | B32: 2011-01-01 | C32: 14:00:00 | D32: 2.2 | E32: 53.96 | F32: SATURDAY | G32: On | H32: 1976-01-01 | I32: 14:00:00 | J32: 4.4 | K32: 37.04 | N32: 2003-01-01 | O32: 14:00:00 | P32: 3 | Q32: 36.32 | T32: 1999-01-01 | U32: 14:00:00 | V32: -3.3 | W32: 39.02 | AB32: 6.7 | AC32: 37.94 | AH32: 11 | AI32: 34.16 | AN32: -3.9 | AO32: 28.04 | AT32: 2.2 | AU32: 36.14 | AZ32: 2.6 | BA32: 32.36 | BF32: 0.6 | BG32: 30.02 | BL32: -1.1 | BM32: 32.54 | BR32: -5.6 | BS32: 40.64 | CA32: 72 | CB32: 73 | CC32: 74 | CD32: 415 | CF32: 413 | CH32: 317 | CJ32: 338 | CL32: 339 | CN32: 265 | CP32: 184 | CR32: 236 | CT32: 253 | CV32: 337 | CX32: 293 | CZ32: 203 | DE32: 14:00:00 | DF32: On | DG32: On | DH32: On | DT32: 14 | DU32: 12.2 | DV32: 2.8 | DW32: 2.4 | DX32: 3.9 | DY32: 3.3 | DZ32: 1.2 | EA32: -2.2 | EB32: 2.3 | EC32: 0.2 | ED32: -1.1 | EE32: 0.3 | EF32: 4.8
A33: 0.625 | B33: 2011-01-01 | C33: 15:00:00 | D33: 2.2 | E33: 48.92 | F33: SATURDAY | G33: On | H33: 1976-01-01 | I33: 15:00:00 | J33: 4.4 | K33: 37.22 | N33: 2003-01-01 | O33: 15:00:00 | P33: 2 | Q33: 36.32 | T33: 1999-01-01 | U33: 15:00:00 | V33: -2.8 | W33: 39.92 | AB33: 8.3 | AC33: 37.94 | AH33: 10 | AI33: 33.44 | AN33: -3.9 | AO33: 30.02 | AT33: 3.3 | AU33: 36.14 | AZ33: 2.4 | BA33: 32.18 | BF33: 0.6 | BG33: 30.92 | BL33: -1.1 | BM33: 32.36 | BR33: -6.1 | BS33: 41.18 | CA33: 70 | CB33: 71 | CC33: 72 | CD33: 336 | CF33: 321 | CH33: 296 | CJ33: 314 | CL33: 352 | CN33: 262 | CP33: 292 | CR33: 317 | CT33: 252 | CV33: 283 | CX33: 287 | CZ33: 287 | DE33: 15:00:00 | DF33: On | DG33: On | DH33: On | DT33: 15 | DU33: 9.4 | DV33: 2.9 | DW33: 2.4 | DX33: 4.4 | DY33: 3.3 | DZ33: 0.8 | EA33: -1.1 | EB33: 2.3 | EC33: 0.1 | ED33: -0.6 | EE33: 0.2 | EF33: 5.1
A34: 0.6666666667 | B34: 2011-01-01 | C34: 16:00:00 | D34: 2.8 | E34: 48.02 | F34: SATURDAY | G34: On | H34: 1976-01-01 | I34: 16:00:00 | J34: 3.3 | K34: 37.94 | N34: 2003-01-01 | O34: 16:00:00 | P34: 2 | Q34: 36.32 | T34: 1999-01-01 | U34: 16:00:00 | V34: -2.8 | W34: 39.92 | AB34: 7.8 | AC34: 37.94 | AH34: 8 | AI34: 33.08 | AN34: -3.9 | AO34: 30.02 | AT34: 4.4 | AU34: 35.6 | AZ34: 2.2 | BA34: 30.2 | BF34: 0.6 | BG34: 30.02 | BL34: -1.1 | BM34: 32 | BR34: -7.2 | BS34: 40.64 | CA34: 68 | CB34: 69 | CC34: 70 | CD34: 402 | CF34: 464 | CH34: 496 | CJ34: 512 | CL34: 488 | CN34: 500 | CP34: 528 | CR34: 473 | CT34: 439 | CV34: 506 | CX34: 422 | CZ34: 391 | DE34: 16:00:00 | DF34: On | DG34: On | DH34: On | DT34: 16 | DU34: 8.9 | DV34: 3.3 | DW34: 2.4 | DX34: 4.4 | DY34: 3.3 | DZ34: 0.6 | EA34: -1.1 | EB34: 2 | EC34: -1 | ED34: -1.1 | EE34: 0 | EF34: 4.8
A35: 0.7083333333 | B35: 2011-01-01 | C35: 17:00:00 | D35: 1.7 | E35: 48.02 | F35: SATURDAY | G35: On | H35: 1976-01-01 | I35: 17:00:00 | J35: 1.7 | K35: 37.04 | N35: 2003-01-01 | O35: 17:00:00 | P35: 2 | Q35: 36.32 | T35: 1999-01-01 | U35: 17:00:00 | V35: -5 | W35: 39.92 | AB35: 6.7 | AC35: 38.84 | AH35: 6 | AI35: 32 | AN35: -5.6 | AO35: 28.94 | AT35: 5 | AU35: 35.06 | AZ35: 0.9 | BA35: 30.92 | BF35: 0.6 | BG35: 30.02 | BL35: -1.1 | BM35: 30.92 | BR35: -9.4 | BS35: 39.92 | CA35: 66 | CB35: 67 | CC35: 68 | CD35: 291 | CF35: 315 | CH35: 344 | CJ35: 282 | CL35: 285 | CN35: 298 | CP35: 294 | CR35: 301 | CT35: 301 | CV35: 277 | CX35: 316 | CZ35: 276 | DE35: 17:00:00 | DF35: On | DG35: On | DH35: On | DT35: 17 | DU35: 8.9 | DV35: 2.8 | DW35: 2.4 | DX35: 4.4 | DY35: 3.8 | DZ35: 0 | EA35: -1.7 | EB35: 1.7 | EC35: -0.6 | ED35: -1.1 | EE35: -0.6 | EF35: 4.4
A36: 0.75 | B36: 2011-01-01 | C36: 18:00:00 | D36: 2.2 | E36: 44.96 | F36: SATURDAY | G36: On | H36: 1976-01-01 | I36: 18:00:00 | J36: 1.1 | K36: 37.04 | N36: 2003-01-01 | O36: 18:00:00 | P36: 2 | Q36: 35.06 | T36: 1999-01-01 | U36: 18:00:00 | V36: -5.6 | W36: 40.28 | AB36: 6.7 | AC36: 37.94 | AH36: 4 | AI36: 30.92 | AN36: -6.1 | AO36: 28.04 | AT36: 5.6 | AU36: 32.54 | AZ36: -0.4 | BA36: 30.2 | BF36: 0 | BG36: 26.96 | BL36: -1.1 | BM36: 30.02 | BR36: -8.9 | BS36: 39.56 | CA36: 64 | CB36: 65 | CC36: 66 | CD36: 302 | CF36: 316 | CH36: 336 | CJ36: 277 | CL36: 305 | CN36: 277 | CP36: 307 | CR36: 329 | CT36: 260 | CV36: 307 | CX36: 297 | CZ36: 267 | DE36: 18:00:00 | DF36: On | DG36: On | DH36: On | DT36: 18 | DU36: 7.2 | DV36: 2.8 | DW36: 1.7 | DX36: 4.6 | DY36: 3.3 | DZ36: -0.6 | EA36: -2.2 | EB36: 0.3 | EC36: -1 | ED36: -2.8 | EE36: -1.1 | EF36: 4.2
A37: 0.7916666667 | B37: 2011-01-01 | C37: 19:00:00 | D37: 2.8 | E37: 44.06 | F37: SATURDAY | G37: On | H37: 1976-01-01 | I37: 19:00:00 | J37: 1.1 | K37: 37.04 | N37: 2003-01-01 | O37: 19:00:00 | P37: 2 | Q37: 35.24 | T37: 1999-01-01 | U37: 19:00:00 | V37: -6.1 | W37: 40.46 | AB37: 6.7 | AC37: 37.22 | AH37: 3 | AI37: 30.02 | AN37: -5.6 | AO37: 28.04 | AT37: 6.7 | AU37: 32.18 | AZ37: -1.7 | BA37: 28.94 | BF37: -0.6 | BG37: 26.96 | BL37: -1.1 | BM37: 28.04 | BR37: -8.3 | BS37: 39.92 | CA37: 62 | CB37: 63 | CC37: 64 | CD37: 295 | CF37: 342 | CH37: 316 | CJ37: 287 | CL37: 292 | CN37: 327 | CP37: 345 | CR37: 375 | CT37: 260 | CV37: 296 | CX37: 287 | CZ37: 290 | DE37: 19:00:00 | DF37: On | DG37: On | DH37: On | DT37: 19 | DU37: 6.7 | DV37: 2.8 | DW37: 1.8 | DX37: 4.7 | DY37: 2.9 | DZ37: -1.1 | EA37: -2.2 | EB37: 0.1 | EC37: -1.7 | ED37: -2.8 | EE37: -2.2 | EF37: 4.4
A38: 0.8333333333 | B38: 2011-01-01 | C38: 20:00:00 | D38: 2.2 | E38: 44.06 | F38: SATURDAY | G38: On | H38: 1976-01-01 | I38: 20:00:00 | J38: 1.1 | K38: 37.04 | N38: 2003-01-01 | O38: 20:00:00 | P38: 2 | Q38: 35.06 | T38: 1999-01-01 | U38: 20:00:00 | V38: -6.7 | W38: 40.82 | AB38: 3.9 | AC38: 35.96 | AH38: 1 | AI38: 28.04 | AN38: -6.1 | AO38: 28.04 | AT38: 8.3 | AU38: 33.98 | AZ38: -1.5 | BA38: 28.94 | BF38: -0.6 | BG38: 26.96 | BL38: -0.9 | BM38: 28.04 | BR38: -8.3 | BS38: 40.64 | CA38: 60 | CB38: 61 | CC38: 62 | CD38: 270 | CF38: 288 | CH38: 294 | CJ38: 300 | CL38: 344 | CN38: 272 | CP38: 299 | CR38: 285 | CT38: 251 | CV38: 251 | CX38: 258 | CZ38: 293 | DE38: 20:00:00 | DF38: On | DG38: On | DH38: On | DT38: 20 | DU38: 6.7 | DV38: 2.8 | DW38: 1.7 | DX38: 4.9 | DY38: 2.2 | DZ38: -2.2 | EA38: -2.2 | EB38: 1.1 | EC38: -1.7 | ED38: -2.8 | EE38: -2.2 | EF38: 4.8
A39: 0.875 | B39: 2011-01-01 | C39: 21:00:00 | D39: 3.3 | E39: 42.98 | F39: SATURDAY | G39: On | H39: 1976-01-01 | I39: 21:00:00 | J39: 0.6 | K39: 37.04 | N39: 2003-01-01 | O39: 21:00:00 | P39: 1.9 | Q39: 34.7 | T39: 1999-01-01 | U39: 21:00:00 | V39: -8.3 | W39: 41.36 | AB39: 3.9 | AC39: 34.88 | AH39: -1 | AI39: 26.06 | AN39: -6.1 | AO39: 28.04 | AT39: 9.4 | AU39: 33.8 | AZ39: -1.3 | BA39: 28.4 | BF39: -1.1 | BG39: 28.94 | BL39: -0.8 | BM39: 26.96 | BR39: -5.6 | BS39: 40.64 | CA39: 58 | CB39: 59 | CC39: 60 | CD39: 122 | CF39: 159 | CH39: 183 | CJ39: 176 | CL39: 166 | CN39: 169 | CP39: 174 | CR39: 111 | CT39: 126 | CV39: 147 | CX39: 160 | CZ39: 163 | DE39: 21:00:00 | DF39: On | DG39: On | DH39: On | DT39: 21 | DU39: 6.1 | DV39: 2.8 | DW39: 1.5 | DX39: 5.2 | DY39: 1.6 | DZ39: -3.3 | EA39: -2.2 | EB39: 1 | EC39: -2 | ED39: -1.7 | EE39: -2.8 | EF39: 4.8
A40: 0.9166666667 | B40: 2011-01-01 | C40: 22:00:00 | D40: 3.3 | E40: 42.98 | F40: SATURDAY | G40: On | H40: 1976-01-01 | I40: 22:00:00 | J40: 0 | K40: 37.04 | N40: 2003-01-01 | O40: 22:00:00 | P40: 2 | Q40: 35.06 | T40: 1999-01-01 | U40: 22:00:00 | V40: -9.4 | W40: 41.9 | AB40: 5 | AC40: 33.44 | AH40: -2 | AI40: 23 | AN40: -6.1 | AO40: 24.08 | AT40: 10 | AU40: 32 | AZ40: -1.1 | BA40: 28.4 | BF40: -1.1 | BG40: 28.04 | BL40: -0.6 | BM40: 26.96 | BR40: -5 | BS40: 40.46 | CA40: 56 | CB40: 57 | CC40: 58 | CD40: 285 | CF40: 265 | CH40: 303 | CJ40: 292 | CL40: 305 | CN40: 321 | CP40: 292 | CR40: 263 | CT40: 236 | CV40: 255 | CX40: 299 | CZ40: 274 | DE40: 22:00:00 | DF40: On | DG40: On | DH40: On | DT40: 22 | DU40: 6.1 | DV40: 2.8 | DW40: 1.7 | DX40: 5.5 | DY40: 0.8 | DZ40: -5 | EA40: -4.4 | EB40: 0 | EC40: -2 | ED40: -2.2 | EE40: -2.8 | EF40: 4.7
A41: 0.9583333333 | B41: 2011-01-01 | C41: 23:00:00 | D41: 3.3 | E41: 42.98 | F41: SATURDAY | G41: On | H41: 1976-01-01 | I41: 23:00:00 | J41: -0.6 | K41: 37.04 | N41: 2003-01-01 | O41: 23:00:00 | P41: 1 | Q41: 35.6 | T41: 1999-01-01 | U41: 23:00:00 | V41: -10 | W41: 42.98 | AB41: 6.1 | AC41: 28.94 | AH41: -1 | AI41: 21.92 | AN41: -5.6 | AO41: 23 | AT41: 10.6 | AU41: 32 | AZ41: -0.9 | BA41: 26.96 | BF41: -1.1 | BG41: 28.04 | BL41: -1 | BM41: 24.08 | BR41: -5 | BS41: 41 | CA41: 54 | CB41: 55 | CC41: 56 | CD41: 306 | CF41: 305 | CH41: 294 | CJ41: 252 | CL41: 358 | CN41: 313 | CP41: 303 | CR41: 259 | CT41: 249 | CV41: 263 | CX41: 271 | CZ41: 260 | DE41: 23:00:00 | DF41: On | DG41: On | DH41: On | DT41: 23 | DU41: 6.1 | DV41: 2.8 | DW41: 2 | DX41: 6.1 | DY41: -1.7 | DZ41: -5.6 | EA41: -5 | EB41: 0 | EC41: -2.8 | ED41: -2.2 | EE41: -4.4 | EF41: 5
A42: 1 | B42: 2011-01-01 | C42: 00:00:00 | D42: 3.9 | E42: 41 | F42: SATURDAY | G42: On | H42: 1976-01-01 | I42: 1 | J42: -1.1 | K42: 37.04 | N42: 2003-01-01 | O42: 1 | P42: 1 | Q42: 35.96 | T42: 1999-01-01 | U42: 1 | V42: -10.6 | W42: 43.88 | AB42: 4.4 | AC42: 28.04 | AH42: -1 | AI42: 15.08 | AN42: -5.6 | AO42: 21.92 | AT42: 10.6 | AU42: 30.2 | AZ42: -0.8 | BA42: 26.6 | BF42: -1.1 | BG42: 26.06 | BL42: -1.3 | BM42: 24.08 | BR42: -5 | BS42: 39.92 | CA42: 52 | CB42: 53 | CC42: 54 | CD42: 342 | CF42: 307 | CH42: 298 | CJ42: 262 | CL42: 356 | CN42: 293 | CP42: 330 | CR42: 229 | CT42: 225 | CV42: 254 | CX42: 278 | CZ42: 262 | DE42: 00:00:00 | DF42: On | DG42: On | DH42: On | DT42: 24 | DU42: 5 | DV42: 2.8 | DW42: 2.2 | DX42: 6.6 | DY42: -2.2 | DZ42: -9.4 | EA42: -5.6 | EB42: -1 | EC42: -3 | ED42: -3.3 | EE42: -4.4 | EF42: 4.4
A43: 1.041666667 | B43: 2011-01-02 | C43: 01:00:00 | D43: 4.4 | E43: 39.92 | F43: SUNDAY | G43: On | H43: 1976-01-02 | I43: 01:00:00 | J43: -2.8 | K43: 39.2 | N43: 2003-01-02 | O43: 01:00:00 | P43: 2 | Q43: 36.32 | T43: 1999-01-02 | U43: 01:00:00 | V43: -11.1 | W43: 44.06 | AB43: 4.4 | AC43: 26.96 | AH43: -2 | AI43: 12.92 | AN43: -5 | AO43: 21.02 | AT43: 10 | AU43: 28.4 | AZ43: -0.6 | BA43: 24.98 | BF43: -1.7 | BG43: 26.06 | BL43: -1.7 | BM43: 26.06 | BR43: -5 | BS43: 39.92 | CA43: 50 | CB43: 51 | CC43: 52 | CD43: 383 | CF43: 419 | CH43: 452 | CJ43: 381 | CL43: 439 | CN43: 367 | CP43: 417 | CR43: 326 | CT43: 341 | CV43: 393 | CX43: 376 | CZ43: 339 | DT43: 25 | DU43: 4.4 | DV43: 4 | DW43: 2.4 | DX43: 6.7 | DY43: -2.8 | DZ43: -10.6 | EA43: -6.1 | EB43: -2 | EC43: -3.9 | ED43: -3.3 | EE43: -3.3 | EF43: 4.4
A44: 1.083333333 | B44: 2011-01-02 | C44: 02:00:00 | D44: 4.4 | E44: 39.92 | F44: SUNDAY | G44: On | H44: 1976-01-02 | I44: 02:00:00 | J44: -3.3 | K44: 37.94 | N44: 2003-01-02 | O44: 02:00:00 | P44: 2 | Q44: 35.96 | T44: 1999-01-02 | U44: 02:00:00 | V44: -11.7 | W44: 43.88 | AB44: 3.9 | AC44: 26.06 | AH44: -2 | AI44: 10.94 | AN44: -5 | AO44: 21.02 | AT44: 7.2 | AU44: 28.94 | AZ44: -0.4 | BA44: 24.98 | BF44: -1.7 | BG44: 26.06 | BL44: -1.7 | BM44: 26.06 | BR44: -6.1 | BS44: 39.2 | CA44: 48 | CB44: 49 | CC44: 50 | CD44: 255 | CF44: 235 | CH44: 297 | CJ44: 272 | CL44: 357 | CN44: 259 | CP44: 313 | CR44: 234 | CT44: 245 | CV44: 258 | CX44: 232 | CZ44: 184 | DT44: 26 | DU44: 4.4 | DV44: 3.3 | DW44: 2.2 | DX44: 6.6 | DY44: -3.3 | DZ44: -11.7 | EA44: -6.1 | EB44: -1.7 | EC44: -3.9 | ED44: -3.3 | EE44: -3.3 | EF44: 4
A45: 1.125 | B45: 2011-01-02 | C45: 03:00:00 | D45: 5 | E45: 37.94 | F45: SUNDAY | G45: On | H45: 1976-01-02 | I45: 03:00:00 | J45: -3.9 | K45: 39.02 | N45: 2003-01-02 | O45: 03:00:00 | P45: 2 | Q45: 37.04 | T45: 1999-01-02 | U45: 03:00:00 | V45: -11.7 | W45: 43.52 | AB45: 5 | AC45: 26.06 | AH45: -3 | AI45: 10.04 | AN45: -5 | AO45: 24.08 | AT45: 5.6 | AU45: 28.04 | AZ45: -0.2 | BA45: 23 | BF45: -1.7 | BG45: 26.96 | BL45: -1.7 | BM45: 26.96 | BR45: -5 | BS45: 37.04 | CA45: 46 | CB45: 47 | CC45: 48 | CD45: 247 | CF45: 271 | CH45: 264 | CJ45: 261 | CL45: 359 | CN45: 239 | CP45: 321 | CR45: 192 | CT45: 260 | CV45: 297 | CX45: 193 | CZ45: 245 | DE45: T_Main Lookup | DG45: 40% of Avg | DT45: 27 | DU45: 3.3 | DV45: 3.9 | DW45: 2.8 | DX45: 6.4 | DY45: -3.3 | DZ45: -12.2 | EA45: -4.4 | EB45: -2.2 | EC45: -5 | ED45: -2.8 | EE45: -2.8 | EF45: 2.8
A46: 1.166666667 | B46: 2011-01-02 | C46: 04:00:00 | D46: 4.4 | E46: 37.94 | F46: SUNDAY | G46: On | H46: 1976-01-02 | I46: 04:00:00 | J46: -4.4 | K46: 37.94 | N46: 2003-01-02 | O46: 04:00:00 | P46: 2 | Q46: 37.4 | T46: 1999-01-02 | U46: 04:00:00 | V46: -11.7 | W46: 44.24 | AB46: 4.4 | AC46: 24.98 | AH46: -3 | AI46: 10.04 | AN46: -4.4 | AO46: 24.08 | AT46: 4.4 | AU46: 28.04 | AZ46: 0 | BA46: 21.2 | BF46: -1.1 | BG46: 26.96 | BL46: -1.7 | BM46: 26.06 | BR46: -5 | BS46: 38.3 | CA46: 44 | CB46: 45 | CC46: 46 | CD46: 305 | CF46: 328 | CH46: 258 | CJ46: 305 | CL46: 410 | CN46: 276 | CP46: 309 | CR46: 193 | CT46: 258 | CV46: 299 | CX46: 252 | CZ46: 208 | DE46: Weather Station | DF46: T_Main | DG46: Amplitude | DH46: Days | DK46: Month | DL46: Albany | DM46: Binghamton | DN46: Buffalo | DO46: Massena | DP46: NYC | DQ46: Poughkeepsie | DR46: Syracuse | DT46: 28 | DU46: 3.3 | DV46: 3.3 | DW46: 3 | DX46: 6.8 | DY46: -3.9 | DZ46: -12.2 | EA46: -4.4 | EB46: -2.2 | EC46: -6 | ED46: -2.8 | EE46: -3.3 | EF46: 3.5
A47: 1.208333333 | B47: 2011-01-02 | C47: 05:00:00 | D47: 4.4 | E47: 37.94 | F47: SUNDAY | G47: On | H47: 1976-01-02 | I47: 05:00:00 | J47: -5 | K47: 39.02 | N47: 2003-01-02 | O47: 05:00:00 | P47: 1 | Q47: 39.2 | T47: 1999-01-02 | U47: 05:00:00 | V47: -12.2 | W47: 43.88 | AB47: 3.9 | AC47: 24.08 | AH47: -4 | AI47: 6.98 | AN47: -5 | AO47: 24.98 | AT47: 3.9 | AU47: 28.04 | AZ47: -0.2 | BA47: 21.02 | BF47: -0.6 | BG47: 26.96 | BL47: -1.5 | BM47: 28.04 | BR47: -5.6 | BS47: 35.96 | CA47: 42 | CB47: 43 | CC47: 44 | CD47: 341 | CF47: 425 | CH47: 285 | CJ47: 354 | CL47: 335 | CN47: 283 | CP47: 302 | CR47: 201 | CT47: 255 | CV47: 279 | CX47: 304 | CZ47: 281 | DE47: Albany | DF47: 55.4 | DG47: =TableT_MainLookup[[#This Row],[T_Main]]*0.4 -> 22.16 | DH47: 38 | DK47: January | DL47: 39.6 | DM47: 38.1 | DN47: 39.6 | DO47: 35.7 | DP47: 45.3 | DQ47: 41.1 | DR47: 39.6 | DT47: 29 | DU47: 3.3 | DV47: 3.9 | DW47: 4 | DX47: 6.6 | DY47: -4.4 | DZ47: -13.9 | EA47: -3.9 | EB47: -2.2 | EC47: -6.1 | ED47: -2.8 | EE47: -2.2 | EF47: 2.2
A48: 1.25 | B48: 2011-01-02 | C48: 06:00:00 | D48: 3.9 | E48: 34.88 | F48: SUNDAY | G48: On | H48: 1976-01-02 | I48: 06:00:00 | J48: -5.6 | K48: 39.02 | N48: 2003-01-02 | O48: 06:00:00 | P48: -0.4 | Q48: 38.84 | T48: 1999-01-02 | U48: 06:00:00 | V48: -11.7 | W48: 41 | AB48: 4.4 | AC48: 23 | AH48: -2 | AI48: 8.06 | AN48: -5 | AO48: 24.08 | AT48: 2.8 | AU48: 26.6 | AZ48: -0.4 | BA48: 19.4 | BF48: -1.1 | BG48: 28.04 | BL48: -1.3 | BM48: 28.04 | BR48: -4.4 | BS48: 34.52 | CA48: 40 | CB48: 41 | CC48: 42 | CD48: 212 | CF48: 278 | CH48: 270 | CJ48: 226 | CL48: 294 | CN48: 236 | CP48: 200 | CR48: 166 | CT48: 215 | CV48: 167 | CX48: 204 | CZ48: 194 | DE48: Binghamton | DF48: 52.8 | DG48: =TableT_MainLookup[[#This Row],[T_Main]]*0.4 -> 21.12 | DH48: 38 | DK48: February | DL48: 39 | DM48: 37.4 | DN48: 39 | DO48: 35.1 | DP48: 44.6 | DQ48: 40.5 | DR48: 39 | DT48: 30 | DU48: 1.6 | DV48: 3.9 | DW48: 3.8 | DX48: 5 | DY48: -5 | DZ48: -13.3 | EA48: -4.4 | EB48: -3 | EC48: -7 | ED48: -2.2 | EE48: -2.2 | EF48: 1.4
A49: 1.291666667 | B49: 2011-01-02 | C49: 07:00:00 | D49: 3.9 | E49: 34.52 | F49: SUNDAY | G49: On | H49: 1976-01-02 | I49: 07:00:00 | J49: -5.6 | K49: 39.02 | N49: 2003-01-02 | O49: 07:00:00 | P49: -2 | Q49: 38.84 | T49: 1999-01-02 | U49: 07:00:00 | V49: -11.7 | W49: 41 | AB49: 5.6 | AC49: 23 | AH49: -2 | AI49: 8.06 | AN49: -4.4 | AO49: 24.98 | AT49: 2.2 | AU49: 26.6 | AZ49: -0.6 | BA49: 19.4 | BF49: -1.1 | BG49: 28.04 | BL49: -1.1 | BM49: 28.04 | BR49: -3.3 | BS49: 33.8 | CA49: 38 | CB49: 39 | CC49: 40 | CD49: 327 | CF49: 382 | CH49: 378 | CJ49: 373 | CL49: 413 | CN49: 326 | CP49: 324 | CR49: 313 | CT49: 336 | CV49: 249 | CX49: 302 | CZ49: 267 | DE49: Buffalo | DF49: 55.1 | DG49: =TableT_MainLookup[[#This Row],[T_Main]]*0.4 -> 22.04 | DH49: 38 | DK49: March | DL49: 40.9 | DM49: 39.3 | DN49: 40.9 | DO49: 36.9 | DP49: 47 | DQ49: 42.4 | DR49: 40.9 | DT49: 31 | DU49: 1.4 | DV49: 3.9 | DW49: 3.8 | DX49: 5 | DY49: -5 | DZ49: -13.3 | EA49: -3.9 | EB49: -3 | EC49: -7 | ED49: -2.2 | EE49: -2.2 | EF49: 1
A50: 1.333333333 | B50: 2011-01-02 | C50: 08:00:00 | D50: 3.3 | E50: 34.7 | F50: SUNDAY | G50: On | H50: 1976-01-02 | I50: 08:00:00 | J50: -5.6 | K50: 40.28 | N50: 2003-01-02 | O50: 08:00:00 | P50: -2.8 | Q50: 39.02 | T50: 1999-01-02 | U50: 08:00:00 | V50: -11.1 | W50: 41 | AB50: 7.8 | AC50: 23 | AH50: -4 | AI50: 5 | AN50: -3.9 | AO50: 24.98 | AT50: 1.7 | AU50: 26.06 | AZ50: -0.2 | BA50: 19.04 | BF50: -1.1 | BG50: 28.04 | BL50: -1.1 | BM50: 28.04 | BR50: -2.8 | BS50: 33.62 | CA50: 36 | CB50: 37 | CC50: 38 | CD50: =COUNTIFS($E$19:$E$8778, ">="&$CA50, $E$19:$E$8778, "<"&$CC50, $G$19:$G$8778, "On") -> 323 | CE50: =SUMIFS($BV$19:$BV$8778,$E$19:$E$8778, ">="&$CA50, $E$19:$E$8778, "<"&$CC50, $G$19:$G$8778, "ON")/(CD50+1E-30) ->  | CF50: =COUNTIFS($W$19:$W$8778, ">="&$CA50, $W$19:$W$8778, "<"&$CC50, $G$19:$G$8778, "On") -> 373 | CG50: =SUMIFS($BV$19:$BV$8778,$W$19:$W$8778, ">="&$CA50, $W$19:$W$8778, "<"&$CC50, $G$19:$G$8778, "On")/(CF50+1E-30) ->  | CH50: =COUNTIFS($Q$19:$Q$8778, ">="&$CA50, $Q$19:$Q$8778, "<"&$CC50, $G$19:$G$8778, "On") -> 353 | CI50: =SUMIFS($BV$19:$BV$8778,$Q$19:$Q$8778, ">="&$CA50, $Q$19:$Q$8778, "<"&$CC50, $G$19:$G$8778, "On")/(CH50+1E-30) ->  | CJ50: =COUNTIFS($K$19:$K$8778, ">="&$CA50, $K$19:$K$8778, "<"&$CC50, $G$19:$G$8778, "On") -> 374 | CK50: =SUMIFS($BV$19:$BV$8778,$K$19:$K$8778, ">="&$CA50, $K$19:$K$8778, "<"&$CC50, $G$19:$G$8778, "On")/(CJ50+1E-30) ->  | CL50: =COUNTIFS($AC$19:$AC$8778, ">="&$CA50, $AC$19:$AC$8778, "<"&$CC50, $G$19:$G$8778, "On") -> 325 | CM50: =SUMIFS($BV$19:$BV$8778,$AC$19:$AC$8778, ">="&$CA50, $AC$19:$AC$8778, "<"&$CC50, $G$19:$G$8778, "On")/(CL50+1E-30) ->  | CN50: =COUNTIFS($AI$19:$AI$8778, ">="&$CA50, $AI$19:$AI$8778, "<"&$CC50, $G$19:$G$8778, "On") -> 353 | CO50: =SUMIFS($BV$19:$BV$8778,$AI$19:$AI$8778, ">="&$CA50, $AI$19:$AI$8778, "<"&$CC50, $G$19:$G$8778, "On")/(CN50+1E-30) ->  | CP50: =COUNTIFS($AO$19:$AO$8778, ">="&$CA50, $AO$19:$AO$8778, "<"&$CC50, $G$19:$G$8778, "On") -> 379 | CQ50: =SUMIFS($BV$19:$BV$8778,$AO$19:$AO$8778, ">="&$CA50, $AO$19:$AO$8778, "<"&$CC50, $G$19:$G$8778, "On")/(CP50+1E-30) ->  | CR50: =COUNTIFS($AU$19:$AU$8778, ">="&$CA50, $AU$19:$AU$8778, "<"&$CC50, $G$19:$G$8778, "On") -> 379 | CS50: =SUMIFS($BV$19:$BV$8778,$AU$19:$AU$8778, ">="&$CA50, $AU$19:$AU$8778, "<"&$CC50, $G$19:$G$8778, "On")/(CR50+1E-30) ->  | CT50: =COUNTIFS($BA$19:$BA$8778, ">="&$CA50, $BA$19:$BA$8778, "<"&$CC50, $G$19:$G$8778, "On") -> 302 | CU50: =SUMIFS($BV$19:$BV$8778,$BA$19:$BA$8778, ">="&$CA50, $BA$19:$BA$8778, "<"&$CC50, $G$19:$G$8778, "On")/(CT50+1E-30) ->  | CV50: =COUNTIFS($BG$19:$BG$8778, ">="&$CA50, $BG$19:$BG$8778, "<"&$CC50, $G$19:$G$8778, "On") -> 361 | CW50: =SUMIFS($BV$19:$BV$8778,$BG$19:$BG$8778, ">="&$CA50, $BG$19:$BG$8778, "<"&$CC50, $G$19:$G$8778, "On")/(CV50+1E-30) ->  | CX50: =COUNTIFS($BM$19:$BM$8778, ">="&$CA50, $BM$19:$BM$8778, "<"&$CC50, $G$19:$G$8778, "On") -> 299 | CY50: =SUMIFS($BV$19:$BV$8778,$BM$19:$BM$8778, ">="&$CA50, $BM$19:$BM$8778, "<"&$CC50, $G$19:$G$8778, "On")/(CX50+1E-30) ->  | CZ50: =COUNTIFS($BS$19:$BS$8778, ">="&$CA50, $BS$19:$BS$8778, "<"&$CC50, $G$19:$G$8778, "On") -> 299 | DA50: =SUMIFS($BV$19:$BV$8778,$BS$19:$BS$8778, ">="&$CA50, $BS$19:$BS$8778, "<"&$CC50, $G$19:$G$8778, "On")/(CZ50+1E-30) ->  | DE50: Central Long Island | DF50: 60.7 | DG50: =TableT_MainLookup[[#This Row],[T_Main]]*0.4 -> 24.28 | DH50: 37 | DK50: April | DL50: 44.7 | DM50: 42.9 | DN50: 44.7 | DO50: 40.3 | DP50: 51.4 | DQ50: 46.2 | DR50: 44.7 | DT50: 32 | DU50: 1.5 | DV50: 4.6 | DW50: 3.9 | DX50: 5 | DY50: -5 | DZ50: -15 | EA50: -3.9 | EB50: -3.3 | EC50: -7.2 | ED50: -2.2 | EE50: -2.2 | EF50: 0.9
A51: 1.375 | B51: 2011-01-02 | C51: 09:00:00 | D51: 4.4 | E51: 34.16 | F51: SUNDAY | G51: On | H51: 1976-01-02 | I51: 09:00:00 | J51: -5.6 | K51: 39.92 | N51: 2003-01-02 | O51: 09:00:00 | P51: -2.8 | Q51: 39.2 | T51: 1999-01-02 | U51: 09:00:00 | V51: -10.6 | W51: 41 | AB51: 8.9 | AC51: 24.08 | AH51: -1 | AI51: 17.96 | AN51: -3.3 | AO51: 24.98 | AT51: 1.7 | AU51: 24.8 | AZ51: 0.2 | BA51: 15.98 | BF51: -1.1 | BG51: 28.94 | BL51: -1.1 | BM51: 28.04 | BR51: -2.8 | BS51: 33.98 | CA51: 34 | CB51: 35 | CC51: 36 | CD51: 337 | CF51: 359 | CH51: 392 | CJ51: 416 | CL51: 246 | CN51: 449 | CP51: 307 | CR51: 417 | CT51: 385 | CV51: 375 | CX51: 456 | CZ51: 316 | DE51: Elmira | DF51: 55 | DG51: =TableT_MainLookup[[#This Row],[T_Main]]*0.4 -> 22 | DH51: 38 | DK51: May | DL51: 49.6 | DM51: 47.5 | DN51: 49.6 | DO51: 44.7 | DP51: 57.1 | DQ51: 51.1 | DR51: 49.6 | DT51: 33 | DU51: 1.2 | DV51: 4.4 | DW51: 4 | DX51: 5 | DY51: -4.4 | DZ51: -7.8 | EA51: -3.9 | EB51: -4 | EC51: -8.9 | ED51: -1.7 | EE51: -2.2 | EF51: 1.1
A52: 1.416666667 | B52: 2011-01-02 | C52: 10:00:00 | D52: 5 | E52: 34.52 | F52: SUNDAY | G52: On | H52: 1976-01-02 | I52: 10:00:00 | J52: -4.4 | K52: 41 | N52: 2003-01-02 | O52: 10:00:00 | P52: -2.9 | Q52: 41 | T52: 1999-01-02 | U52: 10:00:00 | V52: -8.9 | W52: 42.98 | AB52: 10.6 | AC52: 26.06 | AH52: 1 | AI52: 23 | AN52: -2.8 | AO52: 26.06 | AT52: 1.7 | AU52: 21.92 | AZ52: 0.6 | BA52: 15.8 | BF52: -0.6 | BG52: 28.94 | BL52: -1.1 | BM52: 28.94 | BR52: -3.3 | BS52: 34.16 | CA52: 32 | CB52: 33 | CC52: 34 | CD52: 465 | CF52: 324 | CH52: 375 | CJ52: 444 | CL52: 264 | CN52: 482 | CP52: 409 | CR52: 548 | CT52: 506 | CV52: 647 | CX52: 541 | CZ52: 512 | DE52: Fort Drum | DF52: 55 | DG52: =TableT_MainLookup[[#This Row],[T_Main]]*0.4 -> 22 | DH52: 38 | DK52: June | DL52: 54 | DM52: 51.7 | DN52: 54 | DO52: 48.6 | DP52: 62.2 | DQ52: 55.5 | DR52: 54 | DT52: 34 | DU52: 1.4 | DV52: 5 | DW52: 5 | DX52: 6.1 | DY52: -3.3 | DZ52: -5 | EA52: -3.3 | EB52: -5.6 | EC52: -9 | ED52: -1.7 | EE52: -1.7 | EF52: 1.2
A53: 1.458333333 | B53: 2011-01-02 | C53: 11:00:00 | D53: 5.6 | E53: 35.96 | F53: SUNDAY | G53: On | H53: 1976-01-02 | I53: 11:00:00 | J53: -2.8 | K53: 45.86 | N53: 2003-01-02 | O53: 11:00:00 | P53: -3 | Q53: 46.94 | T53: 1999-01-02 | U53: 11:00:00 | V53: -8.3 | W53: 44.96 | AB53: 11.7 | AC53: 28.94 | AH53: 3 | AI53: 26.06 | AN53: -1.1 | AO53: 26.96 | AT53: 1.7 | AU53: 21.92 | AZ53: 0.4 | BA53: 17.06 | BF53: -0.6 | BG53: 28.94 | BL53: -0.9 | BM53: 28.94 | BR53: -2.2 | BS53: 33.8 | CA53: 30 | CB53: 31 | CC53: 32 | CD53: 166 | CF53: 128 | CH53: 137 | CJ53: 133 | CL53: 50 | CN53: 135 | CP53: 97 | CR53: 230 | CT53: 224 | CV53: 288 | CX53: 272 | CZ53: 174 | DE53: Glens Falls | DF53: 55.4 | DG53: =TableT_MainLookup[[#This Row],[T_Main]]*0.4 -> 22.16 | DH53: 38 | DK53: July | DL53: 57 | DM53: 54.5 | DN53: 57 | DO53: 51.3 | DP53: 65.5 | DQ53: 58.5 | DR53: 57 | DT53: 35 | DU53: 2.2 | DV53: 7.7 | DW53: 8.3 | DX53: 7.2 | DY53: -1.7 | DZ53: -3.3 | EA53: -2.8 | EB53: -5.6 | EC53: -8.3 | ED53: -1.7 | EE53: -1.7 | EF53: 1
A54: 1.5 | B54: 2011-01-02 | C54: 12:00:00 | D54: 6.7 | E54: 37.04 | F54: SUNDAY | G54: On | H54: 1976-01-02 | I54: 12:00:00 | J54: -2.2 | K54: 51.08 | N54: 2003-01-02 | O54: 12:00:00 | P54: -2 | Q54: 48.02 | T54: 1999-01-02 | U54: 12:00:00 | V54: -7.2 | W54: 51.08 | AB54: 12.8 | AC54: 28.94 | AH54: 4 | AI54: 24.08 | AN54: -0.6 | AO54: 26.96 | AT54: 1.1 | AU54: 21.92 | AZ54: 0.2 | BA54: 15.8 | BF54: 0 | BG54: 28.94 | BL54: -0.8 | BM54: 30.92 | BR54: -1.1 | BS54: 34.16 | CA54: 28 | CB54: 29 | CC54: 30 | CD54: 111 | CF54: 115 | CH54: 161 | CJ54: 114 | CL54: 90 | CN54: 140 | CP54: 210 | CR54: 208 | CT54: 293 | CV54: 193 | CX54: 241 | CZ54: 234 | DE54: Islip | DF54: 60.7 | DG54: =TableT_MainLookup[[#This Row],[T_Main]]*0.4 -> 24.28 | DH54: 37 | DK54: August | DL54: 57.6 | DM54: 55.1 | DN54: 57.6 | DO54: 51.8 | DP54: 66.1 | DQ54: 59.1 | DR54: 57.6 | DT54: 36 | DU54: 2.8 | DV54: 10.6 | DW54: 8.9 | DX54: 10.6 | DY54: -1.7 | DZ54: -4.4 | EA54: -2.8 | EB54: -5.6 | EC54: -9 | ED54: -1.7 | EE54: -0.6 | EF54: 1.2
A55: 1.541666667 | B55: 2011-01-02 | C55: 13:00:00 | D55: 7.2 | E55: 37.04 | F55: SUNDAY | G55: On | H55: 1976-01-02 | I55: 13:00:00 | J55: -1.7 | K55: 51.08 | N55: 2003-01-02 | O55: 13:00:00 | P55: -2 | Q55: 48.02 | T55: 1999-01-02 | U55: 13:00:00 | V55: -6.1 | W55: 53.06 | AB55: 13.3 | AC55: 30.02 | AH55: 4 | AI55: 26.06 | AN55: 0 | AO55: 28.04 | AT55: 1.1 | AU55: 19.94 | AZ55: 0 | BA55: 14 | BF55: 0 | BG55: 30.02 | BL55: -0.6 | BM55: 30.92 | BR55: -1.1 | BS55: 33.8 | CA55: 26 | CB55: 27 | CC55: 28 | CD55: 90 | CF55: 89 | CH55: 159 | CJ55: 65 | CL55: 102 | CN55: 114 | CP55: 222 | CR55: 234 | CT55: 197 | CV55: 161 | CX55: 178 | CZ55: 247 | DE55: Jamestown | DF55: 55.1 | DG55: =TableT_MainLookup[[#This Row],[T_Main]]*0.4 -> 22.04 | DH55: 38 | DK55: September | DL55: 55.7 | DM55: 53.4 | DN55: 55.7 | DO55: 50.2 | DP55: 63.9 | DQ55: 57.2 | DR55: 55.7 | DT55: 37 | DU55: 2.8 | DV55: 10.6 | DW55: 8.9 | DX55: 11.7 | DY55: -1.1 | DZ55: -3.3 | EA55: -2.2 | EB55: -6.7 | EC55: -10 | ED55: -1.1 | EE55: -0.6 | EF55: 1
A56: 1.583333333 | B56: 2011-01-02 | C56: 14:00:00 | D56: 7.8 | E56: 37.04 | F56: SUNDAY | G56: On | H56: 1976-01-02 | I56: 14:00:00 | J56: -1.1 | K56: 50 | N56: 2003-01-02 | O56: 14:00:00 | P56: -1 | Q56: 46.94 | T56: 1999-01-02 | U56: 14:00:00 | V56: -6.1 | W56: 53.06 | AB56: 13.9 | AC56: 30.92 | AH56: 3 | AI56: 26.96 | AN56: 1.7 | AO56: 28.04 | AT56: 1.1 | AU56: 19.94 | AZ56: -0.4 | BA56: 12.92 | BF56: 0 | BG56: 30.92 | BL56: -0.6 | BM56: 30.92 | BR56: -2.2 | BS56: 33.98 | CA56: 24 | CB56: 25 | CC56: 26 | CD56: 54 | CF56: 62 | CH56: 133 | CJ56: 78 | CL56: 106 | CN56: 148 | CP56: 227 | CR56: 153 | CT56: 184 | CV56: 159 | CX56: 202 | CZ56: 221 | DE56: Massena | DF56: 51.1 | DG56: =TableT_MainLookup[[#This Row],[T_Main]]*0.4 -> 20.44 | DH56: 39 | DK56: October | DL56: 51.8 | DM56: 49.6 | DN56: 51.8 | DO56: 46.6 | DP56: 59.3 | DQ56: 53.3 | DR56: 51.8 | DT56: 38 | DU56: 2.8 | DV56: 10 | DW56: 8.3 | DX56: 11.7 | DY56: -0.6 | DZ56: -2.8 | EA56: -2.2 | EB56: -6.7 | EC56: -10.6 | ED56: -0.6 | EE56: -0.6 | EF56: 1.1
A57: 1.625 | B57: 2011-01-02 | C57: 15:00:00 | D57: 8.3 | E57: 37.94 | F57: SUNDAY | G57: On | H57: 1976-01-02 | I57: 15:00:00 | J57: -0.6 | K57: 48.92 | N57: 2003-01-02 | O57: 15:00:00 | P57: -1 | Q57: 44.96 | T57: 1999-01-02 | U57: 15:00:00 | V57: -6.1 | W57: 51.08 | AB57: 11.7 | AC57: 32 | AH57: 3 | AI57: 28.94 | AN57: 2.2 | AO57: 26.96 | AT57: 1.1 | AU57: 19.04 | AZ57: -0.7 | BA57: 12.2 | BF57: 0 | BG57: 30.92 | BL57: -0.6 | BM57: 32.18 | BR57: -2.2 | BS57: 33.62 | CA57: 22 | CB57: 23 | CC57: 24 | CD57: 13 | CF57: 18 | CH57: 64 | CJ57: 28 | CL57: 38 | CN57: 68 | CP57: 58 | CR57: 60 | CT57: 59 | CV57: 72 | CX57: 91 | CZ57: 99 | DE57: Monticello | DF57: 56.9 | DG57: =TableT_MainLookup[[#This Row],[T_Main]]*0.4 -> 22.76 | DH57: 38 | DK57: November | DL57: 47.1 | DM57: 45.1 | DN57: 47.1 | DO57: 42.4 | DP57: 53.8 | DQ57: 48.6 | DR57: 47.1 | DT57: 39 | DU57: 3.3 | DV57: 9.4 | DW57: 7.2 | DX57: 10.6 | DY57: 0 | DZ57: -1.7 | EA57: -2.8 | EB57: -7.2 | EC57: -11 | ED57: -0.6 | EE57: 0.1 | EF57: 0.9
A58: 1.666666667 | B58: 2011-01-02 | C58: 16:00:00 | D58: 8.3 | E58: 39.02 | F58: SUNDAY | G58: On | H58: 1976-01-02 | I58: 16:00:00 | J58: -0.6 | K58: 46.94 | N58: 2003-01-02 | O58: 16:00:00 | P58: -2 | Q58: 44.06 | T58: 1999-01-02 | U58: 16:00:00 | V58: -6.1 | W58: 48.02 | AB58: 12.2 | AC58: 32.54 | AH58: 3 | AI58: 28.94 | AN58: 2.2 | AO58: 26.96 | AT58: 1.1 | AU58: 17.96 | AZ58: -1.1 | BA58: 12.02 | BF58: 0 | BG58: 32 | BL58: -0.6 | BM58: 32.54 | BR58: -2.2 | BS58: 32.54 | CA58: 20 | CB58: 21 | CC58: 22 | CD58: 31 | CF58: 43 | CH58: 97 | CJ58: 33 | CL58: 53 | CN58: 124 | CP58: 140 | CR58: 133 | CT58: 144 | CV58: 138 | CX58: 140 | CZ58: 170 | DE58: New York City - Central Park | DF58: 60.7 | DG58: =TableT_MainLookup[[#This Row],[T_Main]]*0.4 -> 24.28 | DH58: 37 | DK58: December | DL58: 42.5 | DM58: 40.8 | DN58: 42.5 | DO58: 38.3 | DP58: 48.6 | DQ58: 44 | DR58: 42.5 | DT58: 40 | DU58: 3.9 | DV58: 8.3 | DW58: 6.7 | DX58: 8.9 | DY58: 0.3 | DZ58: -1.7 | EA58: -2.8 | EB58: -7.8 | EC58: -11.1 | ED58: 0 | EE58: 0.3 | EF58: 0.3
A59: 1.708333333 | B59: 2011-01-02 | C59: 17:00:00 | D59: 7.8 | E59: 37.58 | F59: SUNDAY | G59: On | H59: 1976-01-02 | I59: 17:00:00 | J59: -1.1 | K59: 44.06 | N59: 2003-01-02 | O59: 17:00:00 | P59: -2 | Q59: 45.14 | T59: 1999-01-02 | U59: 17:00:00 | V59: -5.6 | W59: 48.02 | AB59: 10.6 | AC59: 33.26 | AH59: 3 | AI59: 30.02 | AN59: 2.2 | AO59: 26.96 | AT59: 0.6 | AU59: 17.96 | AZ59: -1.8 | BA59: 12.02 | BF59: 0 | BG59: 32 | BL59: -1 | BM59: 32.9 | BR59: -2.2 | BS59: 24.08 | CA59: 18 | CB59: 19 | CC59: 20 | CD59: 25 | CF59: 23 | CH59: 65 | CJ59: 26 | CL59: 36 | CN59: 100 | CP59: 185 | CR59: 129 | CT59: 146 | CV59: 129 | CX59: 125 | CZ59: 136 | DE59: New York City - JFK | DF59: 60.7 | DG59: =TableT_MainLookup[[#This Row],[T_Main]]*0.4 -> 24.28 | DH59: 37 | DT59: 41 | DU59: 3.1 | DV59: 6.7 | DW59: 7.3 | DX59: 8.9 | DY59: 0.7 | DZ59: -1.1 | EA59: -2.8 | EB59: -7.8 | EC59: -11.1 | ED59: 0 | EE59: 0.5 | EF59: -4.4
A60: 1.75 | B60: 2011-01-02 | C60: 18:00:00 | D60: 7.2 | E60: 37.04 | F60: SUNDAY | G60: On | H60: 1976-01-02 | I60: 18:00:00 | J60: -1.1 | K60: 42.08 | N60: 2003-01-02 | O60: 18:00:00 | P60: -2 | Q60: 41.72 | T60: 1999-01-02 | U60: 18:00:00 | V60: -5 | W60: 42.98 | AB60: 11.1 | AC60: 33.44 | AH60: 3 | AI60: 30.02 | AN60: 2.2 | AO60: 26.96 | AT60: 0.6 | AU60: 15.08 | AZ60: -2.6 | BA60: 10.4 | BF60: -0.6 | BG60: 32.72 | BL60: -1.3 | BM60: 32.54 | BR60: -2.8 | BS60: 23 | CA60: 16 | CB60: 17 | CC60: 18 | CD60: 6 | CF60: 19 | CH60: 40 | CJ60: 31 | CL60: 26 | CN60: 54 | CP60: 90 | CR60: 111 | CT60: 86 | CV60: 89 | CX60: 69 | CZ60: 134 | DE60: New York City - Laguardia | DF60: 60.7 | DG60: =TableT_MainLookup[[#This Row],[T_Main]]*0.4 -> 24.28 | DH60: 37 | DT60: 42 | DU60: 2.8 | DV60: 5.6 | DW60: 5.4 | DX60: 6.1 | DY60: 0.8 | DZ60: -1.1 | EA60: -2.8 | EB60: -9.4 | EC60: -12 | ED60: 0.4 | EE60: 0.3 | EF60: -5
A61: 1.791666667 | B61: 2011-01-02 | C61: 19:00:00 | D61: 6.7 | E61: 35.78 | F61: SUNDAY | G61: On | H61: 1976-01-02 | I61: 19:00:00 | J61: -0.6 | K61: 42.08 | N61: 2003-01-02 | O61: 19:00:00 | P61: -2 | Q61: 40.64 | T61: 1999-01-02 | U61: 19:00:00 | V61: -5 | W61: 42.08 | AB61: 11.7 | AC61: 33.62 | AH61: 3 | AI61: 28.04 | AN61: 2.2 | AO61: 26.96 | AT61: 0.6 | AU61: 14 | AZ61: -3.3 | BA61: 10.4 | BF61: -0.6 | BG61: 33.08 | BL61: -1.7 | BM61: 32.54 | BR61: -3.9 | BS61: 21.92 | CA61: 14 | CB61: 15 | CC61: 16 | CD61: 29 | CF61: 7 | CH61: 49 | CJ61: 6 | CL61: 33 | CN61: 43 | CP61: 171 | CR61: 125 | CT61: 96 | CV61: 72 | CX61: 83 | CZ61: 191 | DE61: Niagara Falls | DF61: 55.1 | DG61: =TableT_MainLookup[[#This Row],[T_Main]]*0.4 -> 22.04 | DH61: 38 | DT61: 43 | DU61: 2.1 | DV61: 5.6 | DW61: 4.8 | DX61: 5.6 | DY61: 0.9 | DZ61: -2.2 | EA61: -2.8 | EB61: -10 | EC61: -12 | ED61: 0.6 | EE61: 0.3 | EF61: -5.6
A62: 1.833333333 | B62: 2011-01-02 | C62: 20:00:00 | D62: 6.1 | E62: 35.42 | F62: SUNDAY | G62: On | H62: 1976-01-02 | I62: 20:00:00 | J62: -0.6 | K62: 39.92 | N62: 2003-01-02 | O62: 20:00:00 | P62: -2 | Q62: 40.1 | T62: 1999-01-02 | U62: 20:00:00 | V62: -4.4 | W62: 42.08 | AB62: 11.7 | AC62: 33.62 | AH62: 3 | AI62: 28.94 | AN62: 2.2 | AO62: 26.96 | AT62: 0.6 | AU62: 14 | AZ62: -4.4 | BA62: 10.94 | BF62: -1.1 | BG62: 33.44 | BL62: -2.1 | BM62: 33.08 | BR62: -3.9 | BS62: 21.02 | CA62: 12 | CB62: 13 | CC62: 14 | CD62: 9 | CF62: 4 | CH62: 10 | CJ62: 0 | CK62: 0 | CL62: 22 | CN62: 13 | CP62: 71 | CR62: 61 | CT62: 46 | CV62: 45 | CX62: 30 | CZ62: 97 | DE62: Poughkeepsie | DF62: 56.9 | DG62: =TableT_MainLookup[[#This Row],[T_Main]]*0.4 -> 22.76 | DH62: 38 | DT62: 44 | DU62: 1.9 | DV62: 4.4 | DW62: 4.5 | DX62: 5.6 | DY62: 0.9 | DZ62: -1.7 | EA62: -2.8 | EB62: -10 | EC62: -11.7 | ED62: 0.8 | EE62: 0.6 | EF62: -6.1
A63: 1.875 | B63: 2011-01-02 | C63: 21:00:00 | D63: 6.1 | E63: 35.78 | F63: SUNDAY | G63: On | H63: 1976-01-02 | I63: 21:00:00 | J63: -0.6 | K63: 39.02 | N63: 2003-01-02 | O63: 21:00:00 | P63: -3 | Q63: 38.84 | T63: 1999-01-02 | U63: 21:00:00 | V63: -4.4 | W63: 39.92 | AB63: 11.7 | AC63: 33.62 | AH63: 3 | AI63: 24.98 | AN63: 1.7 | AO63: 26.96 | AT63: -0.6 | AU63: 14 | AZ63: -5.6 | BA63: 12.2 | BF63: -1.7 | BG63: 33.26 | BL63: -2.4 | BM63: 32.9 | BR63: -4.4 | BS63: 19.04 | CA63: 10 | CB63: 11 | CC63: 12 | CD63: 4 | CF63: 3 | CH63: 9 | CJ63: 0 | CK63: 0 | CL63: 12 | CN63: 25 | CP63: 47 | CR63: 54 | CT63: 54 | CV63: 40 | CX63: 21 | CZ63: 93 | DE63: Rochester | DF63: 55 | DG63: =TableT_MainLookup[[#This Row],[T_Main]]*0.4 -> 22 | DH63: 38 | DT63: 45 | DU63: 2.1 | DV63: 3.9 | DW63: 3.8 | DX63: 4.4 | DY63: 0.9 | DZ63: -3.9 | EA63: -2.8 | EB63: -10 | EC63: -11 | ED63: 0.7 | EE63: 0.5 | EF63: -7.2
A64: 1.916666667 | B64: 2011-01-02 | C64: 22:00:00 | D64: 6.1 | E64: 36.5 | F64: SUNDAY | G64: On | H64: 1976-01-02 | I64: 22:00:00 | J64: 0 | K64: 37.94 | N64: 2003-01-02 | O64: 22:00:00 | P64: -3 | Q64: 37.76 | T64: 1999-01-02 | U64: 22:00:00 | V64: -4.4 | W64: 39.2 | AB64: 11.1 | AC64: 33.62 | AH64: 2 | AI64: 24.08 | AN64: 1.1 | AO64: 26.96 | AT64: -1.1 | AU64: 12.92 | AZ64: -6.7 | BA64: 12.2 | BF64: -1.7 | BG64: 33.08 | BL64: -2.8 | BM64: 32.72 | BR64: -4.4 | BS64: 17.96 | CA64: 8 | CB64: 9 | CC64: 10 | CD64: 3 | CF64: 0 | CG64: 0 | CH64: 0 | CI64: 0 | CJ64: 0 | CK64: 0 | CL64: 0 | CM64: 0 | CN64: 19 | CP64: 41 | CR64: 36 | CT64: 29 | CV64: 9 | CX64: 11 | CZ64: 74 | DE64: Saranac Lake | DF64: 55.4 | DG64: =TableT_MainLookup[[#This Row],[T_Main]]*0.4 -> 22.16 | DH64: 39 | DT64: 46 | DU64: 2.5 | DV64: 3.3 | DW64: 3.2 | DX64: 4 | DY64: 0.9 | DZ64: -4.4 | EA64: -2.8 | EB64: -10.6 | EC64: -11 | ED64: 0.6 | EE64: 0.4 | EF64: -7.8
A65: 1.958333333 | B65: 2011-01-02 | C65: 23:00:00 | D65: 5.6 | E65: 39.02 | F65: SUNDAY | G65: On | H65: 1976-01-02 | I65: 23:00:00 | J65: 0 | K65: 37.94 | N65: 2003-01-02 | O65: 23:00:00 | P65: -3 | Q65: 35.96 | T65: 1999-01-02 | U65: 23:00:00 | V65: -4.4 | W65: 37.04 | AB65: 10.6 | AC65: 32.72 | AH65: 3 | AI65: 23 | AN65: 1.1 | AO65: 26.6 | AT65: -1.1 | AU65: 12.92 | AZ65: -7.1 | BA65: 12.02 | BF65: -2.2 | BG65: 33.8 | BL65: -3 | BM65: 32.54 | BR65: -4.4 | BS65: 17.6 | CA65: 6 | CB65: 7 | CC65: 8 | CD65: 10 | CF65: 0 | CG65: 0 | CH65: 0 | CI65: 0 | CJ65: 0 | CK65: 0 | CL65: 4 | CN65: 10 | CP65: 11 | CR65: 29 | CT65: 21 | CV65: 6 | CX65: 8 | CZ65: 48 | DE65: Syracuse | DF65: 55 | DG65: =TableT_MainLookup[[#This Row],[T_Main]]*0.4 -> 22 | DH65: 38 | DT65: 47 | DU65: 3.9 | DV65: 3.3 | DW65: 2.2 | DX65: 2.8 | DY65: 0.4 | DZ65: -5 | EA65: -3 | EB65: -10.6 | EC65: -11.1 | ED65: 1 | EE65: 0.3 | EF65: -8
A66: 2 | B66: 2011-01-02 | C66: 1 | D66: 4.4 | E66: 38.3 | F66: SUNDAY | G66: On | H66: 1976-01-02 | I66: 1 | J66: 0 | K66: 37.04 | N66: 2003-01-02 | O66: 1 | P66: -3 | Q66: 35.96 | T66: 1999-01-02 | U66: 1 | V66: -3.9 | W66: 37.04 | AB66: 10.6 | AC66: 28.04 | AH66: 3 | AI66: 21.02 | AN66: 1.1 | AO66: 26.06 | AT66: -2.2 | AU66: 12.02 | AZ66: -7.4 | BA66: 10.4 | BF66: -2.2 | BG66: 33.62 | BL66: -3.1 | BM66: 32 | BR66: -4.4 | BS66: 15.8 | CA66: 4 | CB66: 5 | CC66: 6 | CD66: 4 | CF66: 0 | CG66: 0 | CH66: 0 | CI66: 0 | CJ66: 0 | CK66: 0 | CL66: 0 | CM66: 0 | CN66: 9 | CP66: 5 | CR66: 9 | CT66: 6 | CV66: 4 | CX66: 1 | CZ66: 36 | DE66: Utica | DF66: 55 | DG66: =TableT_MainLookup[[#This Row],[T_Main]]*0.4 -> 22 | DH66: 38 | DT66: 48 | DU66: 3.5 | DV66: 2.8 | DW66: 2.2 | DX66: 2.8 | DY66: -2.2 | DZ66: -6.1 | EA66: -3.3 | EB66: -11.1 | EC66: -12 | ED66: 0.9 | EE66: 0 | EF66: -9
A67: 2.041666667 | B67: 2011-01-03 | C67: 01:00:00 | D67: 2.8 | E67: 39.92 | F67: WEEKDAY | G67: On | H67: 1976-01-03 | I67: 01:00:00 | J67: 0 | K67: 35.96 | N67: 2003-01-03 | O67: 01:00:00 | P67: -3 | Q67: 35.24 | T67: 1999-01-03 | U67: 01:00:00 | V67: -3.9 | W67: 35.96 | AB67: 10.6 | AC67: 28.04 | AH67: 3 | AI67: 19.04 | AN67: 0.6 | AO67: 26.96 | AT67: -2.8 | AU67: 12.02 | AZ67: -7.8 | BA67: 12.2 | BF67: -2.8 | BG67: 33.8 | BL67: -3.3 | BM67: 32 | BR67: -5 | BS67: 15.8 | CA67: 2 | CB67: 3 | CC67: 4 | CD67: 3 | CF67: 0 | CG67: 0 | CH67: 0 | CI67: 0 | CJ67: 0 | CK67: 0 | CL67: 0 | CM67: 0 | CN67: 16 | CP67: 20 | CR67: 15 | CT67: 6 | CV67: 2 | CX67: 9 | CZ67: 43 | DE67: Watertown | DF67: 55 | DG67: =TableT_MainLookup[[#This Row],[T_Main]]*0.4 -> 22 | DH67: 38 | DT67: 49 | DU67: 4.4 | DV67: 2.2 | DW67: 1.8 | DX67: 2.2 | DY67: -2.2 | DZ67: -7.2 | EA67: -2.8 | EB67: -11.1 | EC67: -11 | ED67: 1 | EE67: 0 | EF67: -9
A68: 2.083333333 | B68: 2011-01-03 | C68: 02:00:00 | D68: 2.2 | E68: 39.92 | F68: WEEKDAY | G68: On | H68: 1976-01-03 | I68: 02:00:00 | J68: 1.7 | K68: 35.96 | N68: 2003-01-03 | O68: 02:00:00 | P68: -3 | Q68: 34.52 | T68: 1999-01-03 | U68: 02:00:00 | V68: -2.8 | W68: 35.96 | AB68: 10.6 | AC68: 28.04 | AH68: 3 | AI68: 15.08 | AN68: 0.6 | AO68: 26.96 | AT68: -4.4 | AU68: 12.02 | AZ68: -8.3 | BA68: 12.02 | BF68: -2.8 | BG68: 34.34 | BL68: -3.7 | BM68: 32 | BR68: -6.1 | BS68: 12.2 | CA68: 0 | CB68: 1 | CC68: 2 | CD68: 0 | CE68: 0 | CF68: 0 | CG68: 0 | CH68: 0 | CI68: 0 | CJ68: 0 | CK68: 0 | CL68: 0 | CM68: 0 | CN68: 9 | CP68: 12 | CR68: 17 | CT68: 13 | CV68: 0 | CW68: 0 | CX68: 1 | CZ68: 54 | DE68: Westhampton | DF68: 60.7 | DG68: =TableT_MainLookup[[#This Row],[T_Main]]*0.4 -> 24.28 | DH68: 37 | DT68: 50 | DU68: 4.4 | DV68: 2.2 | DW68: 1.4 | DX68: 2.2 | DY68: -2.2 | DZ68: -9.4 | EA68: -2.8 | EB68: -11.1 | EC68: -11.1 | ED68: 1.3 | EE68: 0 | EF68: -11
A69: 2.125 | B69: 2011-01-03 | C69: 03:00:00 | D69: 2.2 | E69: 39.02 | F69: WEEKDAY | G69: On | H69: 1976-01-03 | I69: 03:00:00 | J69: 1.7 | K69: 34.88 | N69: 2003-01-03 | O69: 03:00:00 | P69: -3 | Q69: 33.98 | T69: 1999-01-03 | U69: 03:00:00 | V69: -1.1 | W69: 35.06 | AB69: 10.6 | AC69: 26.96 | AH69: 3 | AI69: 10.94 | AN69: 1.1 | AO69: 26.96 | AT69: -3.9 | AU69: 10.04 | AZ69: -8.9 | BA69: 12.2 | BF69: -3.3 | BG69: 35.06 | BL69: -4 | BM69: 32.72 | BR69: -6.7 | BS69: 12.2 | CA69: -2 | CB69: -1 | CC69: 0 | CD69: 0 | CE69: 0 | CF69: 0 | CG69: 0 | CH69: 0 | CI69: 0 | CJ69: 0 | CK69: 0 | CL69: 0 | CM69: 0 | CN69: 10 | CP69: 13 | CR69: 8 | CT69: 12 | CV69: 0 | CW69: 0 | CX69: 0 | CY69: 0 | CZ69: 38 | DE69: White Plains | DF69: 60.7 | DG69: =TableT_MainLookup[[#This Row],[T_Main]]*0.4 -> 24.28 | DH69: 37 | DT69: 51 | DU69: 3.9 | DV69: 1.6 | DW69: 1.1 | DX69: 1.7 | DY69: -2.8 | DZ69: -11.7 | EA69: -2.8 | EB69: -12.2 | EC69: -11 | ED69: 1.7 | EE69: 0.4 | EF69: -11
A70: 2.166666667 | B70: 2011-01-03 | C70: 04:00:00 | D70: 2.2 | E70: 41 | F70: WEEKDAY | G70: On | H70: 1976-01-03 | I70: 04:00:00 | J70: 1.7 | K70: 35.06 | N70: 2003-01-03 | O70: 04:00:00 | P70: -3 | Q70: 33.62 | T70: 1999-01-03 | U70: 04:00:00 | V70: 2.2 | W70: 35.96 | AB70: 10 | AC70: 26.96 | AH70: 3 | AI70: 8.96 | AN70: 1.1 | AO70: 26.96 | AT70: -4.4 | AU70: 10.4 | AZ70: -9.4 | BA70: 12.2 | BF70: -3.3 | BG70: 35.06 | BL70: -4.4 | BM70: 33.44 | BR70: -7.8 | BS70: 10.94 | CA70: -4 | CB70: -3 | CC70: -2 | CD70: 0 | CE70: 0 | CF70: 0 | CG70: 0 | CH70: 0 | CI70: 0 | CJ70: 0 | CK70: 0 | CL70: 0 | CM70: 0 | CN70: 0 | CO70: 0 | CP70: 14 | CR70: 6 | CT70: 26 | CV70: 0 | CW70: 0 | CX70: 0 | CY70: 0 | CZ70: 54 | DT70: 52 | DU70: 5 | DV70: 1.7 | DW70: 0.9 | DX70: 2.2 | DY70: -2.8 | DZ70: -12.8 | EA70: -2.8 | EB70: -12 | EC70: -11 | ED70: 1.7 | EE70: 0.8 | EF70: -11.7
A71: 2.208333333 | B71: 2011-01-03 | C71: 05:00:00 | D71: 1.7 | E71: 41 | F71: WEEKDAY | G71: On | H71: 1976-01-03 | I71: 05:00:00 | J71: 2.2 | K71: 33.8 | N71: 2003-01-03 | O71: 05:00:00 | P71: -3 | Q71: 32.9 | T71: 1999-01-03 | U71: 05:00:00 | V71: 3.9 | W71: 35.6 | AB71: 10 | AC71: 26.06 | AH71: 4 | AI71: 6.98 | AN71: 1.1 | AO71: 26.06 | AT71: -5 | AU71: 10.04 | AZ71: -9.2 | BA71: 12.92 | BF71: -3.9 | BG71: 33.98 | BL71: -4.8 | BM71: 33.62 | BR71: -9.4 | BS71: 8.6 | CA71: -6 | CB71: -5 | CC71: -4 | CD71: 0 | CE71: 0 | CF71: 0 | CG71: 0 | CH71: 0 | CI71: 0 | CJ71: 0 | CK71: 0 | CL71: 0 | CM71: 0 | CN71: 0 | CO71: 0 | CP71: 2 | CR71: 6 | CT71: 6 | CV71: 0 | CW71: 0 | CX71: 0 | CY71: 0 | CZ71: 6 | DT71: 53 | DU71: 5 | DV71: 1 | DW71: 0.5 | DX71: 2 | DY71: -3.3 | DZ71: -13.9 | EA71: -3.3 | EB71: -12.2 | EC71: -10.6 | ED71: 1.1 | EE71: 0.9 | EF71: -13
A72: 2.25 | B72: 2011-01-03 | C72: 06:00:00 | D72: 1.7 | E72: 40.28 | F72: WEEKDAY | G72: On | H72: 1976-01-03 | I72: 06:00:00 | J72: 2.2 | K72: 33.26 | N72: 2003-01-03 | O72: 06:00:00 | P72: -2 | Q72: 32.18 | T72: 1999-01-03 | U72: 06:00:00 | V72: 4 | W72: 35.06 | AB72: 10 | AC72: 24.98 | AH72: 4 | AI72: 5 | AN72: 1.7 | AO72: 26.96 | AT72: -5 | AU72: 10.4 | AZ72: -9.1 | BA72: 12.2 | BF72: -4.4 | BG72: 34.52 | BL72: -5.2 | BM72: 35.06 | BR72: -10.6 | BS72: 6.08 | CA72: -8 | CB72: -7 | CC72: -6 | CD72: 0 | CE72: 0 | CF72: 0 | CG72: 0 | CH72: 0 | CI72: 0 | CJ72: 0 | CK72: 0 | CL72: 0 | CM72: 0 | CN72: 0 | CO72: 0 | CP72: 0 | CQ72: 0 | CR72: 0 | CS72: 0 | CT72: 7 | CV72: 0 | CW72: 0 | CX72: 0 | CY72: 0 | CZ72: 15 | DT72: 54 | DU72: 4.6 | DV72: 0.7 | DW72: 0.1 | DX72: 1.7 | DY72: -3.9 | DZ72: -15 | EA72: -2.8 | EB72: -12 | EC72: -11 | ED72: 1.4 | EE72: 1.7 | EF72: -14.4
A73: 2.291666667 | B73: 2011-01-03 | C73: 07:00:00 | D73: 1.7 | E73: 40.1 | F73: WEEKDAY | G73: On | H73: 1976-01-03 | I73: 07:00:00 | J73: 2.8 | K73: 33.44 | N73: 2003-01-03 | O73: 07:00:00 | P73: -2 | Q73: 32.18 | T73: 1999-01-03 | U73: 07:00:00 | V73: 5.6 | W73: 35.96 | AB73: 10 | AC73: 24.08 | AH73: 6 | AI73: 3.92 | AN73: 1.7 | AO73: 28.04 | AT73: -5.6 | AU73: 8.96 | AZ73: -8.9 | BA73: 12.2 | BF73: -4.4 | BG73: 33.98 | BL73: -5.6 | BM73: 34.7 | BR73: -10.6 | BS73: 5 | CA73: -10 | CB73: -9 | CC73: -8 | CD73: 0 | CE73: 0 | CF73: 0 | CG73: 0 | CH73: 0 | CI73: 0 | CJ73: 0 | CK73: 0 | CL73: 0 | CM73: 0 | CN73: 0 | CO73: 0 | CP73: 2 | CR73: 0 | CS73: 0 | CT73: 10 | CV73: 0 | CW73: 0 | CX73: 0 | CY73: 0 | CZ73: 13 | DT73: 55 | DU73: 4.5 | DV73: 0.8 | DW73: 0.1 | DX73: 2.2 | DY73: -4.4 | DZ73: -15.6 | EA73: -2.2 | EB73: -12.8 | EC73: -11 | ED73: 1.1 | EE73: 1.5 | EF73: -15
A74: 2.333333333 | B74: 2011-01-03 | C74: 08:00:00 | D74: 2.2 | E74: 40.46 | F74: WEEKDAY | G74: On | H74: 1976-01-03 | I74: 08:00:00 | J74: 4.4 | K74: 33.98 | N74: 2003-01-03 | O74: 08:00:00 | P74: -2 | Q74: 32.54 | T74: 1999-01-03 | U74: 08:00:00 | V74: 7.8 | W74: 35.96 | AB74: 10 | AC74: 23 | AH74: 7 | AI74: 3.02 | AN74: 2.2 | AO74: 28.04 | AT74: -5 | AU74: 8.96 | AZ74: -8.3 | BA74: 12.02 | BF74: -4.4 | BG74: 33.98 | BL74: -5.6 | BM74: 34.7 | BR74: -11.1 | BS74: 5 | CA74: -12 | CB74: -11 | CC74: -10 | CD74: 0 | CE74: 0 | CF74: 0 | CG74: 0 | CH74: 0 | CI74: 0 | CJ74: 0 | CK74: 0 | CL74: 0 | CM74: 0 | CN74: 0 | CO74: 0 | CP74: 2 | CR74: 0 | CS74: 0 | CT74: 1 | CV74: 0 | CW74: 0 | CX74: 0 | CY74: 0 | CZ74: 10 | DT74: 56 | DU74: 4.7 | DV74: 1.1 | DW74: 0.3 | DX74: 2.2 | DY74: -5 | DZ74: -16.1 | EA74: -2.2 | EB74: -12.8 | EC74: -11.1 | ED74: 1.1 | EE74: 1.5 | EF74: -15
A75: 2.375 | B75: 2011-01-03 | C75: 09:00:00 | D75: 2.2 | E75: 40.28 | F75: WEEKDAY | G75: On | H75: 1976-01-03 | I75: 09:00:00 | J75: 4.4 | K75: 34.34 | N75: 2003-01-03 | O75: 09:00:00 | P75: -1 | Q75: 32.72 | T75: 1999-01-03 | U75: 09:00:00 | V75: 8.3 | W75: 37.04 | AB75: 11.1 | AC75: 23 | AH75: 7 | AI75: 5 | AN75: 2.2 | AO75: 30.02 | AT75: -4.4 | AU75: 8.6 | AZ75: -7.8 | BA75: 10.4 | BF75: -5 | BG75: 34.52 | BL75: -5.6 | BM75: 34.7 | BR75: -11.7 | BS75: 3.2 | CA75: -14 | CB75: -13 | CC75: -12 | CD75: 0 | CE75: 0 | CF75: 0 | CG75: 0 | CH75: 0 | CI75: 0 | CJ75: 0 | CK75: 0 | CL75: 0 | CM75: 0 | CN75: 0 | CO75: 0 | CP75: 0 | CQ75: 0 | CR75: 0 | CS75: 0 | CT75: 3 | CV75: 0 | CW75: 0 | CX75: 0 | CY75: 0 | CZ75: 2 | DT75: 57 | DU75: 4.6 | DV75: 1.3 | DW75: 0.4 | DX75: 2.8 | DY75: -5 | DZ75: -15 | EA75: -1.1 | EB75: -13 | EC75: -12 | ED75: 1.4 | EE75: 1.5 | EF75: -16
A76: 2.416666667 | B76: 2011-01-03 | C76: 10:00:00 | D76: 2.8 | E76: 40.64 | F76: WEEKDAY | G76: On | H76: 1976-01-03 | I76: 10:00:00 | J76: 5 | K76: 34.7 | N76: 2003-01-03 | O76: 10:00:00 | P76: -1 | Q76: 33.26 | T76: 1999-01-03 | U76: 10:00:00 | V76: 10 | W76: 37.94 | AB76: 12.2 | AC76: 24.08 | AH76: 8 | AI76: 8.06 | AN76: 2.8 | AO76: 30.02 | AT76: -4.4 | AU76: 8.6 | AZ76: -7.2 | BA76: 10.4 | BF76: -5.6 | BG76: 33.98 | BL76: -5.6 | BM76: 34.7 | BR76: -11.7 | BS76: 3.92 | CA76: -16 | CB76: -15 | CC76: -14 | CD76: 0 | CE76: 0 | CF76: 0 | CG76: 0 | CH76: 0 | CI76: 0 | CJ76: 0 | CK76: 0 | CL76: 0 | CM76: 0 | CN76: 0 | CO76: 0 | CP76: 1 | CR76: 0 | CS76: 0 | CT76: 1 | CV76: 0 | CW76: 0 | CX76: 0 | CY76: 0 | CZ76: 2 | DT76: 58 | DU76: 4.8 | DV76: 1.5 | DW76: 0.7 | DX76: 3.3 | DY76: -4.4 | DZ76: -13.3 | EA76: -1.1 | EB76: -13 | EC76: -12 | ED76: 1.1 | EE76: 1.5 | EF76: -15.6
A77: 2.458333333 | B77: 2011-01-03 | C77: 11:00:00 | D77: 3.3 | E77: 42.98 | F77: WEEKDAY | G77: On | H77: 1976-01-03 | I77: 11:00:00 | J77: 5.6 | K77: 35.06 | N77: 2003-01-03 | O77: 11:00:00 | P77: -1 | Q77: 34.34 | T77: 1999-01-03 | U77: 11:00:00 | V77: 12 | W77: 40.28 | AB77: 15 | AC77: 26.06 | AH77: 9 | AI77: 10.04 | AN77: 3.3 | AO77: 32.36 | AT77: -3.9 | AU77: 8.96 | AZ77: -6.5 | BA77: 10.04 | BF77: -5 | BG77: 33.08 | BL77: -5.6 | BM77: 34.7 | BR77: -11.7 | BS77: 3.92 | CA77: -18 | CB77: -17 | CC77: -16 | CD77: 0 | CE77: 0 | CF77: 0 | CG77: 0 | CH77: 0 | CI77: 0 | CJ77: 0 | CK77: 0 | CL77: 0 | CM77: 0 | CN77: 0 | CO77: 0 | CP77: 1 | CR77: 0 | CS77: 0 | CT77: 2 | CV77: 0 | CW77: 0 | CX77: 0 | CY77: 0 | CZ77: 0 | DA77: 0 | DT77: 59 | DU77: 6.1 | DV77: 1.7 | DW77: 1.3 | DX77: 4.6 | DY77: -3.3 | DZ77: -12.2 | EA77: 0.2 | EB77: -12.8 | EC77: -12.2 | ED77: 0.6 | EE77: 1.5 | EF77: -15.6
A78: 2.5 | B78: 2011-01-03 | C78: 12:00:00 | D78: 3.9 | E78: 42.98 | F78: WEEKDAY | G78: On | H78: 1976-01-03 | I78: 12:00:00 | J78: 5.6 | K78: 35.96 | N78: 2003-01-03 | O78: 12:00:00 | P78: -1 | Q78: 33.98 | T78: 1999-01-03 | U78: 12:00:00 | V78: 10.6 | W78: 40.1 | AB78: 15.6 | AC78: 26.96 | AH78: 9 | AI78: 14 | AN78: 3.9 | AO78: 33.62 | AT78: -3.9 | AU78: 10.4 | AZ78: -5.7 | BA78: 12.2 | BF78: -5 | BG78: 33.08 | BL78: -5.6 | BM78: 34.7 | BR78: -11.1 | BS78: 3.92 | CA78: -20 | CB78: -19 | CC78: -18 | CD78: 0 | CE78: 0 | CF78: 0 | CG78: 0 | CH78: 0 | CI78: 0 | CJ78: 0 | CK78: 0 | CL78: 0 | CM78: 0 | CN78: 0 | CO78: 0 | CP78: 3 | CR78: 0 | CS78: 0 | CT78: 2 | CV78: 0 | CW78: 0 | CX78: 0 | CY78: 0 | CZ78: 0 | DA78: 0 | DT78: 60 | DU78: 6.1 | DV78: 2.2 | DW78: 1.1 | DX78: 4.5 | DY78: -2.8 | DZ78: -10 | EA78: 0.9 | EB78: -12 | EC78: -11 | ED78: 0.6 | EE78: 1.5 | EF78: -15.6
A79: 2.541666667 | B79: 2011-01-03 | C79: 13:00:00 | D79: 4.4 | E79: 44.06 | F79: WEEKDAY | G79: On | H79: 1976-01-03 | I79: 13:00:00 | J79: 5 | K79: 37.04 | N79: 2003-01-03 | O79: 13:00:00 | P79: -1 | Q79: 33.98 | T79: 1999-01-03 | U79: 13:00:00 | V79: 10 | W79: 39.02 | AB79: 17.2 | AC79: 30.02 | AH79: 10 | AI79: 15.98 | AN79: 3.3 | AO79: 34.34 | AT79: -2.8 | AU79: 10.4 | AZ79: -5 | BA79: 12.2 | BF79: -5 | BG79: 33.98 | BL79: -5.6 | BM79: 35.24 | BR79: -11.1 | BS79: 3.92 | CA79: -22 | CB79: -21 | CC79: -20 | CD79: 0 | CE79: 0 | CF79: 0 | CG79: 0 | CH79: 0 | CI79: 0 | CJ79: 0 | CK79: 0 | CL79: 0 | CM79: 0 | CN79: 0 | CO79: 0 | CP79: 0 | CQ79: 0 | CR79: 0 | CS79: 0 | CT79: 3 | CV79: 0 | CW79: 0 | CX79: 0 | CY79: 0 | CZ79: 0 | DA79: 0 | DT79: 61 | DU79: 6.7 | DV79: 2.8 | DW79: 1.1 | DX79: 3.9 | DY79: -1.1 | DZ79: -8.9 | EA79: 1.3 | EB79: -12 | EC79: -11 | ED79: 1.1 | EE79: 1.8 | EF79: -15.6
A80: 2.583333333 | B80: 2011-01-03 | C80: 14:00:00 | D80: 3.9 | E80: 44.06 | F80: WEEKDAY | G80: On | H80: 1976-01-03 | I80: 14:00:00 | J80: 5 | K80: 37.94 | N80: 2003-01-03 | O80: 14:00:00 | P80: -1 | Q80: 35.06 | T80: 1999-01-03 | U80: 14:00:00 | V80: 10 | W80: 39.02 | AB80: 13.9 | AC80: 30.92 | AH80: 11 | AI80: 17.96 | AN80: 3.3 | AO80: 34.7 | AT80: -2.2 | AU80: 10.94 | AZ80: -5.4 | BA80: 14 | BF80: -5.6 | BG80: 33.98 | BL80: -6 | BM80: 35.24 | BR80: -10.6 | BS80: 5 | CA80: -24 | CB80: -23 | CC80: -22 | CD80: 0 | CE80: 0 | CF80: 0 | CG80: 0 | CH80: 0 | CI80: 0 | CJ80: 0 | CK80: 0 | CL80: 0 | CM80: 0 | CN80: 0 | CO80: 0 | CP80: 0 | CQ80: 0 | CR80: 0 | CS80: 0 | CT80: 0 | CU80: 0 | CV80: 0 | CW80: 0 | CX80: 0 | CY80: 0 | CZ80: 0 | DA80: 0 | DT80: 62 | DU80: 6.7 | DV80: 3.3 | DW80: 1.7 | DX80: 3.9 | DY80: -0.6 | DZ80: -7.8 | EA80: 1.5 | EB80: -11.7 | EC80: -10 | ED80: 1.1 | EE80: 1.8 | EF80: -15
A81: 2.625 | B81: 2011-01-03 | C81: 15:00:00 | D81: 4.4 | E81: 42.98 | F81: WEEKDAY | G81: On | H81: 1976-01-03 | I81: 15:00:00 | J81: 5 | K81: 37.04 | N81: 2003-01-03 | O81: 15:00:00 | P81: -1 | Q81: 35.6 | T81: 1999-01-03 | U81: 15:00:00 | V81: 10 | W81: 41.36 | AB81: 12.2 | AC81: 30.92 | AH81: 10 | AI81: 19.94 | AN81: 2.8 | AO81: 34.34 | AT81: -1.7 | AU81: 12.02 | AZ81: -5.7 | BA81: 15.8 | BF81: -6.1 | BG81: 33.98 | BL81: -6.3 | BM81: 35.6 | BR81: -10.6 | BS81: 3.2 | CD81: =SUM(CD18:CD80) -> 8760 | CE81: =SUMPRODUCT(CD18:CD80,CE18:CE80)/CD81 ->  | CF81: 0 | CG81: 0 | CH81: 0 | CI81: 0 | CJ81: =SUM(CJ18:CJ80) -> 8760 | CK81: 0 | CL81: =SUM(CL18:CL80) -> 8760 | CM81: 0 | CN81: =SUM(CN18:CN80) -> 8760 | CO81: =SUMPRODUCT(CN18:CN80,CO18:CO80)/CN81 ->  | CP81: =SUM(CP18:CP80) -> 8760 | CQ81: =SUMPRODUCT(CP18:CP80,CQ18:CQ80)/CP81 ->  | CR81: =SUM(CR18:CR80) -> 8760 | CS81: =SUMPRODUCT(CR18:CR80,CS18:CS80)/CR81 ->  | CT81: =SUM(CT18:CT80) -> 8760 | CU81: =SUMPRODUCT(CT18:CT80,CU18:CU80)/CT81 ->  | CV81: =SUM(CV18:CV80) -> 8760 | CW81: =SUMPRODUCT(CV18:CV80,CW18:CW80)/CV81 ->  | CX81: =SUM(CX18:CX80) -> 8760 | CY81: =SUMPRODUCT(CX18:CX80,CY18:CY80)/CX81 ->  | CZ81: =SUM(CZ18:CZ80) -> 8760 | DA81: =SUMPRODUCT(CZ18:CZ80,DA18:DA80)/CZ81 ->  | DT81: 63 | DU81: 6.1 | DV81: 2.8 | DW81: 2 | DX81: 5.2 | DY81: -0.6 | DZ81: -6.7 | EA81: 1.3 | EB81: -11.1 | EC81: -9 | ED81: 1.1 | EE81: 2 | EF81: -16
A82: 2.666666667 | B82: 2011-01-03 | C82: 16:00:00 | D82: 4.4 | E82: 41 | F82: WEEKDAY | G82: On | H82: 1976-01-03 | I82: 16:00:00 | J82: 4.4 | K82: 37.04 | N82: 2003-01-03 | O82: 16:00:00 | P82: -1 | Q82: 35.6 | T82: 1999-01-03 | U82: 16:00:00 | V82: 10 | W82: 39.2 | AB82: 11.1 | AC82: 30.02 | AH82: 9 | AI82: 23 | AN82: 1.7 | AO82: 34.16 | AT82: -3.9 | AU82: 12.92 | AZ82: -6.1 | BA82: 15.8 | BF82: -6.1 | BG82: 33.8 | BL82: -6.7 | BM82: 34.34 | BR82: -10.6 | BS82: 3.02 | CC82: TOTAL | DT82: 64 | DU82: 5 | DV82: 2.8 | DW82: 2 | DX82: 4 | DY82: -1.1 | DZ82: -5 | EA82: 1.2 | EB82: -10.6 | EC82: -9 | ED82: 1 | EE82: 1.3 | EF82: -16.1
A83: 2.708333333 | B83: 2011-01-03 | C83: 17:00:00 | D83: 3.9 | E83: 41 | F83: =IF(WEEKDAY(B83)=1,"SUNDAY",IF(WEEKDAY(B83)=7,"SATURDAY","WEEKDAY")) -> WEEKDAY | G83: =IFERROR(IF(F83="WEEKDAY",VLOOKUP(C83,$DE$19:$DH$42,2),IF(F83="SATURDAY",VLOOKUP(C83,$DE$19:$DH$42,3),VLOOKUP(C83,$DE$19:$DH$42,4))),"On") -> On | H83: 1976-01-03 | I83: 17:00:00 | J83: 4.4 | K83: 37.04 | N83: 2003-01-03 | O83: 17:00:00 | P83: -1 | Q83: 35.06 | T83: 1999-01-03 | U83: 17:00:00 | V83: 5.6 | W83: 39.02 | AB83: 10 | AC83: 33.26 | AH83: 8 | AI83: 19.04 | AN83: 1.7 | AO83: 33.98 | AT83: -4.4 | AU83: 12.92 | AZ83: -6.8 | BA83: 15.98 | BF83: -6.7 | BG83: 30.92 | BL83: -7.4 | BM83: 32.9 | BR83: -10.6 | BS83: 1.04 | BV83: =$BV$12-($BV$13/2)*COS((A83-$BV$14)*(2*PI()/365)) ->  | DT83: 65 | DU83: 5 | DV83: 2.8 | DW83: 1.7 | DX83: 3.9 | DY83: 0.7 | DZ83: -7.2 | EA83: 1.1 | EB83: -10.6 | EC83: -8.9 | ED83: -0.6 | EE83: 0.5 | EF83: -17.2
A84: 2.75 | B84: 2011-01-03 | C84: 18:00:00 | D84: 3.3 | E84: =CONVERT(CHOOSE($D$9,D84,DU84), "C", "F") -> 39.92 | F84: WEEKDAY | G84: On | H84: 1976-01-03 | I84: 18:00:00 | J84: 4.4 | K84: =CONVERT(CHOOSE($D$9,J84,DV84), "C", "F") -> 37.04 | N84: 2003-01-03 | O84: 18:00:00 | P84: -1 | Q84: =CONVERT(CHOOSE($D$9,P84,DW84), "C", "F") -> 33.98 | T84: 1999-01-03 | U84: 18:00:00 | V84: 6.1 | W84: =CONVERT(CHOOSE($D$9,V84,DX84), "C", "F") -> 40.28 | AB84: 8.9 | AC84: =CONVERT(CHOOSE($D$9,AB84,DY84), "C", "F") -> 33.8 | AH84: 8 | AI84: =CONVERT(CHOOSE($D$9,AH84,DZ84), "C", "F") -> 17.96 | AN84: 0.6 | AO84: =CONVERT(CHOOSE($D$9,AN84,EA84), "C", "F") -> 30.92 | AT84: -5 | AU84: =CONVERT(CHOOSE($D$9,AT84,EB84), "C", "F") -> 14 | AZ84: -7.6 | BA84: =CONVERT(CHOOSE($D$9,AZ84,EC84), "C", "F") -> 14 | BF84: -7.2 | BG84: =CONVERT(CHOOSE($D$9,BF84,ED84), "C", "F") -> 28.04 | BL84: -8.2 | BM84: =CONVERT(CHOOSE($D$9,BL84,EE84), "C", "F") -> 28.94 | BR84: -10.6 | BS84: =CONVERT(CHOOSE($D$9,BR84,EF84), "C", "F") -> 1.04 | DT84: 66 | DU84: 4.4 | DV84: 2.8 | DW84: 1.1 | DX84: 4.6 | DY84: 1 | DZ84: -7.8 | EA84: -0.6 | EB84: -10 | EC84: -10 | ED84: -2.2 | EE84: -1.7 | EF84: -17.2
A85: =A84+1/24 -> 2.791666667 | B85: 2011-01-03 | C85: 19:00:00 | D85: 3.3 | E85: 39.02 | F85: WEEKDAY | G85: On | H85: 1976-01-03 | I85: 19:00:00 | J85: 4.4 | K85: 37.04 | N85: 2003-01-03 | O85: 19:00:00 | P85: -1 | Q85: 33.8 | T85: 1999-01-03 | U85: 19:00:00 | V85: 7.8 | W85: 37.94 | AB85: 8.9 | AC85: 33.62 | AH85: 8 | AI85: 19.04 | AN85: 0.6 | AO85: 30.92 | AT85: -5 | AU85: 15.08 | AZ85: -8.3 | BA85: 14 | BF85: -7.2 | BG85: 26.96 | BL85: -8.9 | BM85: 28.04 | BR85: -10.6 | BS85: 1.04 | DT85: 67 | DU85: 3.9 | DV85: 2.8 | DW85: 1 | DX85: 3.3 | DY85: 0.9 | DZ85: -7.2 | EA85: -0.6 | EB85: -9.4 | EC85: -10 | ED85: -2.8 | EE85: -2.2 | EF85: -17.2
A86: 2.833333333 | B86: 2011-01-03 | C86: 20:00:00 | D86: 2.8 | E86: 39.02 | F86: WEEKDAY | G86: On | H86: 1976-01-03 | I86: 20:00:00 | J86: 3.9 | K86: 35.96 | N86: 2003-01-03 | O86: 20:00:00 | P86: -1 | Q86: 34.34 | T86: 1999-01-03 | U86: 20:00:00 | V86: 7.2 | W86: 37.94 | AB86: 8.9 | AC86: 34.16 | AH86: 8 | AI86: 19.04 | AN86: -2.8 | AO86: 30.92 | AT86: -6.7 | AU86: 15.08 | AZ86: -8.7 | BA86: 14 | BF86: -7.8 | BG86: 26.96 | BL86: -9.1 | BM86: 26.96 | BR86: -10.6 | BS86: -0.04 | DT86: 68 | DU86: 3.9 | DV86: 2.2 | DW86: 1.3 | DX86: 3.3 | DY86: 1.2 | DZ86: -7.2 | EA86: -0.6 | EB86: -9.4 | EC86: -10 | ED86: -2.8 | EE86: -2.8 | EF86: -17.8
A87: 2.875 | B87: 2011-01-03 | C87: 21:00:00 | D87: 1.7 | E87: 37.94 | F87: WEEKDAY | G87: On | H87: 1976-01-03 | I87: 21:00:00 | J87: 3.9 | K87: 35.96 | N87: 2003-01-03 | O87: 21:00:00 | P87: -1 | Q87: 34.16 | T87: 1999-01-03 | U87: 21:00:00 | V87: 5.6 | W87: 37.04 | AB87: 9.4 | AC87: 34.52 | AH87: 7 | AI87: 17.96 | AN87: -5 | AO87: 26.06 | AT87: -6.7 | AU87: 17.06 | AZ87: -9 | BA87: 14 | BF87: -7.8 | BG87: 24.08 | BL87: -9.2 | BM87: 24.98 | BR87: -10.6 | BS87: -0.04 | DT87: 69 | DU87: 3.3 | DV87: 2.2 | DW87: 1.2 | DX87: 2.8 | DY87: 1.4 | DZ87: -7.8 | EA87: -3.3 | EB87: -8.3 | EC87: -10 | ED87: -4.4 | EE87: -3.9 | EF87: -17.8
A88: 2.916666667 | B88: 2011-01-03 | C88: 22:00:00 | D88: 1.7 | E88: 37.58 | F88: WEEKDAY | G88: On | H88: 1976-01-03 | I88: 22:00:00 | J88: 3.3 | K88: 35.96 | N88: 2003-01-03 | O88: 22:00:00 | P88: 0 | Q88: 34.34 | T88: 1999-01-03 | U88: 22:00:00 | V88: 3.3 | W88: 37.04 | AB88: 10 | AC88: 34.7 | AH88: 7 | AI88: 17.96 | AN88: -6.7 | AO88: 24.08 | AT88: -7.2 | AU88: 17.06 | AZ88: -9.4 | BA88: 14 | BF88: -8.9 | BG88: 23 | BL88: -9.4 | BM88: 23 | BR88: -10.6 | BS88: -0.04 | DT88: 70 | DU88: 3.1 | DV88: 2.2 | DW88: 1.3 | DX88: 2.8 | DY88: 1.5 | DZ88: -7.8 | EA88: -4.4 | EB88: -8.3 | EC88: -10 | ED88: -5 | EE88: -5 | EF88: -17.8
A89: 2.958333333 | B89: 2011-01-03 | C89: 23:00:00 | D89: 1.7 | E89: 36.68 | F89: WEEKDAY | G89: On | H89: 1976-01-03 | I89: 23:00:00 | J89: 3.3 | K89: 35.42 | N89: 2003-01-03 | O89: 23:00:00 | P89: 1 | Q89: 33.8 | T89: 1999-01-03 | U89: 23:00:00 | V89: 1.1 | W89: 37.04 | AB89: 9.4 | AC89: 34.88 | AH89: 7 | AI89: 17.06 | AN89: -7.2 | AO89: 23 | AT89: -7.8 | AU89: 17.06 | AZ89: -10.3 | BA89: 14 | BF89: -8.3 | BG89: 23 | BL89: -10.5 | BM89: 21.92 | BR89: -10.6 | BS89: -0.94 | DT89: 71 | DU89: 2.6 | DV89: 1.9 | DW89: 1 | DX89: 2.8 | DY89: 1.6 | DZ89: -8.3 | EA89: -5 | EB89: -8.3 | EC89: -10 | ED89: -5 | EE89: -5.6 | EF89: -18.3
A90: 3 | B90: 2011-01-03 | C90: 1 | D90: 1.7 | E90: 36.32 | F90: WEEKDAY | G90: On | H90: 1976-01-03 | I90: 1 | J90: 3.3 | K90: 35.96 | N90: 2003-01-03 | O90: 1 | P90: 1 | Q90: 33.8 | T90: 1999-01-03 | U90: 1 | V90: 0.6 | W90: 37.04 | AB90: 10 | AC90: 35.06 | AH90: 7 | AI90: 17.06 | AN90: -7.8 | AO90: 21.92 | AT90: -8.3 | AU90: 17.96 | AZ90: -11.3 | BA90: 15.08 | BF90: -8.3 | BG90: 19.94 | BL90: -11.7 | BM90: 19.04 | BR90: -10.6 | BS90: -2.02 | DT90: 72 | DU90: 2.4 | DV90: 2.2 | DW90: 1 | DX90: 2.8 | DY90: 1.7 | DZ90: -8.3 | EA90: -5.6 | EB90: -7.8 | EC90: -9.4 | ED90: -6.7 | EE90: -7.2 | EF90: -18.9
A91: 3.041666667 | B91: 2011-01-04 | C91: 01:00:00 | D91: 1.7 | E91: 35.6 | F91: WEEKDAY | G91: On | H91: 1976-01-04 | I91: 01:00:00 | J91: 2.8 | K91: 35.96 | N91: 2003-01-04 | O91: 01:00:00 | P91: 0 | Q91: 33.98 | T91: 1999-01-04 | U91: 01:00:00 | V91: 0 | W91: 37.04 | AB91: 10 | AC91: 35.06 | AH91: 7 | AI91: 17.06 | AN91: -7.8 | AO91: 21.02 | AT91: -10 | AU91: 19.04 | AZ91: -12.2 | BA91: 15.8 | BF91: -8.3 | BG91: 17.96 | BL91: -12.8 | BM91: 19.04 | BR91: -10.6 | BS91: -2.02 | DT91: 73 | DU91: 2 | DV91: 2.2 | DW91: 1.1 | DX91: 2.8 | DY91: 1.7 | DZ91: -8.3 | EA91: -6.1 | EB91: -7.2 | EC91: -9 | ED91: -7.8 | EE91: -7.2 | EF91: -18.9
A92: 3.083333333 | B92: 2011-01-04 | C92: 02:00:00 | D92: 1.7 | E92: 34.88 | F92: WEEKDAY | G92: On | H92: 1976-01-04 | I92: 02:00:00 | J92: 2.2 | K92: 35.96 | N92: 2003-01-04 | O92: 02:00:00 | P92: 0 | Q92: 34.16 | T92: 1999-01-04 | U92: 02:00:00 | V92: -0.5 | W92: 37.04 | AB92: 10.6 | AC92: 35.06 | AH92: 6 | AI92: 19.94 | AN92: -7.8 | AO92: 19.94 | AT92: -10 | AU92: 19.04 | AZ92: -11.8 | BA92: 15.08 | BF92: -8.3 | BG92: 17.96 | BL92: -12.6 | BM92: 17.96 | BR92: -10.6 | BS92: -2.92 | DT92: 74 | DU92: 1.6 | DV92: 2.2 | DW92: 1.2 | DX92: 2.8 | DY92: 1.7 | DZ92: -6.7 | EA92: -6.7 | EB92: -7.2 | EC92: -9.4 | ED92: -7.8 | EE92: -7.8 | EF92: -19.4
A93: 3.125 | B93: 2011-01-04 | C93: 03:00:00 | D93: 1.1 | E93: 35.24 | F93: WEEKDAY | G93: On | H93: 1976-01-04 | I93: 03:00:00 | J93: 1.7 | K93: 35.06 | N93: 2003-01-04 | O93: 03:00:00 | P93: -1 | Q93: 34.16 | T93: 1999-01-04 | U93: 03:00:00 | V93: -1.1 | W93: 35.96 | AB93: 12.2 | AC93: 34.88 | AH93: 6 | AI93: 30.02 | AN93: -7.8 | AO93: 17.06 | AT93: -10 | AU93: 17.96 | AZ93: -11.5 | BA93: 15.08 | BF93: -10 | BG93: 14 | BL93: -12.4 | BM93: 17.06 | BR93: -12.2 | BS93: -2.92 | DT93: 75 | DU93: 1.8 | DV93: 1.7 | DW93: 1.2 | DX93: 2.2 | DY93: 1.6 | DZ93: -1.1 | EA93: -8.3 | EB93: -7.8 | EC93: -9.4 | ED93: -10 | EE93: -8.3 | EF93: -19.4
A94: 3.166666667 | B94: 2011-01-04 | C94: 04:00:00 | D94: 0.6 | E94: 34.88 | F94: WEEKDAY | G94: On | H94: 1976-01-04 | I94: 04:00:00 | J94: 1.1 | K94: 35.06 | N94: 2003-01-04 | O94: 04:00:00 | P94: -1 | Q94: 33.98 | T94: 1999-01-04 | U94: 04:00:00 | V94: -1.7 | W94: 35.96 | AB94: 12.8 | AC94: 34.7 | AH94: 6 | AI94: 30.02 | AN94: -7.8 | AO94: 17.06 | AT94: -10 | AU94: 17.96 | AZ94: -11.1 | BA94: 15.8 | BF94: -10.6 | BG94: 15.08 | BL94: -12.2 | BM94: 15.08 | BR94: -13.3 | BS94: -2.92 | DT94: 76 | DU94: 1.6 | DV94: 1.7 | DW94: 1.1 | DX94: 2.2 | DY94: 1.5 | DZ94: -1.1 | EA94: -8.3 | EB94: -7.8 | EC94: -9 | ED94: -9.4 | EE94: -9.4 | EF94: -19.4
A95: 3.208333333 | B95: 2011-01-04 | C95: 05:00:00 | D95: 0 | E95: 34.7 | F95: WEEKDAY | G95: On | H95: 1976-01-04 | I95: 05:00:00 | J95: 0 | K95: 35.06 | N95: 2003-01-04 | O95: 05:00:00 | P95: -2 | Q95: 33.44 | T95: 1999-01-04 | U95: 05:00:00 | V95: -2.8 | W95: 35.96 | AB95: 12.2 | AC95: 34.34 | AH95: 6 | AI95: 30.92 | AN95: -7.8 | AO95: 15.98 | AT95: -10.6 | AU95: 17.96 | AZ95: -11.7 | BA95: 15.08 | BF95: -12.2 | BG95: 15.08 | BL95: -12.9 | BM95: 14 | BR95: -14.4 | BS95: -2.92 | DT95: 77 | DU95: 1.5 | DV95: 1.7 | DW95: 0.8 | DX95: 2.2 | DY95: 1.3 | DZ95: -0.6 | EA95: -8.9 | EB95: -7.8 | EC95: -9.4 | ED95: -9.4 | EE95: -10 | EF95: -19.4
A96: 3.25 | B96: 2011-01-04 | C96: 06:00:00 | D96: -1.1 | E96: 32.18 | F96: WEEKDAY | G96: On | H96: 1976-01-04 | I96: 06:00:00 | J96: -0.6 | K96: 33.98 | N96: 2003-01-04 | O96: 06:00:00 | P96: -2 | Q96: 32.72 | T96: 1999-01-04 | U96: 06:00:00 | V96: -3.3 | W96: 35.96 | AB96: 12.8 | AC96: 35.42 | AH96: 5 | AI96: 30.92 | AN96: -7.8 | AO96: 14 | AT96: -10.6 | AU96: 19.04 | AZ96: -12.2 | BA96: 15.8 | BF96: -12.2 | BG96: 14 | BL96: -13.7 | BM96: 12.92 | BR96: -15 | BS96: -2.92 | DT96: 78 | DU96: 0.1 | DV96: 1.1 | DW96: 0.4 | DX96: 2.2 | DY96: 1.9 | DZ96: -0.6 | EA96: -10 | EB96: -7.2 | EC96: -9 | ED96: -10 | EE96: -10.6 | EF96: -19.4
A97: 3.291666667 | B97: 2011-01-04 | C97: 07:00:00 | D97: -1.7 | E97: 32 | F97: WEEKDAY | G97: On | H97: 1976-01-04 | I97: 07:00:00 | J97: -0.6 | K97: 33.98 | N97: 2003-01-04 | O97: 07:00:00 | P97: -2 | Q97: 32.54 | T97: 1999-01-04 | U97: 07:00:00 | V97: -3.9 | W97: 35.96 | AB97: 11.7 | AC97: 35.24 | AH97: 5 | AI97: 30.92 | AN97: -7.8 | AO97: 10.94 | AT97: -10.6 | AU97: 19.04 | AZ97: -12.8 | BA97: 15.8 | BF97: -12.8 | BG97: 14 | BL97: -14.4 | BM97: 12.2 | BR97: -17.2 | BS97: -2.92 | DT97: 79 | DU97: 0 | DV97: 1.1 | DW97: 0.3 | DX97: 2.2 | DY97: 1.8 | DZ97: -0.6 | EA97: -11.7 | EB97: -7.2 | EC97: -9 | ED97: -10 | EE97: -11 | EF97: -19.4
A98: 3.333333333 | B98: 2011-01-04 | C98: 08:00:00 | D98: -1.7 | E98: 32.18 | F98: WEEKDAY | G98: On | H98: 1976-01-04 | I98: 08:00:00 | J98: -1.7 | K98: 34.52 | N98: 2003-01-04 | O98: 08:00:00 | P98: -2 | Q98: 33.08 | T98: 1999-01-04 | U98: 08:00:00 | V98: -3.9 | W98: 35.96 | AB98: 12.2 | AC98: 35.42 | AH98: 4 | AI98: 30.92 | AN98: -7.8 | AO98: 10.04 | AT98: -10 | AU98: 19.04 | AZ98: -11.7 | BA98: 15.08 | BF98: -13.3 | BG98: 12.92 | BL98: -13.1 | BM98: 12.92 | BR98: -16.7 | BS98: -2.02 | DT98: 80 | DU98: 0.1 | DV98: 1.4 | DW98: 0.6 | DX98: 2.2 | DY98: 1.9 | DZ98: -0.6 | EA98: -12.2 | EB98: -7.2 | EC98: -9.4 | ED98: -10.6 | EE98: -10.6 | EF98: -18.9
A99: 3.375 | B99: 2011-01-04 | C99: 09:00:00 | D99: -1.1 | E99: 32.36 | F99: WEEKDAY | G99: On | H99: 1976-01-04 | I99: 09:00:00 | J99: -1.7 | K99: 35.06 | N99: 2003-01-04 | O99: 09:00:00 | P99: -2 | Q99: 33.62 | T99: 1999-01-04 | U99: 09:00:00 | V99: -3.3 | W99: 35.96 | AB99: 12.2 | AC99: 35.42 | AH99: 5 | AI99: 32 | AN99: -7.8 | AO99: 8.96 | AT99: -7.8 | AU99: 19.04 | AZ99: -10.5 | BA99: 15.8 | BF99: -12.2 | BG99: 12.2 | BL99: -11.9 | BM99: 10.4 | BR99: -16.7 | BS99: 1.04 | DT99: 81 | DU99: 0.2 | DV99: 1.7 | DW99: 0.9 | DX99: 2.2 | DY99: 1.9 | DZ99: 0 | EA99: -12.8 | EB99: -7.2 | EC99: -9 | ED99: -11 | EE99: -12 | EF99: -17.2
A100: 3.416666667 | B100: 2011-01-04 | C100: 10:00:00 | D100: -1.1 | E100: 33.8 | F100: WEEKDAY | G100: On | H100: 1976-01-04 | I100: 10:00:00 | J100: -1.7 | K100: 35.6 | N100: 2003-01-04 | O100: 10:00:00 | P100: -1 | Q100: 34.52 | T100: 1999-01-04 | U100: 10:00:00 | V100: -3.3 | W100: 36.14 | AB100: 12.2 | AC100: 35.06 | AH100: 6 | AI100: 33.98 | AN100: -7.2 | AO100: 8.96 | AT100: -6.1 | AU100: 19.94 | AZ100: -9.4 | BA100: 15.8 | BF100: -8.9 | BG100: 10.94 | BL100: -10.6 | BM100: 10.04 | BR100: -16.1 | BS100: 6.08 | DT100: 82 | DU100: 1 | DV100: 2 | DW100: 1.4 | DX100: 2.3 | DY100: 1.7 | DZ100: 1.1 | EA100: -12.8 | EB100: -6.7 | EC100: -9 | ED100: -11.7 | EE100: -12.2 | EF100: -14.4
A101: 3.458333333 | B101: 2011-01-04 | C101: 11:00:00 | D101: 0 | E101: 38.12 | F101: WEEKDAY | G101: On | H101: 1976-01-04 | I101: 11:00:00 | J101: -2.2 | K101: 37.22 | N101: 2003-01-04 | O101: 11:00:00 | P101: -1 | Q101: 37.04 | T101: 1999-01-04 | U101: 11:00:00 | V101: -2.8 | W101: 37.94 | AB101: 12.8 | AC101: 35.06 | AH101: 7 | AI101: 32.18 | AN101: -6.1 | AO101: 8.96 | AT101: -5 | AU101: 19.94 | AZ101: -7.9 | BA101: 17.06 | BF101: -6.7 | BG101: 10.94 | BL101: -9.5 | BM101: 10.04 | BR101: -15 | BS101: 10.4 | DT101: 83 | DU101: 3.4 | DV101: 2.9 | DW101: 2.8 | DX101: 3.3 | DY101: 1.7 | DZ101: 0.1 | EA101: -12.8 | EB101: -6.7 | EC101: -8.3 | ED101: -11.7 | EE101: -12.2 | EF101: -12
A102: 3.5 | B102: 2011-01-04 | C102: 12:00:00 | D102: 0.6 | E102: 39.92 | F102: WEEKDAY | G102: On | H102: 1976-01-04 | I102: 12:00:00 | J102: -1.7 | K102: 38.66 | N102: 2003-01-04 | O102: 12:00:00 | P102: -1 | Q102: 39.02 | T102: 1999-01-04 | U102: 12:00:00 | V102: -2.8 | W102: 38.66 | AB102: 13.3 | AC102: 36.14 | AH102: 7 | AI102: 33.08 | AN102: -6.1 | AO102: 8.96 | AT102: -3.3 | AU102: 21.92 | AZ102: -6.5 | BA102: 17.6 | BF102: -5.6 | BG102: 10.94 | BL102: -8.3 | BM102: 10.04 | BR102: -13.3 | BS102: 12.2 | DT102: 84 | DU102: 4.4 | DV102: 3.7 | DW102: 3.9 | DX102: 3.7 | DY102: 2.3 | DZ102: 0.6 | EA102: -12.8 | EB102: -5.6 | EC102: -8 | ED102: -11.7 | EE102: -12.2 | EF102: -11
A103: 3.541666667 | B103: 2011-01-04 | C103: 13:00:00 | D103: 1.1 | E103: 41.54 | F103: WEEKDAY | G103: On | H103: 1976-01-04 | I103: 13:00:00 | J103: -1.1 | K103: 40.1 | N103: 2003-01-04 | O103: 13:00:00 | P103: 0 | Q103: 41 | T103: 1999-01-04 | U103: 13:00:00 | V103: -2.2 | W103: 40.1 | AB103: 12.8 | AC103: 36.5 | AH103: 7 | AI103: 34.34 | AN103: -5.6 | AO103: 8.96 | AT103: -3.9 | AU103: 21.92 | AZ103: -5 | BA103: 17.6 | BF103: -6.1 | BG103: 10.94 | BL103: -7.2 | BM103: 10.94 | BR103: -12.8 | BS103: 17.6 | DT103: 85 | DU103: 5.3 | DV103: 4.5 | DW103: 5 | DX103: 4.5 | DY103: 2.5 | DZ103: 1.3 | EA103: -12.8 | EB103: -5.6 | EC103: -8 | ED103: -11.7 | EE103: -11.7 | EF103: -8
A104: 3.583333333 | B104: 2011-01-04 | C104: 14:00:00 | D104: 1.7 | E104: 44.96 | F104: WEEKDAY | G104: On | H104: 1976-01-04 | I104: 14:00:00 | J104: -0.6 | K104: 42.08 | N104: 2003-01-04 | O104: 14:00:00 | P104: 0 | Q104: 39.92 | T104: 1999-01-04 | U104: 14:00:00 | V104: -1.7 | W104: 41.18 | AB104: 13.3 | AC104: 37.94 | AH104: 8 | AI104: 34.88 | AN104: -4.4 | AO104: 10.04 | AT104: -3.3 | AU104: 21.92 | AZ104: -5 | BA104: 17.96 | BF104: -5 | BG104: 10.94 | BL104: -7.4 | BM104: 10.94 | BR104: -13.3 | BS104: 19.4 | DT104: 86 | DU104: 7.2 | DV104: 5.6 | DW104: 4.4 | DX104: 5.1 | DY104: 3.3 | DZ104: 1.6 | EA104: -12.2 | EB104: -5.6 | EC104: -7.8 | ED104: -11.7 | EE104: -11.7 | EF104: -7
A105: 3.625 | B105: 2011-01-04 | C105: 15:00:00 | D105: 1.7 | E105: 43.88 | F105: WEEKDAY | G105: On | H105: 1976-01-04 | I105: 15:00:00 | J105: -0.6 | K105: 41 | N105: 2003-01-04 | O105: 15:00:00 | P105: -1 | Q105: 39.02 | T105: 1999-01-04 | U105: 15:00:00 | V105: -1.7 | W105: 42.98 | AB105: 13.3 | AC105: 37.94 | AH105: 8 | AI105: 35.78 | AN105: -5.6 | AO105: 8.06 | AT105: -2.8 | AU105: 21.92 | AZ105: -5 | BA105: 17.6 | BF105: -5.6 | BG105: 10.94 | BL105: -7.6 | BM105: 12.02 | BR105: -13.3 | BS105: 19.4 | DT105: 87 | DU105: 6.6 | DV105: 5 | DW105: 3.9 | DX105: 6.1 | DY105: 3.3 | DZ105: 2.1 | EA105: -13.3 | EB105: -5.6 | EC105: -8 | ED105: -11.7 | EE105: -11.1 | EF105: -7
A106: 3.666666667 | B106: 2011-01-04 | C106: 16:00:00 | D106: 2.2 | E106: 46.94 | F106: WEEKDAY | G106: On | H106: 1976-01-04 | I106: 16:00:00 | J106: -0.6 | K106: 41 | N106: 2003-01-04 | O106: 16:00:00 | P106: -1 | Q106: 41.18 | T106: 1999-01-04 | U106: 16:00:00 | V106: -2.2 | W106: 42.08 | AB106: 13.3 | AC106: 37.04 | AH106: 8 | AI106: 35.96 | AN106: -5 | AO106: 6.08 | AT106: -2.8 | AU106: 21.02 | AZ106: -5 | BA106: 17.06 | BF106: -6.1 | BG106: 10.94 | BL106: -7.8 | BM106: 12.92 | BR106: -13.3 | BS106: 21.92 | DT106: 88 | DU106: 8.3 | DV106: 5 | DW106: 5.1 | DX106: 5.6 | DY106: 2.8 | DZ106: 2.2 | EA106: -14.4 | EB106: -6.1 | EC106: -8.3 | ED106: -11.7 | EE106: -10.6 | EF106: -5.6
A107: 3.708333333 | B107: 2011-01-04 | C107: 17:00:00 | D107: 1.7 | E107: 46.94 | F107: WEEKDAY | G107: On | H107: 1976-01-04 | I107: 17:00:00 | J107: -0.6 | K107: 39.02 | N107: 2003-01-04 | O107: 17:00:00 | P107: -1 | Q107: 40.1 | T107: 1999-01-04 | U107: 17:00:00 | V107: -2.8 | W107: 42.08 | AB107: 12.8 | AC107: 38.12 | AH107: 7 | AI107: 35.96 | AN107: -5.6 | AO107: 3.92 | AT107: -3.3 | AU107: 21.02 | AZ107: -5.4 | BA107: 17.06 | BF107: -6.7 | BG107: 10.94 | BL107: -7.8 | BM107: 12.92 | BR107: -13.3 | BS107: 23 | DT107: 89 | DU107: 8.3 | DV107: 3.9 | DW107: 4.5 | DX107: 5.6 | DY107: 3.4 | DZ107: 2.2 | EA107: -15.6 | EB107: -6.1 | EC107: -8.3 | ED107: -11.7 | EE107: -10.6 | EF107: -5
A108: 3.75 | B108: 2011-01-04 | C108: 18:00:00 | D108: 1.7 | E108: 46.04 | F108: WEEKDAY | G108: On | H108: 1976-01-04 | I108: 18:00:00 | J108: -1.1 | K108: 39.02 | N108: 2003-01-04 | O108: 18:00:00 | P108: -1 | Q108: 37.58 | T108: 1999-01-04 | U108: 18:00:00 | V108: -3.3 | W108: 40.46 | AB108: 12.8 | AC108: 38.12 | AH108: 7 | AI108: 32.54 | AN108: -5 | AO108: 3.92 | AT108: -2.8 | AU108: 19.04 | AZ108: -5.7 | BA108: 17.6 | BF108: -6.7 | BG108: 10.94 | BL108: -7.8 | BM108: 12.92 | BR108: -13.9 | BS108: 21.2 | DT108: 90 | DU108: 7.8 | DV108: 3.9 | DW108: 3.1 | DX108: 4.7 | DY108: 3.4 | DZ108: 0.3 | EA108: -15.6 | EB108: -7.2 | EC108: -8 | ED108: -11.7 | EE108: -10.6 | EF108: -6
A109: 3.791666667 | B109: 2011-01-04 | C109: 19:00:00 | D109: 1.7 | E109: 46.04 | F109: WEEKDAY | G109: On | H109: 1976-01-04 | I109: 19:00:00 | J109: -1.1 | K109: 39.02 | N109: 2003-01-04 | O109: 19:00:00 | P109: -1 | Q109: 36.68 | T109: 1999-01-04 | U109: 19:00:00 | V109: -3.3 | W109: 39.02 | AB109: 13.9 | AC109: 37.94 | AH109: 7 | AI109: 33.08 | AN109: -5 | AO109: 3.02 | AT109: -2.2 | AU109: 19.04 | AZ109: -6.1 | BA109: 17.6 | BF109: -7.2 | BG109: 10.94 | BL109: -7.8 | BM109: 14 | BR109: -13.9 | BS109: 21.92 | DT109: 91 | DU109: 7.8 | DV109: 3.9 | DW109: 2.6 | DX109: 3.9 | DY109: 3.3 | DZ109: 0.6 | EA109: -16.1 | EB109: -7.2 | EC109: -8 | ED109: -11.7 | EE109: -10 | EF109: -5.6
A110: 3.833333333 | B110: 2011-01-04 | C110: 20:00:00 | D110: 1.1 | E110: 46.04 | F110: WEEKDAY | G110: On | H110: 1976-01-04 | I110: 20:00:00 | J110: -1.7 | K110: 39.02 | N110: 2003-01-04 | O110: 20:00:00 | P110: -1 | Q110: 35.96 | T110: 1999-01-04 | U110: 20:00:00 | V110: -3.9 | W110: 39.02 | AB110: 12.8 | AC110: 37.76 | AH110: 6 | AI110: 33.98 | AN110: -3.9 | AO110: 1.94 | AT110: -2.2 | AU110: 19.04 | AZ110: -6.3 | BA110: 17.06 | BF110: -7.2 | BG110: 10.94 | BL110: -7.8 | BM110: 14 | BR110: -13.3 | BS110: 23 | DT110: 92 | DU110: 7.8 | DV110: 3.9 | DW110: 2.2 | DX110: 3.9 | DY110: 3.2 | DZ110: 1.1 | EA110: -16.7 | EB110: -7.2 | EC110: -8.3 | ED110: -11.7 | EE110: -10 | EF110: -5
A111: 3.875 | B111: 2011-01-04 | C111: 21:00:00 | D111: 1.1 | E111: 44.96 | F111: WEEKDAY | G111: On | H111: 1976-01-04 | I111: 21:00:00 | J111: -2.2 | K111: 37.94 | N111: 2003-01-04 | O111: 21:00:00 | P111: -1.1 | Q111: 35.78 | T111: 1999-01-04 | U111: 21:00:00 | V111: -4.4 | W111: 37.94 | AB111: 10.6 | AC111: 37.4 | AH111: 6 | AI111: 33.08 | AN111: -2.8 | AO111: 3.02 | AT111: -2.8 | AU111: 17.96 | AZ111: -6.5 | BA111: 15.8 | BF111: -7.2 | BG111: 12.02 | BL111: -7.8 | BM111: 14 | BR111: -13.9 | BS111: 23 | DT111: 93 | DU111: 7.2 | DV111: 3.3 | DW111: 2.1 | DX111: 3.3 | DY111: 3 | DZ111: 0.6 | EA111: -16.1 | EB111: -7.8 | EC111: -9 | ED111: -11.1 | EE111: -10 | EF111: -5
A112: 3.916666667 | B112: 2011-01-04 | C112: 22:00:00 | D112: 0.6 | E112: 42.98 | F112: WEEKDAY | G112: On | H112: 1976-01-04 | I112: 22:00:00 | J112: -2.8 | K112: 37.94 | N112: 2003-01-04 | O112: 22:00:00 | P112: -1 | Q112: 35.06 | T112: 1999-01-04 | U112: 22:00:00 | V112: -5 | W112: 38.84 | AB112: 10 | AC112: 37.04 | AH112: 5 | AI112: 32 | AN112: -2.8 | AO112: 1.4 | AT112: -2.8 | AU112: 17.96 | AZ112: -6.7 | BA112: 15.8 | BF112: -7.2 | BG112: 12.92 | BL112: -7.8 | BM112: 14 | BR112: -13.9 | BS112: 24.08 | DT112: 94 | DU112: 6.1 | DV112: 3.3 | DW112: 1.7 | DX112: 3.8 | DY112: 2.8 | DZ112: 0 | EA112: -17 | EB112: -7.8 | EC112: -9 | ED112: -10.6 | EE112: -10 | EF112: -4.4
A113: 3.958333333 | B113: 2011-01-04 | C113: 23:00:00 | D113: 0.6 | E113: 42.26 | F113: WEEKDAY | G113: On | H113: 1976-01-04 | I113: 23:00:00 | J113: -3.3 | K113: 37.94 | N113: 2003-01-04 | O113: 23:00:00 | P113: -1 | Q113: 35.42 | T113: 1999-01-04 | U113: 23:00:00 | V113: -5.6 | W113: 37.04 | AB113: 10 | AC113: 36.32 | AH113: 4 | AI113: 33.08 | AN113: -2.8 | AO113: 1.4 | AT113: -2.8 | AU113: 17.96 | AZ113: -6.3 | BA113: 15.98 | BF113: -6.7 | BG113: 12.92 | BL113: -7.8 | BM113: 14 | BR113: -13.9 | BS113: 24.98 | DT113: 95 | DU113: 5.7 | DV113: 3.3 | DW113: 1.9 | DX113: 2.8 | DY113: 2.4 | DZ113: 0.6 | EA113: -17 | EB113: -7.8 | EC113: -8.9 | ED113: -10.6 | EE113: -10 | EF113: -3.9
A114: 4 | B114: 2011-01-04 | C114: 1 | D114: 0 | E114: 41.72 | F114: WEEKDAY | G114: On | H114: 1976-01-04 | I114: 1 | J114: -3.3 | K114: 37.04 | N114: 2003-01-04 | O114: 1 | P114: -1 | Q114: 35.06 | T114: 1999-01-04 | U114: 1 | V114: -6.1 | W114: 37.94 | AB114: 9.4 | AC114: 35.96 | AH114: 4 | AI114: 32 | AN114: -2.8 | AO114: 1.4 | AT114: -2.8 | AU114: 15.98 | AZ114: -6 | BA114: 17.6 | BF114: -6.7 | BG114: 12.92 | BL114: -7.8 | BM114: 14 | BR114: -13.9 | BS114: 24.98 | DT114: 96 | DU114: 5.4 | DV114: 2.8 | DW114: 1.7 | DX114: 3.3 | DY114: 2.2 | DZ114: 0 | EA114: -17 | EB114: -8.9 | EC114: -8 | ED114: -10.6 | EE114: -10 | EF114: -3.9
A115: 4.041666667 | B115: 2011-01-05 | C115: 01:00:00 | D115: 0 | E115: 42.26 | F115: WEEKDAY | G115: On | H115: 1976-01-05 | I115: 01:00:00 | J115: -3.9 | K115: 37.04 | N115: 2003-01-05 | O115: 01:00:00 | P115: -1 | Q115: 35.06 | T115: 1999-01-05 | U115: 01:00:00 | V115: -6.1 | W115: 37.94 | AB115: 7.8 | AC115: 35.6 | AH115: 3 | AI115: 32 | AN115: -2.2 | AO115: 1.04 | AT115: -2.8 | AU115: 15.98 | AZ115: -5.6 | BA115: 17.6 | BF115: -6.7 | BG115: 12.02 | BL115: -7.8 | BM115: 14 | BR115: -13.9 | BS115: 26.06 | DT115: 97 | DU115: 5.7 | DV115: 2.8 | DW115: 1.7 | DX115: 3.3 | DY115: 2 | DZ115: 0 | EA115: -17.2 | EB115: -8.9 | EC115: -8 | ED115: -11.1 | EE115: -10 | EF115: -3.3
A116: 4.083333333 | B116: 2011-01-05 | C116: 02:00:00 | D116: 0 | E116: 42.08 | F116: WEEKDAY | G116: On | H116: 1976-01-05 | I116: 02:00:00 | J116: -3.9 | K116: 37.04 | N116: 2003-01-05 | O116: 02:00:00 | P116: -2 | Q116: 35.06 | T116: 1999-01-05 | U116: 02:00:00 | V116: -6.7 | W116: 37.94 | AB116: 7.2 | AC116: 35.6 | AH116: 3 | AI116: 32 | AN116: -1.7 | AO116: 1.04 | AT116: -2.8 | AU116: 15.98 | AZ116: -6 | BA116: 17.96 | BF116: -6.1 | BG116: 12.02 | BL116: -7.4 | BM116: 14 | BR116: -13.3 | BS116: 26.06 | DT116: 98 | DU116: 5.6 | DV116: 2.8 | DW116: 1.7 | DX116: 3.3 | DY116: 2 | DZ116: 0 | EA116: -17.2 | EB116: -8.9 | EC116: -7.8 | ED116: -11.1 | EE116: -10 | EF116: -3.3
A117: 4.125 | B117: 2011-01-05 | C117: 03:00:00 | D117: -0.6 | E117: 42.08 | F117: WEEKDAY | G117: On | H117: 1976-01-05 | I117: 03:00:00 | J117: -4.4 | K117: 37.04 | N117: 2003-01-05 | O117: 03:00:00 | P117: -2 | Q117: 35.06 | T117: 1999-01-05 | U117: 03:00:00 | V117: -7.2 | W117: 37.04 | AB117: 5.6 | AC117: 35.6 | AH117: 3 | AI117: 33.08 | AN117: -1.7 | AO117: 1.04 | AT117: -2.8 | AU117: 15.08 | AZ117: -6.3 | BA117: 15.98 | BF117: -6.1 | BG117: 12.92 | BL117: -7.1 | BM117: 14 | BR117: -13.3 | BS117: 26.96 | DT117: 99 | DU117: 5.6 | DV117: 2.8 | DW117: 1.7 | DX117: 2.8 | DY117: 2 | DZ117: 0.6 | EA117: -17.2 | EB117: -9.4 | EC117: -8.9 | ED117: -10.6 | EE117: -10 | EF117: -2.8
A118: 4.166666667 | B118: 2011-01-05 | C118: 04:00:00 | D118: -0.6 | E118: 42.08 | F118: WEEKDAY | G118: On | H118: 1976-01-05 | I118: 04:00:00 | J118: -4.4 | K118: 37.04 | N118: 2003-01-05 | O118: 04:00:00 | P118: -3 | Q118: 35.42 | T118: 1999-01-05 | U118: 04:00:00 | V118: -7.2 | W118: 37.04 | AB118: 5.6 | AC118: 35.24 | AH118: 3 | AI118: 33.98 | AN118: -1.7 | AO118: 1.94 | AT118: -3.3 | AU118: 15.98 | AZ118: -6.7 | BA118: 15.98 | BF118: -6.7 | BG118: 10.94 | BL118: -6.7 | BM118: 14 | BR118: -13.3 | BS118: 26.6 | DT118: 100 | DU118: 5.6 | DV118: 2.8 | DW118: 1.9 | DX118: 2.8 | DY118: 1.8 | DZ118: 1.1 | EA118: -16.7 | EB118: -8.9 | EC118: -8.9 | ED118: -11.7 | EE118: -10 | EF118: -3
A119: 4.208333333 | B119: 2011-01-05 | C119: 05:00:00 | D119: -0.6 | E119: 42.08 | F119: WEEKDAY | G119: On | H119: 1976-01-05 | I119: 05:00:00 | J119: -5 | K119: 37.04 | N119: 2003-01-05 | O119: 05:00:00 | P119: -2 | Q119: 35.42 | T119: 1999-01-05 | U119: 05:00:00 | V119: -7.8 | W119: 37.04 | AB119: 5 | AC119: 35.24 | AH119: 2 | AI119: 33.08 | AN119: -1.7 | AO119: 1.94 | AT119: -3.3 | AU119: 15.98 | AZ119: -6.9 | BA119: 15.98 | BF119: -6.7 | BG119: 10.94 | BL119: -7.2 | BM119: 14 | BR119: -12.2 | BS119: 26.6 | DT119: 101 | DU119: 5.6 | DV119: 2.8 | DW119: 1.9 | DX119: 2.8 | DY119: 1.8 | DZ119: 0.6 | EA119: -16.7 | EB119: -8.9 | EC119: -8.9 | ED119: -11.7 | EE119: -10 | EF119: -3
A120: 4.25 | B120: 2011-01-05 | C120: 06:00:00 | D120: -1.1 | E120: 42.08 | F120: WEEKDAY | G120: On | H120: 1976-01-05 | I120: 06:00:00 | J120: -5.6 | K120: 35.42 | N120: 2003-01-05 | O120: 06:00:00 | P120: -3 | Q120: 33.8 | T120: 1999-01-05 | U120: 06:00:00 | V120: -7.8 | W120: 35.96 | AB120: 3.9 | AC120: 35.42 | AH120: 2 | AI120: 32 | AN120: -1.7 | AO120: 3.02 | AT120: -3.9 | AU120: 15.8 | AZ120: -7 | BA120: 15.98 | BF120: -7.2 | BG120: 10.04 | BL120: -7.8 | BM120: 14 | BR120: -11.7 | BS120: 26.6 | DT120: 102 | DU120: 5.6 | DV120: 1.9 | DW120: 1 | DX120: 2.2 | DY120: 1.9 | DZ120: 0 | EA120: -16.1 | EB120: -9 | EC120: -8.9 | ED120: -12.2 | EE120: -10 | EF120: -3
A121: 4.291666667 | B121: 2011-01-05 | C121: 07:00:00 | D121: -0.6 | E121: 42.08 | F121: WEEKDAY | G121: On | H121: 1976-01-05 | I121: 07:00:00 | J121: -5.6 | K121: 35.24 | N121: 2003-01-05 | O121: 07:00:00 | P121: -5 | Q121: 33.62 | T121: 1999-01-05 | U121: 07:00:00 | V121: -7.8 | W121: 35.78 | AB121: 2.8 | AC121: 35.42 | AH121: 2 | AI121: 33.98 | AN121: -1.1 | AO121: 3.02 | AT121: -3.3 | AU121: 15.8 | AZ121: -7.2 | BA121: 17.06 | BF121: -7.2 | BG121: 6.98 | BL121: -8.3 | BM121: 14 | BR121: -11.7 | BS121: 26.6 | DT121: 103 | DU121: 5.6 | DV121: 1.8 | DW121: 0.9 | DX121: 2.1 | DY121: 1.9 | DZ121: 1.1 | EA121: -16.1 | EB121: -9 | EC121: -8.3 | ED121: -13.9 | EE121: -10 | EF121: -3
A122: 4.333333333 | B122: 2011-01-05 | C122: 08:00:00 | D122: -0.6 | E122: 42.08 | F122: WEEKDAY | G122: On | H122: 1976-01-05 | I122: 08:00:00 | J122: -5.6 | K122: 35.42 | N122: 2003-01-05 | O122: 08:00:00 | P122: -4 | Q122: 33.98 | T122: 1999-01-05 | U122: 08:00:00 | V122: -7.2 | W122: 37.04 | AB122: 2.2 | AC122: 36.14 | AH122: 1 | AI122: 32.54 | AN122: -1.1 | AO122: 3.02 | AT122: -3.3 | AU122: 15.98 | AZ122: -6.1 | BA122: 17.06 | BF122: -6.7 | BG122: 6.98 | BL122: -6.6 | BM122: 14 | BR122: -10.6 | BS122: 24.8 | DT122: 104 | DU122: 5.6 | DV122: 1.9 | DW122: 1.1 | DX122: 2.8 | DY122: 2.3 | DZ122: 0.3 | EA122: -16.1 | EB122: -8.9 | EC122: -8.3 | ED122: -13.9 | EE122: -10 | EF122: -4
A123: 4.375 | B123: 2011-01-05 | C123: 09:00:00 | D123: 0 | E123: 44.06 | F123: WEEKDAY | G123: On | H123: 1976-01-05 | I123: 09:00:00 | J123: -5.6 | K123: 35.42 | N123: 2003-01-05 | O123: 09:00:00 | P123: -2 | Q123: 33.98 | T123: 1999-01-05 | U123: 09:00:00 | V123: -6.7 | W123: 35.96 | AB123: 2.2 | AC123: 35.06 | AH123: 1 | AI123: 32.18 | AN123: -1.1 | AO123: 3.92 | AT123: -3.3 | AU123: 19.04 | AZ123: -5 | BA123: 17.6 | BF123: -6.7 | BG123: 8.06 | BL123: -5 | BM123: 14 | BR123: -10.6 | BS123: 24.8 | DT123: 105 | DU123: 6.7 | DV123: 1.9 | DW123: 1.1 | DX123: 2.2 | DY123: 1.7 | DZ123: 0.1 | EA123: -15.6 | EB123: -7.2 | EC123: -8 | ED123: -13.3 | EE123: -10 | EF123: -4
A124: 4.416666667 | B124: 2011-01-05 | C124: 10:00:00 | D124: 1.1 | E124: 44.06 | F124: WEEKDAY | G124: On | H124: 1976-01-05 | I124: 10:00:00 | J124: -5.6 | K124: 36.14 | N124: 2003-01-05 | O124: 10:00:00 | P124: -1 | Q124: 35.06 | T124: 1999-01-05 | U124: 10:00:00 | V124: -5 | W124: 36.86 | AB124: 3.3 | AC124: 36.32 | AH124: 1 | AI124: 33.44 | AN124: -0.6 | AO124: 6.98 | AT124: -2.8 | AU124: 19.94 | AZ124: -3.9 | BA124: 17.6 | BF124: -5.6 | BG124: 10.94 | BL124: -3.3 | BM124: 15.08 | BR124: -10 | BS124: 24.08 | DT124: 106 | DU124: 6.7 | DV124: 2.3 | DW124: 1.7 | DX124: 2.7 | DY124: 2.4 | DZ124: 0.8 | EA124: -13.9 | EB124: -6.7 | EC124: -8 | ED124: -11.7 | EE124: -9.4 | EF124: -4.4
A125: 4.458333333 | B125: 2011-01-05 | C125: 11:00:00 | D125: 2.2 | E125: 44.06 | F125: WEEKDAY | G125: On | H125: 1976-01-05 | I125: 11:00:00 | J125: -5.6 | K125: 37.94 | N125: 2003-01-05 | O125: 11:00:00 | P125: -1 | Q125: 37.04 | T125: 1999-01-05 | U125: 11:00:00 | V125: -3.9 | W125: 37.94 | AB125: 3.3 | AC125: 37.76 | AH125: 1 | AI125: 35.96 | AN125: 0 | AO125: 8.96 | AT125: -1.7 | AU125: 19.94 | AZ125: -3.2 | BA125: 19.04 | BF125: -3.9 | BG125: 10.94 | BL125: -3.1 | BM125: 17.6 | BR125: -9.4 | BS125: 24.98 | DT125: 107 | DU125: 6.7 | DV125: 3.3 | DW125: 2.8 | DX125: 3.3 | DY125: 3.2 | DZ125: 2.2 | EA125: -12.8 | EB125: -6.7 | EC125: -7.2 | ED125: -11.7 | EE125: -8 | EF125: -3.9
A126: 4.5 | B126: 2011-01-05 | C126: 12:00:00 | D126: 2.2 | E126: 44.96 | F126: WEEKDAY | G126: On | H126: 1976-01-05 | I126: 12:00:00 | J126: -5 | K126: 38.3 | N126: 2003-01-05 | O126: 12:00:00 | P126: -1 | Q126: 37.4 | T126: 1999-01-05 | U126: 12:00:00 | V126: -3.3 | W126: 38.48 | AB126: 2.8 | AC126: 38.3 | AH126: 1 | AI126: 37.22 | AN126: -2.8 | AO126: 14 | AT126: -0.6 | AU126: 21.92 | AZ126: -2.4 | BA126: 19.4 | BF126: -2.8 | BG126: 17.06 | BL126: -3 | BM126: 17.96 | BR126: -10 | BS126: 24.98 | DT126: 108 | DU126: 7.2 | DV126: 3.5 | DW126: 3 | DX126: 3.6 | DY126: 3.5 | DZ126: 2.9 | EA126: -10 | EB126: -5.6 | EC126: -7 | ED126: -8.3 | EE126: -7.8 | EF126: -3.9
A127: 4.541666667 | B127: 2011-01-05 | C127: 13:00:00 | D127: 3.3 | E127: 44.96 | F127: WEEKDAY | G127: On | H127: 1976-01-05 | I127: 13:00:00 | J127: -4.4 | K127: 39.92 | N127: 2003-01-05 | O127: 13:00:00 | P127: -1 | Q127: 39.2 | T127: 1999-01-05 | U127: 13:00:00 | V127: -2.2 | W127: 39.2 | AB127: 3.3 | AC127: 39.74 | AH127: 1 | AI127: 38.3 | AN127: -2.8 | AO127: 17.96 | AT127: -1.7 | AU127: 23 | AZ127: -1.7 | BA127: 21.2 | BF127: -2.2 | BG127: 19.94 | BL127: -2.8 | BM127: 19.94 | BR127: -9.4 | BS127: 26.96 | DT127: 109 | DU127: 7.2 | DV127: 4.4 | DW127: 4 | DX127: 4 | DY127: 4.3 | DZ127: 3.5 | EA127: -7.8 | EB127: -5 | EC127: -6 | ED127: -6.7 | EE127: -6.7 | EF127: -2.8
A128: 4.583333333 | B128: 2011-01-05 | C128: 14:00:00 | D128: 3.9 | E128: 44.96 | F128: WEEKDAY | G128: On | H128: 1976-01-05 | I128: 14:00:00 | J128: -3.9 | K128: 39.92 | N128: 2003-01-05 | O128: 14:00:00 | P128: -1 | Q128: 39.92 | T128: 1999-01-05 | U128: 14:00:00 | V128: -1.7 | W128: 41 | AB128: 3.9 | AC128: 40.46 | AH128: 1 | AI128: 39.92 | AN128: -2.8 | AO128: 17.96 | AT128: -2.2 | AU128: 23 | AZ128: -1.9 | BA128: 21.02 | BF128: -2.8 | BG128: 19.94 | BL128: -3.2 | BM128: 19.94 | BR128: -9.4 | BS128: 26.96 | DT128: 110 | DU128: 7.2 | DV128: 4.4 | DW128: 4.4 | DX128: 5 | DY128: 4.7 | DZ128: 4.4 | EA128: -7.8 | EB128: -5 | EC128: -6.1 | ED128: -6.7 | EE128: -6.7 | EF128: -2.8
A129: 4.625 | B129: 2011-01-05 | C129: 15:00:00 | D129: 3.3 | E129: 44.96 | F129: WEEKDAY | G129: On | H129: 1976-01-05 | I129: 15:00:00 | J129: -3.9 | K129: 39.92 | N129: 2003-01-05 | O129: 15:00:00 | P129: 0 | Q129: 37.94 | T129: 1999-01-05 | U129: 15:00:00 | V129: -1.7 | W129: 41 | AB129: 3.3 | AC129: 42.98 | AH129: 1 | AI129: 39.92 | AN129: -4.4 | AO129: 21.02 | AT129: -2.8 | AU129: 23 | AZ129: -2 | BA129: 21.2 | BF129: -2.8 | BG129: 21.92 | BL129: -3.5 | BM129: 21.92 | BR129: -8.9 | BS129: 24.98 | DT129: 111 | DU129: 7.2 | DV129: 4.4 | DW129: 3.3 | DX129: 5 | DY129: 6.1 | DZ129: 4.4 | EA129: -6.1 | EB129: -5 | EC129: -6 | ED129: -5.6 | EE129: -5.6 | EF129: -3.9
A130: 4.666666667 | B130: 2011-01-05 | C130: 16:00:00 | D130: 3.9 | E130: 46.04 | F130: WEEKDAY | G130: On | H130: 1976-01-05 | I130: 16:00:00 | J130: -3.3 | K130: 39.92 | N130: 2003-01-05 | O130: 16:00:00 | P130: 0 | Q130: 39.56 | T130: 1999-01-05 | U130: 16:00:00 | V130: -2.2 | W130: 41 | AB130: 2.8 | AC130: 41 | AH130: 1 | AI130: 38.12 | AN130: -4.4 | AO130: 21.92 | AT130: -3.3 | AU130: 23 | AZ130: -2.2 | BA130: 21.2 | BF130: -3.9 | BG130: 24.98 | BL130: -3.9 | BM130: 23 | BR130: -8.9 | BS130: 24.98 | DT130: 112 | DU130: 7.8 | DV130: 4.4 | DW130: 4.2 | DX130: 5 | DY130: 5 | DZ130: 3.4 | EA130: -5.6 | EB130: -5 | EC130: -6 | ED130: -3.9 | EE130: -5 | EF130: -3.9
A131: 4.708333333 | B131: 2011-01-05 | C131: 17:00:00 | D131: 4.4 | E131: 44.96 | F131: WEEKDAY | G131: On | H131: 1976-01-05 | I131: 17:00:00 | J131: -3.3 | K131: 39.92 | N131: 2003-01-05 | O131: 17:00:00 | P131: 0 | Q131: 39.02 | T131: 1999-01-05 | U131: 17:00:00 | V131: -2.8 | W131: 41 | AB131: 1.7 | AC131: 41.9 | AH131: 1 | AI131: 37.94 | AN131: -4.4 | AO131: 19.94 | AT131: -5.6 | AU131: 23 | AZ131: -3.9 | BA131: 19.94 | BF131: -5 | BG131: 24.98 | BL131: -4.5 | BM131: 21.02 | BR131: -10 | BS131: 23 | DT131: 113 | DU131: 7.2 | DV131: 4.4 | DW131: 3.9 | DX131: 5 | DY131: 5.5 | DZ131: 3.3 | EA131: -6.7 | EB131: -5 | EC131: -6.7 | ED131: -3.9 | EE131: -6.1 | EF131: -5
A132: 4.75 | B132: 2011-01-05 | C132: 18:00:00 | D132: 4.4 | E132: 44.6 | F132: WEEKDAY | G132: On | H132: 1976-01-05 | I132: 18:00:00 | J132: -4.4 | K132: 39.92 | N132: 2003-01-05 | O132: 18:00:00 | P132: -1 | Q132: 37.04 | T132: 1999-01-05 | U132: 18:00:00 | V132: -3.9 | W132: 39.92 | AB132: 0.6 | AC132: 41.18 | AH132: 1 | AI132: 33.8 | AN132: -5.6 | AO132: 17.06 | AT132: -6.7 | AU132: 24.08 | AZ132: -5.5 | BA132: 19.4 | BF132: -6.1 | BG132: 24.98 | BL132: -5 | BM132: 19.94 | BR132: -10 | BS132: 19.94 | DT132: 114 | DU132: 7 | DV132: 4.4 | DW132: 2.8 | DX132: 4.4 | DY132: 5.1 | DZ132: 1 | EA132: -8.3 | EB132: -4.4 | EC132: -7 | ED132: -3.9 | EE132: -6.7 | EF132: -6.7
A133: 4.791666667 | B133: 2011-01-05 | C133: 19:00:00 | D133: 4.4 | E133: 44.96 | F133: WEEKDAY | G133: On | H133: 1976-01-05 | I133: 19:00:00 | J133: -4.4 | K133: 39.02 | N133: 2003-01-05 | O133: 19:00:00 | P133: -1 | Q133: 37.76 | T133: 1999-01-05 | U133: 19:00:00 | V133: -3.3 | W133: 39.92 | AB133: 0 | AC133: 40.82 | AH133: 0 | AI133: 26.96 | AN133: -5.6 | AO133: 17.96 | AT133: -7.2 | AU133: 24.08 | AZ133: -7.2 | BA133: 19.4 | BF133: -7.2 | BG133: 21.02 | BL133: -5.6 | BM133: 19.04 | BR133: -8.3 | BS133: 14 | DT133: 115 | DU133: 7.2 | DV133: 3.9 | DW133: 3.2 | DX133: 4.4 | DY133: 4.9 | DZ133: -2.8 | EA133: -7.8 | EB133: -4.4 | EC133: -7 | ED133: -6.1 | EE133: -7.2 | EF133: -10
A134: 4.833333333 | B134: 2011-01-05 | C134: 20:00:00 | D134: 4.4 | E134: 44.96 | F134: WEEKDAY | G134: On | H134: 1976-01-05 | I134: 20:00:00 | J134: -4.4 | K134: 39.02 | N134: 2003-01-05 | O134: 20:00:00 | P134: -2 | Q134: 37.04 | T134: 1999-01-05 | U134: 20:00:00 | V134: -4.4 | W134: 39.92 | AB134: 0 | AC134: 40.46 | AH134: 0 | AI134: 24.08 | AN134: -5.6 | AO134: 17.96 | AT134: -7.2 | AU134: 24.08 | AZ134: -7.8 | BA134: 19.94 | BF134: -7.8 | BG134: 21.02 | BL134: -6 | BM134: 19.04 | BR134: -8.9 | BS134: 10.94 | DT134: 116 | DU134: 7.2 | DV134: 3.9 | DW134: 2.8 | DX134: 4.4 | DY134: 4.7 | DZ134: -4.4 | EA134: -7.8 | EB134: -4.4 | EC134: -6.7 | ED134: -6.1 | EE134: -7.2 | EF134: -11.7
A135: 4.875 | B135: 2011-01-05 | C135: 21:00:00 | D135: 3.9 | E135: 44.96 | F135: WEEKDAY | G135: On | H135: 1976-01-05 | I135: 21:00:00 | J135: -5 | K135: 39.02 | N135: 2003-01-05 | O135: 21:00:00 | P135: -1 | Q135: 36.5 | T135: 1999-01-05 | U135: 21:00:00 | V135: -3.9 | W135: 37.94 | AB135: -0.6 | AC135: 40.1 | AH135: -1 | AI135: 23 | AN135: -6.1 | AO135: 15.98 | AT135: -8.3 | AU135: 21.92 | AZ135: -8.3 | BA135: 19.4 | BF135: -6.7 | BG135: 17.06 | BL135: -6.3 | BM135: 17.06 | BR135: -8.3 | BS135: 8.96 | DT135: 117 | DU135: 7.2 | DV135: 3.9 | DW135: 2.5 | DX135: 3.3 | DY135: 4.5 | DZ135: -5 | EA135: -8.9 | EB135: -5.6 | EC135: -7 | ED135: -8.3 | EE135: -8.3 | EF135: -12.8
A136: 4.916666667 | B136: 2011-01-05 | C136: 22:00:00 | D136: 4.4 | E136: 44.96 | F136: WEEKDAY | G136: On | H136: 1976-01-05 | I136: 22:00:00 | J136: -5.6 | K136: 37.94 | N136: 2003-01-05 | O136: 22:00:00 | P136: -1 | Q136: 36.14 | T136: 1999-01-05 | U136: 22:00:00 | V136: -3.9 | W136: 37.4 | AB136: -1.1 | AC136: 39.92 | AH136: -2 | AI136: 21.92 | AN136: -6.1 | AO136: 15.98 | AT136: -8.3 | AU136: 21.92 | AZ136: -8.9 | BA136: 19.4 | BF136: -8.3 | BG136: 17.06 | BL136: -6.7 | BM136: 15.98 | BR136: -7.2 | BS136: 10.04 | DT136: 118 | DU136: 7.2 | DV136: 3.3 | DW136: 2.3 | DX136: 3 | DY136: 4.4 | DZ136: -5.6 | EA136: -8.9 | EB136: -5.6 | EC136: -7 | ED136: -8.3 | EE136: -8.9 | EF136: -12.2
A137: 4.958333333 | B137: 2011-01-05 | C137: 23:00:00 | D137: 4.4 | E137: 41.18 | F137: WEEKDAY | G137: On | H137: 1976-01-05 | I137: 23:00:00 | J137: -5.6 | K137: 37.04 | N137: 2003-01-05 | O137: 23:00:00 | P137: -1 | Q137: 35.78 | T137: 1999-01-05 | U137: 23:00:00 | V137: -4.4 | W137: 37.04 | AB137: -2.2 | AC137: 39.74 | AH137: -2 | AI137: 23 | AN137: -6.1 | AO137: 15.98 | AT137: -6.7 | AU137: 21.92 | AZ137: -9.6 | BA137: 19.94 | BF137: -8.9 | BG137: 17.06 | BL137: -6.9 | BM137: 15.98 | BR137: -7.2 | BS137: 14 | DT137: 119 | DU137: 5.1 | DV137: 2.8 | DW137: 2.1 | DX137: 2.8 | DY137: 4.3 | DZ137: -5 | EA137: -8.9 | EB137: -5.6 | EC137: -6.7 | ED137: -8.3 | EE137: -8.9 | EF137: -10
A138: 5 | B138: 2011-01-05 | C138: 1 | D138: 4.4 | E138: 42.08 | F138: WEEKDAY | G138: On | H138: 1976-01-05 | I138: 1 | J138: -6.1 | K138: 35.96 | N138: 2003-01-05 | O138: 1 | P138: -1 | Q138: 35.78 | T138: 1999-01-05 | U138: 1 | V138: -4.4 | W138: 37.04 | AB138: -3.9 | AC138: 39.56 | AH138: -3 | AI138: 24.08 | AN138: -6.7 | AO138: 15.08 | AT138: -6.7 | AU138: 21.92 | AZ138: -10.4 | BA138: 21.02 | BF138: -10 | BG138: 21.92 | BL138: -7 | BM138: 21.92 | BR138: -6.7 | BS138: 15.98 | DT138: 120 | DU138: 5.6 | DV138: 2.2 | DW138: 2.1 | DX138: 2.8 | DY138: 4.2 | DZ138: -4.4 | EA138: -9.4 | EB138: -5.6 | EC138: -6.1 | ED138: -5.6 | EE138: -5.6 | EF138: -8.9
A139: 5.041666667 | B139: 2011-01-06 | C139: 01:00:00 | D139: 3.9 | E139: 39.38 | F139: WEEKDAY | G139: On | H139: 1976-01-06 | I139: 01:00:00 | J139: -6.7 | K139: 35.96 | N139: 2003-01-06 | O139: 01:00:00 | P139: -1 | Q139: 35.78 | T139: 1999-01-06 | U139: 01:00:00 | V139: -5.6 | W139: 37.04 | AB139: -4.4 | AC139: 39.38 | AH139: -3 | AI139: 26.06 | AN139: -6.1 | AO139: 15.98 | AT139: -7.8 | AU139: 21.92 | AZ139: -11.1 | BA139: 21.92 | BF139: -10 | BG139: 21.92 | BL139: -7.2 | BM139: 21.92 | BR139: -6.1 | BS139: 15.8 | DT139: 121 | DU139: 4.1 | DV139: 2.2 | DW139: 2.1 | DX139: 2.8 | DY139: 4.1 | DZ139: -3.3 | EA139: -8.9 | EB139: -5.6 | EC139: -5.6 | ED139: -5.6 | EE139: -5.6 | EF139: -9
A140: 5.083333333 | B140: 2011-01-06 | C140: 02:00:00 | D140: 4.4 | E140: 39.02 | F140: WEEKDAY | G140: On | H140: 1976-01-06 | I140: 02:00:00 | J140: -6.7 | K140: 37.04 | N140: 2003-01-06 | O140: 02:00:00 | P140: -1 | Q140: 35.6 | T140: 1999-01-06 | U140: 02:00:00 | V140: -5 | W140: 37.04 | AB140: -6.1 | AC140: 39.74 | AH140: -3 | AI140: 28.04 | AN140: -6.1 | AO140: 15.98 | AT140: -8.3 | AU140: 21.92 | AZ140: -11.7 | BA140: 21.92 | BF140: -10.6 | BG140: 21.92 | BL140: -7.2 | BM140: 21.92 | BR140: -5.6 | BS140: 17.6 | DT140: 122 | DU140: 3.9 | DV140: 2.8 | DW140: 2 | DX140: 2.8 | DY140: 4.3 | DZ140: -2.2 | EA140: -8.9 | EB140: -5.6 | EC140: -5.6 | ED140: -5.6 | EE140: -5.6 | EF140: -8
A141: 5.125 | B141: 2011-01-06 | C141: 03:00:00 | D141: 4.4 | E141: 38.3 | F141: WEEKDAY | G141: On | H141: 1976-01-06 | I141: 03:00:00 | J141: -7.2 | K141: 35.96 | N141: 2003-01-06 | O141: 03:00:00 | P141: -1 | Q141: 35.24 | T141: 1999-01-06 | U141: 03:00:00 | V141: -6.1 | W141: 37.04 | AB141: -5.6 | AC141: 39.2 | AH141: -3 | AI141: 28.4 | AN141: -5.6 | AO141: 14 | AT141: -8.3 | AU141: 21.2 | AZ141: -12.2 | BA141: 21.2 | BF141: -10.6 | BG141: 21.92 | BL141: -7.2 | BM141: 23 | BR141: -5 | BS141: 17.6 | DT141: 123 | DU141: 3.5 | DV141: 2.2 | DW141: 1.8 | DX141: 2.8 | DY141: 4 | DZ141: -2 | EA141: -10 | EB141: -6 | EC141: -6 | ED141: -5.6 | EE141: -5 | EF141: -8
A142: 5.166666667 | B142: 2011-01-06 | C142: 04:00:00 | D142: 3.9 | E142: 38.3 | F142: WEEKDAY | G142: On | H142: 1976-01-06 | I142: 04:00:00 | J142: -6.7 | K142: 35.96 | N142: 2003-01-06 | O142: 04:00:00 | P142: -1 | Q142: 35.24 | T142: 1999-01-06 | U142: 04:00:00 | V142: -6.7 | W142: 35.96 | AB142: -6.1 | AC142: 38.3 | AH142: -3 | AI142: 28.4 | AN142: -5.6 | AO142: 15.08 | AT142: -6.1 | AU142: 19.94 | AZ142: -12.8 | BA142: 19.94 | BF142: -11.1 | BG142: 21.02 | BL142: -7.2 | BM142: 24.08 | BR142: -6.1 | BS142: 19.4 | DT142: 124 | DU142: 3.5 | DV142: 2.2 | DW142: 1.8 | DX142: 2.2 | DY142: 3.5 | DZ142: -2 | EA142: -9.4 | EB142: -6.7 | EC142: -6.7 | ED142: -6.1 | EE142: -4.4 | EF142: -7
A143: 5.208333333 | B143: 2011-01-06 | C143: 05:00:00 | D143: 4.4 | E143: 38.3 | F143: WEEKDAY | G143: On | H143: 1976-01-06 | I143: 05:00:00 | J143: -6.7 | K143: 35.96 | N143: 2003-01-06 | O143: 05:00:00 | P143: -1 | Q143: 34.88 | T143: 1999-01-06 | U143: 05:00:00 | V143: -7.2 | W143: 35.96 | AB143: -7.2 | AC143: 37.58 | AH143: -4 | AI143: 28.4 | AN143: -5.6 | AO143: 15.08 | AT143: -5 | AU143: 19.94 | AZ143: -13.3 | BA143: 19.94 | BF143: -11.7 | BG143: 21.02 | BL143: -7.9 | BM143: 21.92 | BR143: -6.7 | BS143: 17.6 | DT143: 125 | DU143: 3.5 | DV143: 2.2 | DW143: 1.6 | DX143: 2.2 | DY143: 3.1 | DZ143: -2 | EA143: -9.4 | EB143: -6.7 | EC143: -6.7 | ED143: -6.1 | EE143: -5.6 | EF143: -8
A144: 5.25 | B144: 2011-01-06 | C144: 06:00:00 | D144: 4.4 | E144: 38.48 | F144: WEEKDAY | G144: On | H144: 1976-01-06 | I144: 06:00:00 | J144: -6.7 | K144: 35.06 | N144: 2003-01-06 | O144: 06:00:00 | P144: -1 | Q144: 33.98 | T144: 1999-01-06 | U144: 06:00:00 | V144: -7.2 | W144: 35.96 | AB144: -7.2 | AC144: 36.14 | AH144: -4 | AI144: 26.96 | AN144: -5.6 | AO144: 12.92 | AT144: -4.4 | AU144: 17.96 | AZ144: -13.9 | BA144: 19.04 | BF144: -11.7 | BG144: 21.92 | BL144: -8.7 | BM144: 21.92 | BR144: -7.2 | BS144: 17.6 | DT144: 126 | DU144: 3.6 | DV144: 1.7 | DW144: 1.1 | DX144: 2.2 | DY144: 2.3 | DZ144: -2.8 | EA144: -10.6 | EB144: -7.8 | EC144: -7.2 | ED144: -5.6 | EE144: -5.6 | EF144: -8
A145: 5.291666667 | B145: 2011-01-06 | C145: 07:00:00 | D145: 4.4 | E145: 39.02 | F145: WEEKDAY | G145: On | H145: 1976-01-06 | I145: 07:00:00 | J145: -6.7 | K145: 35.06 | N145: 2003-01-06 | O145: 07:00:00 | P145: -1 | Q145: 33.98 | T145: 1999-01-06 | U145: 07:00:00 | V145: -7.2 | W145: 35.42 | AB145: -6.1 | AC145: 36.5 | AH145: -4 | AI145: 28.4 | AN145: -5.6 | AO145: 15.98 | AT145: -3.9 | AU145: 17.96 | AZ145: -14.4 | BA145: 19.04 | BF145: -12.2 | BG145: 21.02 | BL145: -9.4 | BM145: 23 | BR145: -7.8 | BS145: 17.6 | DT145: 127 | DU145: 3.9 | DV145: 1.7 | DW145: 1.1 | DX145: 1.9 | DY145: 2.5 | DZ145: -2 | EA145: -8.9 | EB145: -7.8 | EC145: -7.2 | ED145: -6.1 | EE145: -5 | EF145: -8
A146: 5.333333333 | B146: 2011-01-06 | C146: 08:00:00 | D146: 4.4 | E146: 39.56 | F146: WEEKDAY | G146: On | H146: 1976-01-06 | I146: 08:00:00 | J146: -6.1 | K146: 35.06 | N146: 2003-01-06 | O146: 08:00:00 | P146: -1 | Q146: 33.98 | T146: 1999-01-06 | U146: 08:00:00 | V146: -6.7 | W146: 35.42 | AB146: -4.4 | AC146: 37.4 | AH146: -4 | AI146: 28.4 | AN146: -5 | AO146: 12.92 | AT146: -3.3 | AU146: 17.96 | AZ146: -12.7 | BA146: 19.04 | BF146: -13.3 | BG146: 21.92 | BL146: -9.4 | BM146: 21.92 | BR146: -6.7 | BS146: 17.6 | DT146: 128 | DU146: 4.2 | DV146: 1.7 | DW146: 1.1 | DX146: 1.9 | DY146: 3 | DZ146: -2 | EA146: -10.6 | EB146: -7.8 | EC146: -7.2 | ED146: -5.6 | EE146: -5.6 | EF146: -8
A147: 5.375 | B147: 2011-01-06 | C147: 09:00:00 | D147: 5.6 | E147: 40.46 | F147: =IF(WEEKDAY(B147)=1,"SUNDAY",IF(WEEKDAY(B147)=7,"SATURDAY","WEEKDAY")) -> WEEKDAY | G147: =IFERROR(IF(F147="WEEKDAY",VLOOKUP(C147,$DE$19:$DH$42,2),IF(F147="SATURDAY",VLOOKUP(C147,$DE$19:$DH$42,3),VLOOKUP(C147,$DE$19:$DH$42,4))),"On") -> On | H147: 1976-01-06 | I147: 09:00:00 | J147: -5 | K147: 35.96 | N147: 2003-01-06 | O147: 09:00:00 | P147: -1 | Q147: 34.16 | T147: 1999-01-06 | U147: 09:00:00 | V147: -5 | W147: 35.78 | AB147: -1.1 | AC147: 37.94 | AH147: -3.6 | AI147: 32 | AN147: -6.7 | AO147: 17.96 | AT147: -3.3 | AU147: 19.94 | AZ147: -11.1 | BA147: 19.94 | BF147: -10.6 | BG147: 26.06 | BL147: -9.4 | BM147: 24.98 | BR147: -7.2 | BS147: 17.6 | BV147: =$BV$12-($BV$13/2)*COS((A147-$BV$14)*(2*PI()/365)) ->  | DT147: 129 | DU147: 4.7 | DV147: 2.2 | DW147: 1.2 | DX147: 2.1 | DY147: 3.3 | DZ147: 0 | EA147: -7.8 | EB147: -6.7 | EC147: -6.7 | ED147: -3.3 | EE147: -3.9 | EF147: -8
A148: 5.416666667 | B148: 2011-01-06 | C148: 10:00:00 | D148: 5.6 | E148: =CONVERT(CHOOSE($D$9,D148,DU148), "C", "F") -> 42.08 | F148: WEEKDAY | G148: On | H148: 1976-01-06 | I148: 10:00:00 | J148: -3.9 | K148: =CONVERT(CHOOSE($D$9,J148,DV148), "C", "F") -> 36.5 | N148: 2003-01-06 | O148: 10:00:00 | P148: -1 | Q148: =CONVERT(CHOOSE($D$9,P148,DW148), "C", "F") -> 34.7 | T148: 1999-01-06 | U148: 10:00:00 | V148: -4.4 | W148: =CONVERT(CHOOSE($D$9,V148,DX148), "C", "F") -> 36.68 | AB148: 0.6 | AC148: =CONVERT(CHOOSE($D$9,AB148,DY148), "C", "F") -> 37.4 | AH148: -3 | AI148: =CONVERT(CHOOSE($D$9,AH148,DZ148), "C", "F") -> 33.98 | AN148: -6.7 | AO148: =CONVERT(CHOOSE($D$9,AN148,EA148), "C", "F") -> 23 | AT148: -2.8 | AU148: =CONVERT(CHOOSE($D$9,AT148,EB148), "C", "F") -> 21.92 | AZ148: -9.4 | BA148: =CONVERT(CHOOSE($D$9,AZ148,EC148), "C", "F") -> 19.94 | BF148: -7.2 | BG148: =CONVERT(CHOOSE($D$9,BF148,ED148), "C", "F") -> 30.02 | BL148: -9.4 | BM148: =CONVERT(CHOOSE($D$9,BL148,EE148), "C", "F") -> 28.94 | BR148: -8.3 | BS148: =CONVERT(CHOOSE($D$9,BR148,EF148), "C", "F") -> 15.08 | DT148: 130 | DU148: 5.6 | DV148: 2.5 | DW148: 1.5 | DX148: 2.6 | DY148: 3 | DZ148: 1.1 | EA148: -5 | EB148: -5.6 | EC148: -6.7 | ED148: -1.1 | EE148: -1.7 | EF148: -9.4
A149: =A148+1/24 -> 5.458333333 | B149: 2011-01-06 | C149: 11:00:00 | D149: 6.1 | E149: 46.94 | F149: WEEKDAY | G149: On | H149: 1976-01-06 | I149: 11:00:00 | J149: -2.8 | K149: 39.02 | N149: 2003-01-06 | O149: 11:00:00 | P149: -1 | Q149: 35.96 | T149: 1999-01-06 | U149: 11:00:00 | V149: -3.9 | W149: 39.02 | AB149: 2.8 | AC149: 39.2 | AH149: -3 | AI149: 33.08 | AN149: -6.1 | AO149: 26.96 | AT149: -3.3 | AU149: 21.92 | AZ149: -7.6 | BA149: 19.94 | BF149: -5.6 | BG149: 30.02 | BL149: -7.9 | BM149: 32 | BR149: -8.9 | BS149: 15.8 | DT149: 131 | DU149: 8.3 | DV149: 3.9 | DW149: 2.2 | DX149: 3.9 | DY149: 4 | DZ149: 0.6 | EA149: -2.8 | EB149: -5.6 | EC149: -6.7 | ED149: -1.1 | EE149: 0 | EF149: -9
A150: 5.5 | B150: 2011-01-06 | C150: 12:00:00 | D150: 6.1 | E150: 46.94 | F150: WEEKDAY | G150: On | H150: 1976-01-06 | I150: 12:00:00 | J150: -2.2 | K150: 38.12 | N150: 2003-01-06 | O150: 12:00:00 | P150: -1 | Q150: 37.04 | T150: 1999-01-06 | U150: 12:00:00 | V150: -2.8 | W150: 38.3 | AB150: 3.9 | AC150: 39.38 | AH150: -1 | AI150: 34.52 | AN150: -5.6 | AO150: 28.94 | AT150: -5 | AU150: 24.08 | AZ150: -5.7 | BA150: 21.2 | BF150: -3.9 | BG150: 32.72 | BL150: -6.5 | BM150: 33.08 | BR150: -9.4 | BS150: 17.06 | DT150: 132 | DU150: 8.3 | DV150: 3.4 | DW150: 2.8 | DX150: 3.5 | DY150: 4.1 | DZ150: 1.4 | EA150: -1.7 | EB150: -4.4 | EC150: -6 | ED150: 0.4 | EE150: 0.6 | EF150: -8.3
A151: 5.541666667 | B151: 2011-01-06 | C151: 13:00:00 | D151: 6.7 | E151: 48.92 | F151: WEEKDAY | G151: On | H151: 1976-01-06 | I151: 13:00:00 | J151: -1.7 | K151: 39.02 | N151: 2003-01-06 | O151: 13:00:00 | P151: 0 | Q151: 37.94 | T151: 1999-01-06 | U151: 13:00:00 | V151: -2.2 | W151: 39.2 | AB151: 5 | AC151: 39.92 | AH151: -1 | AI151: 36.68 | AN151: -6.1 | AO151: 30.92 | AT151: -5.6 | AU151: 24.8 | AZ151: -3.9 | BA151: 21.2 | BF151: -3.3 | BG151: 33.98 | BL151: -5 | BM151: 35.42 | BR151: -8.9 | BS151: 17.06 | DT151: 133 | DU151: 9.4 | DV151: 3.9 | DW151: 3.3 | DX151: 4 | DY151: 4.4 | DZ151: 2.6 | EA151: -0.6 | EB151: -4 | EC151: -6 | ED151: 1.1 | EE151: 1.9 | EF151: -8.3
A152: 5.583333333 | B152: 2011-01-06 | C152: 14:00:00 | D152: 5.6 | E152: 48.92 | F152: WEEKDAY | G152: On | H152: 1976-01-06 | I152: 14:00:00 | J152: -1.1 | K152: 39.92 | N152: 2003-01-06 | O152: 14:00:00 | P152: -0.4 | Q152: 39.02 | T152: 1999-01-06 | U152: 14:00:00 | V152: -1.7 | W152: 39.92 | AB152: 5.6 | AC152: 41 | AH152: 0 | AI152: 38.48 | AN152: -6.7 | AO152: 33.8 | AT152: -5 | AU152: 24.08 | AZ152: -4.1 | BA152: 23 | BF152: -2.8 | BG152: 33.98 | BL152: -4.8 | BM152: 37.04 | BR152: -10 | BS152: 17.96 | DT152: 134 | DU152: 9.4 | DV152: 4.4 | DW152: 3.9 | DX152: 4.4 | DY152: 5 | DZ152: 3.6 | EA152: 1 | EB152: -4.4 | EC152: -5 | ED152: 1.1 | EE152: 2.8 | EF152: -7.8
A153: 5.625 | B153: 2011-01-06 | C153: 15:00:00 | D153: 5.6 | E153: 48.02 | F153: WEEKDAY | G153: On | H153: 1976-01-06 | I153: 15:00:00 | J153: -0.6 | K153: 39.92 | N153: 2003-01-06 | O153: 15:00:00 | P153: -1 | Q153: 39.02 | T153: 1999-01-06 | U153: 15:00:00 | V153: -0.6 | W153: 42.08 | AB153: 5 | AC153: 42.98 | AH153: 1 | AI153: 39.56 | AN153: -6.1 | AO153: 35.78 | AT153: -4.4 | AU153: 24.8 | AZ153: -4.2 | BA153: 21.92 | BF153: -2.2 | BG153: 35.06 | BL153: -4.6 | BM153: 39.02 | BR153: -9.4 | BS153: 17.96 | DT153: 135 | DU153: 8.9 | DV153: 4.4 | DW153: 3.9 | DX153: 5.6 | DY153: 6.1 | DZ153: 4.2 | EA153: 2.1 | EB153: -4 | EC153: -5.6 | ED153: 1.7 | EE153: 3.9 | EF153: -7.8
A154: 5.666666667 | B154: 2011-01-06 | C154: 16:00:00 | D154: 5 | E154: 46.04 | F154: WEEKDAY | G154: On | H154: 1976-01-06 | I154: 16:00:00 | J154: -1.1 | K154: 39.02 | N154: 2003-01-06 | O154: 16:00:00 | P154: -1 | Q154: 37.94 | T154: 1999-01-06 | U154: 16:00:00 | V154: 0 | W154: 39.92 | AB154: 5 | AC154: 42.08 | AH154: 0 | AI154: 40.64 | AN154: -7.2 | AO154: 36.86 | AT154: -5 | AU154: 24.8 | AZ154: -4.4 | BA154: 21.2 | BF154: -2.2 | BG154: 35.06 | BL154: -4.4 | BM154: 39.02 | BR154: -10 | BS154: 19.04 | DT154: 136 | DU154: 7.8 | DV154: 3.9 | DW154: 3.3 | DX154: 4.4 | DY154: 5.6 | DZ154: 4.8 | EA154: 2.7 | EB154: -4 | EC154: -6 | ED154: 1.7 | EE154: 3.9 | EF154: -7.2
A155: 5.708333333 | B155: 2011-01-06 | C155: 17:00:00 | D155: 5.6 | E155: 46.04 | F155: WEEKDAY | G155: On | H155: 1976-01-06 | I155: 17:00:00 | J155: -0.6 | K155: 39.2 | N155: 2003-01-06 | O155: 17:00:00 | P155: -1 | Q155: 37.58 | T155: 1999-01-06 | U155: 17:00:00 | V155: 0 | W155: 39.92 | AB155: 4.4 | AC155: 44.06 | AH155: 0 | AI155: 41 | AN155: -7.8 | AO155: 36.86 | AT155: -5 | AU155: 24.08 | AZ155: -5.7 | BA155: 21.92 | BF155: -3.3 | BG155: 35.06 | BL155: -5.2 | BM155: 37.04 | BR155: -11.7 | BS155: 17.96 | DT155: 137 | DU155: 7.8 | DV155: 4 | DW155: 3.1 | DX155: 4.4 | DY155: 6.7 | DZ155: 5 | EA155: 2.7 | EB155: -4.4 | EC155: -5.6 | ED155: 1.7 | EE155: 2.8 | EF155: -7.8
A156: 5.75 | B156: 2011-01-06 | C156: 18:00:00 | D156: 5 | E156: 41 | F156: WEEKDAY | G156: On | H156: 1976-01-06 | I156: 18:00:00 | J156: -1.1 | K156: 37.4 | N156: 2003-01-06 | O156: 18:00:00 | P156: -2 | Q156: 35.06 | T156: 1999-01-06 | U156: 18:00:00 | V156: -0.6 | W156: 37.04 | AB156: 4.4 | AC156: 42.98 | AH156: 1 | AI156: 37.94 | AN156: -8.3 | AO156: 28.94 | AT156: -5.6 | AU156: 23 | AZ156: -7 | BA156: 23 | BF156: -3.9 | BG156: 30.92 | BL156: -5.9 | BM156: 32.36 | BR156: -13.3 | BS156: 19.04 | DT156: 138 | DU156: 5 | DV156: 3 | DW156: 1.7 | DX156: 2.8 | DY156: 6.1 | DZ156: 3.3 | EA156: -1.7 | EB156: -5 | EC156: -5 | ED156: -0.6 | EE156: 0.2 | EF156: -7.2
A157: 5.791666667 | B157: 2011-01-06 | C157: 19:00:00 | D157: 5 | E157: 39.02 | F157: WEEKDAY | G157: On | H157: 1976-01-06 | I157: 19:00:00 | J157: -1.1 | K157: 35.96 | N157: 2003-01-06 | O157: 19:00:00 | P157: -2 | Q157: 35.06 | T157: 1999-01-06 | U157: 19:00:00 | V157: -0.6 | W157: 37.58 | AB157: 5 | AC157: 42.98 | AH157: 0 | AI157: 36.68 | AN157: -8.3 | AO157: 30.02 | AT157: -5.6 | AU157: 23 | AZ157: -8.3 | BA157: 24.08 | BF157: -3.9 | BG157: 30.92 | BL157: -6.7 | BM157: 26.96 | BR157: -14.4 | BS157: 19.4 | DT157: 139 | DU157: 3.9 | DV157: 2.2 | DW157: 1.7 | DX157: 3.1 | DY157: 6.1 | DZ157: 2.6 | EA157: -1.1 | EB157: -5 | EC157: -4.4 | ED157: -0.6 | EE157: -2.8 | EF157: -7
A158: 5.833333333 | B158: 2011-01-06 | C158: 20:00:00 | D158: 5 | E158: 39.02 | F158: WEEKDAY | G158: On | H158: 1976-01-06 | I158: 20:00:00 | J158: -1.1 | K158: 35.96 | N158: 2003-01-06 | O158: 20:00:00 | P158: -2 | Q158: 34.7 | T158: 1999-01-06 | U158: 20:00:00 | V158: -0.6 | W158: 35.96 | AB158: 4.4 | AC158: 42.8 | AH158: 0 | AI158: 35.78 | AN158: -8.9 | AO158: 30.02 | AT158: -5.6 | AU158: 23 | AZ158: -7.8 | BA158: 24.08 | BF158: -3.3 | BG158: 30.92 | BL158: -6.1 | BM158: 26.96 | BR158: -14.4 | BS158: 17.96 | DT158: 140 | DU158: 3.9 | DV158: 2.2 | DW158: 1.5 | DX158: 2.2 | DY158: 6 | DZ158: 2.1 | EA158: -1.1 | EB158: -5 | EC158: -4.4 | ED158: -0.6 | EE158: -2.8 | EF158: -7.8
A159: 5.875 | B159: 2011-01-06 | C159: 21:00:00 | D159: 5 | E159: 37.58 | F159: WEEKDAY | G159: On | H159: 1976-01-06 | I159: 21:00:00 | J159: -1.1 | K159: 35.96 | N159: 2003-01-06 | O159: 21:00:00 | P159: -2 | Q159: 34.52 | T159: 1999-01-06 | U159: 21:00:00 | V159: 0 | W159: 36.5 | AB159: 3.3 | AC159: 42.62 | AH159: 0 | AI159: 35.96 | AN159: -10 | AO159: 26.06 | AT159: -5.6 | AU159: 24.08 | AZ159: -7.2 | BA159: 26.6 | BF159: -1.7 | BG159: 26.06 | BL159: -5.6 | BM159: 24.08 | BR159: -15 | BS159: 17.96 | DT159: 141 | DU159: 3.1 | DV159: 2.2 | DW159: 1.4 | DX159: 2.5 | DY159: 5.9 | DZ159: 2.2 | EA159: -3.3 | EB159: -4.4 | EC159: -3 | ED159: -3.3 | EE159: -4.4 | EF159: -7.8
A160: 5.916666667 | B160: 2011-01-06 | C160: 22:00:00 | D160: 4.4 | E160: 35.06 | F160: WEEKDAY | G160: On | H160: 1976-01-06 | I160: 22:00:00 | J160: -1.7 | K160: 35.96 | N160: 2003-01-06 | O160: 22:00:00 | P160: -2 | Q160: 34.7 | T160: 1999-01-06 | U160: 22:00:00 | V160: -0.6 | W160: 35.96 | AB160: -1.1 | AC160: 42.08 | AH160: 0 | AI160: 34.7 | AN160: -10.6 | AO160: 26.96 | AT160: -6.7 | AU160: 24.98 | AZ160: -6.7 | BA160: 24.8 | BF160: -1.7 | BG160: 26.96 | BL160: -5 | BM160: 23 | BR160: -15 | BS160: 17.06 | DT160: 142 | DU160: 1.7 | DV160: 2.2 | DW160: 1.5 | DX160: 2.2 | DY160: 5.6 | DZ160: 1.5 | EA160: -2.8 | EB160: -3.9 | EC160: -4 | ED160: -2.8 | EE160: -5 | EF160: -8.3
A161: 5.958333333 | B161: 2011-01-06 | C161: 23:00:00 | D161: 4.4 | E161: 33.44 | F161: WEEKDAY | G161: On | H161: 1976-01-06 | I161: 23:00:00 | J161: -1.7 | K161: 35.06 | N161: 2003-01-06 | O161: 23:00:00 | P161: -3 | Q161: 34.16 | T161: 1999-01-06 | U161: 23:00:00 | V161: 0.6 | W161: 35.96 | AB161: -1.7 | AC161: 41.36 | AH161: 1 | AI161: 33.98 | AN161: -10.6 | AO161: 24.98 | AT161: -6.7 | AU161: 24.98 | AZ161: -5 | BA161: 24.98 | BF161: -0.6 | BG161: 26.96 | BL161: -3.7 | BM161: 21.92 | BR161: -15.6 | BS161: 17.96 | DT161: 143 | DU161: 0.8 | DV161: 1.7 | DW161: 1.2 | DX161: 2.2 | DY161: 5.2 | DZ161: 1.1 | EA161: -3.9 | EB161: -3.9 | EC161: -3.9 | ED161: -2.8 | EE161: -5.6 | EF161: -7.8
A162: 6 | B162: 2011-01-06 | C162: 1 | D162: 4.4 | E162: 32.9 | F162: WEEKDAY | G162: On | H162: 1976-01-06 | I162: 1 | J162: -1.7 | K162: 35.06 | N162: 2003-01-06 | O162: 1 | P162: -3 | Q162: 33.98 | T162: 1999-01-06 | U162: 1 | V162: 0.6 | W162: 35.24 | AB162: -2.2 | AC162: 40.64 | AH162: 1 | AI162: 32.9 | AN162: -11.7 | AO162: 24.98 | AT162: -7.2 | AU162: 24.98 | AZ162: -3.4 | BA162: 24.8 | BF162: 0.6 | BG162: 26.96 | BL162: -2.4 | BM162: 21.92 | BR162: -15.6 | BS162: 19.04 | DT162: 144 | DU162: 0.5 | DV162: 1.7 | DW162: 1.1 | DX162: 1.8 | DY162: 4.8 | DZ162: 0.5 | EA162: -3.9 | EB162: -3.9 | EC162: -4 | ED162: -2.8 | EE162: -5.6 | EF162: -7.2
A163: 6.041666667 | B163: 2011-01-07 | C163: 01:00:00 | D163: 3.9 | E163: 32 | F163: WEEKDAY | G163: On | H163: 1976-01-07 | I163: 01:00:00 | J163: -1.7 | K163: 34.7 | N163: 2003-01-07 | O163: 01:00:00 | P163: -3 | Q163: 33.8 | T163: 1999-01-07 | U163: 01:00:00 | V163: 0.6 | W163: 34.88 | AB163: -2.8 | AC163: 40.28 | AH163: 1 | AI163: 35.06 | AN163: -11.7 | AO163: 24.08 | AT163: -7.2 | AU163: 24.98 | AZ163: -1.7 | BA163: 24.8 | BF163: 1.1 | BG163: 26.96 | BL163: -1.1 | BM163: 24.98 | BR163: -16.1 | BS163: 19.04 | DT163: 145 | DU163: 0 | DV163: 1.5 | DW163: 1 | DX163: 1.6 | DY163: 4.6 | DZ163: 1.7 | EA163: -4.4 | EB163: -3.9 | EC163: -4 | ED163: -2.8 | EE163: -3.9 | EF163: -7.2
A164: 6.083333333 | B164: 2011-01-07 | C164: 02:00:00 | D164: 3.3 | E164: 30.92 | F164: WEEKDAY | G164: On | H164: 1976-01-07 | I164: 02:00:00 | J164: -1.1 | K164: 33.98 | N164: 2003-01-07 | O164: 02:00:00 | P164: -3 | Q164: 33.08 | T164: 1999-01-07 | U164: 02:00:00 | V164: 0.6 | W164: 33.98 | AB164: -2.2 | AC164: 40.46 | AH164: 0 | AI164: 35.96 | AN164: -12.2 | AO164: 24.08 | AT164: -7.2 | AU164: 24.98 | AZ164: -1.3 | BA164: 24.98 | BF164: 1.7 | BG164: 26.96 | BL164: -0.7 | BM164: 24.98 | BR164: -17.2 | BS164: 19.04 | DT164: 146 | DU164: -0.6 | DV164: 1.1 | DW164: 0.6 | DX164: 1.1 | DY164: 4.7 | DZ164: 2.2 | EA164: -4.4 | EB164: -3.9 | EC164: -3.9 | ED164: -2.8 | EE164: -3.9 | EF164: -7.2
A165: 6.125 | B165: 2011-01-07 | C165: 03:00:00 | D165: 2.8 | E165: 30.02 | F165: WEEKDAY | G165: On | H165: 1976-01-07 | I165: 03:00:00 | J165: -1.7 | K165: 33.98 | N165: 2003-01-07 | O165: 03:00:00 | P165: -3 | Q165: 32.9 | T165: 1999-01-07 | U165: 03:00:00 | V165: 1.1 | W165: 33.98 | AB165: -1.7 | AC165: 39.74 | AH165: 2 | AI165: 33.98 | AN165: -12.8 | AO165: 23 | AT165: -7.8 | AU165: 26.06 | AZ165: -1 | BA165: 24.98 | BF165: 2.8 | BG165: 24.98 | BL165: -0.4 | BM165: 24.98 | BR165: -17.8 | BS165: 19.04 | DT165: 147 | DU165: -1.1 | DV165: 1.1 | DW165: 0.5 | DX165: 1.1 | DY165: 4.3 | DZ165: 1.1 | EA165: -5 | EB165: -3.3 | EC165: -3.9 | ED165: -3.9 | EE165: -3.9 | EF165: -7.2
A166: 6.166666667 | B166: 2011-01-07 | C166: 04:00:00 | D166: 2.8 | E166: 28.94 | F166: WEEKDAY | G166: On | H166: 1976-01-07 | I166: 04:00:00 | J166: -1.7 | K166: 33.08 | N166: 2003-01-07 | O166: 04:00:00 | P166: -4 | Q166: 32 | T166: 1999-01-07 | U166: 04:00:00 | V166: 1.1 | W166: 33.44 | AB166: -1.7 | AC166: 39.38 | AH166: 2 | AI166: 30.02 | AN166: -12.8 | AO166: 24.08 | AT166: -8.3 | AU166: 26.06 | AZ166: -0.6 | BA166: 24.98 | BF166: 2.2 | BG166: 24.08 | BL166: 0 | BM166: 24.08 | BR166: -18.3 | BS166: 19.94 | DT166: 148 | DU166: -1.7 | DV166: 0.6 | DW166: 0 | DX166: 0.8 | DY166: 4.1 | DZ166: -1.1 | EA166: -4.4 | EB166: -3.3 | EC166: -3.9 | ED166: -4.4 | EE166: -4.4 | EF166: -6.7
A167: 6.208333333 | B167: 2011-01-07 | C167: 05:00:00 | D167: 2.8 | E167: 28.94 | F167: WEEKDAY | G167: On | H167: 1976-01-07 | I167: 05:00:00 | J167: -1.7 | K167: 32.9 | N167: 2003-01-07 | O167: 05:00:00 | P167: -4 | Q167: 28.94 | T167: 1999-01-07 | U167: 05:00:00 | V167: 1.1 | W167: 33.08 | AB167: -2.2 | AC167: 38.84 | AH167: 2 | AI167: 32.18 | AN167: -13.3 | AO167: 19.94 | AT167: -8.9 | AU167: 26.06 | AZ167: -0.4 | BA167: 24.98 | BF167: 0 | BG167: 24.08 | BL167: -0.6 | BM167: 19.94 | BR167: -20 | BS167: 21.02 | DT167: 149 | DU167: -1.7 | DV167: 0.5 | DW167: -1.7 | DX167: 0.6 | DY167: 3.8 | DZ167: 0.1 | EA167: -6.7 | EB167: -3.3 | EC167: -3.9 | ED167: -4.4 | EE167: -6.7 | EF167: -6.1
A168: 6.25 | B168: 2011-01-07 | C168: 06:00:00 | D168: 2.2 | E168: 26.96 | F168: WEEKDAY | G168: On | H168: 1976-01-07 | I168: 06:00:00 | J168: -1.7 | K168: 32 | N168: 2003-01-07 | O168: 06:00:00 | P168: -4 | Q168: 28.94 | T168: 1999-01-07 | U168: 06:00:00 | V168: 0.6 | W168: 32.54 | AB168: -1.7 | AC168: 37.94 | AH168: 2 | AI168: 33.08 | AN168: -13.9 | AO168: 19.04 | AT168: -9.4 | AU168: 26.06 | AZ168: -0.2 | BA168: 24.98 | BF168: 0 | BG168: 23 | BL168: -1.1 | BM168: 21.92 | BR168: -21.1 | BS168: 21.92 | DT168: 150 | DU168: -2.8 | DV168: 0 | DW168: -1.7 | DX168: 0.3 | DY168: 3.3 | DZ168: 0.6 | EA168: -7.2 | EB168: -3.3 | EC168: -3.9 | ED168: -5 | EE168: -5.6 | EF168: -5.6
A169: 6.291666667 | B169: 2011-01-07 | C169: 07:00:00 | D169: 2.2 | E169: 26.06 | F169: WEEKDAY | G169: On | H169: 1976-01-07 | I169: 07:00:00 | J169: -1.1 | K169: 32 | N169: 2003-01-07 | O169: 07:00:00 | P169: -4 | Q169: 28.94 | T169: 1999-01-07 | U169: 07:00:00 | V169: 1.7 | W169: 32.36 | AB169: 0.6 | AC169: 37.76 | AH169: 2 | AI169: 33.62 | AN169: -13.9 | AO169: 19.04 | AT169: -9.4 | AU169: 26.06 | AZ169: 0 | BA169: 26.06 | BF169: 1.7 | BG169: 21.92 | BL169: -1.7 | BM169: 21.92 | BR169: -23.9 | BS169: 21.92 | DT169: 151 | DU169: -3.3 | DV169: 0 | DW169: -1.7 | DX169: 0.2 | DY169: 3.2 | DZ169: 0.9 | EA169: -7.2 | EB169: -3.3 | EC169: -3.3 | ED169: -5.6 | EE169: -5.6 | EF169: -5.6
A170: 6.333333333 | B170: 2011-01-07 | C170: 08:00:00 | D170: 2.2 | E170: 26.06 | F170: WEEKDAY | G170: On | H170: 1976-01-07 | I170: 08:00:00 | J170: -0.6 | K170: 32.18 | N170: 2003-01-07 | O170: 08:00:00 | P170: -4 | Q170: 28.94 | T170: 1999-01-07 | U170: 08:00:00 | V170: 1.7 | W170: 32.54 | AB170: 2.2 | AC170: 38.12 | AH170: 1 | AI170: 33.8 | AN170: -15 | AO170: 19.04 | AT170: -9.4 | AU170: 26.06 | AZ170: 0.6 | BA170: 26.06 | BF170: 2.2 | BG170: 21.92 | BL170: -0.6 | BM170: 21.92 | BR170: -23.3 | BS170: 23 | DT170: 152 | DU170: -3.3 | DV170: 0.1 | DW170: -1.7 | DX170: 0.3 | DY170: 3.4 | DZ170: 1 | EA170: -7.2 | EB170: -3.3 | EC170: -3.3 | ED170: -5.6 | EE170: -5.6 | EF170: -5
A171: 6.375 | B171: 2011-01-07 | C171: 09:00:00 | D171: 2.2 | E171: 26.06 | F171: WEEKDAY | G171: On | H171: 1976-01-07 | I171: 09:00:00 | J171: 0.6 | K171: 32.18 | N171: 2003-01-07 | O171: 09:00:00 | P171: -4 | Q171: 30.02 | T171: 1999-01-07 | U171: 09:00:00 | V171: 1.7 | W171: 32.72 | AB171: 5.6 | AC171: 39.02 | AH171: 1 | AI171: 35.06 | AN171: -13.3 | AO171: 21.92 | AT171: -9.4 | AU171: 26.6 | AZ171: 1.1 | BA171: 24.8 | BF171: 2.2 | BG171: 24.08 | BL171: 0.6 | BM171: 23 | BR171: -20.6 | BS171: 24.08 | DT171: 153 | DU171: -3.3 | DV171: 0.1 | DW171: -1.1 | DX171: 0.4 | DY171: 3.9 | DZ171: 1.7 | EA171: -5.6 | EB171: -3 | EC171: -4 | ED171: -4.4 | EE171: -5 | EF171: -4.4
A172: 6.416666667 | B172: 2011-01-07 | C172: 10:00:00 | D172: 2.2 | E172: 26.06 | F172: WEEKDAY | G172: On | H172: 1976-01-07 | I172: 10:00:00 | J172: 2.2 | K172: 33.08 | N172: 2003-01-07 | O172: 10:00:00 | P172: -4 | Q172: 32.18 | T172: 1999-01-07 | U172: 10:00:00 | V172: 0 | W172: 33.8 | AB172: 6.7 | AC172: 39.2 | AH172: 1.1 | AI172: 36.32 | AN172: -12.2 | AO172: 24.98 | AT172: -8.9 | AU172: 28.04 | AZ172: 1.7 | BA172: 24.8 | BF172: 0.6 | BG172: 28.04 | BL172: 1.7 | BM172: 28.04 | BR172: -18.9 | BS172: 24.98 | DT172: 154 | DU172: -3.3 | DV172: 0.6 | DW172: 0.1 | DX172: 1 | DY172: 4 | DZ172: 2.4 | EA172: -3.9 | EB172: -2.2 | EC172: -4 | ED172: -2.2 | EE172: -2.2 | EF172: -3.9
A173: 6.458333333 | B173: 2011-01-07 | C173: 11:00:00 | D173: 2.2 | E173: 26.06 | F173: WEEKDAY | G173: On | H173: 1976-01-07 | I173: 11:00:00 | J173: 2.8 | K173: 35.06 | N173: 2003-01-07 | O173: 11:00:00 | P173: -4 | Q173: 34.7 | T173: 1999-01-07 | U173: 11:00:00 | V173: 0 | W173: 35.06 | AB173: 8.3 | AC173: 41 | AH173: 1 | AI173: 37.04 | AN173: -11.1 | AO173: 30.02 | AT173: -8.3 | AU173: 28.04 | AZ173: 2.6 | BA173: 24.08 | BF173: 0 | BG173: 28.04 | BL173: 1.3 | BM173: 33.08 | BR173: -18.3 | BS173: 34.16 | DT173: 155 | DU173: -3.3 | DV173: 1.7 | DW173: 1.5 | DX173: 1.7 | DY173: 5 | DZ173: 2.8 | EA173: -1.1 | EB173: -2.2 | EC173: -4.4 | ED173: -2.2 | EE173: 0.6 | EF173: 1.2
A174: 6.5 | B174: 2011-01-07 | C174: 12:00:00 | D174: 2.2 | E174: 28.04 | F174: WEEKDAY | G174: On | H174: 1976-01-07 | I174: 12:00:00 | J174: 2.8 | K174: 37.04 | N174: 2003-01-07 | O174: 12:00:00 | P174: -4 | Q174: 35.96 | T174: 1999-01-07 | U174: 12:00:00 | V174: 0.6 | W174: 37.04 | AB174: 8.9 | AC174: 41.18 | AH174: 2 | AI174: 37.04 | AN174: -11.1 | AO174: 33.08 | AT174: -7.8 | AU174: 28.94 | AZ174: 3.5 | BA174: 24.98 | BF174: -1.1 | BG174: 33.62 | BL174: 1 | BM174: 34.34 | BR174: -18.3 | BS174: 34.7 | DT174: 156 | DU174: -2.2 | DV174: 2.8 | DW174: 2.2 | DX174: 2.8 | DY174: 5.1 | DZ174: 2.8 | EA174: 0.6 | EB174: -1.7 | EC174: -3.9 | ED174: 0.9 | EE174: 1.3 | EF174: 1.5
A175: 6.541666667 | B175: 2011-01-07 | C175: 13:00:00 | D175: 2.2 | E175: 30.02 | F175: WEEKDAY | G175: On | H175: 1976-01-07 | I175: 13:00:00 | J175: 2.8 | K175: 39.02 | N175: 2003-01-07 | O175: 13:00:00 | P175: -4 | Q175: 37.04 | T175: 1999-01-07 | U175: 13:00:00 | V175: 0.6 | W175: 38.84 | AB175: 8.3 | AC175: 41.36 | AH175: 2 | AI175: 37.4 | AN175: -11.7 | AO175: 35.6 | AT175: -7.8 | AU175: 28.04 | AZ175: 4.4 | BA175: 26.6 | BF175: -1.1 | BG175: 36.14 | BL175: 0.6 | BM175: 37.58 | BR175: -18.3 | BS175: 35.42 | DT175: 157 | DU175: -1.1 | DV175: 3.9 | DW175: 2.8 | DX175: 3.8 | DY175: 5.2 | DZ175: 3 | EA175: 2 | EB175: -2.2 | EC175: -3 | ED175: 2.3 | EE175: 3.1 | EF175: 1.9
A176: 6.583333333 | B176: 2011-01-07 | C176: 14:00:00 | D176: 1.7 | E176: 30.02 | F176: WEEKDAY | G176: On | H176: 1976-01-07 | I176: 14:00:00 | J176: 2.8 | K176: 39.92 | N176: 2003-01-07 | O176: 14:00:00 | P176: -4 | Q176: 39.02 | T176: 1999-01-07 | U176: 14:00:00 | V176: 0.6 | W176: 42.08 | AB176: 10 | AC176: 41.36 | AH176: 2 | AI176: 37.76 | AN176: -10.6 | AO176: 37.04 | AT176: -7.2 | AU176: 28.04 | AZ176: 4.2 | BA176: 26.06 | BF176: -0.6 | BG176: 37.94 | BL176: 0 | BM176: 39.02 | BR176: -18.3 | BS176: 36.14 | DT176: 158 | DU176: -1.1 | DV176: 4.4 | DW176: 3.9 | DX176: 5.6 | DY176: 5.2 | DZ176: 3.2 | EA176: 2.8 | EB176: -2.2 | EC176: -3.3 | ED176: 3.3 | EE176: 3.9 | EF176: 2.3
A177: 6.625 | B177: 2011-01-07 | C177: 15:00:00 | D177: 1.7 | E177: 30.92 | F177: WEEKDAY | G177: On | H177: 1976-01-07 | I177: 15:00:00 | J177: 2.8 | K177: 41 | N177: 2003-01-07 | O177: 15:00:00 | P177: -4 | Q177: 37.94 | T177: 1999-01-07 | U177: 15:00:00 | V177: 0.6 | W177: 42.98 | AB177: 9.4 | AC177: 41.54 | AH177: 2 | AI177: 39.02 | AN177: -11.7 | AO177: 39.02 | AT177: -6.7 | AU177: 28.4 | AZ177: 4.1 | BA177: 26.6 | BF177: -1.7 | BG177: 37.22 | BL177: -0.5 | BM177: 39.02 | BR177: -17.8 | BS177: 36.5 | DT177: 159 | DU177: -0.6 | DV177: 5 | DW177: 3.3 | DX177: 6.1 | DY177: 5.3 | DZ177: 3.9 | EA177: 3.9 | EB177: -2 | EC177: -3 | ED177: 2.9 | EE177: 3.9 | EF177: 2.5
A178: 6.666666667 | B178: 2011-01-07 | C178: 16:00:00 | D178: 1.7 | E178: 30.92 | F178: WEEKDAY | G178: On | H178: 1976-01-07 | I178: 16:00:00 | J178: 1.7 | K178: 39.92 | N178: 2003-01-07 | O178: 16:00:00 | P178: -4 | Q178: 39.92 | T178: 1999-01-07 | U178: 16:00:00 | V178: 0 | W178: 42.08 | AB178: 8.9 | AC178: 42.08 | AH178: 2 | AI178: 39.02 | AN178: -11.7 | AO178: 39.02 | AT178: -7.2 | AU178: 28.4 | AZ178: 3.9 | BA178: 26.6 | BF178: -1.7 | BG178: 39.02 | BL178: -1.1 | BM178: 39.02 | BR178: -18.3 | BS178: 35.78 | DT178: 160 | DU178: -0.6 | DV178: 4.4 | DW178: 4.4 | DX178: 5.6 | DY178: 5.6 | DZ178: 3.9 | EA178: 3.9 | EB178: -2 | EC178: -3 | ED178: 3.9 | EE178: 3.9 | EF178: 2.1
A179: 6.708333333 | B179: 2011-01-07 | C179: 17:00:00 | D179: 1.1 | E179: 30.92 | F179: WEEKDAY | G179: On | H179: 1976-01-07 | I179: 17:00:00 | J179: 1.7 | K179: 41.36 | N179: 2003-01-07 | O179: 17:00:00 | P179: -5 | Q179: 39.56 | T179: 1999-01-07 | U179: 17:00:00 | V179: -1.7 | W179: 42.08 | AB179: 7.2 | AC179: 41.72 | AH179: 1 | AI179: 38.66 | AN179: -12.8 | AO179: 41.9 | AT179: -7.2 | AU179: 28.94 | AZ179: 2.2 | BA179: 26.96 | BF179: -2.8 | BG179: 39.02 | BL179: -1.5 | BM179: 37.04 | BR179: -18.9 | BS179: 35.06 | DT179: 161 | DU179: -0.6 | DV179: 5.2 | DW179: 4.2 | DX179: 5.6 | DY179: 5.4 | DZ179: 3.7 | EA179: 5.5 | EB179: -1.7 | EC179: -2.8 | ED179: 3.9 | EE179: 2.8 | EF179: 1.7
A180: 6.75 | B180: 2011-01-07 | C180: 18:00:00 | D180: 0 | E180: 32 | F180: WEEKDAY | G180: On | H180: 1976-01-07 | I180: 18:00:00 | J180: 1.7 | K180: 37.04 | N180: 2003-01-07 | O180: 18:00:00 | P180: -5 | Q180: 35.78 | T180: 1999-01-07 | U180: 18:00:00 | V180: -1.7 | W180: 37.94 | AB180: 6.1 | AC180: 41.36 | AH180: -1 | AI180: 33.62 | AN180: -13.3 | AO180: 37.4 | AT180: -7.2 | AU180: 26.96 | AZ180: 0.6 | BA180: 26.6 | BF180: -2.2 | BG180: 32.54 | BL180: -1.8 | BM180: 32.72 | BR180: -18.9 | BS180: 33.8 | DT180: 162 | DU180: 0 | DV180: 2.8 | DW180: 2.1 | DX180: 3.3 | DY180: 5.2 | DZ180: 0.9 | EA180: 3 | EB180: -2.8 | EC180: -3 | ED180: 0.3 | EE180: 0.4 | EF180: 1
A181: 6.791666667 | B181: 2011-01-07 | C181: 19:00:00 | D181: -0.6 | E181: 30.92 | F181: WEEKDAY | G181: On | H181: 1976-01-07 | I181: 19:00:00 | J181: 1.7 | K181: 36.14 | N181: 2003-01-07 | O181: 19:00:00 | P181: -6 | Q181: 34.34 | T181: 1999-01-07 | U181: 19:00:00 | V181: -1.7 | W181: 37.4 | AB181: 4.4 | AC181: 40.82 | AH181: -1 | AI181: 26.06 | AN181: -13.3 | AO181: 33.8 | AT181: -7.8 | AU181: 26.06 | AZ181: -1.1 | BA181: 26.6 | BF181: -1.7 | BG181: 33.98 | BL181: -2.2 | BM181: 32.54 | BR181: -18.9 | BS181: 33.8 | DT181: 163 | DU181: -0.6 | DV181: 2.3 | DW181: 1.3 | DX181: 3 | DY181: 4.9 | DZ181: -3.3 | EA181: 1 | EB181: -3.3 | EC181: -3 | ED181: 1.1 | EE181: 0.3 | EF181: 1
A182: 6.833333333 | B182: 2011-01-07 | C182: 20:00:00 | D182: -1.7 | E182: 30.92 | F182: WEEKDAY | G182: On | H182: 1976-01-07 | I182: 20:00:00 | J182: 1.7 | K182: 35.06 | N182: 2003-01-07 | O182: 20:00:00 | P182: -6 | Q182: 33.62 | T182: 1999-01-07 | U182: 20:00:00 | V182: -2.2 | W182: 35.96 | AB182: 3.3 | AC182: 40.1 | AH182: -2 | AI182: 24.98 | AN182: -13.9 | AO182: 32 | AT182: -7.2 | AU182: 26.06 | AZ182: -0.7 | BA182: 26.96 | BF182: -3.3 | BG182: 33.98 | BL182: -3.1 | BM182: 33.08 | BR182: -19.4 | BS182: 33.98 | DT182: 164 | DU182: -0.6 | DV182: 1.7 | DW182: 0.9 | DX182: 2.2 | DY182: 4.5 | DZ182: -3.9 | EA182: 0 | EB182: -3.3 | EC182: -2.8 | ED182: 1.1 | EE182: 0.6 | EF182: 1.1
A183: 6.875 | B183: 2011-01-07 | C183: 21:00:00 | D183: -2.2 | E183: 32 | F183: WEEKDAY | G183: On | H183: 1976-01-07 | I183: 21:00:00 | J183: 1.7 | K183: 34.52 | N183: 2003-01-07 | O183: 21:00:00 | P183: -4 | Q183: 33.08 | T183: 1999-01-07 | U183: 21:00:00 | V183: -2.8 | W183: 35.6 | AB183: 3.3 | AC183: 39.74 | AH183: -3 | AI183: 23 | AN183: -13.9 | AO183: 33.98 | AT183: -7.2 | AU183: 26.96 | AZ183: -0.4 | BA183: 26.6 | BF183: -4.4 | BG183: 30.02 | BL183: -4.1 | BM183: 28.94 | BR183: -19.4 | BS183: 34.16 | DT183: 165 | DU183: 0 | DV183: 1.4 | DW183: 0.6 | DX183: 2 | DY183: 4.3 | DZ183: -5 | EA183: 1.1 | EB183: -2.8 | EC183: -3 | ED183: -1.1 | EE183: -1.7 | EF183: 1.2
A184: 6.916666667 | B184: 2011-01-07 | C184: 22:00:00 | D184: -2.8 | E184: 33.08 | F184: WEEKDAY | G184: On | H184: 1976-01-07 | I184: 22:00:00 | J184: 2.2 | K184: 33.8 | N184: 2003-01-07 | O184: 22:00:00 | P184: -4 | Q184: 32.54 | T184: 1999-01-07 | U184: 22:00:00 | V184: -3.3 | W184: 34.7 | AB184: 2.2 | AC184: 39.38 | AH184: -3 | AI184: 21.92 | AN184: -13.3 | AO184: 30.92 | AT184: -7.8 | AU184: 26.96 | AZ184: 0 | BA184: 26.96 | BF184: -5 | BG184: 28.94 | BL184: -5 | BM184: 26.96 | BR184: -20 | BS184: 34.52 | DT184: 166 | DU184: 0.6 | DV184: 1 | DW184: 0.3 | DX184: 1.5 | DY184: 4.1 | DZ184: -5.6 | EA184: -0.6 | EB184: -2.8 | EC184: -2.8 | ED184: -1.7 | EE184: -2.8 | EF184: 1.4
A185: 6.958333333 | B185: 2011-01-07 | C185: 23:00:00 | D185: -3.3 | E185: 32.18 | F185: WEEKDAY | G185: On | H185: 1976-01-07 | I185: 23:00:00 | J185: 2.2 | K185: 32.18 | N185: 2003-01-07 | O185: 23:00:00 | P185: -4 | Q185: 28.94 | T185: 1999-01-07 | U185: 23:00:00 | V185: -3.9 | W185: 33.08 | AB185: 1.7 | AC185: 39.02 | AH185: -3 | AI185: 21.02 | AN185: -13.3 | AO185: 26.96 | AT185: -8.3 | AU185: 26.96 | AZ185: -0.9 | BA185: 26.96 | BF185: -5 | BG185: 28.94 | BL185: -5 | BM185: 26.96 | BR185: -20 | BS185: 32.36 | DT185: 167 | DU185: 0.1 | DV185: 0.1 | DW185: -1.7 | DX185: 0.6 | DY185: 3.9 | DZ185: -6.1 | EA185: -2.8 | EB185: -2.8 | EC185: -2.8 | ED185: -1.7 | EE185: -2.8 | EF185: 0.2
A186: 7 | B186: 2011-01-07 | C186: 1 | D186: -3.9 | E186: 32.9 | F186: WEEKDAY | G186: On | H186: 1976-01-07 | I186: 1 | J186: 2.2 | K186: 30.92 | N186: 2003-01-07 | O186: 1 | P186: -4 | Q186: 28.04 | T186: 1999-01-07 | U186: 1 | V186: -4.4 | W186: 32.36 | AB186: 1.1 | AC186: 39.02 | AH186: -3 | AI186: 19.94 | AN186: -13.3 | AO186: 26.96 | AT186: -8.3 | AU186: 26.06 | AZ186: -1.9 | BA186: 26.6 | BF186: -5 | BG186: 28.04 | BL186: -5 | BM186: 26.06 | BR186: -20.6 | BS186: 32 | DT186: 168 | DU186: 0.5 | DV186: -0.6 | DW186: -2.2 | DX186: 0.2 | DY186: 3.9 | DZ186: -6.7 | EA186: -2.8 | EB186: -3.3 | EC186: -3 | ED186: -2.2 | EE186: -3.3 | EF186: 0
A187: 7.041666667 | B187: 2011-01-08 | C187: 01:00:00 | D187: -4.4 | E187: 33.62 | F187: SATURDAY | G187: On | H187: 1976-01-08 | I187: 01:00:00 | J187: 2.8 | K187: 30.02 | N187: 2003-01-08 | O187: 01:00:00 | P187: -4 | Q187: 28.04 | T187: 1999-01-08 | U187: 01:00:00 | V187: -4.4 | W187: 30.92 | AB187: 1.1 | AC187: 39.02 | AH187: -2 | AI187: 19.04 | AN187: -13.9 | AO187: 24.08 | AT187: -8.3 | AU187: 26.06 | AZ187: -2.8 | BA187: 24.8 | BF187: -5.6 | BG187: 26.96 | BL187: -5 | BM187: 24.08 | BR187: -20.6 | BS187: 28.4 | DT187: 169 | DU187: 0.9 | DV187: -1.1 | DW187: -2.2 | DX187: -0.6 | DY187: 3.9 | DZ187: -7.2 | EA187: -4.4 | EB187: -3.3 | EC187: -4 | ED187: -2.8 | EE187: -4.4 | EF187: -2
A188: 7.083333333 | B188: 2011-01-08 | C188: 02:00:00 | D188: -5 | E188: 34.52 | F188: SATURDAY | G188: On | H188: 1976-01-08 | I188: 02:00:00 | J188: 2.2 | K188: 30.02 | N188: 2003-01-08 | O188: 02:00:00 | P188: -4 | Q188: 26.96 | T188: 1999-01-08 | U188: 02:00:00 | V188: -5 | W188: 30.02 | AB188: 0 | AC188: 39.56 | AH188: -2 | AI188: 17.96 | AN188: -14.4 | AO188: 24.08 | AT188: -8.3 | AU188: 26.06 | AZ188: -3.2 | BA188: 24.98 | BF188: -5.6 | BG188: 26.96 | BL188: -5.2 | BM188: 24.08 | BR188: -21.1 | BS188: 26.06 | DT188: 170 | DU188: 1.4 | DV188: -1.1 | DW188: -2.8 | DX188: -1.1 | DY188: 4.2 | DZ188: -7.8 | EA188: -4.4 | EB188: -3.3 | EC188: -3.9 | ED188: -2.8 | EE188: -4.4 | EF188: -3.3
A189: 7.125 | B189: 2011-01-08 | C189: 03:00:00 | D189: -5.6 | E189: 35.24 | F189: SATURDAY | G189: On | H189: 1976-01-08 | I189: 03:00:00 | J189: 2.2 | K189: 28.94 | N189: 2003-01-08 | O189: 03:00:00 | P189: -3 | Q189: 26.96 | T189: 1999-01-08 | U189: 03:00:00 | V189: -5 | W189: 28.94 | AB189: 0 | AC189: 39.74 | AH189: -1 | AI189: 19.04 | AN189: -15 | AO189: 24.08 | AT189: -8.9 | AU189: 26.06 | AZ189: -3.5 | BA189: 21.02 | BF189: -5.6 | BG189: 26.06 | BL189: -5.4 | BM189: 21.92 | BR189: -22.2 | BS189: 24.08 | DT189: 171 | DU189: 1.8 | DV189: -1.7 | DW189: -2.8 | DX189: -1.7 | DY189: 4.3 | DZ189: -7.2 | EA189: -4.4 | EB189: -3.3 | EC189: -6.1 | ED189: -3.3 | EE189: -5.6 | EF189: -4.4
A190: 7.166666667 | B190: 2011-01-08 | C190: 04:00:00 | D190: -5.6 | E190: 35.78 | F190: SATURDAY | G190: On | H190: 1976-01-08 | I190: 04:00:00 | J190: 2.2 | K190: 28.94 | N190: 2003-01-08 | O190: 04:00:00 | P190: -3 | Q190: 26.06 | T190: 1999-01-08 | U190: 04:00:00 | V190: -5 | W190: 28.94 | AB190: -0.6 | AC190: 39.38 | AH190: -1 | AI190: 17.06 | AN190: -15.6 | AO190: 21.02 | AT190: -8.9 | AU190: 24.98 | AZ190: -3.9 | BA190: 19.94 | BF190: -6.1 | BG190: 24.08 | BL190: -5.6 | BM190: 19.94 | BR190: -22.2 | BS190: 23 | DT190: 172 | DU190: 2.1 | DV190: -1.7 | DW190: -3.3 | DX190: -1.7 | DY190: 4.1 | DZ190: -8.3 | EA190: -6.1 | EB190: -3.9 | EC190: -6.7 | ED190: -4.4 | EE190: -6.7 | EF190: -5
A191: 7.208333333 | B191: 2011-01-08 | C191: 05:00:00 | D191: -6.1 | E191: 36.14 | F191: SATURDAY | G191: On | H191: 1976-01-08 | I191: 05:00:00 | J191: 2.2 | K191: 28.04 | N191: 2003-01-08 | O191: 05:00:00 | P191: -2 | Q191: 24.98 | T191: 1999-01-08 | U191: 05:00:00 | V191: -5.6 | W191: 28.94 | AB191: -1.1 | AC191: 39.2 | AH191: -1 | AI191: 17.96 | AN191: -15.6 | AO191: 19.04 | AT191: -9.4 | AU191: 24.98 | AZ191: -4.1 | BA191: 19.94 | BF191: -6.1 | BG191: 24.08 | BL191: -6 | BM191: 19.94 | BR191: -22.2 | BS191: 19.94 | DT191: 173 | DU191: 2.3 | DV191: -2.2 | DW191: -3.9 | DX191: -1.7 | DY191: 4 | DZ191: -7.8 | EA191: -7.2 | EB191: -3.9 | EC191: -6.7 | ED191: -4.4 | EE191: -6.7 | EF191: -6.7
A192: 7.25 | B192: 2011-01-08 | C192: 06:00:00 | D192: -6.1 | E192: 37.4 | F192: SATURDAY | G192: On | H192: 1976-01-08 | I192: 06:00:00 | J192: 2.2 | K192: 28.04 | N192: 2003-01-08 | O192: 06:00:00 | P192: -2.3 | Q192: 24.98 | T192: 1999-01-08 | U192: 06:00:00 | V192: -5 | W192: 28.04 | AB192: -1.7 | AC192: 37.04 | AH192: -1 | AI192: 17.96 | AN192: -16.7 | AO192: 21.92 | AT192: -6.7 | AU192: 23 | AZ192: -4.2 | BA192: 19.4 | BF192: -6.7 | BG192: 24.98 | BL192: -6.3 | BM192: 19.94 | BR192: -22.8 | BS192: 17.96 | DT192: 174 | DU192: 3 | DV192: -2.2 | DW192: -3.9 | DX192: -2.2 | DY192: 2.8 | DZ192: -7.8 | EA192: -5.6 | EB192: -5 | EC192: -7 | ED192: -3.9 | EE192: -6.7 | EF192: -7.8
A193: 7.291666667 | B193: 2011-01-08 | C193: 07:00:00 | D193: -6.1 | E193: 37.04 | F193: SATURDAY | G193: On | H193: 1976-01-08 | I193: 07:00:00 | J193: 2.2 | K193: 28.04 | N193: 2003-01-08 | O193: 07:00:00 | P193: -2.8 | Q193: 24.98 | T193: 1999-01-08 | U193: 07:00:00 | V193: -5 | W193: 28.04 | AB193: -2.8 | AC193: 37.04 | AH193: 0 | AI193: 17.96 | AN193: -16.7 | AO193: 19.94 | AT193: -5 | AU193: 21.2 | AZ193: -4.4 | BA193: 17.6 | BF193: -6.7 | BG193: 24.98 | BL193: -6.7 | BM193: 19.94 | BR193: -24.4 | BS193: 17.96 | DT193: 175 | DU193: 2.8 | DV193: -2.2 | DW193: -3.9 | DX193: -2.2 | DY193: 2.8 | DZ193: -7.8 | EA193: -6.7 | EB193: -6 | EC193: -8 | ED193: -3.9 | EE193: -6.7 | EF193: -7.8
A194: 7.333333333 | B194: 2011-01-08 | C194: 08:00:00 | D194: -5.6 | E194: 37.58 | F194: SATURDAY | G194: On | H194: 1976-01-08 | I194: 08:00:00 | J194: 2.2 | K194: 28.04 | N194: 2003-01-08 | O194: 08:00:00 | P194: -2.8 | Q194: 24.98 | T194: 1999-01-08 | U194: 08:00:00 | V194: -4.4 | W194: 28.04 | AB194: -1.7 | AC194: 38.12 | AH194: 0 | AI194: 19.94 | AN194: -17.2 | AO194: 19.94 | AT194: -10.6 | AU194: 21.92 | AZ194: -4.2 | BA194: 17.06 | BF194: -7.2 | BG194: 24.98 | BL194: -6.7 | BM194: 19.94 | BR194: -24.4 | BS194: 17.96 | DT194: 176 | DU194: 3.1 | DV194: -2.2 | DW194: -3.9 | DX194: -2.2 | DY194: 3.4 | DZ194: -6.7 | EA194: -6.7 | EB194: -5.6 | EC194: -8.3 | ED194: -3.9 | EE194: -6.7 | EF194: -7.8
A195: 7.375 | B195: 2011-01-08 | C195: 09:00:00 | D195: -6.1 | E195: 37.76 | F195: SATURDAY | G195: On | H195: 1976-01-08 | I195: 09:00:00 | J195: 2.2 | K195: 28.94 | N195: 2003-01-08 | O195: 09:00:00 | P195: -2 | Q195: 28.04 | T195: 1999-01-08 | U195: 09:00:00 | V195: -3.9 | W195: 30.02 | AB195: 0 | AC195: 38.66 | AH195: 1 | AI195: 23 | AN195: -16.7 | AO195: 24.98 | AT195: -12.2 | AU195: 21.02 | AZ195: -4.1 | BA195: 15.8 | BF195: -7.2 | BG195: 24.98 | BL195: -6.7 | BM195: 21.92 | BR195: -22.8 | BS195: 19.04 | DT195: 177 | DU195: 3.2 | DV195: -1.7 | DW195: -2.2 | DX195: -1.1 | DY195: 3.7 | DZ195: -5 | EA195: -3.9 | EB195: -6.1 | EC195: -9 | ED195: -3.9 | EE195: -5.6 | EF195: -7.2
A196: 7.416666667 | B196: 2011-01-08 | C196: 10:00:00 | D196: -5.6 | E196: 38.84 | F196: SATURDAY | G196: On | H196: 1976-01-08 | I196: 10:00:00 | J196: 2.2 | K196: 30.02 | N196: 2003-01-08 | O196: 10:00:00 | P196: -1 | Q196: 30.02 | T196: 1999-01-08 | U196: 10:00:00 | V196: -3.3 | W196: 33.08 | AB196: 1.1 | AC196: 39.92 | AH196: 1 | AI196: 32 | AN196: -15.6 | AO196: 28.94 | AT196: -12.8 | AU196: 21.2 | AZ196: -3.9 | BA196: 17.6 | BF196: -7.2 | BG196: 30.02 | BL196: -6.7 | BM196: 26.06 | BR196: -20.6 | BS196: 19.04 | DT196: 178 | DU196: 3.8 | DV196: -1.1 | DW196: -1.1 | DX196: 0.6 | DY196: 4.4 | DZ196: 0 | EA196: -1.7 | EB196: -6 | EC196: -8 | ED196: -1.1 | EE196: -3.3 | EF196: -7.2
A197: 7.458333333 | B197: 2011-01-08 | C197: 11:00:00 | D197: -5 | E197: 41 | F197: SATURDAY | G197: On | H197: 1976-01-08 | I197: 11:00:00 | J197: 1.1 | K197: 32 | N197: 2003-01-08 | O197: 11:00:00 | P197: 0 | Q197: 33.08 | T197: 1999-01-08 | U197: 11:00:00 | V197: -3 | W197: 32.54 | AB197: 2.2 | AC197: 42.44 | AH197: 1 | AI197: 33.98 | AN197: -14.4 | AO197: 30.92 | AT197: -11.7 | AU197: 21.02 | AZ197: -3.5 | BA197: 17.06 | BF197: -6.1 | BG197: 30.02 | BL197: -6.3 | BM197: 28.94 | BR197: -19.4 | BS197: 19.94 | DT197: 179 | DU197: 5 | DV197: 0 | DW197: 0.6 | DX197: 0.3 | DY197: 5.8 | DZ197: 1.1 | EA197: -0.6 | EB197: -6.1 | EC197: -8.3 | ED197: -1.1 | EE197: -1.7 | EF197: -6.7
A198: 7.5 | B198: 2011-01-08 | C198: 12:00:00 | D198: -4.4 | E198: 39.92 | F198: SATURDAY | G198: On | H198: 1976-01-08 | I198: 12:00:00 | J198: 0 | K198: 33.44 | N198: 2003-01-08 | O198: 12:00:00 | P198: 2 | Q198: 33.08 | T198: 1999-01-08 | U198: 12:00:00 | V198: -3.9 | W198: 33.98 | AB198: 2.8 | AC198: 42.98 | AH198: 1 | AI198: 36.86 | AN198: -13.3 | AO198: 33.26 | AT198: -11.1 | AU198: 23 | AZ198: -3.2 | BA198: 17.6 | BF198: -5.6 | BG198: 33.08 | BL198: -6 | BM198: 33.44 | BR198: -17.8 | BS198: 19.4 | DT198: 180 | DU198: 4.4 | DV198: 0.8 | DW198: 0.6 | DX198: 1.1 | DY198: 6.1 | DZ198: 2.7 | EA198: 0.7 | EB198: -5 | EC198: -8 | ED198: 0.6 | EE198: 0.8 | EF198: -7
A199: 7.541666667 | B199: 2011-01-08 | C199: 13:00:00 | D199: -3.3 | E199: 40.46 | F199: SATURDAY | G199: On | H199: 1976-01-08 | I199: 13:00:00 | J199: -0.6 | K199: 35.06 | N199: 2003-01-08 | O199: 13:00:00 | P199: 2 | Q199: 34.88 | T199: 1999-01-08 | U199: 13:00:00 | V199: -3.3 | W199: 35.06 | AB199: 3.3 | AC199: 43.7 | AH199: 1 | AI199: 39.74 | AN199: -12.2 | AO199: 35.06 | AT199: -10.6 | AU199: 21.92 | AZ199: -2.8 | BA199: 17.6 | BF199: -4.4 | BG199: 35.96 | BL199: -5.6 | BM199: 37.04 | BR199: -17.2 | BS199: 19.94 | DT199: 181 | DU199: 4.7 | DV199: 1.7 | DW199: 1.6 | DX199: 1.7 | DY199: 6.5 | DZ199: 4.3 | EA199: 1.7 | EB199: -5.6 | EC199: -8 | ED199: 2.2 | EE199: 2.8 | EF199: -6.7
A200: 7.583333333 | B200: 2011-01-08 | C200: 14:00:00 | D200: -2.8 | E200: 42.98 | F200: SATURDAY | G200: On | H200: 1976-01-08 | I200: 14:00:00 | J200: -1.1 | K200: 37.04 | N200: 2003-01-08 | O200: 14:00:00 | P200: 3 | Q200: 36.14 | T200: 1999-01-08 | U200: 14:00:00 | V200: -2.8 | W200: 37.04 | AB200: 3.9 | AC200: 44.6 | AH200: 1 | AI200: 41.18 | AN200: -11.7 | AO200: 37.04 | AT200: -10 | AU200: 21.92 | AZ200: -2.6 | BA200: 17.96 | BF200: -4.4 | BG200: 36.5 | BL200: -5.2 | BM200: 37.04 | BR200: -16.1 | BS200: 19.04 | DT200: 182 | DU200: 6.1 | DV200: 2.8 | DW200: 2.3 | DX200: 2.8 | DY200: 7 | DZ200: 5.1 | EA200: 2.8 | EB200: -5.6 | EC200: -7.8 | ED200: 2.5 | EE200: 2.8 | EF200: -7.2
... 362 more rows

Sheet DHW Calculator (hidden)
S1: Baseline fuel | T1: =IFERROR(IF(FIND("Electric",'Eqpt Schedule'!N5)=1,"Electric","Fossil Fuel"),"Fossil Fuel") -> Fossil Fuel | U1: (based off the 1st row in Eqpt Schedule)
K2: Recirculation Loss Factor | L2: =IF(RecircPumpPrompt<>"No",0.25,0) -> 0.25 | N2: DIAGNOSTIC BLOCK
F3: OAT Range | G3: Loop Temp Range | K3: Avg Incoming Water Temp (F) | L3: =INDEX(TableT_MainLookup[T_Main],MATCH(ASHRAE_Location,TableT_MainLookup[Weather Station],0)) ->  | O3: Delivered Heating Load | Q3: Energy Use | R3: Unit | S3: Energy Use | T3: Unit | U3: Total Heating Capacity (Btu/h ) | V3: Rated Efficiency | W3: Actual Seasonal Efficiency | X3: Summer Peak Demand (kW)
E4: Cooling Max OAT | F4: =_xlfn.MAXIFS($E$14:$E$76,Bin_Hrs_Occ_Cat2,">0") -> 0 | G4: ='DHW Bldg & Operation Data'!C30 -> 90 | K4: DHW Setpoint Temp (F) | L4: ='DHW Bldg & Operation Data'!C12 -> 125 | N4: Baseline | O4: =SUMPRODUCT(Bin_Hrs_Occ_Cat2,M14:M76)/1000000 ->  | P4: MMBtu | Q4: =SUM(Q14:Q76)/1000000 -> 0 | R4: MMBtu | S4: =IF(T4="therms",Q4*10,Q4*1000/3.412) -> 0 | T4: =IF(T1="Electric","kWh","therms") -> therms | V4: =IFERROR(AVERAGE('Eqpt Schedule'!O5:O14),"") ->  | W4: =SUMPRODUCT($P$14:$P$76,$Q$14:$Q$76)/SUM($Q$14:$Q$76) -> 
E5: Htg-Clg Balance Pt | F5: 72 | G5: ='DHW Bldg & Operation Data'!C29 -> 50 | K5: HP Location or Source | L5: =HPWH_Location -> 0 | N5: Proposed | O5: =SUMPRODUCT(Bin_Hrs_Occ_Cat2,M14:M76)/1000000 ->  | P5: MMBtu | Q5: =SUM(S14:S76)/1000000 -> 0 | R5: MMBtu | S5: =Q5*1000000/3412 -> 0 | T5: kWh | U5: ='DHW Bldg & Operation Data'!C23 -> 0 | V5: =IFERROR(AVERAGE('Eqpt Schedule'!K5:K14),"") ->  | W5: =SUMPRODUCT($R$14:$R$76,$S$14:$S$76)/SUM($S$14:$S$76) ->  | X5: =INDEX($V$14:$V$76,MATCH(TRUE,INDEX(V14:V76<>0,),0)) -> 
E6: Heating Min OAT | F6: =_xlfn.MINIFS($E$14:$E$76,$F$14:$F$76,">0") -> 0 | G6: ='DHW Bldg & Operation Data'!C31 -> 30 | K6: HP Location Nominal Temp (F) | L6: =BinModelTemp -> 72 | P6: Energy Savings | Q6: =Q4-Q5 -> 0 | R6: MMBtu | W6: Peak Savings = | X6: =INDEX($X$14:$X$76,MATCH(TRUE,INDEX(X14:X76<>0,),0)) -> 
K7: HP Location: Fraction of OA | L7: 0.2 | P7: Final Energy Savings | Q7: ='Results Summary'!F4 ->  | R7: F4 from Result tab
K8: (Used for Unconditioned Only) | Q8: =Q7/Q6 ->  | R8: Safety Factor Confirmation
K9: Is ER Used to Meet | L9: ='DHW Bldg & Operation Data'!C14 -> 0
K10: Recirculation Losses?
E11: DHW Calculator | J11: HIH | S11: HIH
N12: DHW Energy Usage Calculation | U12: CF= | V12: 0.8 | W12: Net Savings
A13: Location Selected: | D13: Row Reference for Bin data lookup | E13: Outdoor Air Temperature Mid-pts | F13: Operating hr @ Temp Bin | G13: Equipment Location Space Type | H13: =IF(L5="Ground Source","Ground Source Entering Temperature (F)","Air Source Entering Temperature (F)") -> Air Source Entering Temperature (F) | I13: Calculated EWT for GSHP (F) | J13: DHW Usage (GPH) | K13: Incoming Water Temperature (°F) | L13: DHW Heating Load Before Recirculation Losses (Btuh) | M13: TOTAL DHW Heating Load (Btuh) | N13: Heat Pump Heating Capacity (Btuh) | O13: Part Load Ratio (PLR) | P13: Baseline Efficiency | Q13: Baseline Energy Consumption (Btu) | R13: Proposed Efficiency (COP) | S13: Proposed Energy Consumption (Btu) | T13: Energy Savings (Btu) | U13: Basecase Peak kW (based on peak DHW load) | V13: Proposed Peak kW (based on HP size) | W13: ▲kWh Total (Electric Energy Savings) | X13: ▲kW (Peak Electric Demand Savings) | Y13: ▲therms Total (Gas Energy Avoidance) | Z13: ▲MMbtu Total
A14: =ACCA_Location ->  | D14: 2 | E14: 101 | F14: =HLOOKUP($A$16, 'Weather Data'!$CD$17:$DA$80,D14,FALSE) ->  | G14: =IF('DHW Bldg & Operation Data'!$C$26="Un-Conditioned","Un-Conditioned",IF(AND(E14>='DHW Bldg & Operation Data'!$C$28,'DHW Bldg & Operation Data'!$C$27<>"Heating Only"),"Cooling",IF(E14<='DHW Bldg & Operation Data'!$C$28,"Heating","Un-Conditioned"))) -> Cooling | H14: =IF(HPWH_Location="Outdoor Evaporator",'DHW Calculator'!$E14,IF(HPWH_Location="Conditioned Space",BinModelTemp,IF(HPWH_Location="Un-Conditioned Enclosed",($L$6*(1-$L$7)+$E14*$L$7),I14))) -> 33.88888889 | I14: =IF(E14>=$F$5,$G$5+($G$4-$G$5)*(E14-$F$5)/($F$4-$F$5),$G$5-($G$5-$G$6)*(E14-$F$5)/($F$6-$F$5)) -> 33.88888889 | J14: =(DHW_GPD/24) ->  | K14: =HLOOKUP($A$16&" TMAIN", 'Weather Data'!$CD$17:$DA$80,D14,FALSE) ->  | L14: =IF(K14>0,J14*8.33*(DHW_Setpoint_Temp_degF-K14),0) ->  | M14: =L14*(1/(1-Recirculation_Loss_Factor)) ->  | N14: =IF(J14=0,0,$U$5) ->  | O14: =IFERROR(MAX(M14/N14,0),"-") -> - | P14: =IF(J14=0,"-",$V$4) ->  | Q14: =IFERROR((M14/(P14))*F14,"-") -> - | R14: =IF($L$9="Yes",'COP Assignment'!W3*(1-Recirculation_Loss_Factor)+1*Recirculation_Loss_Factor,'COP Assignment'!W3) ->  | S14: =IFERROR((M14/R14)*F14,0) -> 0 | T14: =IFERROR(Q14-S14,0) -> 0 | U14: =IF($T$1="Electric",M14/3412/P14*$V$12,0) -> 0 | V14: =IFERROR(IF(F14>0,N14/3412/R14*$V$12,0),0) -> 0 | W14: =IF($T$1="Electric",T14*'Worksheet Data'!$W$3/1000000,-S14*'Worksheet Data'!$W$3/1000000) -> 0 | X14: =IFERROR(U14-V14,0) -> 0 | Y14: =IFERROR(IF($T$1="Electric",0,Q14*'Worksheet Data'!$W$2/1000000),0) -> 0 | Z14: =T14/1000000 -> 0
A15: Lookup Reference | D15: 3 | E15: 99 | F15: =HLOOKUP($A$16, 'Weather Data'!$CD$17:$DA$80,D15,FALSE) ->  | G15: =IF('DHW Bldg & Operation Data'!$C$26="Un-Conditioned","Un-Conditioned",IF(AND(E15>='DHW Bldg & Operation Data'!$C$28,'DHW Bldg & Operation Data'!$C$27<>"Heating Only"),"Cooling",IF(E15<='DHW Bldg & Operation Data'!$C$28,"Heating","Un-Conditioned"))) -> Cooling | H15: =IF(HPWH_Location="Outdoor Evaporator",'DHW Calculator'!$E15,IF(HPWH_Location="Conditioned Space",BinModelTemp,IF(HPWH_Location="Un-Conditioned Enclosed",($L$6*(1-$L$7)+$E15*$L$7),I15))) -> 35 | I15: =IF(E15>=$F$5,$G$5+($G$4-$G$5)*(E15-$F$5)/($F$4-$F$5),$G$5-($G$5-$G$6)*(E15-$F$5)/($F$6-$F$5)) -> 35 | K15: =HLOOKUP($A$16&" TMAIN", 'Weather Data'!$CD$17:$DA$80,D15,FALSE) ->  | O15: - | P15: =IF(J15=0,0,$V$4) ->  | Q15: - | R15: =IF($L$9="Yes",'COP Assignment'!W4*(1-Recirculation_Loss_Factor)+1*Recirculation_Loss_Factor,'COP Assignment'!W4) ->  | S15: 0 | T15: 0 | U15: =IF($T$1="Electric",M15/3412/P15*$V$12,0) -> 0 | V15: =IFERROR(IF(F15>0,N15/3412/R15*$V$12,0),0) -> 0 | W15: =IF($T$1="Electric",T15*'Worksheet Data'!$W$3/1000000,-S15*'Worksheet Data'!$W$3/1000000) -> 0 | X15: =IFERROR(U15-V15,0) -> 0 | Y15: =IFERROR(IF($T$1="Electric",0,Q15*'Worksheet Data'!$W$2/1000000),0) -> 0 | Z15: 0
A16: =A14& " On" -> On | D16: 4 | E16: 97 | F16: =HLOOKUP($A$16, 'Weather Data'!$CD$17:$DA$80,D16,FALSE) ->  | G16: =IF('DHW Bldg & Operation Data'!$C$26="Un-Conditioned","Un-Conditioned",IF(AND(E16>='DHW Bldg & Operation Data'!$C$28,'DHW Bldg & Operation Data'!$C$27<>"Heating Only"),"Cooling",IF(E16<='DHW Bldg & Operation Data'!$C$28,"Heating","Un-Conditioned"))) -> Cooling | H16: =IF(HPWH_Location="Outdoor Evaporator",'DHW Calculator'!$E16,IF(HPWH_Location="Conditioned Space",BinModelTemp,IF(HPWH_Location="Un-Conditioned Enclosed",($L$6*(1-$L$7)+$E16*$L$7),I16))) -> 36.11111111 | I16: 36.11111111 | K16: =HLOOKUP($A$16&" TMAIN", 'Weather Data'!$CD$17:$DA$80,D16,FALSE) ->  | O16: - | Q16: - | R16: =IF($L$9="Yes",'COP Assignment'!W5*(1-Recirculation_Loss_Factor)+1*Recirculation_Loss_Factor,'COP Assignment'!W5) ->  | S16: 0 | T16: 0 | U16: 0 | V16: 0 | W16: =IF($T$1="Electric",T16*'Worksheet Data'!$W$3/1000000,-S16*'Worksheet Data'!$W$3/1000000) -> 0 | X16: 0 | Y16: =IFERROR(IF($T$1="Electric",0,Q16*'Worksheet Data'!$W$2/1000000),0) -> 0 | Z16: 0
A17: =A14&VLOOKUP(A14,'Worksheet Data'!$M$2:$N$13,2,FALSE) ->  | D17: 5 | E17: 95 | F17: =HLOOKUP($A$16, 'Weather Data'!$CD$17:$DA$80,D17,FALSE) ->  | G17: =IF('DHW Bldg & Operation Data'!$C$26="Un-Conditioned","Un-Conditioned",IF(AND(E17>='DHW Bldg & Operation Data'!$C$28,'DHW Bldg & Operation Data'!$C$27<>"Heating Only"),"Cooling",IF(E17<='DHW Bldg & Operation Data'!$C$28,"Heating","Un-Conditioned"))) -> Cooling | H17: =IF(HPWH_Location="Outdoor Evaporator",'DHW Calculator'!$E17,IF(HPWH_Location="Conditioned Space",BinModelTemp,IF(HPWH_Location="Un-Conditioned Enclosed",($L$6*(1-$L$7)+$E17*$L$7),I17))) -> 37.22222222 | I17: 37.22222222 | K17: =HLOOKUP($A$16&" TMAIN", 'Weather Data'!$CD$17:$DA$80,D17,FALSE) ->  | O17: =IFERROR(MAX(M17/N17,0),"-") -> - | Q17: - | R17: =IF($L$9="Yes",'COP Assignment'!W6*(1-Recirculation_Loss_Factor)+1*Recirculation_Loss_Factor,'COP Assignment'!W6) ->  | S17: 0 | T17: 0 | U17: 0 | V17: 0 | W17: =IF($T$1="Electric",T17*'Worksheet Data'!$W$3/1000000,-S17*'Worksheet Data'!$W$3/1000000) -> 0 | X17: 0 | Y17: =IFERROR(IF($T$1="Electric",0,Q17*'Worksheet Data'!$W$2/1000000),0) -> 0 | Z17: 0
D18: 6 | E18: 93 | F18: =HLOOKUP($A$16, 'Weather Data'!$CD$17:$DA$80,D18,FALSE) ->  | G18: =IF('DHW Bldg & Operation Data'!$C$26="Un-Conditioned","Un-Conditioned",IF(AND(E18>='DHW Bldg & Operation Data'!$C$28,'DHW Bldg & Operation Data'!$C$27<>"Heating Only"),"Cooling",IF(E18<='DHW Bldg & Operation Data'!$C$28,"Heating","Un-Conditioned"))) -> Cooling | H18: =IF(HPWH_Location="Outdoor Evaporator",'DHW Calculator'!$E18,IF(HPWH_Location="Conditioned Space",BinModelTemp,IF(HPWH_Location="Un-Conditioned Enclosed",($L$6*(1-$L$7)+$E18*$L$7),I18))) -> 38.33333333 | I18: 38.33333333 | K18: =HLOOKUP($A$16&" TMAIN", 'Weather Data'!$CD$17:$DA$80,D18,FALSE) ->  | O18: - | Q18: - | R18: =IF($L$9="Yes",'COP Assignment'!W7*(1-Recirculation_Loss_Factor)+1*Recirculation_Loss_Factor,'COP Assignment'!W7) ->  | S18: 0 | T18: 0 | U18: 0 | V18: 0 | W18: =IF($T$1="Electric",T18*'Worksheet Data'!$W$3/1000000,-S18*'Worksheet Data'!$W$3/1000000) -> 0 | X18: 0 | Y18: =IFERROR(IF($T$1="Electric",0,Q18*'Worksheet Data'!$W$2/1000000),0) -> 0 | Z18: 0
D19: 7 | E19: 91 | F19: =HLOOKUP($A$16, 'Weather Data'!$CD$17:$DA$80,D19,FALSE) ->  | G19: =IF('DHW Bldg & Operation Data'!$C$26="Un-Conditioned","Un-Conditioned",IF(AND(E19>='DHW Bldg & Operation Data'!$C$28,'DHW Bldg & Operation Data'!$C$27<>"Heating Only"),"Cooling",IF(E19<='DHW Bldg & Operation Data'!$C$28,"Heating","Un-Conditioned"))) -> Cooling | H19: =IF(HPWH_Location="Outdoor Evaporator",'DHW Calculator'!$E19,IF(HPWH_Location="Conditioned Space",BinModelTemp,IF(HPWH_Location="Un-Conditioned Enclosed",($L$6*(1-$L$7)+$E19*$L$7),I19))) -> 39.44444444 | I19: 39.44444444 | K19: =HLOOKUP($A$16&" TMAIN", 'Weather Data'!$CD$17:$DA$80,D19,FALSE) ->  | O19: - | Q19: - | R19: =IF($L$9="Yes",'COP Assignment'!W8*(1-Recirculation_Loss_Factor)+1*Recirculation_Loss_Factor,'COP Assignment'!W8) ->  | S19: 0 | T19: 0 | U19: 0 | V19: 0 | W19: =IF($T$1="Electric",T19*'Worksheet Data'!$W$3/1000000,-S19*'Worksheet Data'!$W$3/1000000) -> 0 | X19: 0 | Y19: =IFERROR(IF($T$1="Electric",0,Q19*'Worksheet Data'!$W$2/1000000),0) -> 0 | Z19: 0
D20: 8 | E20: 89 | F20: =HLOOKUP($A$16, 'Weather Data'!$CD$17:$DA$80,D20,FALSE) ->  | G20: =IF('DHW Bldg & Operation Data'!$C$26="Un-Conditioned","Un-Conditioned",IF(AND(E20>='DHW Bldg & Operation Data'!$C$28,'DHW Bldg & Operation Data'!$C$27<>"Heating Only"),"Cooling",IF(E20<='DHW Bldg & Operation Data'!$C$28,"Heating","Un-Conditioned"))) -> Cooling | H20: =IF(HPWH_Location="Outdoor Evaporator",'DHW Calculator'!$E20,IF(HPWH_Location="Conditioned Space",BinModelTemp,IF(HPWH_Location="Un-Conditioned Enclosed",($L$6*(1-$L$7)+$E20*$L$7),I20))) -> 40.55555556 | I20: 40.55555556 | K20: =HLOOKUP($A$16&" TMAIN", 'Weather Data'!$CD$17:$DA$80,D20,FALSE) ->  | O20: - | Q20: - | R20: =IF($L$9="Yes",'COP Assignment'!W9*(1-Recirculation_Loss_Factor)+1*Recirculation_Loss_Factor,'COP Assignment'!W9) ->  | S20: 0 | T20: 0 | U20: 0 | V20: 0 | W20: =IF($T$1="Electric",T20*'Worksheet Data'!$W$3/1000000,-S20*'Worksheet Data'!$W$3/1000000) -> 0 | X20: 0 | Y20: =IFERROR(IF($T$1="Electric",0,Q20*'Worksheet Data'!$W$2/1000000),0) -> 0 | Z20: 0
D21: 9 | E21: 87 | F21: =HLOOKUP($A$16, 'Weather Data'!$CD$17:$DA$80,D21,FALSE) ->  | G21: =IF('DHW Bldg & Operation Data'!$C$26="Un-Conditioned","Un-Conditioned",IF(AND(E21>='DHW Bldg & Operation Data'!$C$28,'DHW Bldg & Operation Data'!$C$27<>"Heating Only"),"Cooling",IF(E21<='DHW Bldg & Operation Data'!$C$28,"Heating","Un-Conditioned"))) -> Cooling | H21: =IF(HPWH_Location="Outdoor Evaporator",'DHW Calculator'!$E21,IF(HPWH_Location="Conditioned Space",BinModelTemp,IF(HPWH_Location="Un-Conditioned Enclosed",($L$6*(1-$L$7)+$E21*$L$7),I21))) -> 41.66666667 | I21: 41.66666667 | K21: =HLOOKUP($A$16&" TMAIN", 'Weather Data'!$CD$17:$DA$80,D21,FALSE) ->  | O21: - | Q21: - | R21: =IF($L$9="Yes",'COP Assignment'!W10*(1-Recirculation_Loss_Factor)+1*Recirculation_Loss_Factor,'COP Assignment'!W10) ->  | S21: 0 | T21: 0 | U21: 0 | V21: 0 | W21: =IF($T$1="Electric",T21*'Worksheet Data'!$W$3/1000000,-S21*'Worksheet Data'!$W$3/1000000) -> 0 | X21: 0 | Y21: =IFERROR(IF($T$1="Electric",0,Q21*'Worksheet Data'!$W$2/1000000),0) -> 0 | Z21: 0
D22: 10 | E22: 85 | F22: =HLOOKUP($A$16, 'Weather Data'!$CD$17:$DA$80,D22,FALSE) ->  | G22: =IF('DHW Bldg & Operation Data'!$C$26="Un-Conditioned","Un-Conditioned",IF(AND(E22>='DHW Bldg & Operation Data'!$C$28,'DHW Bldg & Operation Data'!$C$27<>"Heating Only"),"Cooling",IF(E22<='DHW Bldg & Operation Data'!$C$28,"Heating","Un-Conditioned"))) -> Cooling | H22: =IF(HPWH_Location="Outdoor Evaporator",'DHW Calculator'!$E22,IF(HPWH_Location="Conditioned Space",BinModelTemp,IF(HPWH_Location="Un-Conditioned Enclosed",($L$6*(1-$L$7)+$E22*$L$7),I22))) -> 42.77777778 | I22: 42.77777778 | K22: =HLOOKUP($A$16&" TMAIN", 'Weather Data'!$CD$17:$DA$80,D22,FALSE) ->  | O22: - | Q22: - | R22: =IF($L$9="Yes",'COP Assignment'!W11*(1-Recirculation_Loss_Factor)+1*Recirculation_Loss_Factor,'COP Assignment'!W11) ->  | S22: 0 | T22: 0 | U22: 0 | V22: 0 | W22: =IF($T$1="Electric",T22*'Worksheet Data'!$W$3/1000000,-S22*'Worksheet Data'!$W$3/1000000) -> 0 | X22: 0 | Y22: =IFERROR(IF($T$1="Electric",0,Q22*'Worksheet Data'!$W$2/1000000),0) -> 0 | Z22: 0
D23: 11 | E23: 83 | F23: =HLOOKUP($A$16, 'Weather Data'!$CD$17:$DA$80,D23,FALSE) ->  | G23: =IF('DHW Bldg & Operation Data'!$C$26="Un-Conditioned","Un-Conditioned",IF(AND(E23>='DHW Bldg & Operation Data'!$C$28,'DHW Bldg & Operation Data'!$C$27<>"Heating Only"),"Cooling",IF(E23<='DHW Bldg & Operation Data'!$C$28,"Heating","Un-Conditioned"))) -> Cooling | H23: =IF(HPWH_Location="Outdoor Evaporator",'DHW Calculator'!$E23,IF(HPWH_Location="Conditioned Space",BinModelTemp,IF(HPWH_Location="Un-Conditioned Enclosed",($L$6*(1-$L$7)+$E23*$L$7),I23))) -> 43.88888889 | I23: 43.88888889 | K23: =HLOOKUP($A$16&" TMAIN", 'Weather Data'!$CD$17:$DA$80,D23,FALSE) ->  | O23: - | Q23: - | R23: =IF($L$9="Yes",'COP Assignment'!W12*(1-Recirculation_Loss_Factor)+1*Recirculation_Loss_Factor,'COP Assignment'!W12) ->  | S23: 0 | T23: 0 | U23: 0 | V23: 0 | W23: =IF($T$1="Electric",T23*'Worksheet Data'!$W$3/1000000,-S23*'Worksheet Data'!$W$3/1000000) -> 0 | X23: 0 | Y23: =IFERROR(IF($T$1="Electric",0,Q23*'Worksheet Data'!$W$2/1000000),0) -> 0 | Z23: 0
D24: 12 | E24: 81 | F24: =HLOOKUP($A$16, 'Weather Data'!$CD$17:$DA$80,D24,FALSE) ->  | G24: =IF('DHW Bldg & Operation Data'!$C$26="Un-Conditioned","Un-Conditioned",IF(AND(E24>='DHW Bldg & Operation Data'!$C$28,'DHW Bldg & Operation Data'!$C$27<>"Heating Only"),"Cooling",IF(E24<='DHW Bldg & Operation Data'!$C$28,"Heating","Un-Conditioned"))) -> Cooling | H24: =IF(HPWH_Location="Outdoor Evaporator",'DHW Calculator'!$E24,IF(HPWH_Location="Conditioned Space",BinModelTemp,IF(HPWH_Location="Un-Conditioned Enclosed",($L$6*(1-$L$7)+$E24*$L$7),I24))) -> 45 | I24: 45 | K24: =HLOOKUP($A$16&" TMAIN", 'Weather Data'!$CD$17:$DA$80,D24,FALSE) ->  | O24: - | Q24: - | R24: =IF($L$9="Yes",'COP Assignment'!W13*(1-Recirculation_Loss_Factor)+1*Recirculation_Loss_Factor,'COP Assignment'!W13) ->  | S24: 0 | T24: 0 | U24: 0 | V24: 0 | W24: =IF($T$1="Electric",T24*'Worksheet Data'!$W$3/1000000,-S24*'Worksheet Data'!$W$3/1000000) -> 0 | X24: 0 | Y24: =IFERROR(IF($T$1="Electric",0,Q24*'Worksheet Data'!$W$2/1000000),0) -> 0 | Z24: 0
D25: 13 | E25: 79 | F25: =HLOOKUP($A$16, 'Weather Data'!$CD$17:$DA$80,D25,FALSE) ->  | G25: =IF('DHW Bldg & Operation Data'!$C$26="Un-Conditioned","Un-Conditioned",IF(AND(E25>='DHW Bldg & Operation Data'!$C$28,'DHW Bldg & Operation Data'!$C$27<>"Heating Only"),"Cooling",IF(E25<='DHW Bldg & Operation Data'!$C$28,"Heating","Un-Conditioned"))) -> Cooling | H25: =IF(HPWH_Location="Outdoor Evaporator",'DHW Calculator'!$E25,IF(HPWH_Location="Conditioned Space",BinModelTemp,IF(HPWH_Location="Un-Conditioned Enclosed",($L$6*(1-$L$7)+$E25*$L$7),I25))) -> 46.11111111 | I25: 46.11111111 | K25: =HLOOKUP($A$16&" TMAIN", 'Weather Data'!$CD$17:$DA$80,D25,FALSE) ->  | O25: - | Q25: - | R25: =IF($L$9="Yes",'COP Assignment'!W14*(1-Recirculation_Loss_Factor)+1*Recirculation_Loss_Factor,'COP Assignment'!W14) ->  | S25: 0 | T25: 0 | U25: 0 | V25: 0 | W25: =IF($T$1="Electric",T25*'Worksheet Data'!$W$3/1000000,-S25*'Worksheet Data'!$W$3/1000000) -> 0 | X25: 0 | Y25: =IFERROR(IF($T$1="Electric",0,Q25*'Worksheet Data'!$W$2/1000000),0) -> 0 | Z25: 0
D26: 14 | E26: 77 | F26: =HLOOKUP($A$16, 'Weather Data'!$CD$17:$DA$80,D26,FALSE) ->  | G26: =IF('DHW Bldg & Operation Data'!$C$26="Un-Conditioned","Un-Conditioned",IF(AND(E26>='DHW Bldg & Operation Data'!$C$28,'DHW Bldg & Operation Data'!$C$27<>"Heating Only"),"Cooling",IF(E26<='DHW Bldg & Operation Data'!$C$28,"Heating","Un-Conditioned"))) -> Cooling | H26: =IF(HPWH_Location="Outdoor Evaporator",'DHW Calculator'!$E26,IF(HPWH_Location="Conditioned Space",BinModelTemp,IF(HPWH_Location="Un-Conditioned Enclosed",($L$6*(1-$L$7)+$E26*$L$7),I26))) -> 47.22222222 | I26: 47.22222222 | K26: =HLOOKUP($A$16&" TMAIN", 'Weather Data'!$CD$17:$DA$80,D26,FALSE) ->  | O26: - | Q26: - | R26: =IF($L$9="Yes",'COP Assignment'!W15*(1-Recirculation_Loss_Factor)+1*Recirculation_Loss_Factor,'COP Assignment'!W15) ->  | S26: 0 | T26: 0 | U26: 0 | V26: 0 | W26: =IF($T$1="Electric",T26*'Worksheet Data'!$W$3/1000000,-S26*'Worksheet Data'!$W$3/1000000) -> 0 | X26: 0 | Y26: =IFERROR(IF($T$1="Electric",0,Q26*'Worksheet Data'!$W$2/1000000),0) -> 0 | Z26: 0
D27: 15 | E27: 75 | F27: =HLOOKUP($A$16, 'Weather Data'!$CD$17:$DA$80,D27,FALSE) ->  | G27: =IF('DHW Bldg & Operation Data'!$C$26="Un-Conditioned","Un-Conditioned",IF(AND(E27>='DHW Bldg & Operation Data'!$C$28,'DHW Bldg & Operation Data'!$C$27<>"Heating Only"),"Cooling",IF(E27<='DHW Bldg & Operation Data'!$C$28,"Heating","Un-Conditioned"))) -> Cooling | H27: =IF(HPWH_Location="Outdoor Evaporator",'DHW Calculator'!$E27,IF(HPWH_Location="Conditioned Space",BinModelTemp,IF(HPWH_Location="Un-Conditioned Enclosed",($L$6*(1-$L$7)+$E27*$L$7),I27))) -> 48.33333333 | I27: 48.33333333 | K27: =HLOOKUP($A$16&" TMAIN", 'Weather Data'!$CD$17:$DA$80,D27,FALSE) ->  | O27: - | Q27: - | R27: =IF($L$9="Yes",'COP Assignment'!W16*(1-Recirculation_Loss_Factor)+1*Recirculation_Loss_Factor,'COP Assignment'!W16) ->  | S27: 0 | T27: 0 | U27: 0 | V27: 0 | W27: =IF($T$1="Electric",T27*'Worksheet Data'!$W$3/1000000,-S27*'Worksheet Data'!$W$3/1000000) -> 0 | X27: 0 | Y27: =IFERROR(IF($T$1="Electric",0,Q27*'Worksheet Data'!$W$2/1000000),0) -> 0 | Z27: 0
D28: 16 | E28: 73 | F28: =HLOOKUP($A$16, 'Weather Data'!$CD$17:$DA$80,D28,FALSE) ->  | G28: =IF('DHW Bldg & Operation Data'!$C$26="Un-Conditioned","Un-Conditioned",IF(AND(E28>='DHW Bldg & Operation Data'!$C$28,'DHW Bldg & Operation Data'!$C$27<>"Heating Only"),"Cooling",IF(E28<='DHW Bldg & Operation Data'!$C$28,"Heating","Un-Conditioned"))) -> Cooling | H28: =IF(HPWH_Location="Outdoor Evaporator",'DHW Calculator'!$E28,IF(HPWH_Location="Conditioned Space",BinModelTemp,IF(HPWH_Location="Un-Conditioned Enclosed",($L$6*(1-$L$7)+$E28*$L$7),I28))) -> 49.44444444 | I28: 49.44444444 | K28: =HLOOKUP($A$16&" TMAIN", 'Weather Data'!$CD$17:$DA$80,D28,FALSE) ->  | O28: - | Q28: - | R28: =IF($L$9="Yes",'COP Assignment'!W17*(1-Recirculation_Loss_Factor)+1*Recirculation_Loss_Factor,'COP Assignment'!W17) ->  | S28: 0 | T28: 0 | U28: 0 | V28: 0 | W28: =IF($T$1="Electric",T28*'Worksheet Data'!$W$3/1000000,-S28*'Worksheet Data'!$W$3/1000000) -> 0 | X28: 0 | Y28: =IFERROR(IF($T$1="Electric",0,Q28*'Worksheet Data'!$W$2/1000000),0) -> 0 | Z28: 0
D29: 17 | E29: 71 | F29: =HLOOKUP($A$16, 'Weather Data'!$CD$17:$DA$80,D29,FALSE) ->  | G29: =IF('DHW Bldg & Operation Data'!$C$26="Un-Conditioned","Un-Conditioned",IF(AND(E29>='DHW Bldg & Operation Data'!$C$28,'DHW Bldg & Operation Data'!$C$27<>"Heating Only"),"Cooling",IF(E29<='DHW Bldg & Operation Data'!$C$28,"Heating","Un-Conditioned"))) -> Heating | H29: =IF(HPWH_Location="Outdoor Evaporator",'DHW Calculator'!$E29,IF(HPWH_Location="Conditioned Space",BinModelTemp,IF(HPWH_Location="Un-Conditioned Enclosed",($L$6*(1-$L$7)+$E29*$L$7),I29))) -> 49.72222222 | I29: 49.72222222 | K29: =HLOOKUP($A$16&" TMAIN", 'Weather Data'!$CD$17:$DA$80,D29,FALSE) ->  | O29: - | Q29: - | R29: =IF($L$9="Yes",'COP Assignment'!W18*(1-Recirculation_Loss_Factor)+1*Recirculation_Loss_Factor,'COP Assignment'!W18) ->  | S29: 0 | T29: 0 | U29: 0 | V29: 0 | W29: =IF($T$1="Electric",T29*'Worksheet Data'!$W$3/1000000,-S29*'Worksheet Data'!$W$3/1000000) -> 0 | X29: 0 | Y29: =IFERROR(IF($T$1="Electric",0,Q29*'Worksheet Data'!$W$2/1000000),0) -> 0 | Z29: 0
D30: 18 | E30: 69 | F30: =HLOOKUP($A$16, 'Weather Data'!$CD$17:$DA$80,D30,FALSE) ->  | G30: =IF('DHW Bldg & Operation Data'!$C$26="Un-Conditioned","Un-Conditioned",IF(AND(E30>='DHW Bldg & Operation Data'!$C$28,'DHW Bldg & Operation Data'!$C$27<>"Heating Only"),"Cooling",IF(E30<='DHW Bldg & Operation Data'!$C$28,"Heating","Un-Conditioned"))) -> Heating | H30: =IF(HPWH_Location="Outdoor Evaporator",'DHW Calculator'!$E30,IF(HPWH_Location="Conditioned Space",BinModelTemp,IF(HPWH_Location="Un-Conditioned Enclosed",($L$6*(1-$L$7)+$E30*$L$7),I30))) -> 49.16666667 | I30: 49.16666667 | K30: =HLOOKUP($A$16&" TMAIN", 'Weather Data'!$CD$17:$DA$80,D30,FALSE) ->  | O30: - | Q30: - | R30: =IF($L$9="Yes",'COP Assignment'!W19*(1-Recirculation_Loss_Factor)+1*Recirculation_Loss_Factor,'COP Assignment'!W19) ->  | S30: 0 | T30: 0 | U30: 0 | V30: 0 | W30: =IF($T$1="Electric",T30*'Worksheet Data'!$W$3/1000000,-S30*'Worksheet Data'!$W$3/1000000) -> 0 | X30: 0 | Y30: =IFERROR(IF($T$1="Electric",0,Q30*'Worksheet Data'!$W$2/1000000),0) -> 0 | Z30: 0
D31: 19 | E31: 67 | F31: =HLOOKUP($A$16, 'Weather Data'!$CD$17:$DA$80,D31,FALSE) ->  | G31: =IF('DHW Bldg & Operation Data'!$C$26="Un-Conditioned","Un-Conditioned",IF(AND(E31>='DHW Bldg & Operation Data'!$C$28,'DHW Bldg & Operation Data'!$C$27<>"Heating Only"),"Cooling",IF(E31<='DHW Bldg & Operation Data'!$C$28,"Heating","Un-Conditioned"))) -> Heating | H31: =IF(HPWH_Location="Outdoor Evaporator",'DHW Calculator'!$E31,IF(HPWH_Location="Conditioned Space",BinModelTemp,IF(HPWH_Location="Un-Conditioned Enclosed",($L$6*(1-$L$7)+$E31*$L$7),I31))) -> 48.61111111 | I31: 48.61111111 | K31: =HLOOKUP($A$16&" TMAIN", 'Weather Data'!$CD$17:$DA$80,D31,FALSE) ->  | O31: - | Q31: - | R31: =IF($L$9="Yes",'COP Assignment'!W20*(1-Recirculation_Loss_Factor)+1*Recirculation_Loss_Factor,'COP Assignment'!W20) ->  | S31: 0 | T31: 0 | U31: 0 | V31: 0 | W31: =IF($T$1="Electric",T31*'Worksheet Data'!$W$3/1000000,-S31*'Worksheet Data'!$W$3/1000000) -> 0 | X31: 0 | Y31: =IFERROR(IF($T$1="Electric",0,Q31*'Worksheet Data'!$W$2/1000000),0) -> 0 | Z31: 0
D32: 20 | E32: 65 | F32: =HLOOKUP($A$16, 'Weather Data'!$CD$17:$DA$80,D32,FALSE) ->  | G32: =IF('DHW Bldg & Operation Data'!$C$26="Un-Conditioned","Un-Conditioned",IF(AND(E32>='DHW Bldg & Operation Data'!$C$28,'DHW Bldg & Operation Data'!$C$27<>"Heating Only"),"Cooling",IF(E32<='DHW Bldg & Operation Data'!$C$28,"Heating","Un-Conditioned"))) -> Heating | H32: =IF(HPWH_Location="Outdoor Evaporator",'DHW Calculator'!$E32,IF(HPWH_Location="Conditioned Space",BinModelTemp,IF(HPWH_Location="Un-Conditioned Enclosed",($L$6*(1-$L$7)+$E32*$L$7),I32))) -> 48.05555556 | I32: 48.05555556 | K32: =HLOOKUP($A$16&" TMAIN", 'Weather Data'!$CD$17:$DA$80,D32,FALSE) ->  | O32: - | Q32: - | R32: =IF($L$9="Yes",'COP Assignment'!W21*(1-Recirculation_Loss_Factor)+1*Recirculation_Loss_Factor,'COP Assignment'!W21) ->  | S32: 0 | T32: 0 | U32: 0 | V32: 0 | W32: =IF($T$1="Electric",T32*'Worksheet Data'!$W$3/1000000,-S32*'Worksheet Data'!$W$3/1000000) -> 0 | X32: 0 | Y32: =IFERROR(IF($T$1="Electric",0,Q32*'Worksheet Data'!$W$2/1000000),0) -> 0 | Z32: 0
D33: 21 | E33: 63 | F33: =HLOOKUP($A$16, 'Weather Data'!$CD$17:$DA$80,D33,FALSE) ->  | G33: =IF('DHW Bldg & Operation Data'!$C$26="Un-Conditioned","Un-Conditioned",IF(AND(E33>='DHW Bldg & Operation Data'!$C$28,'DHW Bldg & Operation Data'!$C$27<>"Heating Only"),"Cooling",IF(E33<='DHW Bldg & Operation Data'!$C$28,"Heating","Un-Conditioned"))) -> Heating | H33: =IF(HPWH_Location="Outdoor Evaporator",'DHW Calculator'!$E33,IF(HPWH_Location="Conditioned Space",BinModelTemp,IF(HPWH_Location="Un-Conditioned Enclosed",($L$6*(1-$L$7)+$E33*$L$7),I33))) -> 47.5 | I33: 47.5 | K33: =HLOOKUP($A$16&" TMAIN", 'Weather Data'!$CD$17:$DA$80,D33,FALSE) ->  | O33: - | Q33: - | R33: =IF($L$9="Yes",'COP Assignment'!W22*(1-Recirculation_Loss_Factor)+1*Recirculation_Loss_Factor,'COP Assignment'!W22) ->  | S33: 0 | T33: 0 | U33: 0 | V33: 0 | W33: =IF($T$1="Electric",T33*'Worksheet Data'!$W$3/1000000,-S33*'Worksheet Data'!$W$3/1000000) -> 0 | X33: 0 | Y33: =IFERROR(IF($T$1="Electric",0,Q33*'Worksheet Data'!$W$2/1000000),0) -> 0 | Z33: 0
D34: 22 | E34: 61 | F34: =HLOOKUP($A$16, 'Weather Data'!$CD$17:$DA$80,D34,FALSE) ->  | G34: =IF('DHW Bldg & Operation Data'!$C$26="Un-Conditioned","Un-Conditioned",IF(AND(E34>='DHW Bldg & Operation Data'!$C$28,'DHW Bldg & Operation Data'!$C$27<>"Heating Only"),"Cooling",IF(E34<='DHW Bldg & Operation Data'!$C$28,"Heating","Un-Conditioned"))) -> Heating | H34: =IF(HPWH_Location="Outdoor Evaporator",'DHW Calculator'!$E34,IF(HPWH_Location="Conditioned Space",BinModelTemp,IF(HPWH_Location="Un-Conditioned Enclosed",($L$6*(1-$L$7)+$E34*$L$7),I34))) -> 46.94444444 | I34: 46.94444444 | K34: =HLOOKUP($A$16&" TMAIN", 'Weather Data'!$CD$17:$DA$80,D34,FALSE) ->  | O34: - | Q34: - | R34: =IF($L$9="Yes",'COP Assignment'!W23*(1-Recirculation_Loss_Factor)+1*Recirculation_Loss_Factor,'COP Assignment'!W23) ->  | S34: 0 | T34: 0 | U34: 0 | V34: 0 | W34: =IF($T$1="Electric",T34*'Worksheet Data'!$W$3/1000000,-S34*'Worksheet Data'!$W$3/1000000) -> 0 | X34: 0 | Y34: =IFERROR(IF($T$1="Electric",0,Q34*'Worksheet Data'!$W$2/1000000),0) -> 0 | Z34: 0
D35: 23 | E35: 59 | F35: =HLOOKUP($A$16, 'Weather Data'!$CD$17:$DA$80,D35,FALSE) ->  | G35: =IF('DHW Bldg & Operation Data'!$C$26="Un-Conditioned","Un-Conditioned",IF(AND(E35>='DHW Bldg & Operation Data'!$C$28,'DHW Bldg & Operation Data'!$C$27<>"Heating Only"),"Cooling",IF(E35<='DHW Bldg & Operation Data'!$C$28,"Heating","Un-Conditioned"))) -> Heating | H35: =IF(HPWH_Location="Outdoor Evaporator",'DHW Calculator'!$E35,IF(HPWH_Location="Conditioned Space",BinModelTemp,IF(HPWH_Location="Un-Conditioned Enclosed",($L$6*(1-$L$7)+$E35*$L$7),I35))) -> 46.38888889 | I35: 46.38888889 | K35: =HLOOKUP($A$16&" TMAIN", 'Weather Data'!$CD$17:$DA$80,D35,FALSE) ->  | O35: - | Q35: - | R35: =IF($L$9="Yes",'COP Assignment'!W24*(1-Recirculation_Loss_Factor)+1*Recirculation_Loss_Factor,'COP Assignment'!W24) ->  | S35: 0 | T35: 0 | U35: 0 | V35: 0 | W35: =IF($T$1="Electric",T35*'Worksheet Data'!$W$3/1000000,-S35*'Worksheet Data'!$W$3/1000000) -> 0 | X35: 0 | Y35: =IFERROR(IF($T$1="Electric",0,Q35*'Worksheet Data'!$W$2/1000000),0) -> 0 | Z35: 0
D36: 24 | E36: 57 | F36: =HLOOKUP($A$16, 'Weather Data'!$CD$17:$DA$80,D36,FALSE) ->  | G36: =IF('DHW Bldg & Operation Data'!$C$26="Un-Conditioned","Un-Conditioned",IF(AND(E36>='DHW Bldg & Operation Data'!$C$28,'DHW Bldg & Operation Data'!$C$27<>"Heating Only"),"Cooling",IF(E36<='DHW Bldg & Operation Data'!$C$28,"Heating","Un-Conditioned"))) -> Heating | H36: =IF(HPWH_Location="Outdoor Evaporator",'DHW Calculator'!$E36,IF(HPWH_Location="Conditioned Space",BinModelTemp,IF(HPWH_Location="Un-Conditioned Enclosed",($L$6*(1-$L$7)+$E36*$L$7),I36))) -> 45.83333333 | I36: 45.83333333 | K36: =HLOOKUP($A$16&" TMAIN", 'Weather Data'!$CD$17:$DA$80,D36,FALSE) ->  | O36: - | Q36: - | R36: =IF($L$9="Yes",'COP Assignment'!W25*(1-Recirculation_Loss_Factor)+1*Recirculation_Loss_Factor,'COP Assignment'!W25) ->  | S36: 0 | T36: 0 | U36: 0 | V36: 0 | W36: =IF($T$1="Electric",T36*'Worksheet Data'!$W$3/1000000,-S36*'Worksheet Data'!$W$3/1000000) -> 0 | X36: 0 | Y36: =IFERROR(IF($T$1="Electric",0,Q36*'Worksheet Data'!$W$2/1000000),0) -> 0 | Z36: 0
D37: 25 | E37: 55 | F37: =HLOOKUP($A$16, 'Weather Data'!$CD$17:$DA$80,D37,FALSE) ->  | G37: =IF('DHW Bldg & Operation Data'!$C$26="Un-Conditioned","Un-Conditioned",IF(AND(E37>='DHW Bldg & Operation Data'!$C$28,'DHW Bldg & Operation Data'!$C$27<>"Heating Only"),"Cooling",IF(E37<='DHW Bldg & Operation Data'!$C$28,"Heating","Un-Conditioned"))) -> Heating | H37: =IF(HPWH_Location="Outdoor Evaporator",'DHW Calculator'!$E37,IF(HPWH_Location="Conditioned Space",BinModelTemp,IF(HPWH_Location="Un-Conditioned Enclosed",($L$6*(1-$L$7)+$E37*$L$7),I37))) -> 45.27777778 | I37: 45.27777778 | K37: =HLOOKUP($A$16&" TMAIN", 'Weather Data'!$CD$17:$DA$80,D37,FALSE) ->  | O37: - | Q37: - | R37: =IF($L$9="Yes",'COP Assignment'!W26*(1-Recirculation_Loss_Factor)+1*Recirculation_Loss_Factor,'COP Assignment'!W26) ->  | S37: 0 | T37: 0 | U37: 0 | V37: 0 | W37: =IF($T$1="Electric",T37*'Worksheet Data'!$W$3/1000000,-S37*'Worksheet Data'!$W$3/1000000) -> 0 | X37: 0 | Y37: =IFERROR(IF($T$1="Electric",0,Q37*'Worksheet Data'!$W$2/1000000),0) -> 0 | Z37: 0
D38: 26 | E38: 53 | F38: =HLOOKUP($A$16, 'Weather Data'!$CD$17:$DA$80,D38,FALSE) ->  | G38: =IF('DHW Bldg & Operation Data'!$C$26="Un-Conditioned","Un-Conditioned",IF(AND(E38>='DHW Bldg & Operation Data'!$C$28,'DHW Bldg & Operation Data'!$C$27<>"Heating Only"),"Cooling",IF(E38<='DHW Bldg & Operation Data'!$C$28,"Heating","Un-Conditioned"))) -> Heating | H38: =IF(HPWH_Location="Outdoor Evaporator",'DHW Calculator'!$E38,IF(HPWH_Location="Conditioned Space",BinModelTemp,IF(HPWH_Location="Un-Conditioned Enclosed",($L$6*(1-$L$7)+$E38*$L$7),I38))) -> 44.72222222 | I38: 44.72222222 | K38: =HLOOKUP($A$16&" TMAIN", 'Weather Data'!$CD$17:$DA$80,D38,FALSE) ->  | O38: - | Q38: - | R38: =IF($L$9="Yes",'COP Assignment'!W27*(1-Recirculation_Loss_Factor)+1*Recirculation_Loss_Factor,'COP Assignment'!W27) ->  | S38: 0 | T38: 0 | U38: 0 | V38: 0 | W38: =IF($T$1="Electric",T38*'Worksheet Data'!$W$3/1000000,-S38*'Worksheet Data'!$W$3/1000000) -> 0 | X38: 0 | Y38: =IFERROR(IF($T$1="Electric",0,Q38*'Worksheet Data'!$W$2/1000000),0) -> 0 | Z38: 0
D39: 27 | E39: 51 | F39: =HLOOKUP($A$16, 'Weather Data'!$CD$17:$DA$80,D39,FALSE) ->  | G39: =IF('DHW Bldg & Operation Data'!$C$26="Un-Conditioned","Un-Conditioned",IF(AND(E39>='DHW Bldg & Operation Data'!$C$28,'DHW Bldg & Operation Data'!$C$27<>"Heating Only"),"Cooling",IF(E39<='DHW Bldg & Operation Data'!$C$28,"Heating","Un-Conditioned"))) -> Heating | H39: =IF(HPWH_Location="Outdoor Evaporator",'DHW Calculator'!$E39,IF(HPWH_Location="Conditioned Space",BinModelTemp,IF(HPWH_Location="Un-Conditioned Enclosed",($L$6*(1-$L$7)+$E39*$L$7),I39))) -> 44.16666667 | I39: 44.16666667 | K39: =HLOOKUP($A$16&" TMAIN", 'Weather Data'!$CD$17:$DA$80,D39,FALSE) ->  | O39: - | Q39: - | R39: =IF($L$9="Yes",'COP Assignment'!W28*(1-Recirculation_Loss_Factor)+1*Recirculation_Loss_Factor,'COP Assignment'!W28) ->  | S39: 0 | T39: 0 | U39: 0 | V39: 0 | W39: =IF($T$1="Electric",T39*'Worksheet Data'!$W$3/1000000,-S39*'Worksheet Data'!$W$3/1000000) -> 0 | X39: 0 | Y39: =IFERROR(IF($T$1="Electric",0,Q39*'Worksheet Data'!$W$2/1000000),0) -> 0 | Z39: 0
D40: 28 | E40: 49 | F40: =HLOOKUP($A$16, 'Weather Data'!$CD$17:$DA$80,D40,FALSE) ->  | G40: =IF('DHW Bldg & Operation Data'!$C$26="Un-Conditioned","Un-Conditioned",IF(AND(E40>='DHW Bldg & Operation Data'!$C$28,'DHW Bldg & Operation Data'!$C$27<>"Heating Only"),"Cooling",IF(E40<='DHW Bldg & Operation Data'!$C$28,"Heating","Un-Conditioned"))) -> Heating | H40: =IF(HPWH_Location="Outdoor Evaporator",'DHW Calculator'!$E40,IF(HPWH_Location="Conditioned Space",BinModelTemp,IF(HPWH_Location="Un-Conditioned Enclosed",($L$6*(1-$L$7)+$E40*$L$7),I40))) -> 43.61111111 | I40: 43.61111111 | K40: =HLOOKUP($A$16&" TMAIN", 'Weather Data'!$CD$17:$DA$80,D40,FALSE) ->  | O40: - | Q40: - | R40: =IF($L$9="Yes",'COP Assignment'!W29*(1-Recirculation_Loss_Factor)+1*Recirculation_Loss_Factor,'COP Assignment'!W29) ->  | S40: 0 | T40: 0 | U40: 0 | V40: 0 | W40: =IF($T$1="Electric",T40*'Worksheet Data'!$W$3/1000000,-S40*'Worksheet Data'!$W$3/1000000) -> 0 | X40: 0 | Y40: =IFERROR(IF($T$1="Electric",0,Q40*'Worksheet Data'!$W$2/1000000),0) -> 0 | Z40: 0
D41: 29 | E41: 47 | F41: =HLOOKUP($A$16, 'Weather Data'!$CD$17:$DA$80,D41,FALSE) ->  | G41: =IF('DHW Bldg & Operation Data'!$C$26="Un-Conditioned","Un-Conditioned",IF(AND(E41>='DHW Bldg & Operation Data'!$C$28,'DHW Bldg & Operation Data'!$C$27<>"Heating Only"),"Cooling",IF(E41<='DHW Bldg & Operation Data'!$C$28,"Heating","Un-Conditioned"))) -> Heating | H41: =IF(HPWH_Location="Outdoor Evaporator",'DHW Calculator'!$E41,IF(HPWH_Location="Conditioned Space",BinModelTemp,IF(HPWH_Location="Un-Conditioned Enclosed",($L$6*(1-$L$7)+$E41*$L$7),I41))) -> 43.05555556 | I41: 43.05555556 | K41: =HLOOKUP($A$16&" TMAIN", 'Weather Data'!$CD$17:$DA$80,D41,FALSE) ->  | O41: - | Q41: - | R41: =IF($L$9="Yes",'COP Assignment'!W30*(1-Recirculation_Loss_Factor)+1*Recirculation_Loss_Factor,'COP Assignment'!W30) ->  | S41: 0 | T41: 0 | U41: 0 | V41: 0 | W41: =IF($T$1="Electric",T41*'Worksheet Data'!$W$3/1000000,-S41*'Worksheet Data'!$W$3/1000000) -> 0 | X41: 0 | Y41: =IFERROR(IF($T$1="Electric",0,Q41*'Worksheet Data'!$W$2/1000000),0) -> 0 | Z41: 0
D42: 30 | E42: 45 | F42: =HLOOKUP($A$16, 'Weather Data'!$CD$17:$DA$80,D42,FALSE) ->  | G42: =IF('DHW Bldg & Operation Data'!$C$26="Un-Conditioned","Un-Conditioned",IF(AND(E42>='DHW Bldg & Operation Data'!$C$28,'DHW Bldg & Operation Data'!$C$27<>"Heating Only"),"Cooling",IF(E42<='DHW Bldg & Operation Data'!$C$28,"Heating","Un-Conditioned"))) -> Heating | H42: =IF(HPWH_Location="Outdoor Evaporator",'DHW Calculator'!$E42,IF(HPWH_Location="Conditioned Space",BinModelTemp,IF(HPWH_Location="Un-Conditioned Enclosed",($L$6*(1-$L$7)+$E42*$L$7),I42))) -> 42.5 | I42: 42.5 | K42: =HLOOKUP($A$16&" TMAIN", 'Weather Data'!$CD$17:$DA$80,D42,FALSE) ->  | O42: - | Q42: - | R42: =IF($L$9="Yes",'COP Assignment'!W31*(1-Recirculation_Loss_Factor)+1*Recirculation_Loss_Factor,'COP Assignment'!W31) ->  | S42: 0 | T42: 0 | U42: 0 | V42: 0 | W42: =IF($T$1="Electric",T42*'Worksheet Data'!$W$3/1000000,-S42*'Worksheet Data'!$W$3/1000000) -> 0 | X42: 0 | Y42: =IFERROR(IF($T$1="Electric",0,Q42*'Worksheet Data'!$W$2/1000000),0) -> 0 | Z42: 0
D43: 31 | E43: 43 | F43: =HLOOKUP($A$16, 'Weather Data'!$CD$17:$DA$80,D43,FALSE) ->  | G43: =IF('DHW Bldg & Operation Data'!$C$26="Un-Conditioned","Un-Conditioned",IF(AND(E43>='DHW Bldg & Operation Data'!$C$28,'DHW Bldg & Operation Data'!$C$27<>"Heating Only"),"Cooling",IF(E43<='DHW Bldg & Operation Data'!$C$28,"Heating","Un-Conditioned"))) -> Heating | H43: =IF(HPWH_Location="Outdoor Evaporator",'DHW Calculator'!$E43,IF(HPWH_Location="Conditioned Space",BinModelTemp,IF(HPWH_Location="Un-Conditioned Enclosed",($L$6*(1-$L$7)+$E43*$L$7),I43))) -> 41.94444444 | I43: 41.94444444 | K43: =HLOOKUP($A$16&" TMAIN", 'Weather Data'!$CD$17:$DA$80,D43,FALSE) ->  | O43: - | Q43: - | R43: =IF($L$9="Yes",'COP Assignment'!W32*(1-Recirculation_Loss_Factor)+1*Recirculation_Loss_Factor,'COP Assignment'!W32) ->  | S43: 0 | T43: 0 | U43: 0 | V43: 0 | W43: =IF($T$1="Electric",T43*'Worksheet Data'!$W$3/1000000,-S43*'Worksheet Data'!$W$3/1000000) -> 0 | X43: 0 | Y43: =IFERROR(IF($T$1="Electric",0,Q43*'Worksheet Data'!$W$2/1000000),0) -> 0 | Z43: 0
D44: 32 | E44: 41 | F44: =HLOOKUP($A$16, 'Weather Data'!$CD$17:$DA$80,D44,FALSE) ->  | G44: =IF('DHW Bldg & Operation Data'!$C$26="Un-Conditioned","Un-Conditioned",IF(AND(E44>='DHW Bldg & Operation Data'!$C$28,'DHW Bldg & Operation Data'!$C$27<>"Heating Only"),"Cooling",IF(E44<='DHW Bldg & Operation Data'!$C$28,"Heating","Un-Conditioned"))) -> Heating | H44: =IF(HPWH_Location="Outdoor Evaporator",'DHW Calculator'!$E44,IF(HPWH_Location="Conditioned Space",BinModelTemp,IF(HPWH_Location="Un-Conditioned Enclosed",($L$6*(1-$L$7)+$E44*$L$7),I44))) -> 41.38888889 | I44: 41.38888889 | K44: =HLOOKUP($A$16&" TMAIN", 'Weather Data'!$CD$17:$DA$80,D44,FALSE) ->  | O44: - | Q44: - | R44: =IF($L$9="Yes",'COP Assignment'!W33*(1-Recirculation_Loss_Factor)+1*Recirculation_Loss_Factor,'COP Assignment'!W33) ->  | S44: 0 | T44: 0 | U44: 0 | V44: 0 | W44: =IF($T$1="Electric",T44*'Worksheet Data'!$W$3/1000000,-S44*'Worksheet Data'!$W$3/1000000) -> 0 | X44: 0 | Y44: =IFERROR(IF($T$1="Electric",0,Q44*'Worksheet Data'!$W$2/1000000),0) -> 0 | Z44: 0
D45: 33 | E45: 39 | F45: =HLOOKUP($A$16, 'Weather Data'!$CD$17:$DA$80,D45,FALSE) ->  | G45: =IF('DHW Bldg & Operation Data'!$C$26="Un-Conditioned","Un-Conditioned",IF(AND(E45>='DHW Bldg & Operation Data'!$C$28,'DHW Bldg & Operation Data'!$C$27<>"Heating Only"),"Cooling",IF(E45<='DHW Bldg & Operation Data'!$C$28,"Heating","Un-Conditioned"))) -> Heating | H45: =IF(HPWH_Location="Outdoor Evaporator",'DHW Calculator'!$E45,IF(HPWH_Location="Conditioned Space",BinModelTemp,IF(HPWH_Location="Un-Conditioned Enclosed",($L$6*(1-$L$7)+$E45*$L$7),I45))) -> 40.83333333 | I45: 40.83333333 | K45: =HLOOKUP($A$16&" TMAIN", 'Weather Data'!$CD$17:$DA$80,D45,FALSE) ->  | O45: - | Q45: - | R45: =IF($L$9="Yes",'COP Assignment'!W34*(1-Recirculation_Loss_Factor)+1*Recirculation_Loss_Factor,'COP Assignment'!W34) ->  | S45: 0 | T45: 0 | U45: 0 | V45: 0 | W45: =IF($T$1="Electric",T45*'Worksheet Data'!$W$3/1000000,-S45*'Worksheet Data'!$W$3/1000000) -> 0 | X45: 0 | Y45: =IFERROR(IF($T$1="Electric",0,Q45*'Worksheet Data'!$W$2/1000000),0) -> 0 | Z45: 0
D46: 34 | E46: 37 | F46: =HLOOKUP($A$16, 'Weather Data'!$CD$17:$DA$80,D46,FALSE) ->  | G46: =IF('DHW Bldg & Operation Data'!$C$26="Un-Conditioned","Un-Conditioned",IF(AND(E46>='DHW Bldg & Operation Data'!$C$28,'DHW Bldg & Operation Data'!$C$27<>"Heating Only"),"Cooling",IF(E46<='DHW Bldg & Operation Data'!$C$28,"Heating","Un-Conditioned"))) -> Heating | H46: =IF(HPWH_Location="Outdoor Evaporator",'DHW Calculator'!$E46,IF(HPWH_Location="Conditioned Space",BinModelTemp,IF(HPWH_Location="Un-Conditioned Enclosed",($L$6*(1-$L$7)+$E46*$L$7),I46))) -> 40.27777778 | I46: 40.27777778 | K46: =HLOOKUP($A$16&" TMAIN", 'Weather Data'!$CD$17:$DA$80,D46,FALSE) ->  | L46: =IF(K46>0,J46*8.33*(DHW_Setpoint_Temp_degF-K46),0) ->  | M46: =L46*(1/(1-Recirculation_Loss_Factor)) ->  | N46: =IF(J46=0,0,$U$5) ->  | O46: =IFERROR(MAX(M46/N46,0),"-") -> - | Q46: =IFERROR((M46/(P46))*F46,"-") -> - | R46: =IF($L$9="Yes",'COP Assignment'!W35*(1-Recirculation_Loss_Factor)+1*Recirculation_Loss_Factor,'COP Assignment'!W35) ->  | S46: =IFERROR((M46/R46)*F46,0) -> 0 | T46: =IFERROR(Q46-S46,0) -> 0 | U46: 0 | V46: 0 | W46: =IF($T$1="Electric",T46*'Worksheet Data'!$W$3/1000000,-S46*'Worksheet Data'!$W$3/1000000) -> 0 | X46: 0 | Y46: =IFERROR(IF($T$1="Electric",0,Q46*'Worksheet Data'!$W$2/1000000),0) -> 0 | Z46: =T46/1000000 -> 0
D47: 35 | E47: 35 | F47: =HLOOKUP($A$16, 'Weather Data'!$CD$17:$DA$80,D47,FALSE) ->  | G47: =IF('DHW Bldg & Operation Data'!$C$26="Un-Conditioned","Un-Conditioned",IF(AND(E47>='DHW Bldg & Operation Data'!$C$28,'DHW Bldg & Operation Data'!$C$27<>"Heating Only"),"Cooling",IF(E47<='DHW Bldg & Operation Data'!$C$28,"Heating","Un-Conditioned"))) -> Heating | H47: =IF(HPWH_Location="Outdoor Evaporator",'DHW Calculator'!$E47,IF(HPWH_Location="Conditioned Space",BinModelTemp,IF(HPWH_Location="Un-Conditioned Enclosed",($L$6*(1-$L$7)+$E47*$L$7),I47))) -> 39.72222222 | I47: 39.72222222 | K47: =HLOOKUP($A$16&" TMAIN", 'Weather Data'!$CD$17:$DA$80,D47,FALSE) ->  | O47: - | P47: =IF(J47=0,0,$V$4) ->  | Q47: - | R47: =IF($L$9="Yes",'COP Assignment'!W36*(1-Recirculation_Loss_Factor)+1*Recirculation_Loss_Factor,'COP Assignment'!W36) ->  | S47: 0 | T47: 0 | U47: 0 | V47: 0 | W47: =IF($T$1="Electric",T47*'Worksheet Data'!$W$3/1000000,-S47*'Worksheet Data'!$W$3/1000000) -> 0 | X47: 0 | Y47: =IFERROR(IF($T$1="Electric",0,Q47*'Worksheet Data'!$W$2/1000000),0) -> 0 | Z47: 0
D48: 36 | E48: 33 | F48: =HLOOKUP($A$16, 'Weather Data'!$CD$17:$DA$80,D48,FALSE) ->  | G48: =IF('DHW Bldg & Operation Data'!$C$26="Un-Conditioned","Un-Conditioned",IF(AND(E48>='DHW Bldg & Operation Data'!$C$28,'DHW Bldg & Operation Data'!$C$27<>"Heating Only"),"Cooling",IF(E48<='DHW Bldg & Operation Data'!$C$28,"Heating","Un-Conditioned"))) -> Heating | H48: =IF(HPWH_Location="Outdoor Evaporator",'DHW Calculator'!$E48,IF(HPWH_Location="Conditioned Space",BinModelTemp,IF(HPWH_Location="Un-Conditioned Enclosed",($L$6*(1-$L$7)+$E48*$L$7),I48))) -> 39.16666667 | I48: 39.16666667 | K48: =HLOOKUP($A$16&" TMAIN", 'Weather Data'!$CD$17:$DA$80,D48,FALSE) ->  | O48: - | Q48: - | R48: =IF($L$9="Yes",'COP Assignment'!W37*(1-Recirculation_Loss_Factor)+1*Recirculation_Loss_Factor,'COP Assignment'!W37) ->  | S48: 0 | T48: 0 | U48: 0 | V48: 0 | W48: =IF($T$1="Electric",T48*'Worksheet Data'!$W$3/1000000,-S48*'Worksheet Data'!$W$3/1000000) -> 0 | X48: 0 | Y48: =IFERROR(IF($T$1="Electric",0,Q48*'Worksheet Data'!$W$2/1000000),0) -> 0 | Z48: 0
D49: 37 | E49: 31 | F49: =HLOOKUP($A$16, 'Weather Data'!$CD$17:$DA$80,D49,FALSE) ->  | G49: =IF('DHW Bldg & Operation Data'!$C$26="Un-Conditioned","Un-Conditioned",IF(AND(E49>='DHW Bldg & Operation Data'!$C$28,'DHW Bldg & Operation Data'!$C$27<>"Heating Only"),"Cooling",IF(E49<='DHW Bldg & Operation Data'!$C$28,"Heating","Un-Conditioned"))) -> Heating | H49: =IF(HPWH_Location="Outdoor Evaporator",'DHW Calculator'!$E49,IF(HPWH_Location="Conditioned Space",BinModelTemp,IF(HPWH_Location="Un-Conditioned Enclosed",($L$6*(1-$L$7)+$E49*$L$7),I49))) -> 38.61111111 | I49: 38.61111111 | K49: =HLOOKUP($A$16&" TMAIN", 'Weather Data'!$CD$17:$DA$80,D49,FALSE) ->  | O49: - | Q49: - | R49: =IF($L$9="Yes",'COP Assignment'!W38*(1-Recirculation_Loss_Factor)+1*Recirculation_Loss_Factor,'COP Assignment'!W38) ->  | S49: 0 | T49: 0 | U49: 0 | V49: 0 | W49: =IF($T$1="Electric",T49*'Worksheet Data'!$W$3/1000000,-S49*'Worksheet Data'!$W$3/1000000) -> 0 | X49: 0 | Y49: =IFERROR(IF($T$1="Electric",0,Q49*'Worksheet Data'!$W$2/1000000),0) -> 0 | Z49: 0
D50: 38 | E50: 29 | F50: =HLOOKUP($A$16, 'Weather Data'!$CD$17:$DA$80,D50,FALSE) ->  | G50: =IF('DHW Bldg & Operation Data'!$C$26="Un-Conditioned","Un-Conditioned",IF(AND(E50>='DHW Bldg & Operation Data'!$C$28,'DHW Bldg & Operation Data'!$C$27<>"Heating Only"),"Cooling",IF(E50<='DHW Bldg & Operation Data'!$C$28,"Heating","Un-Conditioned"))) -> Heating | H50: =IF(HPWH_Location="Outdoor Evaporator",'DHW Calculator'!$E50,IF(HPWH_Location="Conditioned Space",BinModelTemp,IF(HPWH_Location="Un-Conditioned Enclosed",($L$6*(1-$L$7)+$E50*$L$7),I50))) -> 38.05555556 | I50: 38.05555556 | K50: =HLOOKUP($A$16&" TMAIN", 'Weather Data'!$CD$17:$DA$80,D50,FALSE) ->  | O50: - | Q50: - | R50: =IF($L$9="Yes",'COP Assignment'!W39*(1-Recirculation_Loss_Factor)+1*Recirculation_Loss_Factor,'COP Assignment'!W39) ->  | S50: 0 | T50: 0 | U50: 0 | V50: 0 | W50: =IF($T$1="Electric",T50*'Worksheet Data'!$W$3/1000000,-S50*'Worksheet Data'!$W$3/1000000) -> 0 | X50: 0 | Y50: =IFERROR(IF($T$1="Electric",0,Q50*'Worksheet Data'!$W$2/1000000),0) -> 0 | Z50: 0
D51: 39 | E51: 27 | F51: =HLOOKUP($A$16, 'Weather Data'!$CD$17:$DA$80,D51,FALSE) ->  | G51: =IF('DHW Bldg & Operation Data'!$C$26="Un-Conditioned","Un-Conditioned",IF(AND(E51>='DHW Bldg & Operation Data'!$C$28,'DHW Bldg & Operation Data'!$C$27<>"Heating Only"),"Cooling",IF(E51<='DHW Bldg & Operation Data'!$C$28,"Heating","Un-Conditioned"))) -> Heating | H51: =IF(HPWH_Location="Outdoor Evaporator",'DHW Calculator'!$E51,IF(HPWH_Location="Conditioned Space",BinModelTemp,IF(HPWH_Location="Un-Conditioned Enclosed",($L$6*(1-$L$7)+$E51*$L$7),I51))) -> 37.5 | I51: 37.5 | K51: =HLOOKUP($A$16&" TMAIN", 'Weather Data'!$CD$17:$DA$80,D51,FALSE) ->  | O51: - | Q51: - | R51: =IF($L$9="Yes",'COP Assignment'!W40*(1-Recirculation_Loss_Factor)+1*Recirculation_Loss_Factor,'COP Assignment'!W40) ->  | S51: 0 | T51: 0 | U51: 0 | V51: 0 | W51: =IF($T$1="Electric",T51*'Worksheet Data'!$W$3/1000000,-S51*'Worksheet Data'!$W$3/1000000) -> 0 | X51: 0 | Y51: =IFERROR(IF($T$1="Electric",0,Q51*'Worksheet Data'!$W$2/1000000),0) -> 0 | Z51: 0
D52: 40 | E52: 25 | F52: =HLOOKUP($A$16, 'Weather Data'!$CD$17:$DA$80,D52,FALSE) ->  | G52: =IF('DHW Bldg & Operation Data'!$C$26="Un-Conditioned","Un-Conditioned",IF(AND(E52>='DHW Bldg & Operation Data'!$C$28,'DHW Bldg & Operation Data'!$C$27<>"Heating Only"),"Cooling",IF(E52<='DHW Bldg & Operation Data'!$C$28,"Heating","Un-Conditioned"))) -> Heating | H52: =IF(HPWH_Location="Outdoor Evaporator",'DHW Calculator'!$E52,IF(HPWH_Location="Conditioned Space",BinModelTemp,IF(HPWH_Location="Un-Conditioned Enclosed",($L$6*(1-$L$7)+$E52*$L$7),I52))) -> 36.94444444 | I52: 36.94444444 | K52: =HLOOKUP($A$16&" TMAIN", 'Weather Data'!$CD$17:$DA$80,D52,FALSE) ->  | O52: - | Q52: - | R52: =IF($L$9="Yes",'COP Assignment'!W41*(1-Recirculation_Loss_Factor)+1*Recirculation_Loss_Factor,'COP Assignment'!W41) ->  | S52: 0 | T52: 0 | U52: 0 | V52: 0 | W52: =IF($T$1="Electric",T52*'Worksheet Data'!$W$3/1000000,-S52*'Worksheet Data'!$W$3/1000000) -> 0 | X52: 0 | Y52: =IFERROR(IF($T$1="Electric",0,Q52*'Worksheet Data'!$W$2/1000000),0) -> 0 | Z52: 0
D53: 41 | E53: 23 | F53: =HLOOKUP($A$16, 'Weather Data'!$CD$17:$DA$80,D53,FALSE) ->  | G53: =IF('DHW Bldg & Operation Data'!$C$26="Un-Conditioned","Un-Conditioned",IF(AND(E53>='DHW Bldg & Operation Data'!$C$28,'DHW Bldg & Operation Data'!$C$27<>"Heating Only"),"Cooling",IF(E53<='DHW Bldg & Operation Data'!$C$28,"Heating","Un-Conditioned"))) -> Heating | H53: =IF(HPWH_Location="Outdoor Evaporator",'DHW Calculator'!$E53,IF(HPWH_Location="Conditioned Space",BinModelTemp,IF(HPWH_Location="Un-Conditioned Enclosed",($L$6*(1-$L$7)+$E53*$L$7),I53))) -> 36.38888889 | I53: 36.38888889 | K53: =HLOOKUP($A$16&" TMAIN", 'Weather Data'!$CD$17:$DA$80,D53,FALSE) ->  | O53: - | Q53: - | R53: =IF($L$9="Yes",'COP Assignment'!W42*(1-Recirculation_Loss_Factor)+1*Recirculation_Loss_Factor,'COP Assignment'!W42) ->  | S53: 0 | T53: 0 | U53: 0 | V53: 0 | W53: =IF($T$1="Electric",T53*'Worksheet Data'!$W$3/1000000,-S53*'Worksheet Data'!$W$3/1000000) -> 0 | X53: 0 | Y53: =IFERROR(IF($T$1="Electric",0,Q53*'Worksheet Data'!$W$2/1000000),0) -> 0 | Z53: 0
D54: 42 | E54: 21 | F54: =HLOOKUP($A$16, 'Weather Data'!$CD$17:$DA$80,D54,FALSE) ->  | G54: =IF('DHW Bldg & Operation Data'!$C$26="Un-Conditioned","Un-Conditioned",IF(AND(E54>='DHW Bldg & Operation Data'!$C$28,'DHW Bldg & Operation Data'!$C$27<>"Heating Only"),"Cooling",IF(E54<='DHW Bldg & Operation Data'!$C$28,"Heating","Un-Conditioned"))) -> Heating | H54: =IF(HPWH_Location="Outdoor Evaporator",'DHW Calculator'!$E54,IF(HPWH_Location="Conditioned Space",BinModelTemp,IF(HPWH_Location="Un-Conditioned Enclosed",($L$6*(1-$L$7)+$E54*$L$7),I54))) -> 35.83333333 | I54: 35.83333333 | K54: =HLOOKUP($A$16&" TMAIN", 'Weather Data'!$CD$17:$DA$80,D54,FALSE) ->  | O54: - | Q54: - | R54: =IF($L$9="Yes",'COP Assignment'!W43*(1-Recirculation_Loss_Factor)+1*Recirculation_Loss_Factor,'COP Assignment'!W43) ->  | S54: 0 | T54: 0 | U54: 0 | V54: 0 | W54: =IF($T$1="Electric",T54*'Worksheet Data'!$W$3/1000000,-S54*'Worksheet Data'!$W$3/1000000) -> 0 | X54: 0 | Y54: =IFERROR(IF($T$1="Electric",0,Q54*'Worksheet Data'!$W$2/1000000),0) -> 0 | Z54: 0
D55: 43 | E55: 19 | F55: =HLOOKUP($A$16, 'Weather Data'!$CD$17:$DA$80,D55,FALSE) ->  | G55: =IF('DHW Bldg & Operation Data'!$C$26="Un-Conditioned","Un-Conditioned",IF(AND(E55>='DHW Bldg & Operation Data'!$C$28,'DHW Bldg & Operation Data'!$C$27<>"Heating Only"),"Cooling",IF(E55<='DHW Bldg & Operation Data'!$C$28,"Heating","Un-Conditioned"))) -> Heating | H55: =IF(HPWH_Location="Outdoor Evaporator",'DHW Calculator'!$E55,IF(HPWH_Location="Conditioned Space",BinModelTemp,IF(HPWH_Location="Un-Conditioned Enclosed",($L$6*(1-$L$7)+$E55*$L$7),I55))) -> 35.27777778 | I55: 35.27777778 | K55: =HLOOKUP($A$16&" TMAIN", 'Weather Data'!$CD$17:$DA$80,D55,FALSE) ->  | O55: - | Q55: - | R55: =IF($L$9="Yes",'COP Assignment'!W44*(1-Recirculation_Loss_Factor)+1*Recirculation_Loss_Factor,'COP Assignment'!W44) ->  | S55: 0 | T55: 0 | U55: 0 | V55: 0 | W55: =IF($T$1="Electric",T55*'Worksheet Data'!$W$3/1000000,-S55*'Worksheet Data'!$W$3/1000000) -> 0 | X55: 0 | Y55: =IFERROR(IF($T$1="Electric",0,Q55*'Worksheet Data'!$W$2/1000000),0) -> 0 | Z55: 0
D56: 44 | E56: 17 | F56: =HLOOKUP($A$16, 'Weather Data'!$CD$17:$DA$80,D56,FALSE) ->  | G56: =IF('DHW Bldg & Operation Data'!$C$26="Un-Conditioned","Un-Conditioned",IF(AND(E56>='DHW Bldg & Operation Data'!$C$28,'DHW Bldg & Operation Data'!$C$27<>"Heating Only"),"Cooling",IF(E56<='DHW Bldg & Operation Data'!$C$28,"Heating","Un-Conditioned"))) -> Heating | H56: =IF(HPWH_Location="Outdoor Evaporator",'DHW Calculator'!$E56,IF(HPWH_Location="Conditioned Space",BinModelTemp,IF(HPWH_Location="Un-Conditioned Enclosed",($L$6*(1-$L$7)+$E56*$L$7),I56))) -> 34.72222222 | I56: 34.72222222 | K56: =HLOOKUP($A$16&" TMAIN", 'Weather Data'!$CD$17:$DA$80,D56,FALSE) ->  | O56: - | Q56: - | R56: =IF($L$9="Yes",'COP Assignment'!W45*(1-Recirculation_Loss_Factor)+1*Recirculation_Loss_Factor,'COP Assignment'!W45) ->  | S56: 0 | T56: 0 | U56: 0 | V56: 0 | W56: =IF($T$1="Electric",T56*'Worksheet Data'!$W$3/1000000,-S56*'Worksheet Data'!$W$3/1000000) -> 0 | X56: 0 | Y56: =IFERROR(IF($T$1="Electric",0,Q56*'Worksheet Data'!$W$2/1000000),0) -> 0 | Z56: 0
D57: 45 | E57: 15 | F57: =HLOOKUP($A$16, 'Weather Data'!$CD$17:$DA$80,D57,FALSE) ->  | G57: =IF('DHW Bldg & Operation Data'!$C$26="Un-Conditioned","Un-Conditioned",IF(AND(E57>='DHW Bldg & Operation Data'!$C$28,'DHW Bldg & Operation Data'!$C$27<>"Heating Only"),"Cooling",IF(E57<='DHW Bldg & Operation Data'!$C$28,"Heating","Un-Conditioned"))) -> Heating | H57: =IF(HPWH_Location="Outdoor Evaporator",'DHW Calculator'!$E57,IF(HPWH_Location="Conditioned Space",BinModelTemp,IF(HPWH_Location="Un-Conditioned Enclosed",($L$6*(1-$L$7)+$E57*$L$7),I57))) -> 34.16666667 | I57: 34.16666667 | K57: =HLOOKUP($A$16&" TMAIN", 'Weather Data'!$CD$17:$DA$80,D57,FALSE) ->  | O57: - | Q57: - | R57: =IF($L$9="Yes",'COP Assignment'!W46*(1-Recirculation_Loss_Factor)+1*Recirculation_Loss_Factor,'COP Assignment'!W46) ->  | S57: 0 | T57: 0 | U57: 0 | V57: 0 | W57: =IF($T$1="Electric",T57*'Worksheet Data'!$W$3/1000000,-S57*'Worksheet Data'!$W$3/1000000) -> 0 | X57: 0 | Y57: =IFERROR(IF($T$1="Electric",0,Q57*'Worksheet Data'!$W$2/1000000),0) -> 0 | Z57: 0
D58: 46 | E58: 13 | F58: =HLOOKUP($A$16, 'Weather Data'!$CD$17:$DA$80,D58,FALSE) ->  | G58: =IF('DHW Bldg & Operation Data'!$C$26="Un-Conditioned","Un-Conditioned",IF(AND(E58>='DHW Bldg & Operation Data'!$C$28,'DHW Bldg & Operation Data'!$C$27<>"Heating Only"),"Cooling",IF(E58<='DHW Bldg & Operation Data'!$C$28,"Heating","Un-Conditioned"))) -> Heating | H58: =IF(HPWH_Location="Outdoor Evaporator",'DHW Calculator'!$E58,IF(HPWH_Location="Conditioned Space",BinModelTemp,IF(HPWH_Location="Un-Conditioned Enclosed",($L$6*(1-$L$7)+$E58*$L$7),I58))) -> 33.61111111 | I58: 33.61111111 | K58: =HLOOKUP($A$16&" TMAIN", 'Weather Data'!$CD$17:$DA$80,D58,FALSE) ->  | O58: - | Q58: - | R58: =IF($L$9="Yes",'COP Assignment'!W47*(1-Recirculation_Loss_Factor)+1*Recirculation_Loss_Factor,'COP Assignment'!W47) ->  | S58: 0 | T58: 0 | U58: 0 | V58: 0 | W58: =IF($T$1="Electric",T58*'Worksheet Data'!$W$3/1000000,-S58*'Worksheet Data'!$W$3/1000000) -> 0 | X58: 0 | Y58: =IFERROR(IF($T$1="Electric",0,Q58*'Worksheet Data'!$W$2/1000000),0) -> 0 | Z58: 0
D59: 47 | E59: 11 | F59: =HLOOKUP($A$16, 'Weather Data'!$CD$17:$DA$80,D59,FALSE) ->  | G59: =IF('DHW Bldg & Operation Data'!$C$26="Un-Conditioned","Un-Conditioned",IF(AND(E59>='DHW Bldg & Operation Data'!$C$28,'DHW Bldg & Operation Data'!$C$27<>"Heating Only"),"Cooling",IF(E59<='DHW Bldg & Operation Data'!$C$28,"Heating","Un-Conditioned"))) -> Heating | H59: =IF(HPWH_Location="Outdoor Evaporator",'DHW Calculator'!$E59,IF(HPWH_Location="Conditioned Space",BinModelTemp,IF(HPWH_Location="Un-Conditioned Enclosed",($L$6*(1-$L$7)+$E59*$L$7),I59))) -> 33.05555556 | I59: 33.05555556 | K59: =HLOOKUP($A$16&" TMAIN", 'Weather Data'!$CD$17:$DA$80,D59,FALSE) ->  | O59: - | Q59: - | R59: =IF($L$9="Yes",'COP Assignment'!W48*(1-Recirculation_Loss_Factor)+1*Recirculation_Loss_Factor,'COP Assignment'!W48) ->  | S59: 0 | T59: 0 | U59: 0 | V59: 0 | W59: =IF($T$1="Electric",T59*'Worksheet Data'!$W$3/1000000,-S59*'Worksheet Data'!$W$3/1000000) -> 0 | X59: 0 | Y59: =IFERROR(IF($T$1="Electric",0,Q59*'Worksheet Data'!$W$2/1000000),0) -> 0 | Z59: 0
D60: 48 | E60: 9 | F60: =HLOOKUP($A$16, 'Weather Data'!$CD$17:$DA$80,D60,FALSE) ->  | G60: =IF('DHW Bldg & Operation Data'!$C$26="Un-Conditioned","Un-Conditioned",IF(AND(E60>='DHW Bldg & Operation Data'!$C$28,'DHW Bldg & Operation Data'!$C$27<>"Heating Only"),"Cooling",IF(E60<='DHW Bldg & Operation Data'!$C$28,"Heating","Un-Conditioned"))) -> Heating | H60: =IF(HPWH_Location="Outdoor Evaporator",'DHW Calculator'!$E60,IF(HPWH_Location="Conditioned Space",BinModelTemp,IF(HPWH_Location="Un-Conditioned Enclosed",($L$6*(1-$L$7)+$E60*$L$7),I60))) -> 32.5 | I60: 32.5 | K60: =HLOOKUP($A$16&" TMAIN", 'Weather Data'!$CD$17:$DA$80,D60,FALSE) ->  | O60: - | Q60: - | R60: =IF($L$9="Yes",'COP Assignment'!W49*(1-Recirculation_Loss_Factor)+1*Recirculation_Loss_Factor,'COP Assignment'!W49) ->  | S60: 0 | T60: 0 | U60: 0 | V60: 0 | W60: =IF($T$1="Electric",T60*'Worksheet Data'!$W$3/1000000,-S60*'Worksheet Data'!$W$3/1000000) -> 0 | X60: 0 | Y60: =IFERROR(IF($T$1="Electric",0,Q60*'Worksheet Data'!$W$2/1000000),0) -> 0 | Z60: 0
D61: 49 | E61: 7 | F61: =HLOOKUP($A$16, 'Weather Data'!$CD$17:$DA$80,D61,FALSE) ->  | G61: =IF('DHW Bldg & Operation Data'!$C$26="Un-Conditioned","Un-Conditioned",IF(AND(E61>='DHW Bldg & Operation Data'!$C$28,'DHW Bldg & Operation Data'!$C$27<>"Heating Only"),"Cooling",IF(E61<='DHW Bldg & Operation Data'!$C$28,"Heating","Un-Conditioned"))) -> Heating | H61: =IF(HPWH_Location="Outdoor Evaporator",'DHW Calculator'!$E61,IF(HPWH_Location="Conditioned Space",BinModelTemp,IF(HPWH_Location="Un-Conditioned Enclosed",($L$6*(1-$L$7)+$E61*$L$7),I61))) -> 31.94444444 | I61: 31.94444444 | K61: =HLOOKUP($A$16&" TMAIN", 'Weather Data'!$CD$17:$DA$80,D61,FALSE) ->  | O61: - | Q61: - | R61: =IF($L$9="Yes",'COP Assignment'!W50*(1-Recirculation_Loss_Factor)+1*Recirculation_Loss_Factor,'COP Assignment'!W50) ->  | S61: 0 | T61: 0 | U61: 0 | V61: 0 | W61: =IF($T$1="Electric",T61*'Worksheet Data'!$W$3/1000000,-S61*'Worksheet Data'!$W$3/1000000) -> 0 | X61: 0 | Y61: =IFERROR(IF($T$1="Electric",0,Q61*'Worksheet Data'!$W$2/1000000),0) -> 0 | Z61: 0
D62: 50 | E62: 5 | F62: =HLOOKUP($A$16, 'Weather Data'!$CD$17:$DA$80,D62,FALSE) ->  | G62: =IF('DHW Bldg & Operation Data'!$C$26="Un-Conditioned","Un-Conditioned",IF(AND(E62>='DHW Bldg & Operation Data'!$C$28,'DHW Bldg & Operation Data'!$C$27<>"Heating Only"),"Cooling",IF(E62<='DHW Bldg & Operation Data'!$C$28,"Heating","Un-Conditioned"))) -> Heating | H62: =IF(HPWH_Location="Outdoor Evaporator",'DHW Calculator'!$E62,IF(HPWH_Location="Conditioned Space",BinModelTemp,IF(HPWH_Location="Un-Conditioned Enclosed",($L$6*(1-$L$7)+$E62*$L$7),I62))) -> 31.38888889 | I62: 31.38888889 | K62: =HLOOKUP($A$16&" TMAIN", 'Weather Data'!$CD$17:$DA$80,D62,FALSE) ->  | O62: - | Q62: - | R62: =IF($L$9="Yes",'COP Assignment'!W51*(1-Recirculation_Loss_Factor)+1*Recirculation_Loss_Factor,'COP Assignment'!W51) ->  | S62: 0 | T62: 0 | U62: 0 | V62: 0 | W62: =IF($T$1="Electric",T62*'Worksheet Data'!$W$3/1000000,-S62*'Worksheet Data'!$W$3/1000000) -> 0 | X62: 0 | Y62: =IFERROR(IF($T$1="Electric",0,Q62*'Worksheet Data'!$W$2/1000000),0) -> 0 | Z62: 0
D63: 51 | E63: 3 | F63: =HLOOKUP($A$16, 'Weather Data'!$CD$17:$DA$80,D63,FALSE) ->  | G63: =IF('DHW Bldg & Operation Data'!$C$26="Un-Conditioned","Un-Conditioned",IF(AND(E63>='DHW Bldg & Operation Data'!$C$28,'DHW Bldg & Operation Data'!$C$27<>"Heating Only"),"Cooling",IF(E63<='DHW Bldg & Operation Data'!$C$28,"Heating","Un-Conditioned"))) -> Heating | H63: =IF(HPWH_Location="Outdoor Evaporator",'DHW Calculator'!$E63,IF(HPWH_Location="Conditioned Space",BinModelTemp,IF(HPWH_Location="Un-Conditioned Enclosed",($L$6*(1-$L$7)+$E63*$L$7),I63))) -> 30.83333333 | I63: 30.83333333 | K63: =HLOOKUP($A$16&" TMAIN", 'Weather Data'!$CD$17:$DA$80,D63,FALSE) ->  | O63: - | Q63: - | R63: =IF($L$9="Yes",'COP Assignment'!W52*(1-Recirculation_Loss_Factor)+1*Recirculation_Loss_Factor,'COP Assignment'!W52) ->  | S63: 0 | T63: 0 | U63: 0 | V63: 0 | W63: =IF($T$1="Electric",T63*'Worksheet Data'!$W$3/1000000,-S63*'Worksheet Data'!$W$3/1000000) -> 0 | X63: 0 | Y63: =IFERROR(IF($T$1="Electric",0,Q63*'Worksheet Data'!$W$2/1000000),0) -> 0 | Z63: 0
D64: 52 | E64: 1 | F64: =HLOOKUP($A$16, 'Weather Data'!$CD$17:$DA$80,D64,FALSE) ->  | G64: =IF('DHW Bldg & Operation Data'!$C$26="Un-Conditioned","Un-Conditioned",IF(AND(E64>='DHW Bldg & Operation Data'!$C$28,'DHW Bldg & Operation Data'!$C$27<>"Heating Only"),"Cooling",IF(E64<='DHW Bldg & Operation Data'!$C$28,"Heating","Un-Conditioned"))) -> Heating | H64: =IF(HPWH_Location="Outdoor Evaporator",'DHW Calculator'!$E64,IF(HPWH_Location="Conditioned Space",BinModelTemp,IF(HPWH_Location="Un-Conditioned Enclosed",($L$6*(1-$L$7)+$E64*$L$7),I64))) -> 30.27777778 | I64: 30.27777778 | K64: =HLOOKUP($A$16&" TMAIN", 'Weather Data'!$CD$17:$DA$80,D64,FALSE) ->  | O64: - | Q64: - | R64: =IF($L$9="Yes",'COP Assignment'!W53*(1-Recirculation_Loss_Factor)+1*Recirculation_Loss_Factor,'COP Assignment'!W53) ->  | S64: 0 | T64: 0 | U64: 0 | V64: 0 | W64: =IF($T$1="Electric",T64*'Worksheet Data'!$W$3/1000000,-S64*'Worksheet Data'!$W$3/1000000) -> 0 | X64: 0 | Y64: =IFERROR(IF($T$1="Electric",0,Q64*'Worksheet Data'!$W$2/1000000),0) -> 0 | Z64: 0
D65: 53 | E65: -1 | F65: =HLOOKUP($A$16, 'Weather Data'!$CD$17:$DA$80,D65,FALSE) ->  | G65: =IF('DHW Bldg & Operation Data'!$C$26="Un-Conditioned","Un-Conditioned",IF(AND(E65>='DHW Bldg & Operation Data'!$C$28,'DHW Bldg & Operation Data'!$C$27<>"Heating Only"),"Cooling",IF(E65<='DHW Bldg & Operation Data'!$C$28,"Heating","Un-Conditioned"))) -> Heating | H65: =IF(HPWH_Location="Outdoor Evaporator",'DHW Calculator'!$E65,IF(HPWH_Location="Conditioned Space",BinModelTemp,IF(HPWH_Location="Un-Conditioned Enclosed",($L$6*(1-$L$7)+$E65*$L$7),I65))) -> 29.72222222 | I65: 29.72222222 | K65: =HLOOKUP($A$16&" TMAIN", 'Weather Data'!$CD$17:$DA$80,D65,FALSE) ->  | O65: - | Q65: - | R65: =IF($L$9="Yes",'COP Assignment'!W54*(1-Recirculation_Loss_Factor)+1*Recirculation_Loss_Factor,'COP Assignment'!W54) ->  | S65: 0 | T65: 0 | U65: 0 | V65: 0 | W65: =IF($T$1="Electric",T65*'Worksheet Data'!$W$3/1000000,-S65*'Worksheet Data'!$W$3/1000000) -> 0 | X65: 0 | Y65: =IFERROR(IF($T$1="Electric",0,Q65*'Worksheet Data'!$W$2/1000000),0) -> 0 | Z65: 0
D66: 54 | E66: -3 | F66: =HLOOKUP($A$16, 'Weather Data'!$CD$17:$DA$80,D66,FALSE) ->  | G66: =IF('DHW Bldg & Operation Data'!$C$26="Un-Conditioned","Un-Conditioned",IF(AND(E66>='DHW Bldg & Operation Data'!$C$28,'DHW Bldg & Operation Data'!$C$27<>"Heating Only"),"Cooling",IF(E66<='DHW Bldg & Operation Data'!$C$28,"Heating","Un-Conditioned"))) -> Heating | H66: =IF(HPWH_Location="Outdoor Evaporator",'DHW Calculator'!$E66,IF(HPWH_Location="Conditioned Space",BinModelTemp,IF(HPWH_Location="Un-Conditioned Enclosed",($L$6*(1-$L$7)+$E66*$L$7),I66))) -> 29.16666667 | I66: 29.16666667 | K66: =HLOOKUP($A$16&" TMAIN", 'Weather Data'!$CD$17:$DA$80,D66,FALSE) ->  | O66: - | Q66: - | R66: =IF($L$9="Yes",'COP Assignment'!W55*(1-Recirculation_Loss_Factor)+1*Recirculation_Loss_Factor,'COP Assignment'!W55) ->  | S66: 0 | T66: 0 | U66: 0 | V66: 0 | W66: =IF($T$1="Electric",T66*'Worksheet Data'!$W$3/1000000,-S66*'Worksheet Data'!$W$3/1000000) -> 0 | X66: 0 | Y66: =IFERROR(IF($T$1="Electric",0,Q66*'Worksheet Data'!$W$2/1000000),0) -> 0 | Z66: 0
D67: 55 | E67: -5 | F67: =HLOOKUP($A$16, 'Weather Data'!$CD$17:$DA$80,D67,FALSE) ->  | G67: =IF('DHW Bldg & Operation Data'!$C$26="Un-Conditioned","Un-Conditioned",IF(AND(E67>='DHW Bldg & Operation Data'!$C$28,'DHW Bldg & Operation Data'!$C$27<>"Heating Only"),"Cooling",IF(E67<='DHW Bldg & Operation Data'!$C$28,"Heating","Un-Conditioned"))) -> Heating | H67: =IF(HPWH_Location="Outdoor Evaporator",'DHW Calculator'!$E67,IF(HPWH_Location="Conditioned Space",BinModelTemp,IF(HPWH_Location="Un-Conditioned Enclosed",($L$6*(1-$L$7)+$E67*$L$7),I67))) -> 28.61111111 | I67: 28.61111111 | K67: =HLOOKUP($A$16&" TMAIN", 'Weather Data'!$CD$17:$DA$80,D67,FALSE) ->  | O67: - | Q67: - | R67: =IF($L$9="Yes",'COP Assignment'!W56*(1-Recirculation_Loss_Factor)+1*Recirculation_Loss_Factor,'COP Assignment'!W56) ->  | S67: 0 | T67: 0 | U67: 0 | V67: 0 | W67: =IF($T$1="Electric",T67*'Worksheet Data'!$W$3/1000000,-S67*'Worksheet Data'!$W$3/1000000) -> 0 | X67: 0 | Y67: =IFERROR(IF($T$1="Electric",0,Q67*'Worksheet Data'!$W$2/1000000),0) -> 0 | Z67: 0
D68: 56 | E68: -7 | F68: =HLOOKUP($A$16, 'Weather Data'!$CD$17:$DA$80,D68,FALSE) ->  | G68: =IF('DHW Bldg & Operation Data'!$C$26="Un-Conditioned","Un-Conditioned",IF(AND(E68>='DHW Bldg & Operation Data'!$C$28,'DHW Bldg & Operation Data'!$C$27<>"Heating Only"),"Cooling",IF(E68<='DHW Bldg & Operation Data'!$C$28,"Heating","Un-Conditioned"))) -> Heating | H68: =IF(HPWH_Location="Outdoor Evaporator",'DHW Calculator'!$E68,IF(HPWH_Location="Conditioned Space",BinModelTemp,IF(HPWH_Location="Un-Conditioned Enclosed",($L$6*(1-$L$7)+$E68*$L$7),I68))) -> 28.05555556 | I68: 28.05555556 | K68: =HLOOKUP($A$16&" TMAIN", 'Weather Data'!$CD$17:$DA$80,D68,FALSE) ->  | O68: - | Q68: - | R68: =IF($L$9="Yes",'COP Assignment'!W57*(1-Recirculation_Loss_Factor)+1*Recirculation_Loss_Factor,'COP Assignment'!W57) ->  | S68: 0 | T68: 0 | U68: 0 | V68: 0 | W68: =IF($T$1="Electric",T68*'Worksheet Data'!$W$3/1000000,-S68*'Worksheet Data'!$W$3/1000000) -> 0 | X68: 0 | Y68: =IFERROR(IF($T$1="Electric",0,Q68*'Worksheet Data'!$W$2/1000000),0) -> 0 | Z68: 0
D69: 57 | E69: -9 | F69: =HLOOKUP($A$16, 'Weather Data'!$CD$17:$DA$80,D69,FALSE) ->  | G69: =IF('DHW Bldg & Operation Data'!$C$26="Un-Conditioned","Un-Conditioned",IF(AND(E69>='DHW Bldg & Operation Data'!$C$28,'DHW Bldg & Operation Data'!$C$27<>"Heating Only"),"Cooling",IF(E69<='DHW Bldg & Operation Data'!$C$28,"Heating","Un-Conditioned"))) -> Heating | H69: =IF(HPWH_Location="Outdoor Evaporator",'DHW Calculator'!$E69,IF(HPWH_Location="Conditioned Space",BinModelTemp,IF(HPWH_Location="Un-Conditioned Enclosed",($L$6*(1-$L$7)+$E69*$L$7),I69))) -> 27.5 | I69: 27.5 | K69: =HLOOKUP($A$16&" TMAIN", 'Weather Data'!$CD$17:$DA$80,D69,FALSE) ->  | O69: - | Q69: - | R69: =IF($L$9="Yes",'COP Assignment'!W58*(1-Recirculation_Loss_Factor)+1*Recirculation_Loss_Factor,'COP Assignment'!W58) ->  | S69: 0 | T69: 0 | U69: 0 | V69: 0 | W69: =IF($T$1="Electric",T69*'Worksheet Data'!$W$3/1000000,-S69*'Worksheet Data'!$W$3/1000000) -> 0 | X69: 0 | Y69: =IFERROR(IF($T$1="Electric",0,Q69*'Worksheet Data'!$W$2/1000000),0) -> 0 | Z69: 0
D70: 58 | E70: -11 | F70: =HLOOKUP($A$16, 'Weather Data'!$CD$17:$DA$80,D70,FALSE) ->  | G70: =IF('DHW Bldg & Operation Data'!$C$26="Un-Conditioned","Un-Conditioned",IF(AND(E70>='DHW Bldg & Operation Data'!$C$28,'DHW Bldg & Operation Data'!$C$27<>"Heating Only"),"Cooling",IF(E70<='DHW Bldg & Operation Data'!$C$28,"Heating","Un-Conditioned"))) -> Heating | H70: =IF(HPWH_Location="Outdoor Evaporator",'DHW Calculator'!$E70,IF(HPWH_Location="Conditioned Space",BinModelTemp,IF(HPWH_Location="Un-Conditioned Enclosed",($L$6*(1-$L$7)+$E70*$L$7),I70))) -> 26.94444444 | I70: 26.94444444 | K70: =HLOOKUP($A$16&" TMAIN", 'Weather Data'!$CD$17:$DA$80,D70,FALSE) ->  | O70: - | Q70: - | R70: =IF($L$9="Yes",'COP Assignment'!W59*(1-Recirculation_Loss_Factor)+1*Recirculation_Loss_Factor,'COP Assignment'!W59) ->  | S70: 0 | T70: 0 | U70: 0 | V70: 0 | W70: =IF($T$1="Electric",T70*'Worksheet Data'!$W$3/1000000,-S70*'Worksheet Data'!$W$3/1000000) -> 0 | X70: 0 | Y70: =IFERROR(IF($T$1="Electric",0,Q70*'Worksheet Data'!$W$2/1000000),0) -> 0 | Z70: 0
D71: 59 | E71: -13 | F71: =HLOOKUP($A$16, 'Weather Data'!$CD$17:$DA$80,D71,FALSE) ->  | G71: =IF('DHW Bldg & Operation Data'!$C$26="Un-Conditioned","Un-Conditioned",IF(AND(E71>='DHW Bldg & Operation Data'!$C$28,'DHW Bldg & Operation Data'!$C$27<>"Heating Only"),"Cooling",IF(E71<='DHW Bldg & Operation Data'!$C$28,"Heating","Un-Conditioned"))) -> Heating | H71: =IF(HPWH_Location="Outdoor Evaporator",'DHW Calculator'!$E71,IF(HPWH_Location="Conditioned Space",BinModelTemp,IF(HPWH_Location="Un-Conditioned Enclosed",($L$6*(1-$L$7)+$E71*$L$7),I71))) -> 26.38888889 | I71: 26.38888889 | K71: =HLOOKUP($A$16&" TMAIN", 'Weather Data'!$CD$17:$DA$80,D71,FALSE) ->  | O71: - | Q71: - | R71: =IF($L$9="Yes",'COP Assignment'!W60*(1-Recirculation_Loss_Factor)+1*Recirculation_Loss_Factor,'COP Assignment'!W60) ->  | S71: 0 | T71: 0 | U71: 0 | V71: 0 | W71: =IF($T$1="Electric",T71*'Worksheet Data'!$W$3/1000000,-S71*'Worksheet Data'!$W$3/1000000) -> 0 | X71: 0 | Y71: =IFERROR(IF($T$1="Electric",0,Q71*'Worksheet Data'!$W$2/1000000),0) -> 0 | Z71: 0
D72: 60 | E72: -15 | F72: =HLOOKUP($A$16, 'Weather Data'!$CD$17:$DA$80,D72,FALSE) ->  | G72: =IF('DHW Bldg & Operation Data'!$C$26="Un-Conditioned","Un-Conditioned",IF(AND(E72>='DHW Bldg & Operation Data'!$C$28,'DHW Bldg & Operation Data'!$C$27<>"Heating Only"),"Cooling",IF(E72<='DHW Bldg & Operation Data'!$C$28,"Heating","Un-Conditioned"))) -> Heating | H72: =IF(HPWH_Location="Outdoor Evaporator",'DHW Calculator'!$E72,IF(HPWH_Location="Conditioned Space",BinModelTemp,IF(HPWH_Location="Un-Conditioned Enclosed",($L$6*(1-$L$7)+$E72*$L$7),I72))) -> 25.83333333 | I72: 25.83333333 | K72: =HLOOKUP($A$16&" TMAIN", 'Weather Data'!$CD$17:$DA$80,D72,FALSE) ->  | O72: - | Q72: - | R72: =IF($L$9="Yes",'COP Assignment'!W61*(1-Recirculation_Loss_Factor)+1*Recirculation_Loss_Factor,'COP Assignment'!W61) ->  | S72: 0 | T72: 0 | U72: 0 | V72: 0 | W72: =IF($T$1="Electric",T72*'Worksheet Data'!$W$3/1000000,-S72*'Worksheet Data'!$W$3/1000000) -> 0 | X72: 0 | Y72: =IFERROR(IF($T$1="Electric",0,Q72*'Worksheet Data'!$W$2/1000000),0) -> 0 | Z72: 0
D73: 61 | E73: -17 | F73: =HLOOKUP($A$16, 'Weather Data'!$CD$17:$DA$80,D73,FALSE) ->  | G73: =IF('DHW Bldg & Operation Data'!$C$26="Un-Conditioned","Un-Conditioned",IF(AND(E73>='DHW Bldg & Operation Data'!$C$28,'DHW Bldg & Operation Data'!$C$27<>"Heating Only"),"Cooling",IF(E73<='DHW Bldg & Operation Data'!$C$28,"Heating","Un-Conditioned"))) -> Heating | H73: =IF(HPWH_Location="Outdoor Evaporator",'DHW Calculator'!$E73,IF(HPWH_Location="Conditioned Space",BinModelTemp,IF(HPWH_Location="Un-Conditioned Enclosed",($L$6*(1-$L$7)+$E73*$L$7),I73))) -> 25.27777778 | I73: 25.27777778 | K73: =HLOOKUP($A$16&" TMAIN", 'Weather Data'!$CD$17:$DA$80,D73,FALSE) ->  | O73: - | Q73: - | R73: =IF($L$9="Yes",'COP Assignment'!W62*(1-Recirculation_Loss_Factor)+1*Recirculation_Loss_Factor,'COP Assignment'!W62) ->  | S73: 0 | T73: 0 | U73: 0 | V73: 0 | W73: =IF($T$1="Electric",T73*'Worksheet Data'!$W$3/1000000,-S73*'Worksheet Data'!$W$3/1000000) -> 0 | X73: 0 | Y73: =IFERROR(IF($T$1="Electric",0,Q73*'Worksheet Data'!$W$2/1000000),0) -> 0 | Z73: 0
D74: 62 | E74: -19 | F74: =HLOOKUP($A$16, 'Weather Data'!$CD$17:$DA$80,D74,FALSE) ->  | G74: =IF('DHW Bldg & Operation Data'!$C$26="Un-Conditioned","Un-Conditioned",IF(AND(E74>='DHW Bldg & Operation Data'!$C$28,'DHW Bldg & Operation Data'!$C$27<>"Heating Only"),"Cooling",IF(E74<='DHW Bldg & Operation Data'!$C$28,"Heating","Un-Conditioned"))) -> Heating | H74: =IF(HPWH_Location="Outdoor Evaporator",'DHW Calculator'!$E74,IF(HPWH_Location="Conditioned Space",BinModelTemp,IF(HPWH_Location="Un-Conditioned Enclosed",($L$6*(1-$L$7)+$E74*$L$7),I74))) -> 24.72222222 | I74: 24.72222222 | K74: =HLOOKUP($A$16&" TMAIN", 'Weather Data'!$CD$17:$DA$80,D74,FALSE) ->  | O74: - | Q74: - | R74: =IF($L$9="Yes",'COP Assignment'!W63*(1-Recirculation_Loss_Factor)+1*Recirculation_Loss_Factor,'COP Assignment'!W63) ->  | S74: 0 | T74: 0 | U74: 0 | V74: 0 | W74: =IF($T$1="Electric",T74*'Worksheet Data'!$W$3/1000000,-S74*'Worksheet Data'!$W$3/1000000) -> 0 | X74: 0 | Y74: =IFERROR(IF($T$1="Electric",0,Q74*'Worksheet Data'!$W$2/1000000),0) -> 0 | Z74: 0
D75: 63 | E75: -21 | F75: =HLOOKUP($A$16, 'Weather Data'!$CD$17:$DA$80,D75,FALSE) ->  | G75: =IF('DHW Bldg & Operation Data'!$C$26="Un-Conditioned","Un-Conditioned",IF(AND(E75>='DHW Bldg & Operation Data'!$C$28,'DHW Bldg & Operation Data'!$C$27<>"Heating Only"),"Cooling",IF(E75<='DHW Bldg & Operation Data'!$C$28,"Heating","Un-Conditioned"))) -> Heating | H75: =IF(HPWH_Location="Outdoor Evaporator",'DHW Calculator'!$E75,IF(HPWH_Location="Conditioned Space",BinModelTemp,IF(HPWH_Location="Un-Conditioned Enclosed",($L$6*(1-$L$7)+$E75*$L$7),I75))) -> 24.16666667 | I75: 24.16666667 | K75: =HLOOKUP($A$16&" TMAIN", 'Weather Data'!$CD$17:$DA$80,D75,FALSE) ->  | O75: - | Q75: - | R75: =IF($L$9="Yes",'COP Assignment'!W64*(1-Recirculation_Loss_Factor)+1*Recirculation_Loss_Factor,'COP Assignment'!W64) ->  | S75: 0 | T75: 0 | U75: 0 | V75: 0 | W75: =IF($T$1="Electric",T75*'Worksheet Data'!$W$3/1000000,-S75*'Worksheet Data'!$W$3/1000000) -> 0 | X75: 0 | Y75: =IFERROR(IF($T$1="Electric",0,Q75*'Worksheet Data'!$W$2/1000000),0) -> 0 | Z75: 0
D76: 64 | E76: -23 | F76: =HLOOKUP($A$16, 'Weather Data'!$CD$17:$DA$80,D76,FALSE) ->  | G76: =IF('DHW Bldg & Operation Data'!$C$26="Un-Conditioned","Un-Conditioned",IF(AND(E76>='DHW Bldg & Operation Data'!$C$28,'DHW Bldg & Operation Data'!$C$27<>"Heating Only"),"Cooling",IF(E76<='DHW Bldg & Operation Data'!$C$28,"Heating","Un-Conditioned"))) -> Heating | H76: =IF(HPWH_Location="Outdoor Evaporator",'DHW Calculator'!$E76,IF(HPWH_Location="Conditioned Space",BinModelTemp,IF(HPWH_Location="Un-Conditioned Enclosed",($L$6*(1-$L$7)+$E76*$L$7),I76))) -> 23.61111111 | I76: 23.61111111 | K76: =HLOOKUP($A$16&" TMAIN", 'Weather Data'!$CD$17:$DA$80,D76,FALSE) ->  | O76: - | Q76: - | R76: =IF($L$9="Yes",'COP Assignment'!W65*(1-Recirculation_Loss_Factor)+1*Recirculation_Loss_Factor,'COP Assignment'!W65) ->  | S76: 0 | T76: 0 | U76: 0 | V76: 0 | W76: =IF($T$1="Electric",T76*'Worksheet Data'!$W$3/1000000,-S76*'Worksheet Data'!$W$3/1000000) -> 0 | X76: 0 | Y76: =IFERROR(IF($T$1="Electric",0,Q76*'Worksheet Data'!$W$2/1000000),0) -> 0 | Z76: 0
E77: Total hrs | F77: =SUM(Bin_Hrs_Occ_Cat2) ->  | S77: 0 | W77: =SUM(W14:W76) -> 0 | Y77: =SUM(Y14:Y76) -> 0 | Z77: =SUM(Z14:Z76) -> 0
W78: ▲kWh | Y78: ▲ therms | Z78: ▲MMbtu Total
E85: Calculations:
E87: DHW Usage (GPH) | F87: Max demand* %DHW use @ temp bin
E88: DHW Heating output (Btuh) | F88: GPH*8.33* lift (Storage water temp - incoming water temp)
E89: Installed HP heating Capacity (Btuh) | F89: Total heating capacity
E91: Baseline EIR | F91: 1/Efficiency
E92: Baseline EIR adjust | F92: based on PLR using DOE curve
E93: Baseline Energy (Btu) | F93: Heating Output / (Efficiency*1/EIR_adj) * bin hr
E95: Proposed COP | F95: heating COP
E96: Adjusted PLR | F96: Heating output / (max capacity * 1/Heating rate adjustment)
E97: Proposed EIR_adj_temp adjust | F97: based on Equip room temp using DOE curve
E98: Proposed EIR_adj_PLR adjust | F98: based on adjusted PLR using DOE curve
E99: COP_adjusted | F99: heating COP*1/EIR_temp_adj*1/EIR_PLR_adj
E100: Proposed Energy | F100: Heating Output / (COP_adjusted) * bin hr
E102: Energy Savings (Btu) | F102: Baseline Energy - Proposed Energy

Sheet Building Profiles (hidden)
A1: Building Type | D1: Schedules (ASHRAE 90.1 User Manual Typical Load Profiles) | F1: Office | I1: Assembly | L1: Health | O1: Hotel/Motel | R1: Light Manufacturing | U1: Restaurant | X1: Retail | AA1: School | AD1: Warehouse | AG1: Residential* | AJ1: Multifamily* | AM1: Custom*
A2: Office | B2: 1 | E2: Hour (Time of Day) | F2: DHW Schedule | I2: DHW Schedule | L2: DHW Schedule | O2: DHW Schedule | R2: DHW Schedule | U2: DHW Schedule | X2: DHW Schedule | AA2: DHW Schedule | AD2: DHW Schedule | AG2: DHW Schedule | AJ2: DHW Schedule | AM2: DHW Schedule
A3: Assembly | B3: 2 | F3: Weekday | G3: Sat | H3: Sunday | I3: Weekday | J3: Sat | K3: Sunday | L3: Weekday | M3: Sat | N3: Sunday | O3: Weekday | P3: Sat | Q3: Sunday | R3: Weekday | S3: Sat | T3: Sunday | U3: Weekday | V3: Sat | W3: Sunday | X3: Weekday | Y3: Sat | Z3: Sunday | AA3: Weekday | AB3: Sat | AC3: Sunday | AD3: Weekday | AE3: Sat | AF3: Sunday | AG3: Weekday | AH3: Sat | AI3: Sunday | AJ3: Weekday | AK3: Sat | AL3: Sunday | AM3: Weekday | AN3: Sat | AO3: Sunday
A4: Health | B4: 3 | E4: 01:00:00 | F4: 0.05 | G4: 0.05 | H4: 0.04 | I4: 0 | J4: 0 | K4: 0 | L4: 0.01 | M4: 0.01 | N4: 0.01 | O4: 0.2 | P4: 0.2 | Q4: 0.25 | R4: 0.05 | S4: 0.05 | T4: 0.04 | U4: 0.2 | V4: 0.2 | W4: 0.25 | X4: 0.04 | Y4: 0.11 | Z4: 0.07 | AA4: 0.05 | AB4: 0.03 | AC4: 0.03 | AD4: 0.02 | AE4: 0.02 | AF4: 0.02 | AG4: 0.33 | AH4: 0.29 | AI4: 0.29 | AJ4: 0.33 | AK4: 0.29 | AL4: 0.29 | AM4: =IF('DHW Bldg & Operation Data'!#REF!="", "", 'DHW Bldg & Operation Data'!#REF!) ->  | AN4: =IF('DHW Bldg & Operation Data'!#REF!="", "", 'DHW Bldg & Operation Data'!#REF!) ->  | AO4: =IF('DHW Bldg & Operation Data'!#REF!="", "", 'DHW Bldg & Operation Data'!#REF!) -> 
A5: Hotel/Motel | B5: 4 | E5: 02:00:00 | F5: 0.05 | G5: 0.05 | H5: 0.04 | I5: 0 | J5: 0 | K5: 0 | L5: 0.01 | M5: 0.01 | N5: 0.01 | O5: 0.15 | P5: 0.15 | Q5: 0.2 | R5: 0.05 | S5: 0.05 | T5: 0.04 | U5: 0.15 | V5: 0.15 | W5: 0.2 | X5: 0.05 | Y5: 0.1 | Z5: 0.07 | AA5: 0.05 | AB5: 0.03 | AC5: 0.03 | AD5: 0.02 | AE5: 0.02 | AF5: 0.02 | AG5: 0.15 | AH5: 0.19 | AI5: 0.19 | AJ5: 0.15 | AK5: 0.19 | AL5: 0.19 | AM5: =IF('DHW Bldg & Operation Data'!#REF!="", "", 'DHW Bldg & Operation Data'!#REF!) ->  | AN5: =IF('DHW Bldg & Operation Data'!#REF!="", "", 'DHW Bldg & Operation Data'!#REF!) ->  | AO5: =IF('DHW Bldg & Operation Data'!#REF!="", "", 'DHW Bldg & Operation Data'!#REF!) -> 
A6: Light Manufacturing | B6: 5 | E6: 03:00:00 | F6: 0.05 | G6: 0.05 | H6: 0.04 | I6: 0 | J6: 0 | K6: 0 | L6: 0.01 | M6: 0.01 | N6: 0.01 | O6: 0.15 | P6: 0.15 | Q6: 0.2 | R6: 0.05 | S6: 0.05 | T6: 0.04 | U6: 0.15 | V6: 0.15 | W6: 0.2 | X6: 0.05 | Y6: 0.08 | Z6: 0.07 | AA6: 0.05 | AB6: 0.03 | AC6: 0.03 | AD6: 0.02 | AE6: 0.02 | AF6: 0.02 | AG6: 0.09 | AH6: 0.11 | AI6: 0.11 | AJ6: 0.09 | AK6: 0.11 | AL6: 0.11 | AM6: =IF('DHW Bldg & Operation Data'!#REF!="", "", 'DHW Bldg & Operation Data'!#REF!) ->  | AN6: =IF('DHW Bldg & Operation Data'!#REF!="", "", 'DHW Bldg & Operation Data'!#REF!) ->  | AO6: =IF('DHW Bldg & Operation Data'!#REF!="", "", 'DHW Bldg & Operation Data'!#REF!) -> 
A7: Restaurant | B7: 6 | E7: 04:00:00 | F7: 0.05 | G7: 0.05 | H7: 0.04 | I7: 0 | J7: 0 | K7: 0 | L7: 0.01 | M7: 0.01 | N7: 0.01 | O7: 0.15 | P7: 0.15 | Q7: 0.2 | R7: 0.05 | S7: 0.05 | T7: 0.04 | U7: 0 | V7: 0 | W7: 0 | X7: 0.04 | Y7: 0.06 | Z7: 0.06 | AA7: 0.05 | AB7: 0.03 | AC7: 0.03 | AD7: 0.02 | AE7: 0.02 | AF7: 0.02 | AG7: 0.06 | AH7: 0.06 | AI7: 0.06 | AJ7: 0.06 | AK7: 0.06 | AL7: 0.06 | AM7: =IF('DHW Bldg & Operation Data'!#REF!="", "", 'DHW Bldg & Operation Data'!#REF!) ->  | AN7: =IF('DHW Bldg & Operation Data'!#REF!="", "", 'DHW Bldg & Operation Data'!#REF!) ->  | AO7: =IF('DHW Bldg & Operation Data'!#REF!="", "", 'DHW Bldg & Operation Data'!#REF!) -> 
A8: Retail | B8: 7 | E8: 05:00:00 | F8: 0.05 | G8: 0.05 | H8: 0.04 | I8: 0 | J8: 0 | K8: 0 | L8: 0.01 | M8: 0.01 | N8: 0.01 | O8: 0.2 | P8: 0.2 | Q8: 0.2 | R8: 0.05 | S8: 0.05 | T8: 0.04 | U8: 0 | V8: 0 | W8: 0 | X8: 0.04 | Y8: 0.06 | Z8: 0.06 | AA8: 0.05 | AB8: 0.03 | AC8: 0.03 | AD8: 0.05 | AE8: 0.02 | AF8: 0.02 | AG8: 0.06 | AH8: 0.05 | AI8: 0.05 | AJ8: 0.06 | AK8: 0.05 | AL8: 0.05 | AM8: =IF('DHW Bldg & Operation Data'!#REF!="", "", 'DHW Bldg & Operation Data'!#REF!) ->  | AN8: =IF('DHW Bldg & Operation Data'!#REF!="", "", 'DHW Bldg & Operation Data'!#REF!) ->  | AO8: =IF('DHW Bldg & Operation Data'!#REF!="", "", 'DHW Bldg & Operation Data'!#REF!) -> 
A9: School | B9: 8 | E9: 06:00:00 | F9: 0.08 | G9: 0.08 | H9: 0.07 | I9: 0 | J9: 0 | K9: 0 | L9: 0.01 | M9: 0.01 | N9: 0.01 | O9: 0.25 | P9: 0.25 | Q9: 0.3 | R9: 0.08 | S9: 0.08 | T9: 0.07 | U9: 0 | V9: 0 | W9: 0 | X9: 0.04 | Y9: 0.06 | Z9: 0.06 | AA9: 0.05 | AB9: 0.03 | AC9: 0.03 | AD9: 0.07 | AE9: 0.02 | AF9: 0.02 | AG9: 0.11 | AH9: 0.08 | AI9: 0.08 | AJ9: 0.11 | AK9: 0.08 | AL9: 0.08 | AM9: =IF('DHW Bldg & Operation Data'!#REF!="", "", 'DHW Bldg & Operation Data'!#REF!) ->  | AN9: =IF('DHW Bldg & Operation Data'!#REF!="", "", 'DHW Bldg & Operation Data'!#REF!) ->  | AO9: =IF('DHW Bldg & Operation Data'!#REF!="", "", 'DHW Bldg & Operation Data'!#REF!) -> 
A10: Warehouse | B10: 9 | E10: 07:00:00 | F10: 0.07 | G10: 0.07 | H10: 0.04 | I10: 0 | J10: 0 | K10: 0 | L10: 0.01 | M10: 0.01 | N10: 0.01 | O10: 0.5 | P10: 0.4 | Q10: 0.5 | R10: 0.07 | S10: 0.07 | T10: 0.04 | U10: 0 | V10: 0 | W10: 0 | X10: 0.04 | Y10: 0.07 | Z10: 0.07 | AA10: 0.05 | AB10: 0.03 | AC10: 0.03 | AD10: 0.07 | AE10: 0.02 | AF10: 0.02 | AG10: 0.37 | AH10: 0.14 | AI10: 0.14 | AJ10: 0.37 | AK10: 0.14 | AL10: 0.14 | AM10: =IF('DHW Bldg & Operation Data'!#REF!="", "", 'DHW Bldg & Operation Data'!#REF!) ->  | AN10: =IF('DHW Bldg & Operation Data'!#REF!="", "", 'DHW Bldg & Operation Data'!#REF!) ->  | AO10: =IF('DHW Bldg & Operation Data'!#REF!="", "", 'DHW Bldg & Operation Data'!#REF!) -> 
A11: Residential | B11: 10 | E11: 08:00:00 | F11: 0.19 | G11: 0.11 | H11: 0.04 | I11: 0 | J11: 0 | K11: 0 | L11: 0.17 | M11: 0.01 | N11: 0.01 | O11: 0.6 | P11: 0.5 | Q11: 0.5 | R11: 0.19 | S11: 0.11 | T11: 0.04 | U11: 0.6 | V11: 0 | W11: 0 | X11: 0.15 | Y11: 0.2 | Z11: 0.1 | AA11: 0.1 | AB11: 0.03 | AC11: 0.03 | AD11: 0.1 | AE11: 0.02 | AF11: 0.02 | AG11: 0.77 | AH11: 0.23 | AI11: 0.23 | AJ11: 0.77 | AK11: 0.23 | AL11: 0.23 | AM11: =IF('DHW Bldg & Operation Data'!#REF!="", "", 'DHW Bldg & Operation Data'!#REF!) ->  | AN11: =IF('DHW Bldg & Operation Data'!#REF!="", "", 'DHW Bldg & Operation Data'!#REF!) ->  | AO11: =IF('DHW Bldg & Operation Data'!#REF!="", "", 'DHW Bldg & Operation Data'!#REF!) -> 
A12: Multifamily | B12: 11 | E12: 09:00:00 | F12: 0.35 | G12: 0.15 | H12: 0.04 | I12: 0 | J12: 0 | K12: 0 | L12: 0.58 | M12: 0.2 | N12: 0.01 | O12: 0.55 | P12: 0.5 | Q12: 0.5 | R12: 0.35 | S12: 0.15 | T12: 0.04 | U12: 0.55 | V12: 0 | W12: 0 | X12: 0.23 | Y12: 0.24 | Z12: 0.12 | AA12: 0.34 | AB12: 0.03 | AC12: 0.05 | AD12: 0.3 | AE12: 0.06 | AF12: 0.02 | AG12: 0.77 | AH12: 0.34 | AI12: 0.34 | AJ12: 0.77 | AK12: 0.34 | AL12: 0.34 | AM12: =IF('DHW Bldg & Operation Data'!#REF!="", "", 'DHW Bldg & Operation Data'!#REF!) ->  | AN12: =IF('DHW Bldg & Operation Data'!#REF!="", "", 'DHW Bldg & Operation Data'!#REF!) ->  | AO12: =IF('DHW Bldg & Operation Data'!#REF!="", "", 'DHW Bldg & Operation Data'!#REF!) -> 
A13: Custom | B13: 12 | E13: 10:00:00 | F13: 0.38 | G13: 0.21 | H13: 0.04 | I13: 0.05 | J13: 0.05 | K13: 0.05 | L13: 0.66 | M13: 0.28 | N13: 0.01 | O13: 0.45 | P13: 0.5 | Q13: 0.55 | R13: 0.38 | S13: 0.21 | T13: 0.04 | U13: 0.45 | V13: 0.5 | W13: 0 | X13: 0.32 | Y13: 0.27 | Z13: 0.14 | AA13: 0.6 | AB13: 0.05 | AC13: 0.05 | AD13: 0.36 | AE13: 0.12 | AF13: 0.02 | AG13: 0.65 | AH13: 0.59 | AI13: 0.59 | AJ13: 0.65 | AK13: 0.59 | AL13: 0.59 | AM13: =IF('DHW Bldg & Operation Data'!#REF!="", "", 'DHW Bldg & Operation Data'!#REF!) ->  | AN13: =IF('DHW Bldg & Operation Data'!#REF!="", "", 'DHW Bldg & Operation Data'!#REF!) ->  | AO13: =IF('DHW Bldg & Operation Data'!#REF!="", "", 'DHW Bldg & Operation Data'!#REF!) -> 
E14: 11:00:00 | F14: 0.39 | G14: 0.19 | H14: 0.04 | I14: 0.05 | J14: 0.05 | K14: 0.05 | L14: 0.78 | M14: 0.3 | N14: 0.01 | O14: 0.4 | P14: 0.45 | Q14: 0.5 | R14: 0.39 | S14: 0.19 | T14: 0.04 | U14: 0.4 | V14: 0.45 | W14: 0.5 | X14: 0.41 | Y14: 0.42 | Z14: 0.29 | AA14: 0.63 | AB14: 0.05 | AC14: 0.05 | AD14: 0.36 | AE14: 0.12 | AF14: 0.02 | AG14: 0.67 | AH14: 0.73 | AI14: 0.73 | AJ14: 0.67 | AK14: 0.73 | AL14: 0.73 | AM14: =IF('DHW Bldg & Operation Data'!#REF!="", "", 'DHW Bldg & Operation Data'!#REF!) ->  | AN14: =IF('DHW Bldg & Operation Data'!#REF!="", "", 'DHW Bldg & Operation Data'!#REF!) ->  | AO14: =IF('DHW Bldg & Operation Data'!#REF!="", "", 'DHW Bldg & Operation Data'!#REF!) -> 
E15: 12:00:00 | F15: 0.47 | G15: 0.23 | H15: 0.06 | I15: 0.35 | J15: 0.2 | K15: 0.1 | L15: 0.82 | M15: 0.3 | N15: 0.01 | O15: 0.45 | P15: 0.5 | Q15: 0.5 | R15: 0.47 | S15: 0.23 | T15: 0.06 | U15: 0.45 | V15: 0.5 | W15: 0.5 | X15: 0.57 | Y15: 0.54 | Z15: 0.31 | AA15: 0.72 | AB15: 0.05 | AC15: 0.05 | AD15: 0.46 | AE15: 0.17 | AF15: 0.02 | AG15: 0.67 | AH15: 0.83 | AI15: 0.83 | AJ15: 0.67 | AK15: 0.83 | AL15: 0.83 | AM15: =IF('DHW Bldg & Operation Data'!#REF!="", "", 'DHW Bldg & Operation Data'!#REF!) ->  | AN15: =IF('DHW Bldg & Operation Data'!#REF!="", "", 'DHW Bldg & Operation Data'!#REF!) ->  | AO15: =IF('DHW Bldg & Operation Data'!#REF!="", "", 'DHW Bldg & Operation Data'!#REF!) -> 
E16: 13:00:00 | F16: 0.57 | G16: 0.2 | H16: 0.06 | I16: 0.05 | J16: 0 | K16: 0 | L16: 0.71 | M16: 0.24 | N16: 0.01 | O16: 0.4 | P16: 0.5 | Q16: 0.4 | R16: 0.57 | S16: 0.2 | T16: 0.06 | U16: 0.4 | V16: 0.5 | W16: 0.4 | X16: 0.62 | Y16: 0.59 | Z16: 0.36 | AA16: 0.79 | AB16: 0.05 | AC16: 0.05 | AD16: 0.57 | AE16: 0.04 | AF16: 0.04 | AG16: 0.63 | AH16: 0.83 | AI16: 0.83 | AJ16: 0.63 | AK16: 0.83 | AL16: 0.83 | AM16: =IF('DHW Bldg & Operation Data'!#REF!="", "", 'DHW Bldg & Operation Data'!#REF!) ->  | AN16: =IF('DHW Bldg & Operation Data'!#REF!="", "", 'DHW Bldg & Operation Data'!#REF!) ->  | AO16: =IF('DHW Bldg & Operation Data'!#REF!="", "", 'DHW Bldg & Operation Data'!#REF!) -> 
E17: 14:00:00 | F17: 0.54 | G17: 0.19 | H17: 0.09 | I17: 0.05 | J17: 0 | K17: 0 | L17: 0.82 | M17: 0.24 | N17: 0.01 | O17: 0.35 | P17: 0.45 | Q17: 0.4 | R17: 0.54 | S17: 0.19 | T17: 0.09 | U17: 0.35 | V17: 0.45 | W17: 0.4 | X17: 0.61 | Y17: 0.6 | Z17: 0.36 | AA17: 0.83 | AB17: 0.03 | AC17: 0.05 | AD17: 0.43 | AE17: 0.04 | AF17: 0.04 | AG17: 0.53 | AH17: 0.78 | AI17: 0.78 | AJ17: 0.53 | AK17: 0.78 | AL17: 0.78 | AM17: =IF('DHW Bldg & Operation Data'!#REF!="", "", 'DHW Bldg & Operation Data'!#REF!) ->  | AN17: =IF('DHW Bldg & Operation Data'!#REF!="", "", 'DHW Bldg & Operation Data'!#REF!) ->  | AO17: =IF('DHW Bldg & Operation Data'!#REF!="", "", 'DHW Bldg & Operation Data'!#REF!) -> 
E18: 15:00:00 | F18: 0.34 | G18: 0.15 | H18: 0.06 | I18: 0.05 | J18: 0 | K18: 0 | L18: 0.78 | M18: 0.23 | N18: 0.01 | O18: 0.3 | P18: 0.4 | Q18: 0.3 | R18: 0.34 | S18: 0.15 | T18: 0.06 | U18: 0.3 | V18: 0.4 | W18: 0.3 | X18: 0.5 | Y18: 0.49 | Z18: 0.34 | AA18: 0.61 | AB18: 0.03 | AC18: 0.03 | AD18: 0.38 | AE18: 0.02 | AF18: 0.02 | AG18: 0.53 | AH18: 0.68 | AI18: 0.68 | AJ18: 0.53 | AK18: 0.68 | AL18: 0.68 | AM18: =IF('DHW Bldg & Operation Data'!#REF!="", "", 'DHW Bldg & Operation Data'!#REF!) ->  | AN18: =IF('DHW Bldg & Operation Data'!#REF!="", "", 'DHW Bldg & Operation Data'!#REF!) ->  | AO18: =IF('DHW Bldg & Operation Data'!#REF!="", "", 'DHW Bldg & Operation Data'!#REF!) -> 
E19: 16:00:00 | F19: 0.33 | G19: 0.12 | H19: 0.04 | I19: 0.05 | J19: 0 | K19: 0 | L19: 0.74 | M19: 0.23 | N19: 0.01 | O19: 0.3 | P19: 0.4 | Q19: 0.3 | R19: 0.33 | S19: 0.12 | T19: 0.04 | U19: 0.3 | V19: 0.4 | W19: 0.3 | X19: 0.45 | Y19: 0.48 | Z19: 0.35 | AA19: 0.65 | AB19: 0.03 | AC19: 0.03 | AD19: 0.4 | AE19: 0.02 | AF19: 0.02 | AG19: 0.5 | AH19: 0.58 | AI19: 0.58 | AJ19: 0.5 | AK19: 0.58 | AL19: 0.58 | AM19: =IF('DHW Bldg & Operation Data'!#REF!="", "", 'DHW Bldg & Operation Data'!#REF!) ->  | AN19: =IF('DHW Bldg & Operation Data'!#REF!="", "", 'DHW Bldg & Operation Data'!#REF!) ->  | AO19: =IF('DHW Bldg & Operation Data'!#REF!="", "", 'DHW Bldg & Operation Data'!#REF!) -> 
E20: 17:00:00 | F20: 0.44 | G20: 0.14 | H20: 0.04 | I20: 0.05 | J20: 0 | K20: 0 | L20: 0.63 | M20: 0.23 | N20: 0.01 | O20: 0.3 | P20: 0.35 | Q20: 0.3 | R20: 0.44 | S20: 0.14 | T20: 0.04 | U20: 0.3 | V20: 0.35 | W20: 0.3 | X20: 0.46 | Y20: 0.47 | Z20: 0.37 | AA20: 0.1 | AB20: 0.03 | AC20: 0.03 | AD20: 0.3 | AE20: 0.02 | AF20: 0.02 | AG20: 0.56 | AH20: 0.56 | AI20: 0.56 | AJ20: 0.56 | AK20: 0.56 | AL20: 0.56 | AM20: =IF('DHW Bldg & Operation Data'!#REF!="", "", 'DHW Bldg & Operation Data'!#REF!) ->  | AN20: =IF('DHW Bldg & Operation Data'!#REF!="", "", 'DHW Bldg & Operation Data'!#REF!) ->  | AO20: =IF('DHW Bldg & Operation Data'!#REF!="", "", 'DHW Bldg & Operation Data'!#REF!) -> 
E21: 18:00:00 | F21: 0.26 | G21: 0.07 | H21: 0.04 | I21: 0 | J21: 0 | K21: 0 | L21: 0.41 | M21: 0.1 | N21: 0.01 | O21: 0.4 | P21: 0.4 | Q21: 0.4 | R21: 0.26 | S21: 0.07 | T21: 0.04 | U21: 0.4 | V21: 0.4 | W21: 0.4 | X21: 0.47 | Y21: 0.46 | Z21: 0.34 | AA21: 0.1 | AB21: 0.03 | AC21: 0.03 | AD21: 0.18 | AE21: 0.02 | AF21: 0.02 | AG21: 0.69 | AH21: 0.55 | AI21: 0.55 | AJ21: 0.69 | AK21: 0.55 | AL21: 0.55 | AM21: =IF('DHW Bldg & Operation Data'!#REF!="", "", 'DHW Bldg & Operation Data'!#REF!) ->  | AN21: =IF('DHW Bldg & Operation Data'!#REF!="", "", 'DHW Bldg & Operation Data'!#REF!) ->  | AO21: =IF('DHW Bldg & Operation Data'!#REF!="", "", 'DHW Bldg & Operation Data'!#REF!) -> 
E22: 19:00:00 | F22: 0.21 | G22: 0.07 | H22: 0.04 | I22: 0 | J22: 0 | K22: 0 | L22: 0.18 | M22: 0.01 | N22: 0.01 | O22: 0.55 | P22: 0.55 | Q22: 0.5 | R22: 0.21 | S22: 0.07 | T22: 0.04 | U22: 0.55 | V22: 0.55 | W22: 0.5 | X22: 0.42 | Y22: 0.44 | Z22: 0.25 | AA22: 0.19 | AB22: 0.03 | AC22: 0.03 | AD22: 0.03 | AE22: 0.02 | AF22: 0.02 | AG22: 0.77 | AH22: 0.57 | AI22: 0.57 | AJ22: 0.77 | AK22: 0.57 | AL22: 0.57 | AM22: =IF('DHW Bldg & Operation Data'!#REF!="", "", 'DHW Bldg & Operation Data'!#REF!) ->  | AN22: =IF('DHW Bldg & Operation Data'!#REF!="", "", 'DHW Bldg & Operation Data'!#REF!) ->  | AO22: =IF('DHW Bldg & Operation Data'!#REF!="", "", 'DHW Bldg & Operation Data'!#REF!) -> 
E23: 20:00:00 | F23: 0.15 | G23: 0.07 | H23: 0.04 | I23: 0 | J23: 0.65 | K23: 0.65 | L23: 0.18 | M23: 0.01 | N23: 0.01 | O23: 0.6 | P23: 0.55 | Q23: 0.5 | R23: 0.15 | S23: 0.07 | T23: 0.04 | U23: 0.6 | V23: 0.55 | W23: 0.5 | X23: 0.34 | Y23: 0.36 | Z23: 0.27 | AA23: 0.25 | AB23: 0.03 | AC23: 0.03 | AD23: 0.03 | AE23: 0.02 | AF23: 0.02 | AG23: 0.81 | AH23: 0.55 | AI23: 0.55 | AJ23: 0.81 | AK23: 0.55 | AL23: 0.55 | AM23: =IF('DHW Bldg & Operation Data'!#REF!="", "", 'DHW Bldg & Operation Data'!#REF!) ->  | AN23: =IF('DHW Bldg & Operation Data'!#REF!="", "", 'DHW Bldg & Operation Data'!#REF!) ->  | AO23: =IF('DHW Bldg & Operation Data'!#REF!="", "", 'DHW Bldg & Operation Data'!#REF!) -> 
E24: 21:00:00 | F24: 0.17 | G24: 0.07 | H24: 0.04 | I24: 0 | J24: 0.3 | K24: 0.3 | L24: 0.18 | M24: 0.01 | N24: 0.01 | O24: 0.5 | P24: 0.5 | Q24: 0.4 | R24: 0.17 | S24: 0.07 | T24: 0.04 | U24: 0.5 | V24: 0.5 | W24: 0.4 | X24: 0.33 | Y24: 0.29 | Z24: 0.21 | AA24: 0.22 | AB24: 0.03 | AC24: 0.03 | AD24: 0.03 | AE24: 0.02 | AF24: 0.02 | AG24: 0.75 | AH24: 0.49 | AI24: 0.49 | AJ24: 0.75 | AK24: 0.49 | AL24: 0.49 | AM24: =IF('DHW Bldg & Operation Data'!#REF!="", "", 'DHW Bldg & Operation Data'!#REF!) ->  | AN24: =IF('DHW Bldg & Operation Data'!#REF!="", "", 'DHW Bldg & Operation Data'!#REF!) ->  | AO24: =IF('DHW Bldg & Operation Data'!#REF!="", "", 'DHW Bldg & Operation Data'!#REF!) -> 
E25: 22:00:00 | F25: 0.08 | G25: 0.09 | H25: 0.07 | I25: 0 | J25: 0 | K25: 0 | L25: 0.1 | M25: 0.01 | N25: 0.01 | O25: 0.55 | P25: 0.55 | Q25: 0.5 | R25: 0.08 | S25: 0.09 | T25: 0.07 | U25: 0.55 | V25: 0.55 | W25: 0.5 | X25: 0.23 | Y25: 0.22 | Z25: 0.16 | AA25: 0.22 | AB25: 0.03 | AC25: 0.03 | AD25: 0.03 | AE25: 0.02 | AF25: 0.02 | AG25: 0.78 | AH25: 0.49 | AI25: 0.49 | AJ25: 0.78 | AK25: 0.49 | AL25: 0.49 | AM25: =IF('DHW Bldg & Operation Data'!#REF!="", "", 'DHW Bldg & Operation Data'!#REF!) ->  | AN25: =IF('DHW Bldg & Operation Data'!#REF!="", "", 'DHW Bldg & Operation Data'!#REF!) ->  | AO25: =IF('DHW Bldg & Operation Data'!#REF!="", "", 'DHW Bldg & Operation Data'!#REF!) -> 
E26: 23:00:00 | F26: 0.05 | G26: 0.05 | H26: 0.04 | I26: 0 | J26: 0 | K26: 0 | L26: 0.01 | M26: 0.01 | N26: 0.01 | O26: 0.45 | P26: 0.4 | Q26: 0.4 | R26: 0.05 | S26: 0.05 | T26: 0.04 | U26: 0.45 | V26: 0.4 | W26: 0.4 | X26: 0.13 | Y26: 0.16 | Z26: 0.1 | AA26: 0.12 | AB26: 0.03 | AC26: 0.03 | AD26: 0.03 | AE26: 0.02 | AF26: 0.02 | AG26: 0.79 | AH26: 0.44 | AI26: 0.44 | AJ26: 0.79 | AK26: 0.44 | AL26: 0.44 | AM26: =IF('DHW Bldg & Operation Data'!#REF!="", "", 'DHW Bldg & Operation Data'!#REF!) ->  | AN26: =IF('DHW Bldg & Operation Data'!#REF!="", "", 'DHW Bldg & Operation Data'!#REF!) ->  | AO26: =IF('DHW Bldg & Operation Data'!#REF!="", "", 'DHW Bldg & Operation Data'!#REF!) -> 
E27: 00:00:00 | F27: 0.05 | G27: 0.05 | H27: 0.04 | I27: 0 | J27: 0 | K27: 0 | L27: 0.01 | M27: 0.01 | N27: 0.01 | O27: 0.25 | P27: 0.3 | Q27: 0.2 | R27: 0.05 | S27: 0.05 | T27: 0.04 | U27: 0.25 | V27: 0.3 | W27: 0.2 | X27: 0.08 | Y27: 0.13 | Z27: 0.06 | AA27: 0.09 | AB27: 0.03 | AC27: 0.03 | AD27: 0.03 | AE27: 0.02 | AF27: 0.02 | AG27: 0.61 | AH27: 0.38 | AI27: 0.38 | AJ27: 0.61 | AK27: 0.38 | AL27: 0.38 | AM27: =IF('DHW Bldg & Operation Data'!#REF!="", "", 'DHW Bldg & Operation Data'!#REF!) ->  | AN27: =IF('DHW Bldg & Operation Data'!#REF!="", "", 'DHW Bldg & Operation Data'!#REF!) ->  | AO27: =IF('DHW Bldg & Operation Data'!#REF!="", "", 'DHW Bldg & Operation Data'!#REF!) -> 
E28: *% of maximum load
AG29: *Residential/Multifamily/Custom are not from ASHRAE 90.1
E32: Bldg Type | F32: Rate | G32: Unit | H32: Help Text | I32: LegacyBldgType | J32: Recirculation Loss Factor | K32: Column1 | Z32: Weekday Table
E33: Assembly | F33: 0.00702 | G33: Sq Ft | H33: Please enter the square footage of the building. | I33: Assembly | J33: 0 | Y33: Hour | Z33: Office | AA33: Assembly | AB33: Health | AC33: Hotel/Motel | AD33: Light Manufacturing | AE33: Restaurant | AF33: Retail | AG33: School | AH33: Warehouse | AI33: Residential | AJ33: Multifamily | AK33: Custom
E34: Auto Repair | F34: 0.00489 | G34: Sq Ft | H34: Please enter the square footage of the building. | I34: Light Manufacturing | J34: 0 | Y34: 01:00:00 | Z34: 0.05 | AA34: 0 | AB34: 0.01 | AC34: 0.2 | AD34: 0.05 | AE34: 0.2 | AF34: 0.04 | AG34: 0.05 | AH34: 0.02 | AI34: 0.33 | AJ34: 0.33 | AK34: =AM4 -> 
E35: Big Box Retail | F35: 0.00343 | G35: Sq Ft | H35: Please enter the square footage of the building. | I35: Retail | J35: 0 | Y35: 02:00:00 | Z35: 0.05 | AA35: 0 | AB35: 0.01 | AC35: 0.15 | AD35: 0.05 | AE35: 0.15 | AF35: 0.05 | AG35: 0.05 | AH35: 0.02 | AI35: 0.15 | AJ35: 0.15 | AK35: =AM5 -> 
E36: Grocery | F36: 0.00343 | G36: Sq Ft | H36: Please enter the square footage of the building. | I36: Retail | J36: 0 | Y36: 03:00:00 | Z36: 0.05 | AA36: 0 | AB36: 0.01 | AC36: 0.15 | AD36: 0.05 | AE36: 0.15 | AF36: 0.05 | AG36: 0.05 | AH36: 0.02 | AI36: 0.09 | AJ36: 0.09
E37: Hospital | F37: 0.05442 | G37: Sq Ft | H37: Please enter the square footage of the building. | I37: Health | J37: 0.25 | Y37: 04:00:00 | Z37: 0.05 | AA37: 0 | AB37: 0.01 | AC37: 0.15 | AD37: 0.05 | AE37: 0 | AF37: 0.04 | AG37: 0.05 | AH37: 0.02 | AI37: 0.06 | AJ37: 0.06 | AO37: Maximum Hourly fraction of GPD
E38: Hotel | F38: 0.04552 | G38: Sq Ft | H38: Please enter the square footage of the building. | I38: Hotel/Motel | J38: 0.25 | Y38: 05:00:00 | Z38: 0.05 | AA38: 0 | AB38: 0.01 | AC38: 0.2 | AD38: 0.05 | AE38: 0 | AF38: 0.04 | AG38: 0.05 | AH38: 0.05 | AI38: 0.06 | AJ38: 0.06 | AO38: Building Type | AP38: Weekday | AQ38: Saturday | AR38: Sunday | AS38: Max
E39: Large Retail | F39: 0.00343 | G39: Sq Ft | H39: Please enter the square footage of the building. | I39: Retail | J39: 0 | Y39: 06:00:00 | Z39: 0.08 | AA39: 0 | AB39: 0.01 | AC39: 0.25 | AD39: 0.08 | AE39: 0 | AF39: 0.04 | AG39: 0.05 | AH39: 0.07 | AI39: 0.11 | AJ39: 0.11 | AO39: Office | AP39: 0.1061452514 | AQ39: 0.08984375 | AR39: 0.0796460177 | AS39: =MAX(TableMaxHourlyFractionGPD[[#This Row],[Weekday]],TableMaxHourlyFractionGPD[[#This Row],[Saturday]],TableMaxHourlyFractionGPD[[#This Row],[Sunday]]) -> 0.1061452514
E40: Light Industrial | F40: 0.00489 | G40: Sq Ft | H40: Please enter the square footage of the building. | I40: Light Manufacturing | J40: 0 | Y40: 07:00:00 | Z40: 0.07 | AA40: 0 | AB40: 0.01 | AC40: 0.5 | AD40: 0.07 | AE40: 0 | AF40: 0.04 | AG40: 0.05 | AH40: 0.07 | AI40: 0.37 | AJ40: 0.37 | AO40: Assembly | AP40: 0.5 | AQ40: 0.52 | AR40: 0.5652173913 | AS40: =MAX(TableMaxHourlyFractionGPD[[#This Row],[Weekday]],TableMaxHourlyFractionGPD[[#This Row],[Saturday]],TableMaxHourlyFractionGPD[[#This Row],[Sunday]]) -> 0.5652173913
E41: Motel | F41: 0.04552 | G41: Sq Ft | H41: Please enter the square footage of the building. | I41: Hotel/Motel | J41: 0.25 | M41: changed to 0.25 on Nov-5-2024 | Y41: 08:00:00 | Z41: 0.19 | AA41: 0 | AB41: 0.17 | AC41: 0.6 | AD41: 0.19 | AE41: 0.6 | AF41: 0.15 | AG41: 0.1 | AH41: 0.1 | AI41: 0.77 | AJ41: 0.77 | AO41: Health | AP41: 0.1047254151 | AQ41: 0.1204819277 | AR41: 0.04166666667 | AS41: =MAX(TableMaxHourlyFractionGPD[[#This Row],[Weekday]],TableMaxHourlyFractionGPD[[#This Row],[Saturday]],TableMaxHourlyFractionGPD[[#This Row],[Sunday]]) -> 0.1204819277
E42: Refrigerated Warehouse | F42: 0.00093 | G42: Sq Ft | H42: Please enter the square footage of the building. | I42: Warehouse | J42: 0 | Y42: 09:00:00 | Z42: 0.35 | AA42: 0 | AB42: 0.58 | AC42: 0.55 | AD42: 0.35 | AE42: 0.55 | AF42: 0.23 | AG42: 0.34 | AH42: 0.3 | AI42: 0.77 | AJ42: 0.77 | AO42: Hotel/Motel | AP42: 0.06666666667 | AQ42: 0.05913978495 | AR42: 0.06111111111 | AS42: =MAX(TableMaxHourlyFractionGPD[[#This Row],[Weekday]],TableMaxHourlyFractionGPD[[#This Row],[Saturday]],TableMaxHourlyFractionGPD[[#This Row],[Sunday]]) -> 0.06666666667
E43: Religious | F43: 0.00702 | G43: Sq Ft | H43: Please enter the square footage of the building. | I43: Assembly | J43: 0 | Y43: 10:00:00 | Z43: 0.38 | AA43: 0.05 | AB43: 0.66 | AC43: 0.45 | AD43: 0.38 | AE43: 0.45 | AF43: 0.32 | AG43: 0.6 | AH43: 0.36 | AI43: 0.65 | AJ43: 0.65 | AO43: Light Manufacturing | AP43: 0.1061452514 | AQ43: 0.08984375 | AR43: 0.0796460177 | AS43: =MAX(TableMaxHourlyFractionGPD[[#This Row],[Weekday]],TableMaxHourlyFractionGPD[[#This Row],[Saturday]],TableMaxHourlyFractionGPD[[#This Row],[Sunday]]) -> 0.1061452514
E44: Small Retail | F44: 0.00343 | G44: Sq Ft | H44: Please enter the square footage of the building. | I44: Retail | J44: 0 | Y44: 11:00:00 | Z44: 0.39 | AA44: 0.05 | AB44: 0.78 | AC44: 0.4 | AD44: 0.39 | AE44: 0.4 | AF44: 0.41 | AG44: 0.63 | AH44: 0.36 | AI44: 0.67 | AJ44: 0.67 | AO44: Restaurant | AP44: 0.07594936709 | AQ44: 0.07534246575 | AR44: 0.08 | AS44: =MAX(TableMaxHourlyFractionGPD[[#This Row],[Weekday]],TableMaxHourlyFractionGPD[[#This Row],[Saturday]],TableMaxHourlyFractionGPD[[#This Row],[Sunday]]) -> 0.08
E45: Warehouse | F45: 0.00093 | G45: Sq Ft | H45: Please enter the square footage of the building. | I45: Warehouse | J45: 0 | Y45: 12:00:00 | Z45: 0.47 | AA45: 0.35 | AB45: 0.82 | AC45: 0.45 | AD45: 0.47 | AE45: 0.45 | AF45: 0.57 | AG45: 0.72 | AH45: 0.46 | AI45: 0.67 | AJ45: 0.67 | AO45: Retail | AP45: 0.09365558912 | AQ45: 0.08695652174 | AR45: 0.08061002179 | AS45: =MAX(TableMaxHourlyFractionGPD[[#This Row],[Weekday]],TableMaxHourlyFractionGPD[[#This Row],[Saturday]],TableMaxHourlyFractionGPD[[#This Row],[Sunday]]) -> 0.09365558912
E46: OTHER | F46: 0.00489 | G46: Sq Ft | H46: Please enter the square footage of the building. | I46: Custom | J46: 0 | Y46: 13:00:00 | Z46: 0.57 | AA46: 0.05 | AB46: 0.71 | AC46: 0.4 | AD46: 0.57 | AE46: 0.4 | AF46: 0.62 | AG46: 0.79 | AH46: 0.57 | AI46: 0.63 | AJ46: 0.63 | AO46: School | AP46: 0.1201157742 | AQ46: 0.0625 | AR46: 0.05952380952 | AS46: =MAX(TableMaxHourlyFractionGPD[[#This Row],[Weekday]],TableMaxHourlyFractionGPD[[#This Row],[Saturday]],TableMaxHourlyFractionGPD[[#This Row],[Sunday]]) -> 0.1201157742
E47: Community College | F47: 1.9 | G47: Students | H47: Please enter the number of Students in the building. | I47: School | J47: 0.25 | Y47: 14:00:00 | Z47: 0.54 | AA47: 0.05 | AB47: 0.82 | AC47: 0.35 | AD47: 0.54 | AE47: 0.35 | AF47: 0.61 | AG47: 0.83 | AH47: 0.43 | AI47: 0.53 | AJ47: 0.53 | AO47: Warehouse | AP47: 0.1328671329 | AQ47: 0.1868131868 | AR47: 0.07692307692 | AS47: =MAX(TableMaxHourlyFractionGPD[[#This Row],[Weekday]],TableMaxHourlyFractionGPD[[#This Row],[Saturday]],TableMaxHourlyFractionGPD[[#This Row],[Sunday]]) -> 0.1868131868
E48: Dormitory | F48: 17.2 | G48: Residents | H48: Please enter the number of Residents in the building. | I48: Multifamily | J48: 0.25 | Y48: 15:00:00 | Z48: 0.34 | AA48: 0.05 | AB48: 0.78 | AC48: 0.3 | AD48: 0.34 | AE48: 0.3 | AF48: 0.5 | AG48: 0.61 | AH48: 0.38 | AI48: 0.53 | AJ48: 0.53 | AO48: Residential | AP48: 0.06403162055 | AQ48: 0.07874762808 | AR48: 0.07874762808 | AS48: =MAX(TableMaxHourlyFractionGPD[[#This Row],[Weekday]],TableMaxHourlyFractionGPD[[#This Row],[Saturday]],TableMaxHourlyFractionGPD[[#This Row],[Sunday]]) -> 0.07874762808
E49: Elementary School | F49: 0.9 | G49: Students | H49: Please enter the number of Students in the building. | I49: School | J49: 0.25 | Y49: 16:00:00 | Z49: 0.33 | AA49: 0.05 | AB49: 0.74 | AC49: 0.3 | AD49: 0.33 | AE49: 0.3 | AF49: 0.45 | AG49: 0.65 | AH49: 0.4 | AI49: 0.5 | AJ49: 0.5 | AO49: Multifamily | AP49: 0.06403162055 | AQ49: 0.07874762808 | AR49: 0.07874762808 | AS49: =MAX(TableMaxHourlyFractionGPD[[#This Row],[Weekday]],TableMaxHourlyFractionGPD[[#This Row],[Saturday]],TableMaxHourlyFractionGPD[[#This Row],[Sunday]]) -> 0.07874762808
E50: High School | F50: 1.9 | G50: Students | H50: Please enter the number of Students in the building. | I50: School | J50: 0.25 | Y50: 17:00:00 | Z50: 0.44 | AA50: 0.05 | AB50: 0.63 | AC50: 0.3 | AD50: 0.44 | AE50: 0.3 | AF50: 0.46 | AG50: 0.1 | AH50: 0.3 | AI50: 0.56 | AJ50: 0.56 | AO50: Custom | AP50: 0.1061452514 | AQ50: 0.08984375 | AR50: 0.0796460177 | AS50: =MAX(TableMaxHourlyFractionGPD[[#This Row],[Weekday]],TableMaxHourlyFractionGPD[[#This Row],[Saturday]],TableMaxHourlyFractionGPD[[#This Row],[Sunday]]) -> 0.1061452514
E51: Large Office | F51: 1.1 | G51: Occupants | H51: Please enter the number of Occupants in the building. | I51: Office | J51: 0.25 | Y51: 18:00:00 | Z51: 0.26 | AA51: 0 | AB51: 0.41 | AC51: 0.4 | AD51: 0.26 | AE51: 0.4 | AF51: 0.47 | AG51: 0.1 | AH51: 0.18 | AI51: 0.69 | AJ51: 0.69
E52: Small Office | F52: 1.1 | G52: Occupants | H52: Please enter the number of Occupants in the building. | I52: Office | J52: 0.25 | Y52: 19:00:00 | Z52: 0.21 | AA52: 0 | AB52: 0.18 | AC52: 0.55 | AD52: 0.21 | AE52: 0.55 | AF52: 0.42 | AG52: 0.19 | AH52: 0.03 | AI52: 0.77 | AJ52: 0.77
E53: University | F53: 0.5 | G53: Students | H53: Please enter the number of Students in the building. | I53: School | J53: 0.25 | Y53: 20:00:00 | Z53: 0.15 | AA53: 0 | AB53: 0.18 | AC53: 0.6 | AD53: 0.15 | AE53: 0.6 | AF53: 0.34 | AG53: 0.25 | AH53: 0.03 | AI53: 0.81 | AJ53: 0.81
E54: Fast Food Restaurant | F54: 500 | G54: Restaurants | H54: Please enter the number of Restaurants in the building. | I54: Restaurant | J54: 0.25 | Y54: 21:00:00 | Z54: 0.17 | AA54: 0 | AB54: 0.18 | AC54: 0.5 | AD54: 0.17 | AE54: 0.5 | AF54: 0.33 | AG54: 0.22 | AH54: 0.03 | AI54: 0.75 | AJ54: 0.75
E55: Full-Service Restaurant | F55: 2500 | G55: Restaurants | H55: Please enter the number of Restaurants in the building. | I55: Restaurant | J55: 0.25 | Y55: 22:00:00 | Z55: 0.08 | AA55: 0 | AB55: 0.1 | AC55: 0.55 | AD55: 0.08 | AE55: 0.55 | AF55: 0.23 | AG55: 0.22 | AH55: 0.03 | AI55: 0.78 | AJ55: 0.78
E56: Single Family, Average | F56: 45 | G56: Residence(s) | H56: Please enter the number of residences served by the DHW unit. | I56: Multifamily | J56: 0 | Y56: 23:00:00 | Z56: 0.05 | AA56: 0 | AB56: 0.01 | AC56: 0.45 | AD56: 0.05 | AE56: 0.45 | AF56: 0.13 | AG56: 0.12 | AH56: 0.03 | AI56: 0.79 | AJ56: 0.79
E57: Single Family, 2-Person Household | F57: 34 | G57: Residence(s) | H57: Please enter the number of residences served by the DHW unit. | I57: Multifamily | J57: 0 | Y57: 00:00:00 | Z57: 0.05 | AA57: 0 | AB57: 0.01 | AC57: 0.25 | AD57: 0.05 | AE57: 0.25 | AF57: 0.08 | AG57: 0.09 | AH57: 0.03 | AI57: 0.61 | AJ57: 0.61
E58: Single Family, 4-Person Household | F58: 68 | G58: Residence(s) | H58: Please enter the number of residences served by the DHW unit. | I58: Multifamily | J58: 0 | Y58: Max Percent of Full Load | Z58: =MAX(TableWeekdayPctLookup[Office]) -> 0.57 | AA58: =MAX(TableWeekdayPctLookup[Assembly]) -> 0.35 | AB58: =MAX(TableWeekdayPctLookup[Health]) -> 0.82 | AC58: =MAX(TableWeekdayPctLookup[Hotel/Motel]) -> 0.6 | AD58: =MAX(TableWeekdayPctLookup[Light Manufacturing]) -> 0.57 | AE58: =MAX(TableWeekdayPctLookup[Restaurant]) -> 0.6 | AF58: =MAX(TableWeekdayPctLookup[Retail]) -> 0.62 | AG58: =MAX(TableWeekdayPctLookup[School]) -> 0.83 | AH58: =MAX(TableWeekdayPctLookup[Warehouse]) -> 0.57 | AI58: =MAX(TableWeekdayPctLookup[Residential]) -> 0.81 | AJ58: =MAX(TableWeekdayPctLookup[Multifamily]) -> 0.81 | AK58: =MAX(TableWeekdayPctLookup[Custom]) -> 
E59: Multifamily, Specify # of Occupants | F59: 17 | G59: Occupants | H59: Please enter the number of Occupants in the building. | I59: Multifamily | J59: 0.25 | Y59: Max Hourly Fraction of GPD | Z59: =TableWeekdayPctLookup[[#Totals],[Office]]/SUM(Z34:Z57) -> 0.1061452514 | AA59: =TableWeekdayPctLookup[[#Totals],[Assembly]]/SUM(AA34:AA57) -> 0.5 | AB59: =TableWeekdayPctLookup[[#Totals],[Health]]/SUM(AB34:AB57) -> 0.1047254151 | AC59: =TableWeekdayPctLookup[[#Totals],[Hotel/Motel]]/SUM(AC34:AC57) -> 0.06666666667 | AD59: =TableWeekdayPctLookup[[#Totals],[Light Manufacturing]]/SUM(AD34:AD57) -> 0.1061452514 | AE59: =TableWeekdayPctLookup[[#Totals],[Restaurant]]/SUM(AE34:AE57) -> 0.07594936709 | AF59: =TableWeekdayPctLookup[[#Totals],[Retail]]/SUM(AF34:AF57) -> 0.09365558912 | AG59: =TableWeekdayPctLookup[[#Totals],[School]]/SUM(AG34:AG57) -> 0.1201157742 | AH59: =TableWeekdayPctLookup[[#Totals],[Warehouse]]/SUM(AH34:AH57) -> 0.1328671329 | AI59: =TableWeekdayPctLookup[[#Totals],[Residential]]/SUM(AI34:AI57) -> 0.06403162055 | AJ59: =TableWeekdayPctLookup[[#Totals],[Multifamily]]/SUM(AJ34:AJ57) -> 0.06403162055 | AK59: =TableWeekdayPctLookup[[#Totals],[Custom]]/SUM(AK34:AK57) -> 
E60: Multifamily, Senior (1 occ/apt) | F60: 17 | G60: Apartment Units | H60: Please enter the number of Apartment Units in the building. | I60: Multifamily | J60: 0.25
E61: Multifamily, Market (1.7 occ/apt) | F61: 29 | G61: Apartment Units | H61: Please enter the number of Apartment Units in the building. | I61: Multifamily | J61: 0.25 | Z61: Saturday Table
